Workbook

Sheet Cover
A2: RIIO-2 Price Control Financial Model (PCFM)
B3: Gas Transmission
C4: Model Version | G4: =MID(CELL("filename"),SEARCH("[",CELL("filename"))+1,SEARCH("]",CELL("filename"))-SEARCH("[",CELL("filename"))-1) -> Full Model GT2 - C01.xlsm
B7: Model key
E9: Sample | G9: Calculated value | I9: Sample | K9: Information and interface
E10: Sample | G10: Import | I10: Sample | K10: Fixed input value
E11: Sample | G11: Export | I11: Sample | K11: Ofgem annual update input (outturn value)
E12: Sample | G12: Named range | I12: Sample | K12: Ofgem annual update input (forecasted value)
E13: Sample | G13: Formula change in cells to the right | I13: Sample | K13: Other annual update input (outturn value)
I14: Sample | K14: Other annual update input (forecasted value)
I15: Sample | K15: Input linked from annual update
I16: Sample | K16: Notes and instructions
I17: Sample | K17: Check
B19: Contents
E21: INTERFACE > | I21: GENERAL INPUT SHEETS >
E22: Cover | G22: Model key and content directory | I22: Annual Inflation | K22: Derivation of annual inflation rates and price indices
E23: UserInterface | G23: Model operation | I23: Monthly Inflation | K23: Dataset and derivation of monthly inflation rates and price indices
E25: INPUT SELECTION > | I25: COMPANY SPECIFIC INPUT SHEETS >
E26: Input | G26: Inputs for selected licensee | I26: NGGT TO | K26: Inputs for NGGT TO
I27: NGGT SO | K27: Inputs for NGGT SO
E28: CALCULATION >
E29: Totex | G29: Totex allowance and actuals
E30: TIM | G30: Totex Incentive Mechanism and capitalisation
E31: Depn | G31: Gas transmission regulatory depreciation
E32: SystemOperator | G32: System operator calculations
E33: Return&RAV | G33: RAV and return calculations
E34: TaxPools | G34: Tax pools and capital allowances
E35: Finance&Tax | G35: Net debt, equity issuance, financing costs and tax
E36: NonCore | G36: Calculations for non-core regulatory assets (Revenue drivers)
E37: ReturnAdj | G37: Calculations for the Return Adjustment
E38: Revenue | G38: Summary of calculated revenue
E39: AR | G39: Derivation of allowed revenue (TO)
E40: SOAR | G40: Derivation of allowed revenue (SO)
E42: OUTPUT >
E43: LiveResults | G43: Live results for NGGT TO and SO
E44: SavedResults | G44: Saved results for NGGT TO and SO
B46: End of sheet

Sheet UserInterface
A1: User Interface
B2: =UserInterface!G17 -> NGGT TO
B3: Model operation
C5: PCFM year t
C6: Instruction: Use the following drop-down list to identify year t in the model. Year t is identified here by its end date.
E8: Year t selection:
E10: Year t selected: | G10: =INDEX($G$37:$G$43,m_PCFM_year_t) -> 2022-03-31
C12: Active company
C13: Instruction: Use the following drop-down list to select the active company in the model.
E15: Company selection:
E17: Selected company: | G17: =INDEX(E37:E37, E38) -> NGGT TO
C19: Run model for all licensees
C20: Instruction: Click on the left button to save results for the selected company only. Click the right button to save results for all.
C21: Note: Annual iterations must have been completed for all prior years before running the model to generate MOD.
C22: The macros save results and values required for future years which cannot be recreated once inputs are revised.
C23: Running the macro saves the output from year t's iteration for use in future iterations.
C24: Results for the selected company can be found on the "LiveResults" sheet and also on the "SavedResults" sheet once saved by a macro.
B30: User selection lists
B31: Note: The lists below drive the drop-down lists above.
B32: Using the drop-down lists above returns an integer in the "cell link" positioned below their "source list."
B33: The number returned in the cell link corresponds to the position of the selected item in the source list.
B34: The company selection output is set as a "named range." This gives a stable anchor point for the "RunForAll" macro to change the company.
E36: ="Source for ''"&C12&"'' drop-down list" -> Source for ''Active company'' drop-down list | G36: ="Source for ''"&C5&"'' drop-down list" -> Source for ''PCFM year t'' drop-down list
E37: NGGT TO | G37: 2022-03-31
E38: 1 | G38: 2023-03-31
E39: Adjacent named range: m_identity | G39: 2024-03-31
G40: 2025-03-31
G41: 2026-03-31
G42: 2027-03-31
G43: 2028-03-31
G44: 1
G45: Adjacent named range: m_PCFM_year_t
B47: End of sheet

Sheet Input
A1: Input
B2: =UserInterface!G17 -> NGGT TO
E3: Parameter | F3: Licence condition | G3: Units | H3: Term | I3: Constant | AP3: Annual values | BC3: TIM/ Non-TIM | BD3: RPE Incl. or Excl. | BE3: Baseline/UM | BF3: Capitalisation method: Fast/slow split or 100% fast money award
E4: PCFM year ending | F4: =Cover!C4 -> Model Version | I4: =UserInterface!$G$10 -> 2022-03-31 | K4: 1991-03-31 | L4: 1992-03-31 | M4: 1993-03-31 | N4: 1994-03-31 | O4: 1995-03-31 | P4: 1996-03-31 | Q4: 1997-03-31 | R4: 1998-03-31 | S4: 1999-03-31 | T4: 2000-03-31 | U4: 2001-03-31 | V4: 2002-03-31 | W4: 2003-03-31 | X4: 2004-03-31 | Y4: 2005-03-31 | Z4: 2006-03-31 | AA4: 2007-03-31 | AB4: 2008-03-31 | AC4: 2009-03-31 | AD4: 2010-03-31 | AE4: 2011-03-31 | AF4: 2012-03-31 | AG4: 2013-03-31 | AH4: 2014-03-31 | AI4: 2015-03-31 | AJ4: 2016-03-31 | AK4: 2017-03-31 | AL4: 2018-03-31 | AM4: 2019-03-31 | AN4: 2020-03-31 | AO4: 2021-03-31 | AP4: 2022-03-31 | AQ4: 2023-03-31 | AR4: 2024-03-31 | AS4: 2025-03-31 | AT4: 2026-03-31
B6: Totex allowance
C8: Non-variant allowances
C9: Note: Disposals net sales proceeds are deducted from non-variant "other capex".
E11: Non-variant allowed load related capex expenditure | G11: £m 18/19 prices | AP11: ='NGGT TO'!AP10 -> 0.3165010435 | AQ11: ='NGGT TO'!AQ10 -> 1.266628434 | AR11: ='NGGT TO'!AR10 -> 0.7091387381 | AS11: ='NGGT TO'!AS10 -> 0.3188108682 | AT11: ='NGGT TO'!AT10 -> 0
E12: Non-variant allowed asset replacement capex expenditure | G12: £m 18/19 prices | AP12: ='NGGT TO'!AP11 -> 13.63984293 | AQ12: ='NGGT TO'!AQ11 -> 5.353061423 | AR12: ='NGGT TO'!AR11 -> 16.12458997 | AS12: ='NGGT TO'!AS11 -> 15.97367167 | AT12: ='NGGT TO'!AT11 -> 11.03472356
E13: Non-variant allowed other capex expenditure (net of disposals) | G13: £m 18/19 prices | AP13: =- AP529 + 'NGGT TO'!AP12 -> 0.6256585976 | AQ13: =- AQ529 + 'NGGT TO'!AQ12 -> 2.477870463 | AR13: =- AR529 + 'NGGT TO'!AR12 -> 2.946034837 | AS13: =- AS529 + 'NGGT TO'!AS12 -> 3.204832405 | AT13: =- AT529 + 'NGGT TO'!AT12 -> 1.936455636
E14: Non-variant allowed non-load (opex) | G14: £m 18/19 prices | AP14: ='NGGT TO'!AP13 -> 42.3548453 | AQ14: ='NGGT TO'!AQ13 -> 42.13955032 | AR14: ='NGGT TO'!AR13 -> 41.9685025 | AS14: ='NGGT TO'!AS13 -> 43.74105677 | AT14: ='NGGT TO'!AT13 -> 40.24190276
E15: Non-variant allowed indirects (opex) | G15: £m 18/19 prices | AP15: ='NGGT TO'!AP14 -> 62.62358149 | AQ15: ='NGGT TO'!AQ14 -> 63.77540345 | AR15: ='NGGT TO'!AR14 -> 62.18446251 | AS15: ='NGGT TO'!AS14 -> 54.07628894 | AT15: ='NGGT TO'!AT14 -> 52.24969622
E16: Non-variant allowed non-operational capex | G16: £m 18/19 prices | AP16: ='NGGT TO'!AP15 -> 26.09808032 | AQ16: ='NGGT TO'!AQ15 -> 24.56149091 | AR16: ='NGGT TO'!AR15 -> 22.04079388 | AS16: ='NGGT TO'!AS15 -> 19.98085355 | AT16: ='NGGT TO'!AT15 -> 18.86524883
E17: Total | G17: £m 18/19 prices | AP17: =SUM(AP11:AP16) -> 145.6585097 | AQ17: =SUM(AQ11:AQ16) -> 139.574005 | AR17: =SUM(AR11:AR16) -> 145.9735224 | AS17: =SUM(AS11:AS16) -> 137.2955142 | AT17: =SUM(AT11:AT16) -> 124.328027
C19: Variant allowances (including Real Price Effects)
C20: Note: In the table below RPEs are aggregated in three groups: RPE non-variant allowances, PCDs and UMs. This allows to apply the correct capitalisation rate to each group.
E22: ='NGGT TO'!E20 -> Baseline Allowed NARM Expenditure | G22: £m 18/19 prices | H22: ='NGGT TO'!H20 -> NARMt | I22: ='NGGT TO'!I20 -> PCD | AP22: ='NGGT TO'!AP20 -> 70.55693441 | AQ22: ='NGGT TO'!AQ20 -> 93.60001095 | AR22: ='NGGT TO'!AR20 -> 79.7760084 | AS22: ='NGGT TO'!AS20 -> 49.84675935 | AT22: ='NGGT TO'!AT20 -> 60.64780962 | BC22: ='NGGT TO'!BC20 -> TIM | BD22: ='NGGT TO'!BD20 -> RPEs Apply | BE22: ='NGGT TO'!BE20 -> CapRate 1 (Baseline) | BF22: ='NGGT TO'!BF20 -> Fast/Slow Split
E23: ='NGGT TO'!E21 -> Physical security Price Control Deliverable | G23: £m 18/19 prices | H23: ='NGGT TO'!H21 -> PSUPt | I23: ='NGGT TO'!I21 -> PCD | AP23: ='NGGT TO'!AP21 -> 9.59800108 | AQ23: ='NGGT TO'!AQ21 -> 14.90123729 | AR23: ='NGGT TO'!AR21 -> 1.025758933 | AS23: ='NGGT TO'!AS21 -> 0 | AT23: ='NGGT TO'!AT21 -> 0 | BC23: ='NGGT TO'!BC21 -> TIM | BD23: ='NGGT TO'!BD21 -> RPEs Apply | BE23: ='NGGT TO'!BE21 -> CapRate 1 (Baseline) | BF23: ='NGGT TO'!BF21 -> Fast/Slow Split
E24: ='NGGT TO'!E22 -> Bacton terminal site redevelopment Price Control Deliverable | G24: £m 18/19 prices | H24: ='NGGT TO'!H22 -> BTRt | I24: ='NGGT TO'!I22 -> PCD | AP24: ='NGGT TO'!AP22 -> 7.126023842 | AQ24: ='NGGT TO'!AQ22 -> 3.373682904 | AR24: ='NGGT TO'!AR22 -> 0 | AS24: ='NGGT TO'!AS22 -> 0 | AT24: ='NGGT TO'!AT22 -> 0 | BC24: ='NGGT TO'!BC22 -> TIM | BD24: ='NGGT TO'!BD22 -> RPEs Apply | BE24: ='NGGT TO'!BE22 -> CapRate 1 (Baseline) | BF24: ='NGGT TO'!BF22 -> Fast/Slow Split
E25: ='NGGT TO'!E23 -> King's Lynn subsidence Price Control Deliverable | G25: £m 18/19 prices | H25: ='NGGT TO'!H23 -> KLSt | I25: ='NGGT TO'!I23 -> PCD | AP25: ='NGGT TO'!AP23 -> 1.160836057 | AQ25: ='NGGT TO'!AQ23 -> 0 | AR25: ='NGGT TO'!AR23 -> 0 | AS25: ='NGGT TO'!AS23 -> 0 | AT25: ='NGGT TO'!AT23 -> 0 | BC25: ='NGGT TO'!BC23 -> TIM | BD25: ='NGGT TO'!BD23 -> RPEs Apply | BE25: ='NGGT TO'!BE23 -> CapRate 1 (Baseline) | BF25: ='NGGT TO'!BF23 -> Fast/Slow Split
E26: ='NGGT TO'!E24 -> Asset health - non lead assets Price Control Deliverable | G26: £m 18/19 prices | H26: ='NGGT TO'!H24 -> NLAt | I26: ='NGGT TO'!I24 -> PCD | AP26: ='NGGT TO'!AP24 -> 7.457287952 | AQ26: ='NGGT TO'!AQ24 -> 9.860725476 | AR26: ='NGGT TO'!AR24 -> 11.92031351 | AS26: ='NGGT TO'!AS24 -> 7.716952262 | AT26: ='NGGT TO'!AT24 -> 9.435024339 | BC26: ='NGGT TO'!BC24 -> TIM | BD26: ='NGGT TO'!BD24 -> RPEs Apply | BE26: ='NGGT TO'!BE24 -> CapRate 1 (Baseline) | BF26: ='NGGT TO'!BF24 -> Fast/Slow Split
E27: ='NGGT TO'!E25 -> Compressor emissions Price Control Deliverable | G27: £m 18/19 prices | H27: ='NGGT TO'!H25 -> CEPt | I27: ='NGGT TO'!I25 -> PCD | AP27: ='NGGT TO'!AP25 -> 8.382200176 | AQ27: ='NGGT TO'!AQ25 -> 34.51277436 | AR27: ='NGGT TO'!AR25 -> 59.5004701 | AS27: ='NGGT TO'!AS25 -> 20.47476889 | AT27: ='NGGT TO'!AT25 -> 1.006283649 | BC27: ='NGGT TO'!BC25 -> TIM | BD27: ='NGGT TO'!BD25 -> RPEs Apply | BE27: ='NGGT TO'!BE25 -> CapRate 1 (Baseline) | BF27: ='NGGT TO'!BF25 -> Fast/Slow Split
E28: ='NGGT TO'!E26 -> Redundant Assets Price Control Deliverable | G28: £m 18/19 prices | H28: ='NGGT TO'!H26 -> RAt | I28: ='NGGT TO'!I26 -> PCD | AP28: ='NGGT TO'!AP26 -> 3.580982602 | AQ28: ='NGGT TO'!AQ26 -> 22.37809533 | AR28: ='NGGT TO'!AR26 -> 21.28680313 | AS28: ='NGGT TO'!AS26 -> 13.13586725 | AT28: ='NGGT TO'!AT26 -> 17.13426952 | BC28: ='NGGT TO'!BC26 -> TIM | BD28: ='NGGT TO'!BD26 -> RPEs Apply | BE28: ='NGGT TO'!BE26 -> CapRate 1 (Baseline) | BF28: ='NGGT TO'!BF26 -> Fast/Slow Split
E29: ='NGGT TO'!E27 -> Funded incremental obligated capacity Price Control Deliverable | G29: £m 18/19 prices | H29: ='NGGT TO'!H27 -> FIOCt | I29: ='NGGT TO'!I27 -> PCD | AP29: ='NGGT TO'!AP27 -> 0 | AQ29: ='NGGT TO'!AQ27 -> 0 | AR29: ='NGGT TO'!AR27 -> 0 | AS29: ='NGGT TO'!AS27 -> 0 | AT29: ='NGGT TO'!AT27 -> 0 | BC29: ='NGGT TO'!BC27 -> TIM | BD29: ='NGGT TO'!BD27 -> RPEs Apply | BE29: ='NGGT TO'!BE27 -> CapRate 1 (Baseline) | BF29: ='NGGT TO'!BF27 -> Fast/Slow Split
E30: ='NGGT TO'!E28 -> Cyber Resilience OT Price Control Deliverable and use it or lose it allowance | G30: £m 18/19 prices | H30: ='NGGT TO'!H28 -> CROTt | I30: ='NGGT TO'!I28 -> PCD | AP30: ='NGGT TO'!AP28 -> 41.29617583 | AQ30: ='NGGT TO'!AQ28 -> 88.13023021 | AR30: ='NGGT TO'!AR28 -> 92.76179849 | AS30: ='NGGT TO'!AS28 -> 0 | AT30: ='NGGT TO'!AT28 -> 0 | BC30: ='NGGT TO'!BC28 -> Non-Tim | BD30: ='NGGT TO'!BD28 -> RPEs Don’t Apply | BE30: ='NGGT TO'!BE28 -> CapRate 1 (Baseline) | BF30: ='NGGT TO'!BF28 -> Fast/Slow Split
E31: ='NGGT TO'!E29 -> Cyber Resilience IT Price Control Deliverable | G31: £m 18/19 prices | H31: ='NGGT TO'!H29 -> CRITt | I31: ='NGGT TO'!I29 -> PCD | AP31: ='NGGT TO'!AP29 -> 4.461925506 | AQ31: ='NGGT TO'!AQ29 -> 4.033679004 | AR31: ='NGGT TO'!AR29 -> 3.569621852 | AS31: ='NGGT TO'!AS29 -> 0 | AT31: ='NGGT TO'!AT29 -> 0 | BC31: ='NGGT TO'!BC29 -> TIM | BD31: ='NGGT TO'!BD29 -> RPEs Apply | BE31: ='NGGT TO'!BE29 -> CapRate 1 (Baseline) | BF31: ='NGGT TO'!BF29 -> Fast/Slow Split
E32: ='NGGT TO'!E30 -> Net Zero And Re-opener Development Fund use it or lose it allowance | G32: £m 18/19 prices | H32: ='NGGT TO'!H30 -> RDFt | I32: ='NGGT TO'!I30 -> PCD | AP32: ='NGGT TO'!AP30 -> 1.66 | AQ32: ='NGGT TO'!AQ30 -> 1.66 | AR32: ='NGGT TO'!AR30 -> 1.66 | AS32: ='NGGT TO'!AS30 -> 1.66 | AT32: ='NGGT TO'!AT30 -> 1.66 | BC32: ='NGGT TO'!BC30 -> Non-Tim | BD32: ='NGGT TO'!BD30 -> RPEs Don’t Apply | BE32: ='NGGT TO'!BE30 -> CapRate 1 (Baseline) | BF32: ='NGGT TO'!BF30 -> Fast/Slow Split
E33: ='NGGT TO'!E31 -> Spare PCD 1 | G33: £m 18/19 prices | H33: ='NGGT TO'!H31 -> 0 | I33: ='NGGT TO'!I31 -> PCD | AP33: ='NGGT TO'!AP31 -> 0 | AQ33: ='NGGT TO'!AQ31 -> 0 | AR33: ='NGGT TO'!AR31 -> 0 | AS33: ='NGGT TO'!AS31 -> 0 | AT33: ='NGGT TO'!AT31 -> 0 | BC33: ='NGGT TO'!BC31 -> TIM | BD33: ='NGGT TO'!BD31 -> RPEs Apply | BE33: ='NGGT TO'!BE31 -> CapRate 1 (Baseline) | BF33: ='NGGT TO'!BF31 -> Fast/Slow Split
E34: ='NGGT TO'!E32 -> Spare PCD 2 | G34: £m 18/19 prices | H34: ='NGGT TO'!H32 -> 0 | I34: ='NGGT TO'!I32 -> PCD | AP34: ='NGGT TO'!AP32 -> 0 | AQ34: ='NGGT TO'!AQ32 -> 0 | AR34: ='NGGT TO'!AR32 -> 0 | AS34: ='NGGT TO'!AS32 -> 0 | AT34: ='NGGT TO'!AT32 -> 0 | BC34: ='NGGT TO'!BC32 -> 0 | BD34: ='NGGT TO'!BD32 -> 0 | BE34: ='NGGT TO'!BE32 -> 0 | BF34: ='NGGT TO'!BF32 -> 0
E35: ='NGGT TO'!E33 -> Spare PCD 3 | G35: £m 18/19 prices | H35: ='NGGT TO'!H33 -> 0 | I35: ='NGGT TO'!I33 -> PCD | AP35: ='NGGT TO'!AP33 -> 0 | AQ35: ='NGGT TO'!AQ33 -> 0 | AR35: ='NGGT TO'!AR33 -> 0 | AS35: ='NGGT TO'!AS33 -> 0 | AT35: ='NGGT TO'!AT33 -> 0 | BC35: ='NGGT TO'!BC33 -> 0 | BD35: ='NGGT TO'!BD33 -> 0 | BE35: ='NGGT TO'!BE33 -> 0 | BF35: ='NGGT TO'!BF33 -> 0
E36: ='NGGT TO'!E34 -> NARM Asset Health Re-opener | G36: £m 18/19 prices | H36: ='NGGT TO'!H34 -> NARMAHt | I36: ='NGGT TO'!I34 -> UM | AP36: ='NGGT TO'!AP34 -> 0 | AQ36: ='NGGT TO'!AQ34 -> 0 | AR36: ='NGGT TO'!AR34 -> 0 | AS36: ='NGGT TO'!AS34 -> 0 | AT36: ='NGGT TO'!AT34 -> 0 | BC36: ='NGGT TO'!BC34 -> TIM | BD36: ='NGGT TO'!BD34 -> RPEs Don’t Apply | BE36: ='NGGT TO'!BE34 -> CapRate 2 (UM) | BF36: ='NGGT TO'!BF34 -> Fast/Slow Split
E37: ='NGGT TO'!E35 -> Non-operational IT Capex Re-opener | G37: £m 18/19 prices | H37: ='NGGT TO'!H35 -> NOITt | I37: ='NGGT TO'!I35 -> UM | AP37: ='NGGT TO'!AP35 -> 0 | AQ37: ='NGGT TO'!AQ35 -> 0 | AR37: ='NGGT TO'!AR35 -> 0 | AS37: ='NGGT TO'!AS35 -> 0 | AT37: ='NGGT TO'!AT35 -> 0 | BC37: ='NGGT TO'!BC35 -> TIM | BD37: ='NGGT TO'!BD35 -> RPEs Don’t Apply | BE37: ='NGGT TO'!BE35 -> CapRate 2 (UM) | BF37: ='NGGT TO'!BF35 -> Fast/Slow Split
E38: ='NGGT TO'!E36 -> Coordinated adjustment mechanism Re-opener | G38: £m 18/19 prices | H38: ='NGGT TO'!H36 -> CAMt | I38: ='NGGT TO'!I36 -> UM | AP38: ='NGGT TO'!AP36 -> 0 | AQ38: ='NGGT TO'!AQ36 -> 0 | AR38: ='NGGT TO'!AR36 -> 0 | AS38: ='NGGT TO'!AS36 -> 0 | AT38: ='NGGT TO'!AT36 -> 0 | BC38: ='NGGT TO'!BC36 -> TIM | BD38: ='NGGT TO'!BD36 -> RPEs Don’t Apply | BE38: ='NGGT TO'!BE36 -> CapRate 2 (UM) | BF38: ='NGGT TO'!BF36 -> Fast/Slow Split
E39: ='NGGT TO'!E37 -> Net zero Re-opener | G39: £m 18/19 prices | H39: ='NGGT TO'!H37 -> NZt | I39: ='NGGT TO'!I37 -> UM | AP39: ='NGGT TO'!AP37 -> 0 | AQ39: ='NGGT TO'!AQ37 -> 0 | AR39: ='NGGT TO'!AR37 -> 0 | AS39: ='NGGT TO'!AS37 -> 0 | AT39: ='NGGT TO'!AT37 -> 0 | BC39: ='NGGT TO'!BC37 -> TIM | BD39: ='NGGT TO'!BD37 -> RPEs Don’t Apply | BE39: ='NGGT TO'!BE37 -> CapRate 2 (UM) | BF39: ='NGGT TO'!BF37 -> Fast/Slow Split
E40: ='NGGT TO'!E38 -> Asset health Re-opener | G40: £m 18/19 prices | H40: ='NGGT TO'!H38 -> AHt | I40: ='NGGT TO'!I38 -> UM | AP40: ='NGGT TO'!AP38 -> 0 | AQ40: ='NGGT TO'!AQ38 -> 0 | AR40: ='NGGT TO'!AR38 -> 0 | AS40: ='NGGT TO'!AS38 -> 0 | AT40: ='NGGT TO'!AT38 -> 0 | BC40: ='NGGT TO'!BC38 -> TIM | BD40: ='NGGT TO'!BD38 -> RPEs Don’t Apply | BE40: ='NGGT TO'!BE38 -> CapRate 2 (UM) | BF40: ='NGGT TO'!BF38 -> Fast/Slow Split
E41: ='NGGT TO'!E39 -> Asset health – non lead assets Re-opener | G41: £m 18/19 prices | H41: ='NGGT TO'!H39 -> NLAAHt | I41: ='NGGT TO'!I39 -> UM | AP41: ='NGGT TO'!AP39 -> 0 | AQ41: ='NGGT TO'!AQ39 -> 0 | AR41: ='NGGT TO'!AR39 -> 0 | AS41: ='NGGT TO'!AS39 -> 0 | AT41: ='NGGT TO'!AT39 -> 0 | BC41: ='NGGT TO'!BC39 -> TIM | BD41: ='NGGT TO'!BD39 -> RPEs Don’t Apply | BE41: ='NGGT TO'!BE39 -> CapRate 2 (UM) | BF41: ='NGGT TO'!BF39 -> Fast/Slow Split
E42: ='NGGT TO'!E40 -> Uncertain Costs Re-opener | G42: £m 18/19 prices | H42: ='NGGT TO'!H40 -> QLt and PDt | I42: ='NGGT TO'!I40 -> UM | AP42: ='NGGT TO'!AP40 -> 0 | AQ42: ='NGGT TO'!AQ40 -> 0 | AR42: ='NGGT TO'!AR40 -> 0 | AS42: ='NGGT TO'!AS40 -> 0 | AT42: ='NGGT TO'!AT40 -> 0 | BC42: ='NGGT TO'!BC40 -> TIM | BD42: ='NGGT TO'!BD40 -> RPEs Don’t Apply | BE42: ='NGGT TO'!BE40 -> CapRate 2 (UM) | BF42: ='NGGT TO'!BF40 -> Fast/Slow Split
E43: ='NGGT TO'!E41 -> Net Zero Pre-construction Work and Small Net Zero Projects Re-opener | G43: £m 18/19 prices | H43: ='NGGT TO'!H41 -> NZPt | I43: ='NGGT TO'!I41 -> UM | AP43: ='NGGT TO'!AP41 -> 0 | AQ43: ='NGGT TO'!AQ41 -> 0 | AR43: ='NGGT TO'!AR41 -> 0 | AS43: ='NGGT TO'!AS41 -> 0 | AT43: ='NGGT TO'!AT41 -> 0 | BC43: ='NGGT TO'!BC41 -> TIM | BD43: ='NGGT TO'!BD41 -> RPEs Don’t Apply | BE43: ='NGGT TO'!BE41 -> CapRate 2 (UM) | BF43: ='NGGT TO'!BF41 -> Fast/Slow Split
E44: ='NGGT TO'!E42 -> Bacton terminal site redevelopment Re-Opener | G44: £m 18/19 prices | H44: ='NGGT TO'!H42 -> BTREt | I44: ='NGGT TO'!I42 -> UM | AP44: ='NGGT TO'!AP42 -> 0 | AQ44: ='NGGT TO'!AQ42 -> 0 | AR44: ='NGGT TO'!AR42 -> 0 | AS44: ='NGGT TO'!AS42 -> 0 | AT44: ='NGGT TO'!AT42 -> 0 | BC44: ='NGGT TO'!BC42 -> TIM | BD44: ='NGGT TO'!BD42 -> RPEs Don’t Apply | BE44: ='NGGT TO'!BE42 -> CapRate 2 (UM) | BF44: ='NGGT TO'!BF42 -> Fast/Slow Split
E45: ='NGGT TO'!E43 -> Physical Security Re-Opener | G45: £m 18/19 prices | H45: ='NGGT TO'!H43 -> PSUPREt | I45: ='NGGT TO'!I43 -> UM | AP45: ='NGGT TO'!AP43 -> 0 | AQ45: ='NGGT TO'!AQ43 -> 0 | AR45: ='NGGT TO'!AR43 -> 0 | AS45: ='NGGT TO'!AS43 -> 0 | AT45: ='NGGT TO'!AT43 -> 0 | BC45: ='NGGT TO'!BC43 -> TIM | BD45: ='NGGT TO'!BD43 -> RPEs Don’t Apply | BE45: ='NGGT TO'!BE43 -> CapRate 2 (UM) | BF45: ='NGGT TO'!BF43 -> Fast/Slow Split
E46: ='NGGT TO'!E44 -> Compressor emissions Re-Opener | G46: £m 18/19 prices | H46: ='NGGT TO'!H44 -> CEPREt | I46: ='NGGT TO'!I44 -> UM | AP46: ='NGGT TO'!AP44 -> 0 | AQ46: ='NGGT TO'!AQ44 -> 0 | AR46: ='NGGT TO'!AR44 -> 0 | AS46: ='NGGT TO'!AS44 -> 0 | AT46: ='NGGT TO'!AT44 -> 0 | BC46: ='NGGT TO'!BC44 -> TIM | BD46: ='NGGT TO'!BD44 -> RPEs Don’t Apply | BE46: ='NGGT TO'!BE44 -> CapRate 2 (UM) | BF46: ='NGGT TO'!BF44 -> Fast/Slow Split
E47: ='NGGT TO'!E45 -> Cyber Resilience OT Re-Opener | G47: £m 18/19 prices | H47: ='NGGT TO'!H45 -> CROTREt | I47: ='NGGT TO'!I45 -> UM | AP47: ='NGGT TO'!AP45 -> 0 | AQ47: ='NGGT TO'!AQ45 -> 0 | AR47: ='NGGT TO'!AR45 -> 0 | AS47: ='NGGT TO'!AS45 -> 0 | AT47: ='NGGT TO'!AT45 -> 0 | BC47: ='NGGT TO'!BC45 -> Non-Tim | BD47: ='NGGT TO'!BD45 -> RPEs Don’t Apply | BE47: ='NGGT TO'!BE45 -> CapRate 2 (UM) | BF47: ='NGGT TO'!BF45 -> Fast/Slow Split
E48: ='NGGT TO'!E46 -> Cyber Resilience IT Re-Opener | G48: £m 18/19 prices | H48: ='NGGT TO'!H46 -> CRITREt | I48: ='NGGT TO'!I46 -> UM | AP48: ='NGGT TO'!AP46 -> 0 | AQ48: ='NGGT TO'!AQ46 -> 0 | AR48: ='NGGT TO'!AR46 -> 0 | AS48: ='NGGT TO'!AS46 -> 0 | AT48: ='NGGT TO'!AT46 -> 0 | BC48: ='NGGT TO'!BC46 -> TIM | BD48: ='NGGT TO'!BD46 -> RPEs Don’t Apply | BE48: ='NGGT TO'!BE46 -> CapRate 2 (UM) | BF48: ='NGGT TO'!BF46 -> Fast/Slow Split
E49: ='NGGT TO'!E47 -> King's Lynn subsidence Re-Opener | G49: £m 18/19 prices | H49: ='NGGT TO'!H47 -> KLSREt | I49: ='NGGT TO'!I47 -> UM | AP49: ='NGGT TO'!AP47 -> 0 | AQ49: ='NGGT TO'!AQ47 -> 0 | AR49: ='NGGT TO'!AR47 -> 0 | AS49: ='NGGT TO'!AS47 -> 0 | AT49: ='NGGT TO'!AT47 -> 0 | BC49: ='NGGT TO'!BC47 -> TIM | BD49: ='NGGT TO'!BD47 -> RPEs Don’t Apply | BE49: ='NGGT TO'!BE47 -> CapRate 2 (UM) | BF49: ='NGGT TO'!BF47 -> Fast/Slow Split
E50: ='NGGT TO'!E48 -> Funded incremental obligated capacity Re-Opener | G50: £m 18/19 prices | H50: ='NGGT TO'!H48 -> FIOCREt | I50: ='NGGT TO'!I48 -> UM | AP50: ='NGGT TO'!AP48 -> 0 | AQ50: ='NGGT TO'!AQ48 -> 0 | AR50: ='NGGT TO'!AR48 -> 0 | AS50: ='NGGT TO'!AS48 -> 0 | AT50: ='NGGT TO'!AT48 -> 0 | BC50: ='NGGT TO'!BC48 -> TIM | BD50: ='NGGT TO'!BD48 -> RPEs Don’t Apply | BE50: ='NGGT TO'!BE48 -> CapRate 2 (UM) | BF50: ='NGGT TO'!BF48 -> Fast/Slow Split
E51: ='NGGT TO'!E49 -> Opex Escalator | G51: £m 18/19 prices | H51: ='NGGT TO'!H49 -> OEt | I51: ='NGGT TO'!I49 -> UM | AP51: ='NGGT TO'!AP49 -> 0 | AQ51: ='NGGT TO'!AQ49 -> 0 | AR51: ='NGGT TO'!AR49 -> 0 | AS51: ='NGGT TO'!AS49 -> 0 | AT51: ='NGGT TO'!AT49 -> 0 | BC51: ='NGGT TO'!BC49 -> TIM | BD51: ='NGGT TO'!BD49 -> RPEs Don’t Apply | BE51: ='NGGT TO'!BE49 -> CapRate 2 (UM) | BF51: ='NGGT TO'!BF49 -> Fast/Slow Split
E52: ='NGGT TO'!E50 -> Spare UM 1 | G52: £m 18/19 prices | H52: ='NGGT TO'!H50 -> 0 | I52: ='NGGT TO'!I50 -> UM | AP52: ='NGGT TO'!AP50 -> 0 | AQ52: ='NGGT TO'!AQ50 -> 0 | AR52: ='NGGT TO'!AR50 -> 0 | AS52: ='NGGT TO'!AS50 -> 0 | AT52: ='NGGT TO'!AT50 -> 0 | BC52: ='NGGT TO'!BC50 -> 0 | BD52: ='NGGT TO'!BD50 -> 0 | BE52: ='NGGT TO'!BE50 -> 0 | BF52: ='NGGT TO'!BF50 -> 0
E53: ='NGGT TO'!E51 -> Spare UM 2 | G53: £m 18/19 prices | H53: ='NGGT TO'!H51 -> 0 | I53: ='NGGT TO'!I51 -> UM | AP53: ='NGGT TO'!AP51 -> 0 | AQ53: ='NGGT TO'!AQ51 -> 0 | AR53: ='NGGT TO'!AR51 -> 0 | AS53: ='NGGT TO'!AS51 -> 0 | AT53: ='NGGT TO'!AT51 -> 0 | BC53: ='NGGT TO'!BC51 -> 0 | BD53: ='NGGT TO'!BD51 -> 0 | BE53: ='NGGT TO'!BE51 -> 0 | BF53: ='NGGT TO'!BF51 -> 0
E54: ='NGGT TO'!E52 -> Spare UM 3 | G54: £m 18/19 prices | H54: ='NGGT TO'!H52 -> 0 | I54: ='NGGT TO'!I52 -> UM | AP54: ='NGGT TO'!AP52 -> 0 | AQ54: ='NGGT TO'!AQ52 -> 0 | AR54: ='NGGT TO'!AR52 -> 0 | AS54: ='NGGT TO'!AS52 -> 0 | AT54: ='NGGT TO'!AT52 -> 0 | BC54: ='NGGT TO'!BC52 -> 0 | BD54: ='NGGT TO'!BD52 -> 0 | BE54: ='NGGT TO'!BE52 -> 0 | BF54: ='NGGT TO'!BF52 -> 0
E55: RPE non-variant allowances | G55: £m 18/19 prices | H55: ='NGGT TO'!H53 -> RPEAt (non-variant) | I55: ='NGGT TO'!I53 -> UM | AP55: =SUMPRODUCT((AP$482:AP$499) * ($E$482:$E$499 = $E55)) -> 0.6675042163 | AQ55: =SUMPRODUCT((AQ$482:AQ$499) * ($E$482:$E$499 = $E55)) -> 2.268010814 | AR55: =SUMPRODUCT((AR$482:AR$499) * ($E$482:$E$499 = $E55)) -> 4.309799106 | AS55: =SUMPRODUCT((AS$482:AS$499) * ($E$482:$E$499 = $E55)) -> 5.988892414 | AT55: =SUMPRODUCT((AT$482:AT$499) * ($E$482:$E$499 = $E55)) -> 7.142363634 | BC55: ='NGGT TO'!BC53 -> TIM | BD55: ='NGGT TO'!BD53 -> 0 | BE55: ='NGGT TO'!BE53 -> CapRate 1 (Baseline) | BF55: ='NGGT TO'!BF53 -> Fast/Slow Split
E56: RPE PCDs | G56: £m 18/19 prices | H56: ='NGGT TO'!H54 -> RPEAt (PCD) | I56: ='NGGT TO'!I54 -> UM | AP56: =SUMPRODUCT((AP$482:AP$499) * ($E$482:$E$499 = $E56)) -> 0.5147441894 | AQ56: =SUMPRODUCT((AQ$482:AQ$499) * ($E$482:$E$499 = $E56)) -> 2.968140958 | AR56: =SUMPRODUCT((AR$482:AR$499) * ($E$482:$E$499 = $E56)) -> 5.228172887 | AS56: =SUMPRODUCT((AS$482:AS$499) * ($E$482:$E$499 = $E56)) -> 3.977066278 | AT56: =SUMPRODUCT((AT$482:AT$499) * ($E$482:$E$499 = $E56)) -> 5.068233825 | BC56: ='NGGT TO'!BC54 -> TIM | BD56: ='NGGT TO'!BD54 -> 0 | BE56: ='NGGT TO'!BE54 -> CapRate 1 (Baseline) | BF56: ='NGGT TO'!BF54 -> Fast/Slow Split
E57: RPE UMs | G57: £m 18/19 prices | H57: ='NGGT TO'!H55 -> RPEAt (UM) | I57: ='NGGT TO'!I55 -> UM | AP57: =SUMPRODUCT((AP$482:AP$499) * ($E$482:$E$499 = $E57)) -> 0 | AQ57: =SUMPRODUCT((AQ$482:AQ$499) * ($E$482:$E$499 = $E57)) -> 0 | AR57: =SUMPRODUCT((AR$482:AR$499) * ($E$482:$E$499 = $E57)) -> 0 | AS57: =SUMPRODUCT((AS$482:AS$499) * ($E$482:$E$499 = $E57)) -> 0 | AT57: =SUMPRODUCT((AT$482:AT$499) * ($E$482:$E$499 = $E57)) -> 0 | BC57: ='NGGT TO'!BC55 -> TIM | BD57: ='NGGT TO'!BD55 -> 0 | BE57: ='NGGT TO'!BE55 -> CapRate 2 (UM) | BF57: ='NGGT TO'!BF55 -> Fast/Slow Split
E58: Total | G58: £m 18/19 prices | AP58: =SUM(AP22:AP57) -> 156.4626159 | AQ58: =SUM(AQ22:AQ57) -> 277.6865873 | AR58: 281.0387464 | AS58: 102.8003064 | AT58: 102.0939846
B60: Actual totex
E62: Capitalisation rate 1:
E63: Actual load related capex expenditure | G63: £m 18/19 prices | H63: ='NGGT TO'!H60 -> ALC | AH63: ='NGGT TO'!AH60 -> 3.884225484 | AI63: ='NGGT TO'!AI60 -> 1.607553285 | AJ63: ='NGGT TO'!AJ60 -> 1.50471352 | AK63: ='NGGT TO'!AK60 -> 1.804757233 | AL63: ='NGGT TO'!AL60 -> 2.741304627 | AM63: ='NGGT TO'!AM60 -> 2.45809652 | AN63: ='NGGT TO'!AN60 -> 8.054557856 | AO63: ='NGGT TO'!AO60 -> 1.527043689 | AP63: ='NGGT TO'!AP60 -> 1.977951462 | AQ63: ='NGGT TO'!AQ60 -> 2.947210541 | AR63: ='NGGT TO'!AR60 -> 2.390075723 | AS63: ='NGGT TO'!AS60 -> 1.992717542 | AT63: ='NGGT TO'!AT60 -> 1.66
E64: Actual asset replacement capex expenditure | G64: £m 18/19 prices | H64: ='NGGT TO'!H61 -> ARC | AH64: ='NGGT TO'!AH61 -> 63.30901297 | AI64: ='NGGT TO'!AI61 -> 60.43197737 | AJ64: ='NGGT TO'!AJ61 -> 81.456584 | AK64: ='NGGT TO'!AK61 -> 103.1638964 | AL64: ='NGGT TO'!AL61 -> 130.374737 | AM64: ='NGGT TO'!AM61 -> 113.1305197 | AN64: ='NGGT TO'!AN61 -> 64.75047468 | AO64: ='NGGT TO'!AO61 -> 76.36318467 | AP64: ='NGGT TO'!AP61 -> 112.4169271 | AQ64: ='NGGT TO'!AQ61 -> 171.8257928 | AR64: ='NGGT TO'!AR61 -> 194.1767524 | AS64: ='NGGT TO'!AS61 -> 111.8218645 | AT64: ='NGGT TO'!AT61 -> 104.9602644
E65: Actual other capex expenditure | G65: £m 18/19 prices | H65: ='NGGT TO'!H62 -> AOC | AH65: ='NGGT TO'!AH62 -> 33.69171531 | AI65: ='NGGT TO'!AI62 -> 37.34061417 | AJ65: ='NGGT TO'!AJ62 -> 30.84015316 | AK65: ='NGGT TO'!AK62 -> 16.01692329 | AL65: ='NGGT TO'!AL62 -> 46.27589527 | AM65: ='NGGT TO'!AM62 -> 51.03712061 | AN65: ='NGGT TO'!AN62 -> 32.70705036 | AO65: ='NGGT TO'!AO62 -> 40.49489094 | AP65: ='NGGT TO'!AP62 -> 46.9410913 | AQ65: ='NGGT TO'!AQ62 -> 94.00693415 | AR65: ='NGGT TO'!AR62 -> 84.22284245 | AS65: ='NGGT TO'!AS62 -> 3.344628644 | AT65: ='NGGT TO'!AT62 -> 2.047700628
E66: Actual non-load (opex) | G66: £m 18/19 prices | H66: ='NGGT TO'!H63 -> ACO | AH66: ='NGGT TO'!AH63 -> 86.36809413 | AI66: ='NGGT TO'!AI63 -> 91.3481825 | AJ66: ='NGGT TO'!AJ63 -> 91.68794061 | AK66: ='NGGT TO'!AK63 -> 103.5278832 | AL66: ='NGGT TO'!AL63 -> 111.0507216 | AM66: ='NGGT TO'!AM63 -> 117.3332035 | AN66: ='NGGT TO'!AN63 -> 110.5733048 | AO66: ='NGGT TO'!AO63 -> 105.4994241 | AP66: ='NGGT TO'!AP63 -> 42.54894338 | AQ66: ='NGGT TO'!AQ63 -> 42.82429786 | AR66: ='NGGT TO'!AR63 -> 43.20760266 | AS66: ='NGGT TO'!AS63 -> 45.64906144 | AT66: ='NGGT TO'!AT63 -> 42.55370896
E67: Actual indirects (opex) | G67: £m 18/19 prices | H67: ='NGGT TO'!H64 -> AIO | AP67: ='NGGT TO'!AP64 -> 72.01853325 | AQ67: ='NGGT TO'!AQ64 -> 80.69575361 | AR67: ='NGGT TO'!AR64 -> 80.32345769 | AS67: ='NGGT TO'!AS64 -> 56.43512111 | AT67: ='NGGT TO'!AT64 -> 55.25132296
E68: Actual non-operational capex | G68: £m 18/19 prices | H68: ='NGGT TO'!H65 -> ANC | AH68: ='NGGT TO'!AH65 -> 13.83555149 | AI68: ='NGGT TO'!AI65 -> 13.08137592 | AJ68: ='NGGT TO'!AJ65 -> 14.63177991 | AK68: ='NGGT TO'!AK65 -> 23.58851632 | AL68: ='NGGT TO'!AL65 -> 18.81007691 | AM68: ='NGGT TO'!AM65 -> 21.90189694 | AN68: ='NGGT TO'!AN65 -> 23.10578969 | AO68: ='NGGT TO'!AO65 -> 16.09625086 | AP68: ='NGGT TO'!AP65 -> 26.21767909 | AQ68: ='NGGT TO'!AQ65 -> 24.96060339 | AR68: ='NGGT TO'!AR65 -> 22.69153788 | AS68: ='NGGT TO'!AS65 -> 20.85242742 | AT68: ='NGGT TO'!AT65 -> 19.94901466
E69: Total | G69: £m 18/19 prices | AH69: =SUM(AH63:AH68) -> 201.0885994 | AI69: 203.8097032 | AJ69: 220.1211712 | AK69: 248.1019765 | AL69: 309.2527354 | AM69: 305.8608373 | AN69: 239.1911773 | AO69: 239.9807943 | AP69: 302.1211256 | AQ69: 417.2605923 | AR69: 427.0122688 | AS69: 240.0958206 | AT69: 226.4220116
E71: Capitalisation rate 2:
E72: Actual load related capex expenditure | G72: £m 18/19 prices | H72: ='NGGT TO'!H68 -> ALCU | AH72: ='NGGT TO'!AH68 -> 0 | AI72: ='NGGT TO'!AI68 -> 0 | AJ72: ='NGGT TO'!AJ68 -> 0 | AK72: ='NGGT TO'!AK68 -> 0 | AL72: ='NGGT TO'!AL68 -> 0 | AM72: ='NGGT TO'!AM68 -> 0 | AN72: ='NGGT TO'!AN68 -> 0 | AO72: ='NGGT TO'!AO68 -> 0 | AP72: ='NGGT TO'!AP68 -> 0 | AQ72: ='NGGT TO'!AQ68 -> 0 | AR72: ='NGGT TO'!AR68 -> 0 | AS72: ='NGGT TO'!AS68 -> 0 | AT72: ='NGGT TO'!AT68 -> 0
E73: Actual asset replacement capex expenditure | G73: £m 18/19 prices | H73: ='NGGT TO'!H69 -> ARCU | AH73: ='NGGT TO'!AH69 -> 0 | AI73: ='NGGT TO'!AI69 -> 5.0442878 | AJ73: ='NGGT TO'!AJ69 -> 3.192223411 | AK73: ='NGGT TO'!AK69 -> 32.86655622 | AL73: ='NGGT TO'!AL69 -> 56.26000554 | AM73: ='NGGT TO'!AM69 -> 41.69276389 | AN73: ='NGGT TO'!AN69 -> 26.51655108 | AO73: ='NGGT TO'!AO69 -> 11.12187889 | AP73: ='NGGT TO'!AP69 -> 0 | AQ73: ='NGGT TO'!AQ69 -> 0 | AR73: ='NGGT TO'!AR69 -> 0 | AS73: ='NGGT TO'!AS69 -> 0 | AT73: ='NGGT TO'!AT69 -> 0
E74: Actual other capex expenditure | G74: £m 18/19 prices | H74: ='NGGT TO'!H70 -> AOCU | AH74: ='NGGT TO'!AH70 -> 40.17441494 | AI74: ='NGGT TO'!AI70 -> 26.13474432 | AJ74: ='NGGT TO'!AJ70 -> 15.89013523 | AK74: ='NGGT TO'!AK70 -> 4.255630053 | AL74: ='NGGT TO'!AL70 -> 23.36591295 | AM74: ='NGGT TO'!AM70 -> 27.28344177 | AN74: ='NGGT TO'!AN70 -> 27.56345025 | AO74: ='NGGT TO'!AO70 -> 10.12644029 | AP74: ='NGGT TO'!AP70 -> 0 | AQ74: ='NGGT TO'!AQ70 -> 0 | AR74: ='NGGT TO'!AR70 -> 0 | AS74: ='NGGT TO'!AS70 -> 0 | AT74: ='NGGT TO'!AT70 -> 0
E75: Actual non-load (opex) | G75: £m 18/19 prices | H75: ='NGGT TO'!H71 -> ACOU | AP75: ='NGGT TO'!AP71 -> 0 | AQ75: ='NGGT TO'!AQ71 -> 0 | AR75: ='NGGT TO'!AR71 -> 0 | AS75: ='NGGT TO'!AS71 -> 0 | AT75: ='NGGT TO'!AT71 -> 0
E76: Actual indirects (opex) | G76: £m 18/19 prices | H76: ='NGGT TO'!H72 -> AIOU | AH76: ='NGGT TO'!AH72 -> 6.748619963 | AI76: ='NGGT TO'!AI72 -> 4.758754567 | AJ76: ='NGGT TO'!AJ72 -> 6.704905733 | AK76: ='NGGT TO'!AK72 -> 8.455539618 | AL76: ='NGGT TO'!AL72 -> 10.91740062 | AM76: ='NGGT TO'!AM72 -> 8.733694094 | AN76: ='NGGT TO'!AN72 -> 7.930625183 | AO76: ='NGGT TO'!AO72 -> 6.940764293 | AP76: ='NGGT TO'!AP72 -> 0 | AQ76: ='NGGT TO'!AQ72 -> 0 | AR76: ='NGGT TO'!AR72 -> 0 | AS76: ='NGGT TO'!AS72 -> 0 | AT76: ='NGGT TO'!AT72 -> 0
E77: Actual non-operational capex | G77: £m 18/19 prices | H77: ='NGGT TO'!H73 -> ANCU | AP77: ='NGGT TO'!AP73 -> 0 | AQ77: ='NGGT TO'!AQ73 -> 0 | AR77: ='NGGT TO'!AR73 -> 0 | AS77: ='NGGT TO'!AS73 -> 0 | AT77: ='NGGT TO'!AT73 -> 0
E78: Total | G78: £m 18/19 prices | AH78: =SUM(AH72:AH77) -> 46.9230349 | AI78: 35.93778669 | AJ78: 25.78726437 | AK78: 45.57772589 | AL78: 90.54331911 | AM78: 77.70989975 | AN78: 62.01062651 | AO78: 28.18908348 | AP78: 0 | AQ78: 0 | AR78: 0 | AS78: 0 | AT78: 0
B80: Pass-through costs
E82: ='NGGT TO'!E77 -> Licence Fees | G82: £m 18/19 prices | H82: ='NGGT TO'!H77 -> LFt | AP82: ='NGGT TO'!AP77 -> 18.30274936 | AQ82: ='NGGT TO'!AQ77 -> 18.29966781 | AR82: ='NGGT TO'!AR77 -> 18.30007298 | AS82: ='NGGT TO'!AS77 -> 18.2965038 | AT82: ='NGGT TO'!AT77 -> 18.30175511
E83: ='NGGT TO'!E78 -> Prescribed Rates | G83: £m 18/19 prices | H83: ='NGGT TO'!H78 -> RBt | AP83: ='NGGT TO'!AP78 -> 103 | AQ83: ='NGGT TO'!AQ78 -> 103 | AR83: ='NGGT TO'!AR78 -> 103 | AS83: ='NGGT TO'!AS78 -> 103 | AT83: ='NGGT TO'!AT78 -> 103
E84: ='NGGT TO'!E79 -> Pension Scheme Established Deficit repair | G84: £m 18/19 prices | H84: ='NGGT TO'!H79 -> EDEt | AP84: ='NGGT TO'!AP79 -> -11.02944786 | AQ84: ='NGGT TO'!AQ79 -> -11.02944786 | AR84: ='NGGT TO'!AR79 -> -11.02944786 | AS84: ='NGGT TO'!AS79 -> 0 | AT84: ='NGGT TO'!AT79 -> 0
E85: ='NGGT TO'!E80 -> Bad Debt | G85: £m 18/19 prices | H85: ='NGGT TO'!H80 -> BDt | AP85: ='NGGT TO'!AP80 -> 0 | AQ85: ='NGGT TO'!AQ80 -> 0 | AR85: ='NGGT TO'!AR80 -> 0 | AS85: ='NGGT TO'!AS80 -> 0 | AT85: ='NGGT TO'!AT80 -> 0
E86: ='NGGT TO'!E81 -> Secretary of State in respect of Policing Costs | G86: £m 18/19 prices | H86: ='NGGT TO'!H81 -> OPTCt | AP86: ='NGGT TO'!AP81 -> 16.03789872 | AQ86: ='NGGT TO'!AQ81 -> 15.96827141 | AR86: ='NGGT TO'!AR81 -> 16.34432779 | AS86: ='NGGT TO'!AS81 -> 16.72919472 | AT86: ='NGGT TO'!AT81 -> 17.12379227
E87: ='NGGT TO'!E82 -> PARCA Termination Value | G87: £m 18/19 prices | H87: ='NGGT TO'!H82 -> PTVt | AP87: ='NGGT TO'!AP82 -> 0 | AQ87: ='NGGT TO'!AQ82 -> 0 | AR87: ='NGGT TO'!AR82 -> 0 | AS87: ='NGGT TO'!AS82 -> 0 | AT87: ='NGGT TO'!AT82 -> 0
E88: ='NGGT TO'!E83 -> Gas conveyed to Independent Systems | G88: £m 18/19 prices | H88: ='NGGT TO'!H83 -> ISt | AP88: ='NGGT TO'!AP83 -> 16.46943595 | AQ88: ='NGGT TO'!AQ83 -> 16.46943595 | AR88: ='NGGT TO'!AR83 -> 16.46943595 | AS88: ='NGGT TO'!AS83 -> 16.46943595 | AT88: ='NGGT TO'!AT83 -> 16.46943595
E89: ='NGGT TO'!E84 -> Hy-Net | G89: £m 18/19 prices | H89: ='NGGT TO'!H84 -> Hyt | AP89: ='NGGT TO'!AP84 -> 4.05 | AQ89: ='NGGT TO'!AQ84 -> 4.05 | AR89: ='NGGT TO'!AR84 -> 4.05 | AS89: ='NGGT TO'!AS84 -> 0 | AT89: ='NGGT TO'!AT84 -> 0
E90: Net Zero Pre-construction Work and Small Net Zero Projects Re-opener | G90: £m 18/19 prices | H90: NZPSt | AP90: ='NGGT TO'!AP85 -> 0 | AQ90: ='NGGT TO'!AQ85 -> 0 | AR90: ='NGGT TO'!AR85 -> 0 | AS90: ='NGGT TO'!AS85 -> 0 | AT90: ='NGGT TO'!AT85 -> 0
E91: Pass-through expenditure | G91: £m 18/19 prices | H91: PTt | AP91: =SUM(AP82:AP90) -> 146.8306362 | AQ91: =SUM(AQ82:AQ90) -> 146.7579273 | AR91: 147.1343889 | AS91: 154.4951345 | AT91: 154.8949833
B93: Incentive revenue
E95: ='NGGT TO'!E89 -> Business plan incentive | G95: £m 18/19 prices | H95: ='NGGT TO'!H89 -> BPIt | AP95: ='NGGT TO'!AP89 -> -4.339 | AQ95: ='NGGT TO'!AQ89 -> -4.339 | AR95: ='NGGT TO'!AR89 -> -4.339 | AS95: ='NGGT TO'!AS89 -> -4.339 | AT95: ='NGGT TO'!AT89 -> -4.339
E97: ='NGGT TO'!E91 -> Customer satisfaction survey ODI | G97: £m 18/19 prices | H97: ='NGGT TO'!H91 -> CSIt | AP97: ='NGGT TO'!AP91 -> 0 | AQ97: ='NGGT TO'!AQ91 -> 0 | AR97: ='NGGT TO'!AR91 -> 0 | AS97: ='NGGT TO'!AS91 -> 0 | AT97: ='NGGT TO'!AT91 -> 0
E98: ='NGGT TO'!E92 -> Environmental scorecard ODI | G98: £m 18/19 prices | H98: ='NGGT TO'!H92 -> ESIt | AP98: ='NGGT TO'!AP92 -> 0 | AQ98: ='NGGT TO'!AQ92 -> 0 | AR98: ='NGGT TO'!AR92 -> 0 | AS98: ='NGGT TO'!AS92 -> 0 | AT98: ='NGGT TO'!AT92 -> 0
E99: Output delivery incentives | G99: £m 18/19 prices | H99: ODIt | AP99: =SUM(AP97:AP98) -> 0 | AQ99: =SUM(AQ97:AQ98) -> 0 | AR99: =SUM(AR97:AR98) -> 0 | AS99: =SUM(AS97:AS98) -> 0 | AT99: =SUM(AT97:AT98) -> 0
B101: Other revenue allowances
E103: ='NGGT TO'!E101 -> Pre-RIIO-1 pension true-up | G103: £m 18/19 prices | H103: PRPNt | I103: ='NGGT TO'!I101 -> 131.5885044 | AP103: =(($I$103/9)*(1+$AH$169)*(1+$AI$169)*(1+$AJ$169)*(1+$AK$169)*(1+$AL$169)*(1+$AM$169)*(1+$AN$169)*(1+$AO$169)*(1+$AP$169)) * (AP$4 = $I$174) -> 20.44969572 | AQ103: =(($I$103/9)*(1+$AH$169)*(1+$AI$169)*(1+$AJ$169)*(1+$AK$169)*(1+$AL$169)*(1+$AM$169)*(1+$AN$169)*(1+$AO$169)*(1+$AP$169)) * (AQ$4 = $I$174) -> 0 | AR103: =(($I$103/9)*(1+$AH$169)*(1+$AI$169)*(1+$AJ$169)*(1+$AK$169)*(1+$AL$169)*(1+$AM$169)*(1+$AN$169)*(1+$AO$169)*(1+$AP$169)) * (AR$4 = $I$174) -> 0 | AS103: =(($I$103/9)*(1+$AH$169)*(1+$AI$169)*(1+$AJ$169)*(1+$AK$169)*(1+$AL$169)*(1+$AM$169)*(1+$AN$169)*(1+$AO$169)*(1+$AP$169)) * (AS$4 = $I$174) -> 0 | AT103: =(($I$103/9)*(1+$AH$169)*(1+$AI$169)*(1+$AJ$169)*(1+$AK$169)*(1+$AL$169)*(1+$AM$169)*(1+$AN$169)*(1+$AO$169)*(1+$AP$169)) * (AT$4 = $I$174) -> 0
I104: Assumed cost multipliers:
E105: ='NGGT TO'!E96 -> RIIO-2 Network Innovation Allowance | G105: £m 18/19 prices | H105: ='NGGT TO'!H96 -> NIAt | I105: ='NGGT TO'!I409 -> 1.111111111 | AP105: ='NGGT TO'!AP96 -> 5 | AQ105: ='NGGT TO'!AQ96 -> 5 | AR105: ='NGGT TO'!AR96 -> 5 | AS105: ='NGGT TO'!AS96 -> 5 | AT105: ='NGGT TO'!AT96 -> 5
E106: ='NGGT TO'!E97 -> Carry-over Network Innovation Allowance | G106: £m 18/19 prices | H106: ='NGGT TO'!H97 -> CNIAt | I106: ='NGGT TO'!I411 -> 1.111111111 | AP106: ='NGGT TO'!AP97 -> 0.04 | AQ106: ='NGGT TO'!AQ97 -> 0 | AR106: ='NGGT TO'!AR97 -> 0 | AS106: ='NGGT TO'!AS97 -> 0 | AT106: ='NGGT TO'!AT97 -> 0
E107: ='NGGT TO'!E98 -> The Strategic Innovation Fund | G107: £m 18/19 prices | H107: ='NGGT TO'!H98 -> SIFFt | I107: ='NGGT TO'!I412 -> 0 | AP107: ='NGGT TO'!AP98 -> 0 | AQ107: ='NGGT TO'!AQ98 -> 0 | AR107: ='NGGT TO'!AR98 -> 0 | AS107: ='NGGT TO'!AS98 -> 0 | AT107: ='NGGT TO'!AT98 -> 0
E108: ='NGGT TO'!E99 -> Spare 2 | G108: £m 18/19 prices | H108: ='NGGT TO'!H99 -> 0 | I108: ='NGGT TO'!I413 -> 0 | AP108: ='NGGT TO'!AP99 -> 0 | AQ108: ='NGGT TO'!AQ99 -> 0 | AR108: ='NGGT TO'!AR99 -> 0 | AS108: ='NGGT TO'!AS99 -> 0 | AT108: ='NGGT TO'!AT99 -> 0
E109: ='NGGT TO'!E100 -> Spare 3 | G109: £m 18/19 prices | H109: ='NGGT TO'!H100 -> 0 | I109: ='NGGT TO'!I414 -> 0 | AP109: ='NGGT TO'!AP100 -> 0 | AQ109: ='NGGT TO'!AQ100 -> 0 | AR109: ='NGGT TO'!AR100 -> 0 | AS109: ='NGGT TO'!AS100 -> 0 | AT109: ='NGGT TO'!AT100 -> 0
E110: =E103 -> Pre-RIIO-1 pension true-up | G110: £m 18/19 prices | H110: =H103 -> PRPNt | I110: ='NGGT TO'!I415 -> 0 | AP110: =AP103 -> 20.44969572 | AQ110: =AQ103 -> 0 | AR110: =AR103 -> 0 | AS110: =AS103 -> 0 | AT110: =AT103 -> 0
E111: NGGT SO revenue driver income (reallocated to TO) | G111: £m 18/19 prices | I111: ='NGGT TO'!I416 -> 0 | AP111: =AP585 -> 0 | AQ111: =AQ585 -> 0 | AR111: 0 | AS111: 0 | AT111: 0
E112: Other revenue allowance | G112: £m 18/19 prices | H112: ORAt | AP112: =SUM(AP105:AP111) -> 25.48969572 | AQ112: =SUM(AQ105:AQ111) -> 5 | AR112: =SUM(AR105:AR111) -> 5 | AS112: =SUM(AS105:AS111) -> 5 | AT112: =SUM(AT105:AT111) -> 5
E114: Costs associated with "Other revenue" | G114: £m 18/19 prices | AP114: =SUMPRODUCT((AP105:AP111) * ($I105:$I111)) -> 5.6 | AQ114: =SUMPRODUCT((AQ105:AQ111) * ($I105:$I111)) -> 5.555555556 | AR114: =SUMPRODUCT((AR105:AR111) * ($I105:$I111)) -> 5.555555556 | AS114: =SUMPRODUCT((AS105:AS111) * ($I105:$I111)) -> 5.555555556 | AT114: =SUMPRODUCT((AT105:AT111) * ($I105:$I111)) -> 5.555555556
B116: Legacy adjustments
E118: ='NGGT TO'!E105 -> Legacy pass-through | G118: £m nominal | H118: ='NGGT TO'!H105 -> LPTt | AP118: ='NGGT TO'!AP105 -> -16.59510271 | AQ118: ='NGGT TO'!AQ105 -> 0 | AR118: ='NGGT TO'!AR105 -> 0 | AS118: ='NGGT TO'!AS105 -> 0 | AT118: ='NGGT TO'!AT105 -> 0
E119: ='NGGT TO'!E106 -> Legacy MOD | G119: £m nominal | H119: ='NGGT TO'!H106 -> LMODt | AP119: ='NGGT TO'!AP106 -> 1.6848 | AQ119: ='NGGT TO'!AQ106 -> -1.3113 | AR119: ='NGGT TO'!AR106 -> 0 | AS119: ='NGGT TO'!AS106 -> 0 | AT119: ='NGGT TO'!AT106 -> 0
E120: ='NGGT TO'!E107 -> Legacy K correction | G120: £m nominal | H120: ='NGGT TO'!H107 -> LKt | AP120: ='NGGT TO'!AP107 -> 16.35099157 | AQ120: ='NGGT TO'!AQ107 -> 0 | AR120: ='NGGT TO'!AR107 -> 0 | AS120: ='NGGT TO'!AS107 -> 0 | AT120: ='NGGT TO'!AT107 -> 0
E121: ='NGGT TO'!E108 -> Legacy TRU | G121: £m nominal | H121: ='NGGT TO'!H108 -> LTRUt | AP121: ='NGGT TO'!AP108 -> -6.095612485 | AQ121: ='NGGT TO'!AQ108 -> -1.177083539 | AR121: ='NGGT TO'!AR108 -> 0 | AS121: ='NGGT TO'!AS108 -> 0 | AT121: ='NGGT TO'!AT108 -> 0
E122: ='NGGT TO'!E109 -> Close out of the RIIO-GT1 network outputs | G122: £m nominal | H122: ='NGGT TO'!H109 -> NOCOt | AP122: ='NGGT TO'!AP109 -> 0 | AQ122: ='NGGT TO'!AQ109 -> 0 | AR122: ='NGGT TO'!AR109 -> 0 | AS122: ='NGGT TO'!AS109 -> 0 | AT122: ='NGGT TO'!AT109 -> 0
E123: ='NGGT TO'!E110 -> RIIO-GT1 network innovation competition | G123: £m nominal | H123: ='NGGT TO'!H110 -> NICFt | AP123: ='NGGT TO'!AP110 -> 27.17 | AQ123: ='NGGT TO'!AQ110 -> 0 | AR123: ='NGGT TO'!AR110 -> 0 | AS123: ='NGGT TO'!AS110 -> 0 | AT123: ='NGGT TO'!AT110 -> 0
E124: ='NGGT TO'!E111 -> Close out of the RIIO-GT1 stakeholder satisfaction output | G124: £m nominal | H124: ='NGGT TO'!H111 -> SSCOt | AP124: ='NGGT TO'!AP111 -> 4.683715764 | AQ124: ='NGGT TO'!AQ111 -> -7.663367909 | AR124: ='NGGT TO'!AR111 -> 0 | AS124: ='NGGT TO'!AS111 -> 0 | AT124: ='NGGT TO'!AT111 -> 0
E125: Legacy adjustments | G125: £m nominal | H125: LARt | AP125: =SUM(AP118:AP124) -> 27.19879214 | AQ125: =SUM(AQ118:AQ124) -> -10.15175145 | AR125: 0 | AS125: 0 | AT125: 0
B127: Directly remunerated services
E129: ='NGGT TO'!E116 -> Pre-vesting directly remunerated services | G129: £m 18/19 prices | H129: ='NGGT TO'!H116 -> PREDRSt | AP129: ='NGGT TO'!AP116 -> 0 | AQ129: ='NGGT TO'!AQ116 -> 0 | AR129: ='NGGT TO'!AR116 -> 0 | AS129: ='NGGT TO'!AS116 -> 0 | AT129: ='NGGT TO'!AT116 -> 0
E130: ='NGGT TO'!E117 -> Post-vesting directly remunerated services | G130: £m 18/19 prices | H130: ='NGGT TO'!H117 -> POSDRSt | AP130: ='NGGT TO'!AP117 -> 13.85755673 | AQ130: ='NGGT TO'!AQ117 -> 13.85755673 | AR130: ='NGGT TO'!AR117 -> 13.85755673 | AS130: ='NGGT TO'!AS117 -> 13.85755673 | AT130: ='NGGT TO'!AT117 -> 13.85755673
E131: ='NGGT TO'!E118 -> Other income from directly remenerated services | G131: £m 18/19 prices | H131: ='NGGT TO'!H118 -> OIDRSt | AP131: ='NGGT TO'!AP118 -> 0 | AQ131: ='NGGT TO'!AQ118 -> 0 | AR131: ='NGGT TO'!AR118 -> 0 | AS131: ='NGGT TO'!AS118 -> 0 | AT131: ='NGGT TO'!AT118 -> 0
E132: ='NGGT TO'!E119 -> Identified directly remunerated services costs | G132: £m 18/19 prices | H132: ='NGGT TO'!H119 -> IDRSt | AP132: ='NGGT TO'!AP119 -> -13.85755673 | AQ132: ='NGGT TO'!AQ119 -> -13.85755673 | AR132: ='NGGT TO'!AR119 -> -13.85755673 | AS132: ='NGGT TO'!AS119 -> -13.85755673 | AT132: ='NGGT TO'!AT119 -> -13.85755673
E133: Directly remunerated services net position | G133: £m 18/19 prices | AP133: =SUM(AP129:AP132) -> 0 | AQ133: =SUM(AQ129:AQ132) -> 0 | AR133: 0 | AS133: 0 | AT133: 0
E135: Directly remunerated services adjustment | G135: £m 18/19 prices | H135: DRSt | AP135: =- AP133 -> 0 | AQ135: =- AQ133 -> 0 | AR135: 0 | AS135: 0 | AT135: 0
B137: Finance inputs
C139: Allowed return on debt
E141: ='NGGT TO'!E123 -> iBoxx trailing average | G141: annual real % | H141: ='NGGT TO'!H123 -> iBTAt | AP141: ='NGGT TO'!AP123 -> 0.0205 | AQ141: ='NGGT TO'!AQ123 -> 0.019 | AR141: ='NGGT TO'!AR123 -> 0.018 | AS141: ='NGGT TO'!AS123 -> 0.0171 | AT141: ='NGGT TO'!AT123 -> 0.0165
E142: ='NGGT TO'!E175 -> Uplift on iBoxx trailing average | G142: annual real % | H142: ='NGGT TO'!H175 -> CDEUt | AP142: ='NGGT TO'!AP175 -> 0 | AQ142: ='NGGT TO'!AQ175 -> 0 | AR142: ='NGGT TO'!AR175 -> 0 | AS142: ='NGGT TO'!AS175 -> 0 | AT142: ='NGGT TO'!AT175 -> 0
E143: Allowed return on debt | G143: annual real % | H143: CDEt | AP143: =SUM(AP141:AP142) -> 0.0205 | AQ143: =SUM(AQ141:AQ142) -> 0.019 | AR143: 0.018 | AS143: 0.0171 | AT143: 0.0165
C145: Allowed return on equity
E147: ='NGGT TO'!E124 -> Risk-free rate | G147: annual real % | H147: ='NGGT TO'!H124 -> RFRt | AP147: ='NGGT TO'!AP124 -> -0.0171 | AQ147: ='NGGT TO'!AQ124 -> -0.0166 | AR147: ='NGGT TO'!AR124 -> -0.0158 | AS147: ='NGGT TO'!AS124 -> -0.0151 | AT147: ='NGGT TO'!AT124 -> -0.0143
E148: Equity Beta | G148: scalar | AP148: ='NGGT TO'!AP177 -> 0.75861 | AQ148: ='NGGT TO'!AQ177 -> 0.75861 | AR148: ='NGGT TO'!AR177 -> 0.75861 | AS148: ='NGGT TO'!AS177 -> 0.75861 | AT148: ='NGGT TO'!AT177 -> 0.75861
E149: Total Market Return | G149: % | AP149: ='NGGT TO'!AP178 -> 0.065 | AQ149: ='NGGT TO'!AQ178 -> 0.065 | AR149: ='NGGT TO'!AR178 -> 0.065 | AS149: ='NGGT TO'!AS178 -> 0.065 | AT149: ='NGGT TO'!AT178 -> 0.065
E151: Cost of equity at 60% gearing | G151: annual real % | AP151: =AP147 + AP148 * (AP149 - AP147) -> 0.045181881 | AQ151: =AQ147 + AQ148 * (AQ149 - AQ147) -> 0.045302576 | AR151: 0.045495688 | AS151: 0.045664661 | AT151: 0.045857773
E152: Expected outperformance at 60% gearing | G152: % | AP152: ='NGGT TO'!AP183 -> 0.0025 | AQ152: ='NGGT TO'!AQ183 -> 0.0025 | AR152: ='NGGT TO'!AR183 -> 0.0025 | AS152: ='NGGT TO'!AS183 -> 0.0025 | AT152: ='NGGT TO'!AT183 -> 0.0025
E153: Allowed return on equity at 60% gearing | G153: annual real % | AP153: =AP151 - AP152 -> 0.042681881 | AQ153: =AQ151 - AQ152 -> 0.042802576 | AR153: 0.042995688 | AS153: 0.043164661 | AT153: 0.043357773
E154: Benchmark gearing (60%) | G154: % | AP154: ='NGGT TO'!AP179 -> 0.6 | AQ154: ='NGGT TO'!AQ179 -> 0.6 | AR154: ='NGGT TO'!AR179 -> 0.6 | AS154: ='NGGT TO'!AS179 -> 0.6 | AT154: ='NGGT TO'!AT179 -> 0.6
E155: Vanilla WACC at 60% gearing | G155: annual real % | AP155: =(AP143 * AP154) + (AP151 * (1 - AP154)) -> 0.0303727524 | AQ155: =(AQ143 * AQ154) + (AQ151 * (1 - AQ154)) -> 0.0295210304 | AR155: 0.0289982752 | AS155: 0.0285258644 | AT155: 0.0282431092
E156: Allowed return on capital at 60% gearing | G156: annual real % | AP156: =(AP143* AP154) + (AP153 * (1 - AP154)) -> 0.0293727524 | AQ156: =(AQ143* AQ154) + (AQ153 * (1 - AQ154)) -> 0.0285210304 | AR156: 0.0279982752 | AS156: 0.0275258644 | AT156: 0.0272431092
E158: Notional gearing | G158: % | J158: > | AO158: ='NGGT TO'!AO181 -> 0.625 | AP158: ='NGGT TO'!AP181 -> 0.6 | AQ158: ='NGGT TO'!AQ181 -> 0.6 | AR158: ='NGGT TO'!AR181 -> 0.6 | AS158: ='NGGT TO'!AS181 -> 0.6 | AT158: ='NGGT TO'!AT181 -> 0.6
E159: Cost of equity at notional gearing | G159: annual real % | AP159: =(AP155 - (AP158 * AP143)) / (1 - AP158) -> 0.045181881 | AQ159: =(AQ155 - (AQ158 * AQ143)) / (1 - AQ158) -> 0.045302576 | AR159: 0.045495688 | AS159: 0.045664661 | AT159: 0.045857773
E160: Allowed return on equity | G160: annual real % | AP160: =(AP156 - (AP143 * AP158)) / (1 - AP158) -> 0.042681881 | AQ160: =(AQ156 - (AQ143 * AQ158)) / (1 - AQ158) -> 0.042802576 | AR160: 0.042995688 | AS160: 0.043164661 | AT160: 0.043357773
E161: Expected outperformance at notional gearing | G161: % | AP161: =AP159 - AP160 -> 0.0025 | AQ161: =AQ159 - AQ160 -> 0.0025 | AR161: 0.0025 | AS161: 0.0025 | AT161: 0.0025
C163: Vanilla allowed return on capital
E165: Allowed return on debt | G165: annual real % | J165: > | AP165: =AP143 -> 0.0205 | AQ165: =AQ143 -> 0.019 | AR165: 0.018 | AS165: 0.0171 | AT165: 0.0165
E166: Allowed return on equity | G166: annual real % | J166: > | AP166: =AP153 -> 0.042681881 | AQ166: =AQ153 -> 0.042802576 | AR166: 0.042995688 | AS166: 0.043164661 | AT166: 0.043357773
E167: Notional gearing | G167: % | J167: > | AO167: =AO158 -> 0.625 | AP167: 0.6 | AQ167: 0.6 | AR167: 0.6 | AS167: 0.6 | AT167: 0.6
E169: Vanilla allowed return on capital | G169: annual real % | J169: > | AH169: ='NGGT TO'!AH185 -> 0.04375 | AI169: ='NGGT TO'!AI185 -> 0.0425 | AJ169: ='NGGT TO'!AJ185 -> 0.0414375 | AK169: ='NGGT TO'!AK185 -> 0.040375 | AL169: ='NGGT TO'!AL185 -> 0.039375 | AM169: ='NGGT TO'!AM185 -> 0.0374375 | AN169: ='NGGT TO'!AN185 -> 0.035375 | AO169: ='NGGT TO'!AO185 -> 0.0323125 | AP169: =(AP165 * AP167) + (AP166 * (1 - AP167)) -> 0.0293727524 | AQ169: =(AQ165 * AQ167) + (AQ166 * (1 - AQ167)) -> 0.0285210304 | AR169: 0.0279982752 | AS169: 0.0275258644 | AT169: 0.0272431092
E170: Vanilla weighted average cost of capital | G170: annual real % | AH170: =AH169 -> 0.04375 | AI170: =AI169 -> 0.0425 | AJ170: 0.0414375 | AK170: 0.040375 | AL170: 0.039375 | AM170: 0.0374375 | AN170: 0.035375 | AO170: 0.0323125 | AP170: =(AP165 * AP167) + (AP159 * (1 - AP167)) -> 0.0303727524 | AQ170: =(AQ165 * AQ167) + (AQ159 * (1 - AQ167)) -> 0.0295210304 | AR170: =(AR165 * AR167) + (AR159 * (1 - AR167)) -> 0.0289982752 | AS170: =(AS165 * AS167) + (AS159 * (1 - AS167)) -> 0.0285258644 | AT170: =(AT165 * AT167) + (AT159 * (1 - AT167)) -> 0.0282431092
C172: Inflation and price conversion
E174: Start of RIIO-2 | G174: year ending | I174: ='Annual Inflation'!I15 -> 2022-03-31
D176: Price indices and inflation rates
E178: Retail Prices Index (financial year average) | F178: Spc2.1 | G178: index value | H178: RPIt | J178: > | V178: ='Annual Inflation'!V23 -> 173.875 | W178: ='Annual Inflation'!W23 -> 177.5166667 | X178: ='Annual Inflation'!X23 -> 182.475 | Y178: ='Annual Inflation'!Y23 -> 188.15 | Z178: ='Annual Inflation'!Z23 -> 193.1083333 | AA178: ='Annual Inflation'!AA23 -> 200.3166667 | AB178: ='Annual Inflation'!AB23 -> 208.5916667 | AC178: ='Annual Inflation'!AC23 -> 214.7833333 | AD178: ='Annual Inflation'!AD23 -> 215.7666667 | AE178: ='Annual Inflation'!AE23 -> 226.475 | AF178: ='Annual Inflation'!AF23 -> 237.3416667 | AG178: ='Annual Inflation'!AG23 -> 244.675 | AH178: ='Annual Inflation'!AH23 -> 251.7333333 | AI178: ='Annual Inflation'!AI23 -> 256.6666667 | AJ178: ='Annual Inflation'!AJ23 -> 259.4333333 | AK178: ='Annual Inflation'!AK23 -> 264.9916667 | AL178: ='Annual Inflation'!AL23 -> 274.9083333 | AM178: ='Annual Inflation'!AM23 -> 283.3083333 | AN178: ='Annual Inflation'!AN23 -> 290.6416667 | AO178: ='Annual Inflation'!AO23 -> 294.1750927 | AP178: ='Annual Inflation'!AP23 -> 298.3199341 | AQ178: ='Annual Inflation'!AQ23 -> 303.87813 | AR178: ='Annual Inflation'!AR23 -> 312.0253475 | AS178: ='Annual Inflation'!AS23 -> 321.3305237 | AT178: ='Annual Inflation'!AT23 -> 330.9544276
E179: RPI inflation (financial year average) | G179: annual % | J179: > | W179: ='Annual Inflation'!W24 -> 0.02094416487 | X179: ='Annual Inflation'!X24 -> 0.02793164961 | Y179: ='Annual Inflation'!Y24 -> 0.03110015071 | Z179: ='Annual Inflation'!Z24 -> 0.02635308708 | AA179: ='Annual Inflation'!AA24 -> 0.03732792474 | AB179: ='Annual Inflation'!AB24 -> 0.04130959314 | AC179: ='Annual Inflation'!AC24 -> 0.02968319284 | AD179: ='Annual Inflation'!AD24 -> 0.004578257158 | AE179: ='Annual Inflation'!AE24 -> 0.04962922911 | AF179: ='Annual Inflation'!AF24 -> 0.04798174927 | AG179: ='Annual Inflation'!AG24 -> 0.03089779151 | AH179: ='Annual Inflation'!AH24 -> 0.02884779129 | AI179: ='Annual Inflation'!AI24 -> 0.01959745763 | AJ179: ='Annual Inflation'!AJ24 -> 0.01077922078 | AK179: ='Annual Inflation'!AK24 -> 0.02142490042 | AL179: ='Annual Inflation'!AL24 -> 0.03742256046 | AM179: ='Annual Inflation'!AM24 -> 0.03055563976 | AN179: ='Annual Inflation'!AN24 -> 0.02588463688 | AO179: ='Annual Inflation'!AO24 -> 0.01215732784 | AP179: ='Annual Inflation'!AP24 -> 0.01408970889 | AQ179: ='Annual Inflation'!AQ24 -> 0.01863166092 | AR179: ='Annual Inflation'!AR24 -> 0.02681080595 | AS179: ='Annual Inflation'!AS24 -> 0.0298218598 | AT179: ='Annual Inflation'!AT24 -> 0.02995017029
E181: Consumer Prices Index incl. housing costs (financial year average) | F181: Spc2.1 | G181: index value | H181: CPIHt | J181: > | V181: ='Annual Inflation'!V26 -> 74.86666667 | W181: ='Annual Inflation'!W26 -> 75.95833333 | X181: ='Annual Inflation'!X26 -> 76.975 | Y181: ='Annual Inflation'!Y26 -> 78.125 | Z181: ='Annual Inflation'!Z26 -> 79.825 | AA181: ='Annual Inflation'!AA26 -> 81.91666667 | AB181: ='Annual Inflation'!AB26 -> 83.825 | AC181: ='Annual Inflation'!AC26 -> 86.85833333 | AD181: ='Annual Inflation'!AD26 -> 88.43333333 | AE181: ='Annual Inflation'!AE26 -> 90.90833333 | AF181: ='Annual Inflation'!AF26 -> 94.30833333 | AG181: ='Annual Inflation'!AG26 -> 96.58333333 | AH181: ='Annual Inflation'!AH26 -> 98.6 | AI181: ='Annual Inflation'!AI26 -> 99.725 | AJ181: ='Annual Inflation'!AJ26 -> 100.1666667 | AK181: ='Annual Inflation'!AK26 -> 101.5416667 | AL181: ='Annual Inflation'!AL26 -> 104.2166667 | AM181: ='Annual Inflation'!AM26 -> 106.4333333 | AN181: ='Annual Inflation'!AN26 -> 108.2416667 | AO181: ='Annual Inflation'!AO26 -> 109.1656328 | AP181: ='Annual Inflation'!AP26 -> 110.5530178 | AQ181: ='Annual Inflation'!AQ26 -> 112.3194139 | AR181: ='Annual Inflation'!AR26 -> 114.3196898 | AS181: ='Annual Inflation'!AS26 -> 116.5296244 | AT181: ='Annual Inflation'!AT26 -> 118.8561912
E182: CPIH inflation (financial year average) | G182: annual % | J182: > | W182: ='Annual Inflation'!W27 -> 0.01458147818 | X182: ='Annual Inflation'!X27 -> 0.01338453099 | Y182: ='Annual Inflation'!Y27 -> 0.01493991556 | Z182: ='Annual Inflation'!Z27 -> 0.02176 | AA182: ='Annual Inflation'!AA27 -> 0.02620315273 | AB182: ='Annual Inflation'!AB27 -> 0.02329603255 | AC182: ='Annual Inflation'!AC27 -> 0.03618649965 | AD182: ='Annual Inflation'!AD27 -> 0.01813297515 | AE182: ='Annual Inflation'!AE27 -> 0.02798718432 | AF182: ='Annual Inflation'!AF27 -> 0.03740031167 | AG182: ='Annual Inflation'!AG27 -> 0.0241230008 | AH182: ='Annual Inflation'!AH27 -> 0.02088006903 | AI182: ='Annual Inflation'!AI27 -> 0.01140973631 | AJ182: ='Annual Inflation'!AJ27 -> 0.004428845993 | AK182: ='Annual Inflation'!AK27 -> 0.01372712146 | AL182: ='Annual Inflation'!AL27 -> 0.02634386541 | AM182: ='Annual Inflation'!AM27 -> 0.0212697905 | AN182: ='Annual Inflation'!AN27 -> 0.01699029126 | AO182: ='Annual Inflation'!AO27 -> 0.008536141004 | AP182: ='Annual Inflation'!AP27 -> 0.0127089905 | AQ182: ='Annual Inflation'!AQ27 -> 0.01597781889 | AR182: ='Annual Inflation'!AR27 -> 0.01780881685 | AS182: ='Annual Inflation'!AS27 -> 0.0193311809 | AT182: ='Annual Inflation'!AT27 -> 0.01996545358
E184: Combined RPI-CPIH price index (financial year average) | G184: index value | H184: PIt | J184: > | V184: ='Annual Inflation'!V29 -> 173.875 | W184: ='Annual Inflation'!W29 -> 177.5166667 | X184: ='Annual Inflation'!X29 -> 182.475 | Y184: ='Annual Inflation'!Y29 -> 188.15 | Z184: ='Annual Inflation'!Z29 -> 193.1083333 | AA184: ='Annual Inflation'!AA29 -> 200.3166667 | AB184: ='Annual Inflation'!AB29 -> 208.5916667 | AC184: ='Annual Inflation'!AC29 -> 214.7833333 | AD184: ='Annual Inflation'!AD29 -> 215.7666667 | AE184: ='Annual Inflation'!AE29 -> 226.475 | AF184: ='Annual Inflation'!AF29 -> 237.3416667 | AG184: ='Annual Inflation'!AG29 -> 244.675 | AH184: ='Annual Inflation'!AH29 -> 251.7333333 | AI184: ='Annual Inflation'!AI29 -> 256.6666667 | AJ184: ='Annual Inflation'!AJ29 -> 259.4333333 | AK184: ='Annual Inflation'!AK29 -> 264.9916667 | AL184: ='Annual Inflation'!AL29 -> 274.9083333 | AM184: ='Annual Inflation'!AM29 -> 283.3083333 | AN184: ='Annual Inflation'!AN29 -> 290.6416667 | AO184: ='Annual Inflation'!AO29 -> 294.1750927 | AP184: ='Annual Inflation'!AP29 -> 298.2137327 | AQ184: ='Annual Inflation'!AQ29 -> 302.9785377 | AR184: ='Annual Inflation'!AR29 -> 308.3742269 | AS184: ='Annual Inflation'!AS29 -> 314.3354649 | AT184: ='Annual Inflation'!AT29 -> 320.611315
E185: Combined RPI-CPIH inflation (financial year average) | G185: annual % | J185: > | W185: ='Annual Inflation'!W30 -> 0.02094416487 | X185: ='Annual Inflation'!X30 -> 0.02793164961 | Y185: ='Annual Inflation'!Y30 -> 0.03110015071 | Z185: ='Annual Inflation'!Z30 -> 0.02635308708 | AA185: ='Annual Inflation'!AA30 -> 0.03732792474 | AB185: ='Annual Inflation'!AB30 -> 0.04130959314 | AC185: ='Annual Inflation'!AC30 -> 0.02968319284 | AD185: ='Annual Inflation'!AD30 -> 0.004578257158 | AE185: ='Annual Inflation'!AE30 -> 0.04962922911 | AF185: ='Annual Inflation'!AF30 -> 0.04798174927 | AG185: ='Annual Inflation'!AG30 -> 0.03089779151 | AH185: ='Annual Inflation'!AH30 -> 0.02884779129 | AI185: ='Annual Inflation'!AI30 -> 0.01959745763 | AJ185: ='Annual Inflation'!AJ30 -> 0.01077922078 | AK185: ='Annual Inflation'!AK30 -> 0.02142490042 | AL185: ='Annual Inflation'!AL30 -> 0.03742256046 | AM185: ='Annual Inflation'!AM30 -> 0.03055563976 | AN185: ='Annual Inflation'!AN30 -> 0.02588463688 | AO185: ='Annual Inflation'!AO30 -> 0.01215732784 | AP185: ='Annual Inflation'!AP30 -> 0.01372869444 | AQ185: ='Annual Inflation'!AQ30 -> 0.01597781889 | AR185: ='Annual Inflation'!AR30 -> 0.01780881685 | AS185: ='Annual Inflation'!AS30 -> 0.0193311809 | AT185: ='Annual Inflation'!AT30 -> 0.01996545358
E187: Forecast Debt inflation (CPIH long term forecast) | G187: annual % | AP187: ='Annual Inflation'!AP$34 -> 0.02 | AQ187: ='Annual Inflation'!AQ$34 -> 0.02 | AR187: ='Annual Inflation'!AR$34 -> 0.02 | AS187: ='Annual Inflation'!AS$34 -> 0.02 | AT187: ='Annual Inflation'!AT$34 -> 0.02
D189: Price conversion factors
E191: Real to nominal prices conversion factor (financial year average) | G191: scalar | J191: > | V191: ='Annual Inflation'!V32 -> 0.6137306233 | W191: ='Annual Inflation'!W32 -> 0.6265846986 | X191: ='Annual Inflation'!X32 -> 0.6440862429 | Y191: ='Annual Inflation'!Y32 -> 0.6641174221 | Z191: ='Annual Inflation'!Z32 -> 0.6816189664 | AA191: ='Annual Inflation'!AA32 -> 0.7070623879 | AB191: ='Annual Inflation'!AB32 -> 0.7362708474 | AC191: ='Annual Inflation'!AC32 -> 0.758125717 | AD191: ='Annual Inflation'!AD32 -> 0.7615966115 | AE191: ='Annual Inflation'!AE32 -> 0.7993940642 | AF191: ='Annual Inflation'!AF32 -> 0.8377503897 | AG191: ='Annual Inflation'!AG32 -> 0.8636350266 | AH191: ='Annual Inflation'!AH32 -> 0.8885489896 | AI191: ='Annual Inflation'!AI32 -> 0.9059622908 | AJ191: ='Annual Inflation'!AJ32 -> 0.9157278583 | AK191: ='Annual Inflation'!AK32 -> 0.9353472365 | AL191: ='Annual Inflation'!AL32 -> 0.970350325 | AM191: ='Annual Inflation'!AM32 -> 1 | AN191: ='Annual Inflation'!AN32 -> 1.025884637 | AO191: ='Annual Inflation'!AO32 -> 1.038356653 | AP191: ='Annual Inflation'!AP32 -> 1.052611934 | AQ191: ='Annual Inflation'!AQ32 -> 1.069430377 | AR191: ='Annual Inflation'!AR32 -> 1.088475666 | AS191: ='Annual Inflation'!AS32 -> 1.109517187 | AT191: ='Annual Inflation'!AT32 -> 1.1316692
AP192: Adjacent named range: TOpf
E193: Real to nominal prices conversion factor (financial year end) | G193: scalar | J193: > | V193: ='Annual Inflation'!V45 -> 0.6180545342 | W193: ='Annual Inflation'!W45 -> 0.6372915257 | X193: ='Annual Inflation'!X45 -> 0.6535282525 | Y193: ='Annual Inflation'!Y45 -> 0.6743536194 | Z193: ='Annual Inflation'!Z45 -> 0.6909433185 | AA193: ='Annual Inflation'!AA45 -> 0.7232402859 | AB193: ='Annual Inflation'!AB45 -> 0.7520075301 | AC193: ='Annual Inflation'!AC45 -> 0.7461834868 | AD193: ='Annual Inflation'!AD45 -> 0.782716122 | AE193: ='Annual Inflation'!AE45 -> 0.8240138836 | AF193: ='Annual Inflation'!AF45 -> 0.8529576139 | AG193: ='Annual Inflation'!AG45 -> 0.8792540518 | AH193: ='Annual Inflation'!AH45 -> 0.9009618496 | AI193: ='Annual Inflation'!AI45 -> 0.909080213 | AJ193: ='Annual Inflation'!AJ45 -> 0.9221401888 | AK193: ='Annual Inflation'!AK45 -> 0.9528487808 | AL193: ='Annual Inflation'!AL45 -> 0.9847927758 | AM193: ='Annual Inflation'!AM45 -> 1.011795158 | AN193: ='Annual Inflation'!AN45 -> 1.032797012 | AO193: ='Annual Inflation'!AO45 -> 1.045234399 | AP193: ='Annual Inflation'!AP45 -> 1.060645457 | AQ193: ='Annual Inflation'!AQ45 -> 1.078577078 | AR193: ='Annual Inflation'!AR45 -> 1.098760113 | AS193: ='Annual Inflation'!AS45 -> 1.12050656 | AT193: ='Annual Inflation'!AT45 -> 1.141968137
C195: Real Price Effects indexation
E197: RPE index | G197: index value | H197: RPEIt | J197: > | AN197: =PRODUCT(1 + $AN198:AN198) -> 0.9945541288 | AO197: =PRODUCT(1 + $AN198:AO198) -> 0.9848114122 | AP197: =PRODUCT(1 + $AN198:AP198) -> 1.004582665 | AQ197: =PRODUCT(1 + $AN198:AQ198) -> 1.016249522 | AR197: =PRODUCT(1 + $AN198:AR198) -> 1.029524526 | AS197: =PRODUCT(1 + $AN198:AS198) -> 1.043620452 | AT197: =PRODUCT(1 + $AN198:AT198) -> 1.057447736
E198: ='NGGT TO'!E127 -> RPE annual growth | G198: annual % | H198: ='NGGT TO'!H127 -> RPEt | J198: > | AN198: ='NGGT TO'!AN127 -> -0.005445871236 | AO198: ='NGGT TO'!AO127 -> -0.009796064689 | AP198: ='NGGT TO'!AP127 -> 0.0200761821 | AQ198: ='NGGT TO'!AQ127 -> 0.01161363481 | AR198: ='NGGT TO'!AR127 -> 0.01306274139 | AS198: ='NGGT TO'!AS127 -> 0.01369168535 | AT198: ='NGGT TO'!AT127 -> 0.01324934123
C200: Tax allowance
E202: ='NGGT TO'!E129 -> Adjusted net debt | G202: £m nominal | H202: ='NGGT TO'!H129 -> ANDt | AP202: ='NGGT TO'!AP129 -> 0 | AQ202: ='NGGT TO'!AQ129 -> 0 | AR202: ='NGGT TO'!AR129 -> 0 | AS202: ='NGGT TO'!AS129 -> 0 | AT202: ='NGGT TO'!AT129 -> 0
E203: ='NGGT TO'!E130 -> Tax deductible net interest cost | G203: £m nominal | H203: ='NGGT TO'!H130 -> TDNIt | AP203: ='NGGT TO'!AP130 -> 0 | AQ203: ='NGGT TO'!AQ130 -> 0 | AR203: ='NGGT TO'!AR130 -> 0 | AS203: ='NGGT TO'!AS130 -> 0 | AT203: ='NGGT TO'!AT130 -> 0
E204: ='NGGT TO'!E131 -> Tax allowance adjustment | G204: £m nominal | H204: ='NGGT TO'!H131 -> TAXAt | AP204: ='NGGT TO'!AP131 -> 0 | AQ204: ='NGGT TO'!AQ131 -> 0 | AR204: ='NGGT TO'!AR131 -> 0 | AS204: ='NGGT TO'!AS131 -> 0 | AT204: ='NGGT TO'!AT131 -> 0
E205: ='NGGT TO'!E132 -> Tax liability – tax trigger events | G205: £m 18/19 prices | H205: ='NGGT TO'!H132 -> TTEt | AP205: ='NGGT TO'!AP132 -> 0 | AQ205: ='NGGT TO'!AQ132 -> 0 | AR205: ='NGGT TO'!AR132 -> 0 | AS205: ='NGGT TO'!AS132 -> 0 | AT205: ='NGGT TO'!AT132 -> 0
E207: Notional gearing for "Tax clawback gearing level test" | G207: % | AP207: ='NGGT TO'!AP134 -> 0.625 | AQ207: ='NGGT TO'!AQ134 -> 0.6188 | AR207: ='NGGT TO'!AR134 -> 0.6125 | AS207: ='NGGT TO'!AS134 -> 0.6063 | AT207: ='NGGT TO'!AT134 -> 0.6
E208: Tax trigger deadband | G208: £m 18/19 prices | AP208: ='NGGT TO'!AP135 -> 2.40790451 | AQ208: ='NGGT TO'!AQ135 -> 2.499667174 | AR208: ='NGGT TO'!AR135 -> 2.516051097 | AS208: ='NGGT TO'!AS135 -> 2.32387782 | AT208: ='NGGT TO'!AT135 -> 2.288168362
E210: ='NGGT TO'!E137 -> General pool capital allowance opening balance brought forward | G210: £m nominal | H210: ='NGGT TO'!H137 -> OGPt | AP210: ='NGGT TO'!AP137 -> 218.6284778
E211: ='NGGT TO'!E138 -> Special Rate capital allowance opening balance brought forward | G211: £m nominal | H211: ='NGGT TO'!H138 -> OSRPt | AP211: ='NGGT TO'!AP138 -> 1634.022843
E212: ='NGGT TO'!E139 -> Structures and buildings capital allowance opening balance brought forward | G212: £m nominal | H212: ='NGGT TO'!H139 -> OSBPt | AP212: ='NGGT TO'!AP139 -> 0
E213: ='NGGT TO'!E140 -> Deferred revenue expenditure opening balance brought forward | G213: £m nominal | H213: ='NGGT TO'!H140 -> ODRPt | AP213: ='NGGT TO'!AP140 -> 0
E214: ='NGGT TO'!E141 -> Deferred revenue pool additions (RIIO1) plus opening balance at start of RIIO1 | G214: £m nominal | H214: ='NGGT TO'!H141 -> LODRPt | AO214: ='NGGT TO'!AO141 -> 0
E215: ='NGGT TO'!E142 -> Tax loss brought forward | G215: £m nominal | H215: ='NGGT TO'!H142 -> OTLt | AP215: ='NGGT TO'!AP142 -> 0
E217: ='NGGT TO'!E144 -> Totex allocation to "General" tax pool | G217: % | H217: ='NGGT TO'!H144 -> ARGPt | AP217: ='NGGT TO'!AP144 -> 0.1870102644 | AQ217: ='NGGT TO'!AQ144 -> 0.1995347222 | AR217: ='NGGT TO'!AR144 -> 0.1809377201 | AS217: ='NGGT TO'!AS144 -> 0.1168874784 | AT217: ='NGGT TO'!AT144 -> 0.1154203238
E218: ='NGGT TO'!E145 -> Totex allocation to "Special Rate" tax pool | G218: % | H218: ='NGGT TO'!H145 -> ARSRt | AP218: ='NGGT TO'!AP145 -> 0.4234130628 | AQ218: ='NGGT TO'!AQ145 -> 0.4916315184 | AR218: ='NGGT TO'!AR145 -> 0.517575416 | AS218: ='NGGT TO'!AS145 -> 0.450497846 | AT218: ='NGGT TO'!AT145 -> 0.4454400479
E219: ='NGGT TO'!E146 -> Totex allocation to "Structures and Buildings" tax pool | G219: % | H219: ='NGGT TO'!H146 -> ARSBt | AP219: ='NGGT TO'!AP146 -> 0.009183733615 | AQ219: ='NGGT TO'!AQ146 -> 0.01171389453 | AR219: ='NGGT TO'!AR146 -> 0.01146875995 | AS219: ='NGGT TO'!AS146 -> 0.006341553032 | AT219: ='NGGT TO'!AT146 -> 0.006162068321
E220: ='NGGT TO'!E147 -> Totex allocation to "Deferred Revenue" tax pool | G220: % | H220: ='NGGT TO'!H147 -> ARDRt | AP220: ='NGGT TO'!AP147 -> 0 | AQ220: ='NGGT TO'!AQ147 -> 0 | AR220: ='NGGT TO'!AR147 -> 0 | AS220: ='NGGT TO'!AS147 -> 0 | AT220: ='NGGT TO'!AT147 -> 0
E221: ='NGGT TO'!E148 -> Totex allocation to "Revenue" tax pool | G221: % | H221: ='NGGT TO'!H148 -> ARRt | AP221: ='NGGT TO'!AP148 -> 0.3790573881 | AQ221: ='NGGT TO'!AQ148 -> 0.2955076633 | AR221: ='NGGT TO'!AR148 -> 0.2883710204 | AS221: ='NGGT TO'!AS148 -> 0.4250528153 | AT221: ='NGGT TO'!AT148 -> 0.4317771738
E222: ='NGGT TO'!E149 -> Totex allocation to "Non Qualifying" tax pool | G222: % | H222: ='NGGT TO'!H149 -> ARNQt | AP222: ='NGGT TO'!AP149 -> 0.001335551039 | AQ222: ='NGGT TO'!AQ149 -> 0.001612201509 | AR222: ='NGGT TO'!AR149 -> 0.001647083521 | AS222: ='NGGT TO'!AS149 -> 0.001220307327 | AT222: ='NGGT TO'!AT149 -> 0.001200386155
E223: Totex allocation check | G223: % | AP223: =SUM(AP217:AP222) -> 1 | AQ223: =SUM(AQ217:AQ222) -> 1 | AR223: =SUM(AR217:AR222) -> 1 | AS223: =SUM(AS217:AS222) -> 1 | AT223: =SUM(AT217:AT222) -> 1
E225: ='NGGT TO'!E152 -> Corporation tax rate | G225: % | H225: ='NGGT TO'!H152 -> CTt | AP225: ='NGGT TO'!AP152 -> 0.19 | AQ225: ='NGGT TO'!AQ152 -> 0.19 | AR225: ='NGGT TO'!AR152 -> 0.25 | AS225: ='NGGT TO'!AS152 -> 0.25 | AT225: ='NGGT TO'!AT152 -> 0.25
E226: ='NGGT TO'!E153 -> General pool capital allowance rate | G226: % | H226: ='NGGT TO'!H153 -> GCAt | AP226: ='NGGT TO'!AP153 -> 0.18 | AQ226: ='NGGT TO'!AQ153 -> 0.18 | AR226: ='NGGT TO'!AR153 -> 0.18 | AS226: ='NGGT TO'!AS153 -> 0.18 | AT226: ='NGGT TO'!AT153 -> 0.18
E227: ='NGGT TO'!E154 -> Special Rates capital allowance rate | G227: % | H227: ='NGGT TO'!H154 -> SRCAt | AP227: ='NGGT TO'!AP154 -> 0.06 | AQ227: ='NGGT TO'!AQ154 -> 0.06 | AR227: ='NGGT TO'!AR154 -> 0.06 | AS227: ='NGGT TO'!AS154 -> 0.06 | AT227: ='NGGT TO'!AT154 -> 0.06
E228: ='NGGT TO'!E155 -> Structures and buildings capital allowance rate | G228: % | H228: ='NGGT TO'!H155 -> SBCAt | AP228: ='NGGT TO'!AP155 -> 0.03 | AQ228: ='NGGT TO'!AQ155 -> 0.03 | AR228: ='NGGT TO'!AR155 -> 0.03 | AS228: ='NGGT TO'!AS155 -> 0.03 | AT228: ='NGGT TO'!AT155 -> 0.03
E229: ='NGGT TO'!E156 -> Deferred Revenue Expenditure capital allowance rate | G229: % | H229: ='NGGT TO'!H156 -> DRCAt | AP229: ='NGGT TO'!AP156 -> 0.0222 | AQ229: ='NGGT TO'!AQ156 -> 0.0222 | AR229: ='NGGT TO'!AR156 -> 0.0222 | AS229: ='NGGT TO'!AS156 -> 0.0222 | AT229: ='NGGT TO'!AT156 -> 0.0222
C231: Inputs for true ups to allowed revenue
E233: ='NGGT TO'!E125 -> Sterling Overnight Index Average (SONIA) | G233: annual nominal % | H233: ='NGGT TO'!H125 -> It | J233: > | AO233: ='NGGT TO'!AO125 -> 0.0006042485418 | AP233: ='NGGT TO'!AP125 -> 0.0004597370251 | AQ233: ='NGGT TO'!AQ125 -> 0.0008648026937 | AR233: ='NGGT TO'!AR125 -> 0.001414154276 | AS233: ='NGGT TO'!AS125 -> 0.002070233521 | AT233: ='NGGT TO'!AT125 -> 0.00260000085
E235: ='NGGT TO'!E158 -> RIIO-1 allowed revenue | G235: £m nominal | H235: ='NGGT TO'!H158 -> RIIO-1 ARt | J235: > | AO235: ='NGGT TO'!AO158 -> 780.1
E236: ='NGGT TO'!E159 -> Recovered revenue | G236: £m nominal | H236: ='NGGT TO'!H159 -> RRt | J236: > | AO236: ='NGGT TO'!AO159 -> 574 | AP236: ='NGGT TO'!AP159 -> 0 | AQ236: ='NGGT TO'!AQ159 -> 0 | AR236: ='NGGT TO'!AR159 -> 0 | AS236: ='NGGT TO'!AS159 -> 0 | AT236: ='NGGT TO'!AT159 -> 0
E237: ='NGGT TO'!E160 -> K rate margin | G237: annual nominal % | J237: > | AO237: ='NGGT TO'!AO160 -> 0.0115 | AP237: ='NGGT TO'!AP160 -> 0.0115 | AQ237: ='NGGT TO'!AQ160 -> 0.0115 | AR237: ='NGGT TO'!AR160 -> 0.0115 | AS237: ='NGGT TO'!AS160 -> 0.0115 | AT237: ='NGGT TO'!AT160 -> 0.0115
E238: ='NGGT TO'!E161 -> Over/undercollection percentage for penal rate adjustment | G238: % | I238: ='NGGT TO'!I161 -> 0.06
E239: ='NGGT TO'!E162 -> Penal rate proportion | G239: scalar | H239: ='NGGT TO'!H162 -> PRPt | J239: > | AO239: ='NGGT TO'!AO162 -> 1 | AP239: ='NGGT TO'!AP162 -> 1 | AQ239: ='NGGT TO'!AQ162 -> 1 | AR239: ='NGGT TO'!AR162 -> 1 | AS239: ='NGGT TO'!AS162 -> 1 | AT239: ='NGGT TO'!AT162 -> 1
C241: Other finance inputs
E243: Minimum equity issuance threshold | G243: % | AP243: ='NGGT TO'!AP189 -> 0.05 | AQ243: ='NGGT TO'!AQ189 -> 0.05 | AR243: ='NGGT TO'!AR189 -> 0.05 | AS243: ='NGGT TO'!AS189 -> 0.05 | AT243: ='NGGT TO'!AT189 -> 0.05
E244: Equity issuance costs | G244: % | AP244: ='NGGT TO'!AP190 -> 0.05 | AQ244: ='NGGT TO'!AQ190 -> 0.05 | AR244: ='NGGT TO'!AR190 -> 0.05 | AS244: ='NGGT TO'!AS190 -> 0.05 | AT244: ='NGGT TO'!AT190 -> 0.05
E245: Assumed dividends as % of notional equity portion of RAV | G245: % | AP245: ='NGGT TO'!AP191 -> 0.03 | AQ245: ='NGGT TO'!AQ191 -> 0.03 | AR245: ='NGGT TO'!AR191 -> 0.03 | AS245: ='NGGT TO'!AS191 -> 0.03 | AT245: ='NGGT TO'!AT191 -> 0.03
E246: Equity issuance gearing target | G246: % | AP246: ='NGGT TO'!AP192 -> 0.6 | AQ246: ='NGGT TO'!AQ192 -> 0.6 | AR246: ='NGGT TO'!AR192 -> 0.6 | AS246: ='NGGT TO'!AS192 -> 0.6 | AT246: ='NGGT TO'!AT192 -> 0.6
E247: CPIH index-linked debt as a percentage of net debt | G247: % | AP247: ='NGGT TO'!AP193 -> 0.3 | AQ247: ='NGGT TO'!AQ193 -> 0.3 | AR247: ='NGGT TO'!AR193 -> 0.3 | AS247: ='NGGT TO'!AS193 -> 0.3 | AT247: ='NGGT TO'!AT193 -> 0.3
E248: RPI index-linked debt as a percentage of net debt | G248: % | AP248: ='NGGT TO'!AP194 -> 0 | AQ248: ='NGGT TO'!AQ194 -> 0 | AR248: ='NGGT TO'!AR194 -> 0 | AS248: ='NGGT TO'!AS194 -> 0 | AT248: ='NGGT TO'!AT194 -> 0
C250: TIM and capitalisation
E252: Years from t until normal reporting of actual costs | G252: years | I252: ='NGGT TO'!I198 -> 2
E254: Capitalisation rate 1 | G254: % | AP254: ='NGGT TO'!AP200 -> 0.65 | AQ254: ='NGGT TO'!AQ200 -> 0.65 | AR254: ='NGGT TO'!AR200 -> 0.65 | AS254: ='NGGT TO'!AS200 -> 0.65 | AT254: ='NGGT TO'!AT200 -> 0.65
E255: Capitalisation rate 2 | G255: % | AP255: ='NGGT TO'!AP201 -> 0.75 | AQ255: ='NGGT TO'!AQ201 -> 0.75 | AR255: ='NGGT TO'!AR201 -> 0.75 | AS255: ='NGGT TO'!AS201 -> 0.75 | AT255: ='NGGT TO'!AT201 -> 0.75
E257: RIIO-2 Funding Adjustment Rate ('sharing factor') | G257: % | I257: ='NGGT TO'!I203 -> 0.61
... 305 more rows

Sheet Totex
A1: Totex
B2: =UserInterface!G17 -> NGGT TO
E3: Parameter | G3: Units | I3: Constant | AP3: Annual values
E4: PCFM year ending | F4: =Cover!C4 -> Model Version | I4: =UserInterface!$G$10 -> 2022-03-31 | K4: 1991-03-31 | L4: 1992-03-31 | M4: 1993-03-31 | N4: 1994-03-31 | O4: 1995-03-31 | P4: 1996-03-31 | Q4: 1997-03-31 | R4: 1998-03-31 | S4: 1999-03-31 | T4: 2000-03-31 | U4: 2001-03-31 | V4: 2002-03-31 | W4: 2003-03-31 | X4: 2004-03-31 | Y4: 2005-03-31 | Z4: 2006-03-31 | AA4: 2007-03-31 | AB4: 2008-03-31 | AC4: 2009-03-31 | AD4: 2010-03-31 | AE4: 2011-03-31 | AF4: 2012-03-31 | AG4: 2013-03-31 | AH4: 2014-03-31 | AI4: 2015-03-31 | AJ4: 2016-03-31 | AK4: 2017-03-31 | AL4: 2018-03-31 | AM4: 2019-03-31 | AN4: 2020-03-31 | AO4: 2021-03-31 | AP4: 2022-03-31 | AQ4: 2023-03-31 | AR4: 2024-03-31 | AS4: 2025-03-31 | AT4: 2026-03-31
B6: Totex
C8: Allowed totex aggregated by sub-category
C9: Note: Totex is the sum of a number of cost categories, with all totex allowances falling under one (or more) of them. They have significance in the model as each sub-category can have its own set of tax pool allocation rules.
D11: Capitalisation rate 1 totex
E14: Load related capex | G14: £m 18/19 prices | AP14: =Input!AP11 + SUMPRODUCT((Input!AP$284:AP$499) * (Input!$H$284:$H$499 = $E14) * (Input!$BE$284:$BE$499 = "CapRate 1 (Baseline)")) -> 1.977951462 | AQ14: =Input!AQ11 + SUMPRODUCT((Input!AQ$284:AQ$499) * (Input!$H$284:$H$499 = $E14) * (Input!$BE$284:$BE$499 = "CapRate 1 (Baseline)")) -> 2.947210541 | AR14: =Input!AR11 + SUMPRODUCT((Input!AR$284:AR$499) * (Input!$H$284:$H$499 = $E14) * (Input!$BE$284:$BE$499 = "CapRate 1 (Baseline)")) -> 2.390075723 | AS14: =Input!AS11 + SUMPRODUCT((Input!AS$284:AS$499) * (Input!$H$284:$H$499 = $E14) * (Input!$BE$284:$BE$499 = "CapRate 1 (Baseline)")) -> 1.992717542 | AT14: =Input!AT11 + SUMPRODUCT((Input!AT$284:AT$499) * (Input!$H$284:$H$499 = $E14) * (Input!$BE$284:$BE$499 = "CapRate 1 (Baseline)")) -> 1.66
E15: Asset replacement capex | G15: £m 18/19 prices | AP15: =Input!AP12 + SUMPRODUCT((Input!AP$284:AP$499) * (Input!$H$284:$H$499 = $E15) * (Input!$BE$284:$BE$499 = "CapRate 1 (Baseline)")) -> 112.4169271 | AQ15: =Input!AQ12 + SUMPRODUCT((Input!AQ$284:AQ$499) * (Input!$H$284:$H$499 = $E15) * (Input!$BE$284:$BE$499 = "CapRate 1 (Baseline)")) -> 171.8257928 | AR15: =Input!AR12 + SUMPRODUCT((Input!AR$284:AR$499) * (Input!$H$284:$H$499 = $E15) * (Input!$BE$284:$BE$499 = "CapRate 1 (Baseline)")) -> 194.1767524 | AS15: =Input!AS12 + SUMPRODUCT((Input!AS$284:AS$499) * (Input!$H$284:$H$499 = $E15) * (Input!$BE$284:$BE$499 = "CapRate 1 (Baseline)")) -> 111.8218645 | AT15: =Input!AT12 + SUMPRODUCT((Input!AT$284:AT$499) * (Input!$H$284:$H$499 = $E15) * (Input!$BE$284:$BE$499 = "CapRate 1 (Baseline)")) -> 104.9602644
E16: Other capex | G16: £m 18/19 prices | AP16: =Input!AP13 + SUMPRODUCT((Input!AP$284:AP$499) * (Input!$H$284:$H$499 = $E16) * (Input!$BE$284:$BE$499 = "CapRate 1 (Baseline)")) -> 46.9410913 | AQ16: =Input!AQ13 + SUMPRODUCT((Input!AQ$284:AQ$499) * (Input!$H$284:$H$499 = $E16) * (Input!$BE$284:$BE$499 = "CapRate 1 (Baseline)")) -> 94.00693415 | AR16: =Input!AR13 + SUMPRODUCT((Input!AR$284:AR$499) * (Input!$H$284:$H$499 = $E16) * (Input!$BE$284:$BE$499 = "CapRate 1 (Baseline)")) -> 84.22284245 | AS16: =Input!AS13 + SUMPRODUCT((Input!AS$284:AS$499) * (Input!$H$284:$H$499 = $E16) * (Input!$BE$284:$BE$499 = "CapRate 1 (Baseline)")) -> 3.344628644 | AT16: =Input!AT13 + SUMPRODUCT((Input!AT$284:AT$499) * (Input!$H$284:$H$499 = $E16) * (Input!$BE$284:$BE$499 = "CapRate 1 (Baseline)")) -> 2.047700628
E17: Non-load (opex) | G17: £m 18/19 prices | AP17: =Input!AP14 + SUMPRODUCT((Input!AP$284:AP$499) * (Input!$H$284:$H$499 = $E17) * (Input!$BE$284:$BE$499 = "CapRate 1 (Baseline)")) -> 42.54894338 | AQ17: =Input!AQ14 + SUMPRODUCT((Input!AQ$284:AQ$499) * (Input!$H$284:$H$499 = $E17) * (Input!$BE$284:$BE$499 = "CapRate 1 (Baseline)")) -> 42.82429786 | AR17: =Input!AR14 + SUMPRODUCT((Input!AR$284:AR$499) * (Input!$H$284:$H$499 = $E17) * (Input!$BE$284:$BE$499 = "CapRate 1 (Baseline)")) -> 43.20760266 | AS17: =Input!AS14 + SUMPRODUCT((Input!AS$284:AS$499) * (Input!$H$284:$H$499 = $E17) * (Input!$BE$284:$BE$499 = "CapRate 1 (Baseline)")) -> 45.64906144 | AT17: =Input!AT14 + SUMPRODUCT((Input!AT$284:AT$499) * (Input!$H$284:$H$499 = $E17) * (Input!$BE$284:$BE$499 = "CapRate 1 (Baseline)")) -> 42.55370896
E18: Indirects (opex) | G18: £m 18/19 prices | AP18: =Input!AP15 + SUMPRODUCT((Input!AP$284:AP$499) * (Input!$H$284:$H$499 = $E18) * (Input!$BE$284:$BE$499 = "CapRate 1 (Baseline)")) -> 72.01853325 | AQ18: =Input!AQ15 + SUMPRODUCT((Input!AQ$284:AQ$499) * (Input!$H$284:$H$499 = $E18) * (Input!$BE$284:$BE$499 = "CapRate 1 (Baseline)")) -> 80.69575361 | AR18: =Input!AR15 + SUMPRODUCT((Input!AR$284:AR$499) * (Input!$H$284:$H$499 = $E18) * (Input!$BE$284:$BE$499 = "CapRate 1 (Baseline)")) -> 80.32345769 | AS18: =Input!AS15 + SUMPRODUCT((Input!AS$284:AS$499) * (Input!$H$284:$H$499 = $E18) * (Input!$BE$284:$BE$499 = "CapRate 1 (Baseline)")) -> 56.43512111 | AT18: =Input!AT15 + SUMPRODUCT((Input!AT$284:AT$499) * (Input!$H$284:$H$499 = $E18) * (Input!$BE$284:$BE$499 = "CapRate 1 (Baseline)")) -> 55.25132296
E19: Non-operational capex | G19: £m 18/19 prices | AP19: =Input!AP16 + SUMPRODUCT((Input!AP$284:AP$499) * (Input!$H$284:$H$499 = $E19) * (Input!$BE$284:$BE$499 = "CapRate 1 (Baseline)")) -> 26.21767909 | AQ19: =Input!AQ16 + SUMPRODUCT((Input!AQ$284:AQ$499) * (Input!$H$284:$H$499 = $E19) * (Input!$BE$284:$BE$499 = "CapRate 1 (Baseline)")) -> 24.96060339 | AR19: =Input!AR16 + SUMPRODUCT((Input!AR$284:AR$499) * (Input!$H$284:$H$499 = $E19) * (Input!$BE$284:$BE$499 = "CapRate 1 (Baseline)")) -> 22.69153788 | AS19: =Input!AS16 + SUMPRODUCT((Input!AS$284:AS$499) * (Input!$H$284:$H$499 = $E19) * (Input!$BE$284:$BE$499 = "CapRate 1 (Baseline)")) -> 20.85242742 | AT19: =Input!AT16 + SUMPRODUCT((Input!AT$284:AT$499) * (Input!$H$284:$H$499 = $E19) * (Input!$BE$284:$BE$499 = "CapRate 1 (Baseline)")) -> 19.94901466
D21: Capitalisation rate 2 totex
E24: Load related capex | G24: =Input!G271 -> £m 18/19 prices | AP24: =SUMPRODUCT((Input!AP$284:AP$499) * (Input!$H$284:$H$499 = $E24) * (Input!$BE$284:$BE$499 = "CapRate 2 (UM)")) -> 0 | AQ24: =SUMPRODUCT((Input!AQ$284:AQ$499) * (Input!$H$284:$H$499 = $E24) * (Input!$BE$284:$BE$499 = "CapRate 2 (UM)")) -> 0 | AR24: =SUMPRODUCT((Input!AR$284:AR$499) * (Input!$H$284:$H$499 = $E24) * (Input!$BE$284:$BE$499 = "CapRate 2 (UM)")) -> 0 | AS24: =SUMPRODUCT((Input!AS$284:AS$499) * (Input!$H$284:$H$499 = $E24) * (Input!$BE$284:$BE$499 = "CapRate 2 (UM)")) -> 0 | AT24: =SUMPRODUCT((Input!AT$284:AT$499) * (Input!$H$284:$H$499 = $E24) * (Input!$BE$284:$BE$499 = "CapRate 2 (UM)")) -> 0
E25: Asset replacement capex | G25: =Input!G272 -> £m 18/19 prices | AP25: =SUMPRODUCT((Input!AP$284:AP$499) * (Input!$H$284:$H$499 = $E25) * (Input!$BE$284:$BE$499 = "CapRate 2 (UM)")) -> 0 | AQ25: =SUMPRODUCT((Input!AQ$284:AQ$499) * (Input!$H$284:$H$499 = $E25) * (Input!$BE$284:$BE$499 = "CapRate 2 (UM)")) -> 0 | AR25: =SUMPRODUCT((Input!AR$284:AR$499) * (Input!$H$284:$H$499 = $E25) * (Input!$BE$284:$BE$499 = "CapRate 2 (UM)")) -> 0 | AS25: =SUMPRODUCT((Input!AS$284:AS$499) * (Input!$H$284:$H$499 = $E25) * (Input!$BE$284:$BE$499 = "CapRate 2 (UM)")) -> 0 | AT25: =SUMPRODUCT((Input!AT$284:AT$499) * (Input!$H$284:$H$499 = $E25) * (Input!$BE$284:$BE$499 = "CapRate 2 (UM)")) -> 0
E26: Other capex | G26: =Input!G273 -> £m 18/19 prices | AP26: =SUMPRODUCT((Input!AP$284:AP$499) * (Input!$H$284:$H$499 = $E26) * (Input!$BE$284:$BE$499 = "CapRate 2 (UM)")) -> 0 | AQ26: =SUMPRODUCT((Input!AQ$284:AQ$499) * (Input!$H$284:$H$499 = $E26) * (Input!$BE$284:$BE$499 = "CapRate 2 (UM)")) -> 0 | AR26: =SUMPRODUCT((Input!AR$284:AR$499) * (Input!$H$284:$H$499 = $E26) * (Input!$BE$284:$BE$499 = "CapRate 2 (UM)")) -> 0 | AS26: =SUMPRODUCT((Input!AS$284:AS$499) * (Input!$H$284:$H$499 = $E26) * (Input!$BE$284:$BE$499 = "CapRate 2 (UM)")) -> 0 | AT26: =SUMPRODUCT((Input!AT$284:AT$499) * (Input!$H$284:$H$499 = $E26) * (Input!$BE$284:$BE$499 = "CapRate 2 (UM)")) -> 0
E27: Non-load (opex) | G27: =Input!G274 -> £m 18/19 prices | AP27: =SUMPRODUCT((Input!AP$284:AP$499) * (Input!$H$284:$H$499 = $E27) * (Input!$BE$284:$BE$499 = "CapRate 2 (UM)")) -> 0 | AQ27: =SUMPRODUCT((Input!AQ$284:AQ$499) * (Input!$H$284:$H$499 = $E27) * (Input!$BE$284:$BE$499 = "CapRate 2 (UM)")) -> 0 | AR27: =SUMPRODUCT((Input!AR$284:AR$499) * (Input!$H$284:$H$499 = $E27) * (Input!$BE$284:$BE$499 = "CapRate 2 (UM)")) -> 0 | AS27: =SUMPRODUCT((Input!AS$284:AS$499) * (Input!$H$284:$H$499 = $E27) * (Input!$BE$284:$BE$499 = "CapRate 2 (UM)")) -> 0 | AT27: =SUMPRODUCT((Input!AT$284:AT$499) * (Input!$H$284:$H$499 = $E27) * (Input!$BE$284:$BE$499 = "CapRate 2 (UM)")) -> 0
E28: Indirects (opex) | G28: =Input!G275 -> £m 18/19 prices | AP28: =SUMPRODUCT((Input!AP$284:AP$499) * (Input!$H$284:$H$499 = $E28) * (Input!$BE$284:$BE$499 = "CapRate 2 (UM)")) -> 0 | AQ28: =SUMPRODUCT((Input!AQ$284:AQ$499) * (Input!$H$284:$H$499 = $E28) * (Input!$BE$284:$BE$499 = "CapRate 2 (UM)")) -> 0 | AR28: =SUMPRODUCT((Input!AR$284:AR$499) * (Input!$H$284:$H$499 = $E28) * (Input!$BE$284:$BE$499 = "CapRate 2 (UM)")) -> 0 | AS28: =SUMPRODUCT((Input!AS$284:AS$499) * (Input!$H$284:$H$499 = $E28) * (Input!$BE$284:$BE$499 = "CapRate 2 (UM)")) -> 0 | AT28: =SUMPRODUCT((Input!AT$284:AT$499) * (Input!$H$284:$H$499 = $E28) * (Input!$BE$284:$BE$499 = "CapRate 2 (UM)")) -> 0
E29: Non-operational capex | G29: =Input!G276 -> £m 18/19 prices | AP29: =SUMPRODUCT((Input!AP$284:AP$499) * (Input!$H$284:$H$499 = $E29) * (Input!$BE$284:$BE$499 = "CapRate 2 (UM)")) -> 0 | AQ29: =SUMPRODUCT((Input!AQ$284:AQ$499) * (Input!$H$284:$H$499 = $E29) * (Input!$BE$284:$BE$499 = "CapRate 2 (UM)")) -> 0 | AR29: =SUMPRODUCT((Input!AR$284:AR$499) * (Input!$H$284:$H$499 = $E29) * (Input!$BE$284:$BE$499 = "CapRate 2 (UM)")) -> 0 | AS29: =SUMPRODUCT((Input!AS$284:AS$499) * (Input!$H$284:$H$499 = $E29) * (Input!$BE$284:$BE$499 = "CapRate 2 (UM)")) -> 0 | AT29: =SUMPRODUCT((Input!AT$284:AT$499) * (Input!$H$284:$H$499 = $E29) * (Input!$BE$284:$BE$499 = "CapRate 2 (UM)")) -> 0
D31: Allowance
E34: Allowed load related capex expenditure | G34: £m 18/19 prices | AP34: =AP14 + AP24 -> 1.977951462 | AQ34: 2.947210541 | AR34: 2.390075723 | AS34: 1.992717542 | AT34: 1.66
E35: Allowed asset replacement capex expenditure | G35: £m 18/19 prices | AP35: =AP15 + AP25 -> 112.4169271 | AQ35: 171.8257928 | AR35: 194.1767524 | AS35: 111.8218645 | AT35: 104.9602644
E36: Allowed other capex expenditure | G36: £m 18/19 prices | AP36: =AP16 + AP26 -> 46.9410913 | AQ36: 94.00693415 | AR36: 84.22284245 | AS36: 3.344628644 | AT36: 2.047700628
E37: Allowed non-load (opex) | G37: £m 18/19 prices | AP37: =AP17 + AP27 -> 42.54894338 | AQ37: 42.82429786 | AR37: 43.20760266 | AS37: 45.64906144 | AT37: 42.55370896
E38: Allowed indirects (opex) | G38: £m 18/19 prices | AP38: 72.01853325 | AQ38: 80.69575361 | AR38: 80.32345769 | AS38: 56.43512111 | AT38: 55.25132296
E39: Allowed non-operational capex | G39: £m 18/19 prices | AP39: =AP19 + AP29 -> 26.21767909 | AQ39: 24.96060339 | AR39: 22.69153788 | AS39: 20.85242742 | AT39: 19.94901466
E40: Allowed totex | G40: £m 18/19 prices | AP40: =SUM(AP34:AP39) -> 302.1211256 | AQ40: 417.2605923 | AR40: 427.0122688 | AS40: 240.0958206 | AT40: 226.4220116
C42: Actual totex
D44: Source of actuals
D45: Note: The model assumes that there is a time lag from year t until actual expenditure data becomes available for the model. After the lag, actual expenditure inputs are used. Up to that point the model generates a forecast actual expenditure.
D46: When required in the model, forecasts assume that actuals are equal to their corresponding allowance.
D47: In a year where actual totex is assumed to be available, values must be inputted to the model as it will not generate a forecast and the empty input cell will be read as an actual spend of zero.
E49: Years from t until normal reporting of actual costs | G49: years | I49: =Input!I252 -> 2
E50: Historic totex (FYI only) | G50: text | AP50: =(YEAR($I$4) >= YEAR(AP$4) + $I49) -> FALSE | AQ50: =(YEAR($I$4) >= YEAR(AQ$4) + $I49) -> FALSE | AR50: FALSE | AS50: FALSE | AT50: FALSE
E51: Forecasted totex (FYI only) | G51: text | AP51: =IF(AP50, FALSE, TRUE) -> TRUE | AQ51: TRUE | AR51: TRUE | AS51: TRUE | AT51: TRUE
D53: Actual totex (historic and forecasted)
D54: Note: Actuals are exported both to identify performance against the allowance and to generate writing down allowances used in the tax calculation.
E56: Capitalisation rate 1 totex
E58: Actual load related capex expenditure | G58: £m 18/19 prices | AP58: =Input!AP63 -> 1.977951462 | AQ58: =Input!AQ63 -> 2.947210541 | AR58: =Input!AR63 -> 2.390075723 | AS58: =Input!AS63 -> 1.992717542 | AT58: =Input!AT63 -> 1.66
E59: Actual asset replacement capex expenditure | G59: £m 18/19 prices | AP59: =Input!AP64 -> 112.4169271 | AQ59: =Input!AQ64 -> 171.8257928 | AR59: =Input!AR64 -> 194.1767524 | AS59: =Input!AS64 -> 111.8218645 | AT59: =Input!AT64 -> 104.9602644
E60: Actual other capex expenditure | G60: £m 18/19 prices | AP60: =Input!AP65 -> 46.9410913 | AQ60: =Input!AQ65 -> 94.00693415 | AR60: =Input!AR65 -> 84.22284245 | AS60: =Input!AS65 -> 3.344628644 | AT60: =Input!AT65 -> 2.047700628
E61: Actual non-load (opex) | G61: £m 18/19 prices | AP61: =Input!AP66 -> 42.54894338 | AQ61: =Input!AQ66 -> 42.82429786 | AR61: =Input!AR66 -> 43.20760266 | AS61: =Input!AS66 -> 45.64906144 | AT61: =Input!AT66 -> 42.55370896
E62: Actual indirects (opex) | G62: £m 18/19 prices | AP62: =Input!AP67 -> 72.01853325 | AQ62: =Input!AQ67 -> 80.69575361 | AR62: =Input!AR67 -> 80.32345769 | AS62: =Input!AS67 -> 56.43512111 | AT62: =Input!AT67 -> 55.25132296
E63: Actual non-operational capex | G63: £m 18/19 prices | AP63: =Input!AP68 -> 26.21767909 | AQ63: =Input!AQ68 -> 24.96060339 | AR63: =Input!AR68 -> 22.69153788 | AS63: =Input!AS68 -> 20.85242742 | AT63: =Input!AT68 -> 19.94901466
E65: Capitalisation rate 2 totex
E67: Actual load related capex expenditure | G67: £m 18/19 prices | AP67: =Input!AP72 -> 0 | AQ67: =Input!AQ72 -> 0 | AR67: =Input!AR72 -> 0 | AS67: =Input!AS72 -> 0 | AT67: =Input!AT72 -> 0
E68: Actual asset replacement capex expenditure | G68: £m 18/19 prices | AP68: =Input!AP73 -> 0 | AQ68: =Input!AQ73 -> 0 | AR68: =Input!AR73 -> 0 | AS68: =Input!AS73 -> 0 | AT68: =Input!AT73 -> 0
E69: Actual other capex expenditure | G69: £m 18/19 prices | AP69: =Input!AP74 -> 0 | AQ69: =Input!AQ74 -> 0 | AR69: =Input!AR74 -> 0 | AS69: =Input!AS74 -> 0 | AT69: =Input!AT74 -> 0
E70: Actual non-load (opex) | G70: £m 18/19 prices | AP70: =Input!AP75 -> 0 | AQ70: =Input!AQ75 -> 0 | AR70: =Input!AR75 -> 0 | AS70: =Input!AS75 -> 0 | AT70: =Input!AT75 -> 0
E71: Actual indirects (opex) | G71: £m 18/19 prices | AP71: =Input!AP76 -> 0 | AQ71: =Input!AQ76 -> 0 | AR71: =Input!AR76 -> 0 | AS71: =Input!AS76 -> 0 | AT71: =Input!AT76 -> 0
E72: Actual non-operational capex | G72: £m 18/19 prices | AP72: =Input!AP77 -> 0 | AQ72: =Input!AQ77 -> 0 | AR72: =Input!AR77 -> 0 | AS72: =Input!AS77 -> 0 | AT72: =Input!AT77 -> 0
E74: Total actual
E76: Actual load related capex expenditure | G76: £m 18/19 prices | AP76: =SUM(AP58, AP67) -> 1.977951462 | AQ76: =SUM(AQ58, AQ67) -> 2.947210541 | AR76: 2.390075723 | AS76: 1.992717542 | AT76: 1.66
E77: Actual asset replacement capex expenditure | G77: £m 18/19 prices | AP77: =SUM(AP59, AP68) -> 112.4169271 | AQ77: 171.8257928 | AR77: 194.1767524 | AS77: 111.8218645 | AT77: 104.9602644
E78: Actual other capex expenditure | G78: £m 18/19 prices | AP78: =SUM(AP60, AP69) -> 46.9410913 | AQ78: 94.00693415 | AR78: 84.22284245 | AS78: 3.344628644 | AT78: 2.047700628
E79: Actual non-load (opex) | G79: £m 18/19 prices | AP79: =SUM(AP61, AP70) -> 42.54894338 | AQ79: 42.82429786 | AR79: 43.20760266 | AS79: 45.64906144 | AT79: 42.55370896
E80: Actual indirects (opex) | G80: £m 18/19 prices | AP80: =SUM(AP62, AP71) -> 72.01853325 | AQ80: 80.69575361 | AR80: 80.32345769 | AS80: 56.43512111 | AT80: 55.25132296
E81: Actual non-operational capex | G81: £m 18/19 prices | AP81: =SUM(AP63, AP72) -> 26.21767909 | AQ81: 24.96060339 | AR81: 22.69153788 | AS81: 20.85242742 | AT81: 19.94901466
E82: Actual totex | G82: £m 18/19 prices | AP82: =SUM(AP76:AP81) -> 302.1211256 | AQ82: 417.2605923 | AR82: 427.0122688 | AS82: 240.0958206 | AT82: 226.4220116
AN83: cross check
B84: End of sheet

Sheet TIM
A1: Totex Incentive Mechanism (TIM)
B2: =UserInterface!G17 -> NGGT TO
E3: Parameter | G3: Units | I3: Constant | AP3: Annual values
E4: PCFM year ending | F4: =Cover!C4 -> Model Version | I4: =UserInterface!$G$10 -> 2022-03-31 | K4: 1991-03-31 | L4: 1992-03-31 | M4: 1993-03-31 | N4: 1994-03-31 | O4: 1995-03-31 | P4: 1996-03-31 | Q4: 1997-03-31 | R4: 1998-03-31 | S4: 1999-03-31 | T4: 2000-03-31 | U4: 2001-03-31 | V4: 2002-03-31 | W4: 2003-03-31 | X4: 2004-03-31 | Y4: 2005-03-31 | Z4: 2006-03-31 | AA4: 2007-03-31 | AB4: 2008-03-31 | AC4: 2009-03-31 | AD4: 2010-03-31 | AE4: 2011-03-31 | AF4: 2012-03-31 | AG4: 2013-03-31 | AH4: 2014-03-31 | AI4: 2015-03-31 | AJ4: 2016-03-31 | AK4: 2017-03-31 | AL4: 2018-03-31 | AM4: 2019-03-31 | AN4: 2020-03-31 | AO4: 2021-03-31 | AP4: 2022-03-31 | AQ4: 2023-03-31 | AR4: 2024-03-31 | AS4: 2025-03-31 | AT4: 2026-03-31
B6: Efficiency incentive
C8: Post-TIM overspend (underspend)
C9: Note: Totex overspend (underspend) is identified and subject to the "Funding Adjustment Rate."
C10: - Non-'uncertainty rate' and 'uncertainty rate' totex are separated at this stage to allow for the application of their respective capitalisation rates to any overspend (underspend)
D12: Capitalisation 1 totex
E14: Actual totex | G14: £m 18/19 prices | AP14: =SUM(Totex!AP58:AP63) -> 302.1211256 | AQ14: =SUM(Totex!AQ58:AQ63) -> 417.2605923 | AR14: =SUM(Totex!AR58:AR63) -> 427.0122688 | AS14: =SUM(Totex!AS58:AS63) -> 240.0958206 | AT14: =SUM(Totex!AT58:AT63) -> 226.4220116
E15: Less allowed totex | G15: £m 18/19 prices | AP15: =- SUM(Totex!AP14:AP19) -> -302.1211256 | AQ15: =- SUM(Totex!AQ14:AQ19) -> -417.2605923 | AR15: =- SUM(Totex!AR14:AR19) -> -427.0122688 | AS15: =- SUM(Totex!AS14:AS19) -> -240.0958206 | AT15: =- SUM(Totex!AT14:AT19) -> -226.4220116
E16: Pre-TIM overspend (underspend) | G16: £m 18/19 prices | AP16: =SUM(AP14:AP15) -> 0 | AQ16: 0 | AR16: 0 | AS16: 0 | AT16: 0
E18: Funding Adjustment Rate (often referred to as 'sharing factor') | G18: % | AP18: =Input!$I$257 -> 0.61 | AQ18: =Input!$I$257 -> 0.61 | AR18: =Input!$I$257 -> 0.61 | AS18: =Input!$I$257 -> 0.61 | AT18: =Input!$I$257 -> 0.61
E20: Post-TIM overspend (underspend) | G20: £m 18/19 prices | AP20: =AP$18*AP16 -> 0 | AQ20: 0 | AR20: 0 | AS20: 0 | AT20: 0
D22: Capitalisation 2 totex
E24: Actual totex | G24: £m 18/19 prices | AP24: =SUM(Totex!AP67:AP72) -> 0 | AQ24: =SUM(Totex!AQ67:AQ72) -> 0 | AR24: =SUM(Totex!AR67:AR72) -> 0 | AS24: =SUM(Totex!AS67:AS72) -> 0 | AT24: =SUM(Totex!AT67:AT72) -> 0
E25: Less allowed totex | G25: £m 18/19 prices | AP25: =- SUM(Totex!AP24:AP29) -> 0 | AQ25: =- SUM(Totex!AQ24:AQ29) -> 0 | AR25: =- SUM(Totex!AR24:AR29) -> 0 | AS25: =- SUM(Totex!AS24:AS29) -> 0 | AT25: =- SUM(Totex!AT24:AT29) -> 0
E26: Pre-TIM overspend (underspend) | G26: £m 18/19 prices | AP26: =SUM(AP24:AP25) -> 0 | AQ26: 0 | AR26: 0 | AS26: 0 | AT26: 0
E28: Funding Adjustment Rate (often referred to as 'sharing factor') | G28: % | AP28: =AP$18 -> 0.61 | AQ28: 0.61 | AR28: 0.61 | AS28: 0.61 | AT28: 0.61
E30: Post-TIM overspend (underspend) | G30: £m 18/19 prices | AP30: =AP$28 * AP26 -> 0 | AQ30: 0 | AR30: 0 | AS30: 0 | AT30: 0
C32: Post-TIM totex
C33: Note: "Post-TIM overspend (underspend)" is added to the allowed totex value to give the Post-TIM totex allowance to be split into fast and slow money.
D35: Capitalisation 1 totex
E37: Allowed totex | G37: £m 18/19 prices | AP37: =-AP15 -> 302.1211256 | AQ37: =-AQ15 -> 417.2605923 | AR37: =-AR15 -> 427.0122688 | AS37: =-AS15 -> 240.0958206 | AT37: =-AT15 -> 226.4220116
E38: Post-TIM overspend (underspend) | G38: £m 18/19 prices | AP38: =AP20 -> 0 | AQ38: =AQ20 -> 0 | AR38: =AR20 -> 0 | AS38: =AS20 -> 0 | AT38: =AT20 -> 0
E39: Post-TIM totex | G39: £m 18/19 prices | AP39: =SUM(AP37:AP38) -> 302.1211256 | AQ39: 417.2605923 | AR39: 427.0122688 | AS39: 240.0958206 | AT39: 226.4220116
D41: Capitalisation 2 totex
E43: Allowed totex | G43: £m 18/19 prices | AP43: =-AP25 -> 0 | AQ43: =-AQ25 -> 0 | AR43: =-AR25 -> 0 | AS43: =-AS25 -> 0 | AT43: =-AT25 -> 0
E44: Post-TIM overspend (underspend) | G44: £m 18/19 prices | AP44: =AP30 -> 0 | AQ44: =AQ30 -> 0 | AR44: =AR30 -> 0 | AS44: =AS30 -> 0 | AT44: =AT30 -> 0
E45: Post-TIM totex | G45: £m 18/19 prices | AP45: =SUM(AP43:AP44) -> 0 | AQ45: 0 | AR45: 0 | AS45: 0 | AT45: 0
B47: Capitalisation
B48: Note: Non-'uncertainty rate' totex and 'uncertainty rate' totex are capitalised separately. Post-TIM totex is allocated into "fast" and "slow" elements based on a pre-set percentage split:
B49: - "fast money " is exported to the "Revenue" sheet where it is included as an element of "recalculated base revenue;" and
B50: - "slow money " is exported to the "Depn" sheet where it is added to RAV. Slow money is recovered over the life of the RAV through regulatory depreciation and return allowances.
C52: Separate capitalisation
D54: Capitalisation 1 totex
E56: Post-TIM totex | G56: £m 18/19 prices | AP56: =AP39 -> 302.1211256 | AQ56: =AQ39 -> 417.2605923 | AR56: =AR39 -> 427.0122688 | AS56: =AS39 -> 240.0958206 | AT56: =AT39 -> 226.4220116
E57: Capitalisation rate 1 | G57: % | AP57: =Input!AP254 -> 0.65 | AQ57: =Input!AQ254 -> 0.65 | AR57: =Input!AR254 -> 0.65 | AS57: =Input!AS254 -> 0.65 | AT57: =Input!AT254 -> 0.65
E58: Fast pot expenditure | G58: £m 18/19 prices | AP58: =AP56-AP59 -> 105.7423939 | AQ58: 146.0412073 | AR58: 149.4542941 | AS58: 84.03353722 | AT58: 79.24770406
E59: Slow pot expenditure | G59: £m 18/19 prices | AP59: =AP56 * AP57 -> 196.3787316 | AQ59: 271.219385 | AR59: 277.5579747 | AS59: 156.0622834 | AT59: 147.1743075
D61: Capitalisation 2 totex
E63: Post-TIM totex | G63: £m 18/19 prices | AP63: =AP45 -> 0 | AQ63: =AQ45 -> 0 | AR63: =AR45 -> 0 | AS63: =AS45 -> 0 | AT63: =AT45 -> 0
E64: Capitalisation rate 2 | G64: % | AP64: =Input!AP255 -> 0.75 | AQ64: =Input!AQ255 -> 0.75 | AR64: =Input!AR255 -> 0.75 | AS64: =Input!AS255 -> 0.75 | AT64: =Input!AT255 -> 0.75
E65: Fast pot expenditure | G65: £m 18/19 prices | AP65: =AP63 - AP66 -> 0 | AQ65: 0 | AR65: 0 | AS65: 0 | AT65: 0
E66: Slow pot expenditure | G66: £m 18/19 prices | AP66: =AP63 * AP64 -> 0 | AQ66: 0 | AR66: 0 | AS66: 0 | AT66: 0
C68: Totex
E70: Fast pot expenditure | G70: £m 18/19 prices | AP70: =AP58+AP65 -> 105.7423939 | AQ70: =AQ58+AQ65 -> 146.0412073 | AR70: 149.4542941 | AS70: 84.03353722 | AT70: 79.24770406
E72: Slow pot expenditure | G72: £m 18/19 prices | AP72: =AP59+AP66 -> 196.3787316 | AQ72: =AQ59+AQ66 -> 271.219385 | AR72: 277.5579747 | AS72: 156.0622834 | AT72: 147.1743075
B74: End of sheet

Sheet Depn
A1: Regulatory Depreciation
B2: =UserInterface!G17 -> NGGT TO
E3: Parameter | G3: Units | I3: Constant | AP3: Annual values
E4: PCFM year ending | F4: =Cover!C4 -> Model Version | I4: =UserInterface!$G$10 -> 2022-03-31 | K4: 1991-03-31 | L4: 1992-03-31 | M4: 1993-03-31 | N4: 1994-03-31 | O4: 1995-03-31 | P4: 1996-03-31 | Q4: 1997-03-31 | R4: 1998-03-31 | S4: 1999-03-31 | T4: 2000-03-31 | U4: 2001-03-31 | V4: 2002-03-31 | W4: 2003-03-31 | X4: 2004-03-31 | Y4: 2005-03-31 | Z4: 2006-03-31 | AA4: 2007-03-31 | AB4: 2008-03-31 | AC4: 2009-03-31 | AD4: 2010-03-31 | AE4: 2011-03-31 | AF4: 2012-03-31 | AG4: 2013-03-31 | AH4: 2014-03-31 | AI4: 2015-03-31 | AJ4: 2016-03-31 | AK4: 2017-03-31 | AL4: 2018-03-31 | AM4: 2019-03-31 | AN4: 2020-03-31 | AO4: 2021-03-31 | AP4: 2022-03-31 | AQ4: 2023-03-31 | AR4: 2024-03-31 | AS4: 2025-03-31 | AT4: 2026-03-31
B6: Regulatory depreciation
C8: Net RAV additions (after disposals)
C9: Note: Additions to RAV are combined before feeding into the depreciation calculations. Disposals are treated as negative additions. Pre-RIIO values are used to build up the post-vesting RAV from vesting.
C10: Logged-up and security costs are retrospectively added to RAV to provide the updated opening RAV and align depreciation with expenditure.
E12: Slow money | G12: £m 18/19 prices | AP12: =TIM!AP59 + TIM!AP66 -> 196.3787316 | AQ12: =TIM!AQ59 + TIM!AQ66 -> 271.219385 | AR12: =TIM!AR59 + TIM!AR66 -> 277.5579747 | AS12: =TIM!AS59 + TIM!AS66 -> 156.0622834 | AT12: =TIM!AT59 + TIM!AT66 -> 147.1743075
E13: RIIO-1 net RAV additions | G13: £m 18/19 prices | J13: > | AH13: =Input!AH525 -> 212.5523708 | AI13: =Input!AI525 -> 170.2886636 | AJ13: =Input!AJ525 -> 160.7682031 | AK13: =Input!AK525 -> 181.5958774 | AL13: =Input!AL525 -> 245.9491647 | AM13: =Input!AM525 -> 229.3294584 | AN13: =Input!AN525 -> 174.2590356 | AO13: =Input!AO525 -> 149.3414095
E14: Net adjustments | G14: £m 18/19 prices | AP14: =SUM(Input!AP526:AP527) -> 0 | AQ14: =SUM(Input!AQ526:AQ527) -> 0 | AR14: =SUM(Input!AR526:AR527) -> 0 | AS14: =SUM(Input!AS526:AS527) -> 0 | AT14: =SUM(Input!AT526:AT527) -> 0
E15: Pre-RIIO net RAV additions (after disposals) | G15: £m 18/19 prices | J15: > | K15: =Input!K523 -> 0 | L15: =Input!L523 -> 0 | M15: =Input!M523 -> 0 | N15: =Input!N523 -> 0 | O15: =Input!O523 -> 0 | P15: =Input!P523 -> 0 | Q15: =Input!Q523 -> 0 | R15: =Input!R523 -> 0 | S15: =Input!S523 -> 0 | T15: =Input!T523 -> 0 | U15: =Input!U523 -> 0 | V15: =Input!V523 -> 0 | W15: =Input!W523 -> 0 | X15: =Input!X523 -> 393.0474399 | Y15: =Input!Y523 -> 126.551982 | Z15: =Input!Z523 -> 393.9201619 | AA15: =Input!AA523 -> 710.4949173 | AB15: =Input!AB523 -> 769.1575025 | AC15: =Input!AC523 -> 325.3339377 | AD15: =Input!AD523 -> 161.7587385 | AE15: =Input!AE523 -> 131.2813581 | AF15: =Input!AF523 -> 132.7730693 | AG15: =Input!AG523 -> -37.76579961
E16: Net RAV additions (after disposals) | G16: £m 18/19 prices | J16: > | K16: =SUM(K12:K15) -> 0 | L16: 0 | M16: 0 | N16: 0 | O16: 0 | P16: 0 | Q16: 0 | R16: 0 | S16: 0 | T16: 0 | U16: 0 | V16: 0 | W16: 0 | X16: 393.0474399 | Y16: 126.551982 | Z16: 393.9201619 | AA16: 710.4949173 | AB16: 769.1575025 | AC16: 325.3339377 | AD16: 161.7587385 | AE16: 131.2813581 | AF16: 132.7730693 | AG16: -37.76579961 | AH16: 212.5523708 | AI16: 170.2886636 | AJ16: 160.7682031 | AK16: 181.5958774 | AL16: 245.9491647 | AM16: 229.3294584 | AN16: 174.2590356 | AO16: 149.3414095 | AP16: 196.3787316 | AQ16: 271.219385 | AR16: 277.5579747 | AS16: 156.0622834 | AT16: 147.1743075
C18: Net depreciation additions (after disposals)
C19: Note:
E21: Pre-RIIO transfers to depreciation | G21: £m 18/19 prices | J21: > | K21: =Input!K524 -> 0 | L21: =Input!L524 -> 0 | M21: =Input!M524 -> 0 | N21: =Input!N524 -> 0 | O21: =Input!O524 -> 0 | P21: =Input!P524 -> 0 | Q21: =Input!Q524 -> 0 | R21: =Input!R524 -> 0 | S21: =Input!S524 -> 0 | T21: =Input!T524 -> 0 | U21: =Input!U524 -> 0 | V21: =Input!V524 -> 0 | W21: =Input!W524 -> 0 | X21: =Input!X524 -> 4.477841855 | Y21: =Input!Y524 -> 0 | Z21: =Input!Z524 -> 0 | AA21: =Input!AA524 -> 0 | AB21: =Input!AB524 -> 0 | AC21: =Input!AC524 -> 0 | AD21: =Input!AD524 -> 0 | AE21: =Input!AE524 -> 0 | AF21: =Input!AF524 -> 0 | AG21: =Input!AG524 -> -10.91361515
C23: Pre-vesting depreciation
C24: Note: The following depreciation factor is used to depreciate the pre-vesting balance on the "Return&RAV" sheet.
E26: Pre-vesting asset life | G26: years | I26: =Input!I508 -> 56
E27: Sum of digits | G27: integer | I27: =I26 * (1 + I26) / 2 -> 1596
E28: Years of pre-vesting depreciation remaining | G28: years | AH28: =Input!AH510 -> 45 | AI28: =Input!AI510 -> 44 | AJ28: =Input!AJ510 -> 43 | AK28: =Input!AK510 -> 42 | AL28: =Input!AL510 -> 41 | AM28: =Input!AM510 -> 40 | AN28: =Input!AN510 -> 39 | AO28: =Input!AO510 -> 38 | AP28: =Input!AP510 -> 37 | AQ28: =Input!AQ510 -> 36 | AR28: =Input!AR510 -> 35 | AS28: =Input!AS510 -> 34 | AT28: =Input!AT510 -> 33
E30: Pre-vesting straight line depreciation factor | G30: scalar | AH30: =AH28 / $I27 -> 0.02819548872 | AI30: =AI28 / $I27 -> 0.02756892231 | AJ30: 0.02694235589 | AK30: 0.02631578947 | AL30: 0.02568922306 | AM30: 0.02506265664 | AN30: 0.02443609023 | AO30: 0.02380952381 | AP30: =AP28 / $I27 -> 0.02318295739 | AQ30: 0.02255639098 | AR30: 0.02192982456 | AS30: 0.02130325815 | AT30: 0.02067669173
C32: Post-vesting depreciation - sum of digits
D34: Depreciation parameters
E36: Post-vesting asset life, sum of digits | G36: years | I36: =Input!I518 -> 45
E37: Sum of digits | G37: integer | I37: =I36 * (1 + I36) / 2 -> 1035
E39: First year sum of digits depreciation (applied retrospectively to existing assets) | G39: year ending | I39: =Input!I519 -> 2003-03-31
E40: First year of application to new assets, start of recovery period | G40: year ending | I40: =Input!I520 -> 2022-03-31
E41: Existing assets differential depreciation recovery period | G41: years | I41: =Input!I521 -> 20
E42: Last year differential depreciation recovery | G42: year ending | I42: =DATE(YEAR(I40) + I41 - 1, MONTH(I40), DAY(I40)) -> 2041-03-31
E44: Sum of digits depreciation applies (new assets) | G44: text | J44: > | L44: =L$4 >= $I$40 -> FALSE | M44: =M$4 >= $I$40 -> FALSE | N44: FALSE | O44: FALSE | P44: FALSE | Q44: FALSE | R44: FALSE | S44: FALSE | T44: FALSE | U44: FALSE | V44: FALSE | W44: FALSE | X44: FALSE | Y44: FALSE | Z44: FALSE | AA44: FALSE | AB44: FALSE | AC44: FALSE | AD44: FALSE | AE44: FALSE | AF44: FALSE | AG44: FALSE | AH44: FALSE | AI44: FALSE | AJ44: FALSE | AK44: FALSE | AL44: FALSE | AM44: FALSE | AN44: FALSE | AO44: FALSE | AP44: TRUE | AQ44: TRUE | AR44: TRUE | AS44: TRUE | AT44: TRUE
D46: Depreciation schedule
E48: Depreciation of additions from year ending | I48: Net additions (sum of digits) | AV48: Sum of digits depreciation applies (existing assets)
E49: 1991-03-31 | G49: £m 18/19 prices | I49: =INDEX($K$16:$AT$16, MATCH($E49, $K$4:$AT$4, 0)) * ($E49 >= $I$39) -> 0 | J49: > | L49: =($I49 * ($I$36 - (YEAR(L$4) - (YEAR($E49) + 1))) / $I$37) * (YEAR(L$4) >= YEAR($E49) + 1) * (YEAR(L$4) <= YEAR($E49) + $I$36) -> 0 | M49: =($I49 * ($I$36 - (YEAR(M$4) - (YEAR($E49) + 1))) / $I$37) * (YEAR(M$4) >= YEAR($E49) + 1) * (YEAR(M$4) <= YEAR($E49) + $I$36) -> 0 | N49: 0 | O49: 0 | P49: 0 | Q49: 0 | R49: 0 | S49: 0 | T49: 0 | U49: 0 | V49: 0 | W49: 0 | X49: 0 | Y49: 0 | Z49: 0 | AA49: 0 | AB49: 0 | AC49: =($I49 * ($I$36 - (YEAR(AC$4) - (YEAR($E49) + 1))) / $I$37) * (YEAR(AC$4) >= YEAR($E49) + 1) * (YEAR(AC$4) <= YEAR($E49) + $I$36) -> 0 | AD49: 0 | AE49: 0 | AF49: 0 | AG49: 0 | AH49: 0 | AI49: 0 | AJ49: 0 | AK49: 0 | AL49: 0 | AM49: 0 | AN49: 0 | AO49: 0 | AP49: 0 | AQ49: 0 | AR49: 0 | AS49: =($I49 * ($I$36 - (YEAR(AS$4) - (YEAR($E49) + 1))) / $I$37) * (YEAR(AS$4) >= YEAR($E49) + 1) * (YEAR(AS$4) <= YEAR($E49) + $I$36) -> 0 | AT49: 0 | AV49: =$E49 >= $I$39 -> FALSE
E50: 1992-03-31 | G50: £m 18/19 prices | I50: =INDEX($K$16:$AT$16, MATCH($E50, $K$4:$AT$4, 0)) * ($E50 >= $I$39) -> 0 | J50: > | L50: =($I50 * ($I$36 - (YEAR(L$4) - (YEAR($E50) + 1))) / $I$37) * (YEAR(L$4) >= YEAR($E50) + 1) * (YEAR(L$4) <= YEAR($E50) + $I$36) -> 0 | M50: 0 | N50: 0 | O50: 0 | P50: 0 | Q50: 0 | R50: 0 | S50: 0 | T50: 0 | U50: 0 | V50: 0 | W50: 0 | X50: 0 | Y50: 0 | Z50: 0 | AA50: 0 | AB50: 0 | AC50: 0 | AD50: 0 | AE50: 0 | AF50: 0 | AG50: 0 | AH50: 0 | AI50: 0 | AJ50: 0 | AK50: 0 | AL50: 0 | AM50: 0 | AN50: 0 | AO50: 0 | AP50: 0 | AQ50: 0 | AR50: 0 | AS50: 0 | AT50: 0 | AV50: =$E50 >= $I$39 -> FALSE
E51: 1993-03-31 | G51: £m 18/19 prices | I51: 0 | J51: > | L51: 0 | M51: 0 | N51: 0 | O51: 0 | P51: 0 | Q51: 0 | R51: 0 | S51: 0 | T51: 0 | U51: 0 | V51: 0 | W51: 0 | X51: 0 | Y51: 0 | Z51: 0 | AA51: 0 | AB51: 0 | AC51: 0 | AD51: 0 | AE51: 0 | AF51: 0 | AG51: 0 | AH51: 0 | AI51: 0 | AJ51: 0 | AK51: 0 | AL51: 0 | AM51: 0 | AN51: 0 | AO51: 0 | AP51: 0 | AQ51: 0 | AR51: 0 | AS51: 0 | AT51: 0 | AV51: FALSE
E52: 1994-03-31 | G52: £m 18/19 prices | I52: 0 | J52: > | L52: 0 | M52: 0 | N52: 0 | O52: 0 | P52: 0 | Q52: 0 | R52: 0 | S52: 0 | T52: 0 | U52: 0 | V52: 0 | W52: 0 | X52: 0 | Y52: 0 | Z52: 0 | AA52: 0 | AB52: 0 | AC52: 0 | AD52: 0 | AE52: 0 | AF52: 0 | AG52: 0 | AH52: 0 | AI52: 0 | AJ52: 0 | AK52: 0 | AL52: 0 | AM52: 0 | AN52: 0 | AO52: 0 | AP52: 0 | AQ52: 0 | AR52: 0 | AS52: 0 | AT52: 0 | AV52: FALSE
E53: 1995-03-31 | G53: £m 18/19 prices | I53: 0 | J53: > | L53: 0 | M53: 0 | N53: 0 | O53: 0 | P53: 0 | Q53: 0 | R53: 0 | S53: 0 | T53: 0 | U53: 0 | V53: 0 | W53: 0 | X53: 0 | Y53: 0 | Z53: 0 | AA53: 0 | AB53: 0 | AC53: 0 | AD53: 0 | AE53: 0 | AF53: 0 | AG53: 0 | AH53: 0 | AI53: 0 | AJ53: 0 | AK53: 0 | AL53: 0 | AM53: 0 | AN53: 0 | AO53: 0 | AP53: 0 | AQ53: 0 | AR53: 0 | AS53: 0 | AT53: 0 | AV53: FALSE
E54: 1996-03-31 | G54: £m 18/19 prices | I54: 0 | J54: > | L54: 0 | M54: 0 | N54: 0 | O54: 0 | P54: 0 | Q54: 0 | R54: 0 | S54: 0 | T54: 0 | U54: 0 | V54: 0 | W54: 0 | X54: 0 | Y54: 0 | Z54: 0 | AA54: 0 | AB54: 0 | AC54: 0 | AD54: 0 | AE54: 0 | AF54: 0 | AG54: 0 | AH54: 0 | AI54: 0 | AJ54: 0 | AK54: 0 | AL54: 0 | AM54: 0 | AN54: 0 | AO54: 0 | AP54: 0 | AQ54: 0 | AR54: 0 | AS54: 0 | AT54: 0 | AV54: FALSE
E55: 1997-03-31 | G55: £m 18/19 prices | I55: 0 | J55: > | L55: 0 | M55: 0 | N55: 0 | O55: 0 | P55: 0 | Q55: 0 | R55: 0 | S55: 0 | T55: 0 | U55: 0 | V55: 0 | W55: 0 | X55: 0 | Y55: 0 | Z55: 0 | AA55: 0 | AB55: 0 | AC55: 0 | AD55: 0 | AE55: 0 | AF55: 0 | AG55: 0 | AH55: 0 | AI55: 0 | AJ55: 0 | AK55: 0 | AL55: 0 | AM55: 0 | AN55: 0 | AO55: 0 | AP55: 0 | AQ55: 0 | AR55: 0 | AS55: 0 | AT55: 0 | AV55: FALSE
E56: 1998-03-31 | G56: £m 18/19 prices | I56: 0 | J56: > | L56: 0 | M56: 0 | N56: 0 | O56: 0 | P56: 0 | Q56: 0 | R56: 0 | S56: 0 | T56: 0 | U56: 0 | V56: 0 | W56: 0 | X56: 0 | Y56: 0 | Z56: 0 | AA56: 0 | AB56: 0 | AC56: 0 | AD56: 0 | AE56: 0 | AF56: 0 | AG56: 0 | AH56: 0 | AI56: 0 | AJ56: 0 | AK56: 0 | AL56: 0 | AM56: 0 | AN56: 0 | AO56: 0 | AP56: 0 | AQ56: 0 | AR56: 0 | AS56: 0 | AT56: 0 | AV56: FALSE
E57: 1999-03-31 | G57: £m 18/19 prices | I57: 0 | J57: > | L57: 0 | M57: 0 | N57: 0 | O57: 0 | P57: 0 | Q57: 0 | R57: 0 | S57: 0 | T57: 0 | U57: 0 | V57: 0 | W57: 0 | X57: 0 | Y57: 0 | Z57: 0 | AA57: 0 | AB57: 0 | AC57: 0 | AD57: 0 | AE57: 0 | AF57: 0 | AG57: 0 | AH57: 0 | AI57: 0 | AJ57: 0 | AK57: 0 | AL57: 0 | AM57: 0 | AN57: 0 | AO57: 0 | AP57: 0 | AQ57: 0 | AR57: 0 | AS57: 0 | AT57: 0 | AV57: FALSE
E58: 2000-03-31 | G58: £m 18/19 prices | I58: 0 | J58: > | L58: 0 | M58: 0 | N58: 0 | O58: 0 | P58: 0 | Q58: 0 | R58: 0 | S58: 0 | T58: 0 | U58: 0 | V58: 0 | W58: 0 | X58: 0 | Y58: 0 | Z58: 0 | AA58: 0 | AB58: 0 | AC58: 0 | AD58: 0 | AE58: 0 | AF58: 0 | AG58: 0 | AH58: 0 | AI58: 0 | AJ58: 0 | AK58: 0 | AL58: 0 | AM58: 0 | AN58: 0 | AO58: 0 | AP58: 0 | AQ58: 0 | AR58: 0 | AS58: 0 | AT58: 0 | AV58: FALSE
E59: 2001-03-31 | G59: £m 18/19 prices | I59: 0 | J59: > | L59: 0 | M59: 0 | N59: 0 | O59: 0 | P59: 0 | Q59: 0 | R59: 0 | S59: 0 | T59: 0 | U59: 0 | V59: 0 | W59: 0 | X59: 0 | Y59: 0 | Z59: 0 | AA59: 0 | AB59: 0 | AC59: 0 | AD59: 0 | AE59: 0 | AF59: 0 | AG59: 0 | AH59: 0 | AI59: 0 | AJ59: 0 | AK59: 0 | AL59: 0 | AM59: 0 | AN59: 0 | AO59: 0 | AP59: 0 | AQ59: 0 | AR59: 0 | AS59: 0 | AT59: 0 | AV59: FALSE
E60: 2002-03-31 | G60: £m 18/19 prices | I60: 0 | J60: > | L60: 0 | M60: 0 | N60: 0 | O60: 0 | P60: 0 | Q60: 0 | R60: 0 | S60: 0 | T60: 0 | U60: 0 | V60: 0 | W60: 0 | X60: 0 | Y60: 0 | Z60: 0 | AA60: 0 | AB60: 0 | AC60: 0 | AD60: 0 | AE60: 0 | AF60: 0 | AG60: 0 | AH60: 0 | AI60: 0 | AJ60: 0 | AK60: 0 | AL60: 0 | AM60: 0 | AN60: 0 | AO60: 0 | AP60: 0 | AQ60: 0 | AR60: 0 | AS60: 0 | AT60: 0 | AV60: FALSE
E61: 2003-03-31 | G61: £m 18/19 prices | I61: 0 | J61: > | L61: 0 | M61: 0 | N61: 0 | O61: 0 | P61: 0 | Q61: 0 | R61: 0 | S61: 0 | T61: 0 | U61: 0 | V61: 0 | W61: 0 | X61: 0 | Y61: 0 | Z61: 0 | AA61: 0 | AB61: 0 | AC61: 0 | AD61: 0 | AE61: 0 | AF61: 0 | AG61: 0 | AH61: 0 | AI61: 0 | AJ61: 0 | AK61: 0 | AL61: 0 | AM61: 0 | AN61: 0 | AO61: 0 | AP61: 0 | AQ61: 0 | AR61: 0 | AS61: 0 | AT61: 0 | AV61: TRUE
E62: 2004-03-31 | G62: £m 18/19 prices | I62: 393.0474399 | J62: > | L62: 0 | M62: 0 | N62: 0 | O62: 0 | P62: 0 | Q62: 0 | R62: 0 | S62: 0 | T62: 0 | U62: 0 | V62: 0 | W62: 0 | X62: 0 | Y62: 17.08901913 | Z62: 16.70926315 | AA62: 16.32950716 | AB62: 15.94975118 | AC62: 15.5699952 | AD62: 15.19023922 | AE62: 14.81048324 | AF62: 14.43072726 | AG62: 14.05097128 | AH62: 13.6712153 | AI62: 13.29145932 | AJ62: 12.91170334 | AK62: 12.53194736 | AL62: 12.15219138 | AM62: 11.7724354 | AN62: 11.39267942 | AO62: 11.01292344 | AP62: 10.63316746 | AQ62: 10.25341148 | AR62: 9.873655495 | AS62: 9.493899514 | AT62: 9.114143534 | AV62: TRUE
E63: 2005-03-31 | G63: £m 18/19 prices | I63: 126.551982 | J63: > | L63: 0 | M63: 0 | N63: 0 | O63: 0 | P63: 0 | Q63: 0 | R63: 0 | S63: 0 | T63: 0 | U63: 0 | V63: 0 | W63: 0 | X63: 0 | Y63: 0 | Z63: 5.502260088 | AA63: 5.379987642 | AB63: 5.257715195 | AC63: 5.135442749 | AD63: 5.013170302 | AE63: 4.890897856 | AF63: 4.76862541 | AG63: 4.646352963 | AH63: 4.524080517 | AI63: 4.40180807 | AJ63: 4.279535624 | AK63: 4.157263178 | AL63: 4.034990731 | AM63: 3.912718285 | AN63: 3.790445838 | AO63: 3.668173392 | AP63: 3.545900946 | AQ63: 3.423628499 | AR63: 3.301356053 | AS63: 3.179083606 | AT63: 3.05681116 | AV63: TRUE
E64: 2006-03-31 | G64: £m 18/19 prices | I64: 393.9201619 | J64: > | L64: 0 | M64: 0 | N64: 0 | O64: 0 | P64: 0 | Q64: 0 | R64: 0 | S64: 0 | T64: 0 | U64: 0 | V64: 0 | W64: 0 | X64: 0 | Y64: 0 | Z64: 0 | AA64: 17.12696356 | AB64: =($I64 * ($I$36 - (YEAR(AB$4) - (YEAR($E64) + 1))) / $I$37) * (YEAR(AB$4) >= YEAR($E64) + 1) * (YEAR(AB$4) <= YEAR($E64) + $I$36) -> 16.74636437 | AC64: 16.36576518 | AD64: 15.98516599 | AE64: 15.6045668 | AF64: 15.22396761 | AG64: 14.84336842 | AH64: 14.46276923 | AI64: 14.08217004 | AJ64: 13.70157085 | AK64: 13.32097166 | AL64: 12.94037247 | AM64: 12.55977328 | AN64: 12.17917409 | AO64: 11.7985749 | AP64: 11.41797571 | AQ64: 11.03737652 | AR64: =($I64 * ($I$36 - (YEAR(AR$4) - (YEAR($E64) + 1))) / $I$37) * (YEAR(AR$4) >= YEAR($E64) + 1) * (YEAR(AR$4) <= YEAR($E64) + $I$36) -> 10.65677733 | AS64: 10.27617814 | AT64: 9.895578947 | AV64: TRUE
E65: 2007-03-31 | G65: £m 18/19 prices | I65: 710.4949173 | J65: > | L65: 0 | M65: 0 | N65: 0 | O65: 0 | P65: 0 | Q65: 0 | R65: 0 | S65: 0 | T65: 0 | U65: 0 | V65: 0 | W65: 0 | X65: 0 | Y65: 0 | Z65: 0 | AA65: 0 | AB65: 30.89108336 | AC65: 30.20461484 | AD65: 29.51814632 | AE65: 28.8316778 | AF65: 28.14520928 | AG65: 27.45874076 | AH65: 26.77227224 | AI65: 26.08580373 | AJ65: 25.39933521 | AK65: 24.71286669 | AL65: 24.02639817 | AM65: 23.33992965 | AN65: 22.65346113 | AO65: 21.96699261 | AP65: 21.28052409 | AQ65: 20.59405557 | AR65: 19.90758705 | AS65: 19.22111853 | AT65: 18.53465002 | AV65: TRUE
E66: 2008-03-31 | G66: £m 18/19 prices | I66: 769.1575025 | J66: > | L66: =($I66 * ($I$36 - (YEAR(L$4) - (YEAR($E66) + 1))) / $I$37) * (YEAR(L$4) >= YEAR($E66) + 1) * (YEAR(L$4) <= YEAR($E66) + $I$36) -> 0 | M66: 0 | N66: 0 | O66: 0 | P66: 0 | Q66: 0 | R66: 0 | S66: 0 | T66: 0 | U66: 0 | V66: 0 | W66: 0 | X66: 0 | Y66: 0 | Z66: 0 | AA66: 0 | AB66: 0 | AC66: 33.44163055 | AD66: 32.6984832 | AE66: 31.95533585 | AF66: 31.21218851 | AG66: 30.46904116 | AH66: 29.72589382 | AI66: 28.98274647 | AJ66: 28.23959913 | AK66: 27.49645178 | AL66: 26.75330444 | AM66: 26.01015709 | AN66: 25.26700975 | AO66: 24.5238624 | AP66: 23.78071505 | AQ66: 23.03756771 | AR66: 22.29442036 | AS66: 21.55127302 | AT66: 20.80812567 | AV66: TRUE
E67: 2009-03-31 | G67: £m 18/19 prices | I67: 325.3339377 | J67: > | L67: 0 | M67: 0 | N67: 0 | O67: 0 | P67: 0 | Q67: 0 | R67: 0 | S67: 0 | T67: 0 | U67: 0 | V67: 0 | W67: 0 | X67: 0 | Y67: 0 | Z67: 0 | AA67: 0 | AB67: 0 | AC67: 0 | AD67: 14.14495381 | AE67: 13.8306215 | AF67: 13.5162892 | AG67: 13.20195689 | AH67: 12.88762458 | AI67: 12.57329228 | AJ67: 12.25895997 | AK67: 11.94462766 | AL67: 11.63029536 | AM67: 11.31596305 | AN67: 11.00163074 | AO67: 10.68729844 | AP67: 10.37296613 | AQ67: 10.05863382 | AR67: 9.744301514 | AS67: 9.429969207 | AT67: 9.1156369 | AV67: TRUE
E68: 2010-03-31 | G68: £m 18/19 prices | I68: 161.7587385 | J68: > | L68: 0 | M68: 0 | N68: 0 | O68: 0 | P68: 0 | Q68: 0 | R68: 0 | S68: 0 | T68: 0 | U68: 0 | V68: 0 | W68: 0 | X68: 0 | Y68: 0 | Z68: 0 | AA68: 0 | AB68: 0 | AC68: 0 | AD68: 0 | AE68: 7.032988629 | AF68: 6.876699993 | AG68: 6.720411357 | AH68: 6.564122721 | AI68: 6.407834085 | AJ68: 6.251545448 | AK68: 6.095256812 | AL68: 5.938968176 | AM68: 5.78267954 | AN68: 5.626390904 | AO68: 5.470102267 | AP68: 5.313813631 | AQ68: 5.157524995 | AR68: 5.001236359 | AS68: 4.844947723 | AT68: 4.688659086 | AV68: TRUE
E69: 2011-03-31 | G69: £m 18/19 prices | I69: 131.2813581 | J69: > | L69: 0 | M69: 0 | N69: 0 | O69: 0 | P69: 0 | Q69: 0 | R69: 0 | S69: 0 | T69: 0 | U69: 0 | V69: 0 | W69: 0 | X69: 0 | Y69: 0 | Z69: 0 | AA69: 0 | AB69: 0 | AC69: 0 | AD69: 0 | AE69: 0 | AF69: 5.707885136 | AG69: 5.581043244 | AH69: 5.454201352 | AI69: 5.327359461 | AJ69: 5.200517569 | AK69: 5.073675677 | AL69: 4.946833785 | AM69: 4.819991893 | AN69: 4.693150001 | AO69: 4.566308109 | AP69: 4.439466217 | AQ69: 4.312624325 | AR69: 4.185782433 | AS69: 4.058940541 | AT69: 3.932098649 | AV69: TRUE
E70: 2012-03-31 | G70: £m 18/19 prices | I70: 132.7730693 | J70: > | L70: 0 | M70: 0 | N70: 0 | O70: 0 | P70: 0 | Q70: 0 | R70: 0 | S70: 0 | T70: 0 | U70: 0 | V70: 0 | W70: 0 | X70: 0 | Y70: 0 | Z70: 0 | AA70: 0 | AB70: 0 | AC70: 0 | AD70: 0 | AE70: 0 | AF70: 0 | AG70: 5.772742145 | AH70: 5.644458986 | AI70: 5.516175827 | AJ70: 5.387892668 | AK70: 5.25960951 | AL70: 5.131326351 | AM70: 5.003043192 | AN70: 4.874760033 | AO70: 4.746476874 | AP70: 4.618193716 | AQ70: 4.489910557 | AR70: 4.361627398 | AS70: 4.233344239 | AT70: 4.105061081 | AV70: TRUE
E71: 2013-03-31 | G71: £m 18/19 prices | I71: -37.76579961 | J71: > | L71: 0 | M71: 0 | N71: 0 | O71: 0 | P71: 0 | Q71: 0 | R71: 0 | S71: 0 | T71: 0 | U71: 0 | V71: 0 | W71: 0 | X71: 0 | Y71: 0 | Z71: 0 | AA71: 0 | AB71: 0 | AC71: 0 | AD71: 0 | AE71: 0 | AF71: 0 | AG71: 0 | AH71: -1.641991287 | AI71: -1.605502592 | AJ71: -1.569013897 | AK71: -1.532525202 | AL71: -1.496036506 | AM71: -1.459547811 | AN71: -1.423059116 | AO71: -1.38657042 | AP71: -1.350081725 | AQ71: -1.31359303 | AR71: -1.277104335 | AS71: -1.240615639 | AT71: -1.204126944 | AV71: TRUE
E72: 2014-03-31 | G72: £m 18/19 prices | I72: 212.5523708 | J72: > | L72: 0 | M72: 0 | N72: 0 | O72: 0 | P72: 0 | Q72: 0 | R72: 0 | S72: 0 | T72: 0 | U72: 0 | V72: 0 | W72: 0 | X72: 0 | Y72: 0 | Z72: 0 | AA72: 0 | AB72: 0 | AC72: 0 | AD72: 0 | AE72: 0 | AF72: 0 | AG72: 0 | AH72: 0 | AI72: 9.241407424 | AJ72: 9.036042815 | AK72: 8.830678205 | AL72: 8.625313596 | AM72: 8.419948986 | AN72: 8.214584377 | AO72: 8.009219767 | AP72: 7.803855158 | AQ72: 7.598490549 | AR72: 7.393125939 | AS72: 7.18776133 | AT72: 6.98239672 | AV72: TRUE
E73: 2015-03-31 | G73: £m 18/19 prices | I73: 170.2886636 | J73: > | L73: 0 | M73: 0 | N73: 0 | O73: 0 | P73: 0 | Q73: 0 | R73: 0 | S73: 0 | T73: 0 | U73: 0 | V73: 0 | W73: 0 | X73: 0 | Y73: 0 | Z73: 0 | AA73: 0 | AB73: 0 | AC73: 0 | AD73: 0 | AE73: 0 | AF73: 0 | AG73: 0 | AH73: 0 | AI73: 0 | AJ73: 7.403854939 | AK73: 7.239324829 | AL73: 7.07479472 | AM73: 6.91026461 | AN73: 6.7457345 | AO73: 6.58120439 | AP73: 6.416674281 | AQ73: 6.252144171 | AR73: 6.087614061 | AS73: 5.923083951 | AT73: 5.758553842 | AV73: TRUE
E74: 2016-03-31 | G74: £m 18/19 prices | I74: 160.7682031 | J74: > | L74: 0 | M74: 0 | N74: 0 | O74: 0 | P74: 0 | Q74: 0 | R74: 0 | S74: 0 | T74: 0 | U74: 0 | V74: 0 | W74: 0 | X74: 0 | Y74: 0 | Z74: 0 | AA74: 0 | AB74: 0 | AC74: 0 | AD74: 0 | AE74: 0 | AF74: 0 | AG74: 0 | AH74: 0 | AI74: 0 | AJ74: 0 | AK74: 6.989921872 | AL74: 6.834590275 | AM74: 6.679258678 | AN74: 6.523927081 | AO74: 6.368595484 | AP74: 6.213263887 | AQ74: 6.057932289 | AR74: 5.902600692 | AS74: 5.747269095 | AT74: 5.591937498 | AV74: TRUE
E75: 2017-03-31 | G75: £m 18/19 prices | I75: 181.5958774 | J75: > | L75: 0 | M75: 0 | N75: 0 | O75: 0 | P75: 0 | Q75: 0 | R75: 0 | S75: 0 | T75: 0 | U75: 0 | V75: 0 | W75: 0 | X75: 0 | Y75: 0 | Z75: 0 | AA75: 0 | AB75: 0 | AC75: 0 | AD75: 0 | AE75: 0 | AF75: 0 | AG75: 0 | AH75: 0 | AI75: 0 | AJ75: 0 | AK75: 0 | AL75: 7.895472929 | AM75: 7.720017975 | AN75: 7.544563021 | AO75: 7.369108067 | AP75: 7.193653113 | AQ75: 7.018198159 | AR75: 6.842743205 | AS75: 6.667288251 | AT75: 6.491833297 | AV75: TRUE
E76: 2018-03-31 | G76: £m 18/19 prices | I76: 245.9491647 | J76: > | L76: 0 | M76: 0 | N76: 0 | O76: 0 | P76: 0 | Q76: 0 | R76: 0 | S76: 0 | T76: 0 | U76: 0 | V76: 0 | W76: 0 | X76: 0 | Y76: 0 | Z76: 0 | AA76: 0 | AB76: 0 | AC76: 0 | AD76: 0 | AE76: 0 | AF76: 0 | AG76: 0 | AH76: 0 | AI76: 0 | AJ76: 0 | AK76: 0 | AL76: 0 | AM76: 10.69344195 | AN76: 10.4558099 | AO76: 10.21817786 | AP76: 9.980545816 | AQ76: 9.742913772 | AR76: 9.505281729 | AS76: 9.267649686 | AT76: 9.030017643 | AV76: TRUE
E77: 2019-03-31 | G77: £m 18/19 prices | I77: 229.3294584 | J77: > | L77: 0 | M77: 0 | N77: 0 | O77: 0 | P77: 0 | Q77: 0 | R77: 0 | S77: 0 | T77: 0 | U77: 0 | V77: 0 | W77: 0 | X77: 0 | Y77: 0 | Z77: 0 | AA77: 0 | AB77: 0 | AC77: 0 | AD77: 0 | AE77: 0 | AF77: 0 | AG77: 0 | AH77: 0 | AI77: 0 | AJ77: 0 | AK77: 0 | AL77: 0 | AM77: 0 | AN77: 9.970846017 | AO77: 9.749271661 | AP77: 9.527697305 | AQ77: 9.30612295 | AR77: 9.084548594 | AS77: 8.862974238 | AT77: 8.641399882 | AV77: TRUE
E78: 2020-03-31 | G78: £m 18/19 prices | I78: 174.2590356 | J78: > | L78: 0 | M78: 0 | N78: 0 | O78: 0 | P78: 0 | Q78: 0 | R78: 0 | S78: 0 | T78: 0 | U78: 0 | V78: 0 | W78: 0 | X78: 0 | Y78: 0 | Z78: 0 | AA78: 0 | AB78: 0 | AC78: 0 | AD78: 0 | AE78: 0 | AF78: 0 | AG78: 0 | AH78: 0 | AI78: 0 | AJ78: 0 | AK78: 0 | AL78: 0 | AM78: 0 | AN78: 0 | AO78: 7.57647981 | AP78: 7.408113592 | AQ78: 7.239747374 | AR78: 7.071381156 | AS78: 6.903014938 | AT78: 6.73464872 | AV78: TRUE
E79: 2021-03-31 | G79: £m 18/19 prices | I79: 149.3414095 | J79: > | L79: 0 | M79: 0 | N79: 0 | O79: 0 | P79: 0 | Q79: 0 | R79: 0 | S79: 0 | T79: 0 | U79: 0 | V79: 0 | W79: 0 | X79: 0 | Y79: 0 | Z79: 0 | AA79: 0 | AB79: 0 | AC79: 0 | AD79: 0 | AE79: 0 | AF79: 0 | AG79: 0 | AH79: 0 | AI79: 0 | AJ79: 0 | AK79: 0 | AL79: 0 | AM79: 0 | AN79: 0 | AO79: 0 | AP79: 6.493104761 | AQ79: 6.348813544 | AR79: 6.204522327 | AS79: 6.060231111 | AT79: 5.915939894 | AV79: TRUE
E80: 2022-03-31 | G80: £m 18/19 prices | I80: 196.3787316 | J80: > | L80: 0 | M80: 0 | N80: 0 | O80: 0 | P80: 0 | Q80: 0 | R80: 0 | S80: 0 | T80: 0 | U80: 0 | V80: 0 | W80: 0 | X80: 0 | Y80: 0 | Z80: 0 | AA80: 0 | AB80: =($I80 * ($I$36 - (YEAR(AB$4) - (YEAR($E80) + 1))) / $I$37) * (YEAR(AB$4) >= YEAR($E80) + 1) * (YEAR(AB$4) <= YEAR($E80) + $I$36) -> 0 | AC80: 0 | AD80: 0 | AE80: 0 | AF80: 0 | AG80: 0 | AH80: 0 | AI80: 0 | AJ80: 0 | AK80: 0 | AL80: 0 | AM80: 0 | AN80: 0 | AO80: 0 | AP80: 0 | AQ80: 8.538205722 | AR80: 8.348467817 | AS80: 8.158729912 | AT80: 7.968992007 | AV80: TRUE
E81: 2023-03-31 | G81: £m 18/19 prices | I81: 271.219385 | J81: > | L81: 0 | M81: 0 | N81: 0 | O81: 0 | P81: 0 | Q81: 0 | R81: 0 | S81: 0 | T81: 0 | U81: 0 | V81: 0 | W81: 0 | X81: 0 | Y81: 0 | Z81: 0 | AA81: =($I81 * ($I$36 - (YEAR(AA$4) - (YEAR($E81) + 1))) / $I$37) * (YEAR(AA$4) >= YEAR($E81) + 1) * (YEAR(AA$4) <= YEAR($E81) + $I$36) -> 0 | AB81: 0 | AC81: 0 | AD81: 0 | AE81: 0 | AF81: 0 | AG81: 0 | AH81: 0 | AI81: 0 | AJ81: 0 | AK81: 0 | AL81: 0 | AM81: 0 | AN81: 0 | AO81: 0 | AP81: 0 | AQ81: 0 | AR81: 11.79214717 | AS81: 11.53009946 | AT81: 11.26805174 | AV81: TRUE
E82: 2024-03-31 | G82: £m 18/19 prices | I82: 277.5579747 | J82: > | L82: =($I82 * ($I$36 - (YEAR(L$4) - (YEAR($E82) + 1))) / $I$37) * (YEAR(L$4) >= YEAR($E82) + 1) * (YEAR(L$4) <= YEAR($E82) + $I$36) -> 0 | M82: 0 | N82: 0 | O82: 0 | P82: 0 | Q82: 0 | R82: 0 | S82: 0 | T82: 0 | U82: 0 | V82: 0 | W82: 0 | X82: 0 | Y82: 0 | Z82: 0 | AA82: 0 | AB82: 0 | AC82: 0 | AD82: 0 | AE82: 0 | AF82: 0 | AG82: 0 | AH82: 0 | AI82: 0 | AJ82: 0 | AK82: 0 | AL82: 0 | AM82: 0 | AN82: 0 | AO82: 0 | AP82: 0 | AQ82: 0 | AR82: 0 | AS82: 12.06773803 | AT82: 11.79956608 | AV82: TRUE
E83: 2025-03-31 | G83: £m 18/19 prices | I83: 156.0622834 | J83: > | L83: 0 | M83: 0 | N83: 0 | O83: 0 | P83: 0 | Q83: 0 | R83: 0 | S83: 0 | T83: 0 | U83: 0 | V83: 0 | W83: 0 | X83: 0 | Y83: 0 | Z83: 0 | AA83: 0 | AB83: 0 | AC83: 0 | AD83: 0 | AE83: 0 | AF83: 0 | AG83: 0 | AH83: 0 | AI83: 0 | AJ83: 0 | AK83: 0 | AL83: 0 | AM83: 0 | AN83: 0 | AO83: 0 | AP83: 0 | AQ83: 0 | AR83: 0 | AS83: 0 | AT83: 6.78531667 | AV83: TRUE
E84: 2026-03-31 | G84: £m 18/19 prices | I84: 147.1743075
E85: Total | G85: £m 18/19 prices | L85: =SUM(L49:L84) -> 0 | M85: 0 | N85: 0 | O85: 0 | P85: 0 | Q85: 0 | R85: 0 | S85: 0 | T85: 0 | U85: 0 | V85: 0 | W85: 0 | X85: 0 | Y85: 17.08901913 | Z85: 22.21152323 | AA85: 38.83645837 | AB85: 68.84491411 | AC85: 100.7174485 | AD85: 112.5501588 | AE85: 116.9565717 | AF85: 119.8815924 | AG85: 122.7446282 | AH85: 118.0646475 | AI85: 124.3045541 | AJ85: 128.5015437 | AK85: 132.12007 | AL85: 136.4888159 | AM85: 143.4800758 | AN85: 149.5111077 | AO85: 152.926199 | AP85: 155.0895491 | AQ85: 159.153709 | AR85: 166.2820724 | AS85: 173.4239789 | AT85: =SUM(AT49:AT84) -> 175.0152921
C88: Post-vesting depreciation - straight line
D90: Depreciation parameters
E92: Post-vesting asset life, straight line | G92: years | J92: > | K92: =Input!K515 -> 45 | L92: =Input!L515 -> 45 | M92: =Input!M515 -> 45 | N92: =Input!N515 -> 45 | O92: =Input!O515 -> 45 | P92: =Input!P515 -> 45 | Q92: =Input!Q515 -> 45 | R92: =Input!R515 -> 45 | S92: =Input!S515 -> 45 | T92: =Input!T515 -> 45 | U92: =Input!U515 -> 45 | V92: =Input!V515 -> 45 | W92: =Input!W515 -> 45 | X92: =Input!X515 -> 45 | Y92: =Input!Y515 -> 45 | Z92: =Input!Z515 -> 45 | AA92: =Input!AA515 -> 45 | AB92: =Input!AB515 -> 45 | AC92: =Input!AC515 -> 45 | AD92: =Input!AD515 -> 45 | AE92: =Input!AE515 -> 45 | AF92: =Input!AF515 -> 45 | AG92: =Input!AG515 -> 45 | AH92: =Input!AH515 -> 45 | AI92: =Input!AI515 -> 45 | AJ92: =Input!AJ515 -> 45 | AK92: =Input!AK515 -> 45 | AL92: =Input!AL515 -> 45 | AM92: =Input!AM515 -> 45 | AN92: =Input!AN515 -> 45 | AO92: =Input!AO515 -> 45 | AP92: =Input!AP515 -> 45 | AQ92: =Input!AQ515 -> 45 | AR92: =Input!AR515 -> 45 | AS92: =Input!AS515 -> 45 | AT92: =Input!AT515 -> 45
E94: Straight line depreciation applies (new assets) | G94: text | J94: > | L94: =L$4 < $I$40 -> TRUE | M94: =M$4 < $I$40 -> TRUE | N94: TRUE | O94: TRUE | P94: TRUE | Q94: TRUE | R94: TRUE | S94: TRUE | T94: TRUE | U94: TRUE | V94: TRUE | W94: TRUE | X94: TRUE | Y94: TRUE | Z94: TRUE | AA94: TRUE | AB94: TRUE | AC94: TRUE | AD94: TRUE | AE94: TRUE | AF94: TRUE | AG94: TRUE | AH94: TRUE | AI94: TRUE | AJ94: TRUE | AK94: TRUE | AL94: TRUE | AM94: TRUE | AN94: TRUE | AO94: TRUE | AP94: FALSE | AQ94: FALSE | AR94: FALSE | AS94: FALSE | AT94: FALSE
D96: Depreciation schedule
E98: Depreciation of additions from year ending | I98: Net additions (straight line) | AV98: Straight line depreciation applies (existing assets)
E99: 1991-03-31 | G99: £m 18/19 prices | I99: =INDEX($K$16:$AT$16, MATCH($E99, $K$4:$AT$4, 0)) * ($E99 < $I$40) -> 0 | J99: > | L99: =$I99/K$92 -> 0 | M99: =IF($I99 >0, MIN(L99,$I99-SUM($L99:L99)), MAX(L99,$I99-SUM($L99:L99))) -> 0 | N99: =IF($I99 >0, MIN(M99,$I99-SUM($L99:M99)), MAX(M99,$I99-SUM($L99:M99))) -> 0 | O99: =IF($I99 >0, MIN(N99,$I99-SUM($L99:N99)), MAX(N99,$I99-SUM($L99:N99))) -> 0 | P99: =IF($I99 >0, MIN(O99,$I99-SUM($L99:O99)), MAX(O99,$I99-SUM($L99:O99))) -> 0 | Q99: =IF($I99 >0, MIN(P99,$I99-SUM($L99:P99)), MAX(P99,$I99-SUM($L99:P99))) -> 0 | R99: =IF($I99 >0, MIN(Q99,$I99-SUM($L99:Q99)), MAX(Q99,$I99-SUM($L99:Q99))) -> 0 | S99: =IF($I99 >0, MIN(R99,$I99-SUM($L99:R99)), MAX(R99,$I99-SUM($L99:R99))) -> 0 | T99: =IF($I99 >0, MIN(S99,$I99-SUM($L99:S99)), MAX(S99,$I99-SUM($L99:S99))) -> 0 | U99: =IF($I99 >0, MIN(T99,$I99-SUM($L99:T99)), MAX(T99,$I99-SUM($L99:T99))) -> 0 | V99: =IF($I99 >0, MIN(U99,$I99-SUM($L99:U99)), MAX(U99,$I99-SUM($L99:U99))) -> 0 | W99: =IF($I99 >0, MIN(V99,$I99-SUM($L99:V99)), MAX(V99,$I99-SUM($L99:V99))) -> 0 | X99: =IF($I99 >0, MIN(W99,$I99-SUM($L99:W99)), MAX(W99,$I99-SUM($L99:W99))) -> 0 | Y99: =IF($I99 >0, MIN(X99,$I99-SUM($L99:X99)), MAX(X99,$I99-SUM($L99:X99))) -> 0 | Z99: =IF($I99 >0, MIN(Y99,$I99-SUM($L99:Y99)), MAX(Y99,$I99-SUM($L99:Y99))) -> 0 | AA99: =IF($I99 >0, MIN(Z99,$I99-SUM($L99:Z99)), MAX(Z99,$I99-SUM($L99:Z99))) -> 0 | AB99: =IF($I99 >0, MIN(AA99,$I99-SUM($L99:AA99)), MAX(AA99,$I99-SUM($L99:AA99))) -> 0 | AC99: =IF($I99 >0, MIN(AB99,$I99-SUM($L99:AB99)), MAX(AB99,$I99-SUM($L99:AB99))) -> 0 | AD99: =IF($I99 >0, MIN(AC99,$I99-SUM($L99:AC99)), MAX(AC99,$I99-SUM($L99:AC99))) -> 0 | AE99: =IF($I99 >0, MIN(AD99,$I99-SUM($L99:AD99)), MAX(AD99,$I99-SUM($L99:AD99))) -> 0 | AF99: =IF($I99 >0, MIN(AE99,$I99-SUM($L99:AE99)), MAX(AE99,$I99-SUM($L99:AE99))) -> 0 | AG99: =IF($I99 >0, MIN(AF99,$I99-SUM($L99:AF99)), MAX(AF99,$I99-SUM($L99:AF99))) -> 0 | AH99: =IF($I99 >0, MIN(AG99,$I99-SUM($L99:AG99)), MAX(AG99,$I99-SUM($L99:AG99))) -> 0 | AI99: =IF($I99 >0, MIN(AH99,$I99-SUM($L99:AH99)), MAX(AH99,$I99-SUM($L99:AH99))) -> 0 | AJ99: =IF($I99 >0, MIN(AI99,$I99-SUM($L99:AI99)), MAX(AI99,$I99-SUM($L99:AI99))) -> 0 | AK99: =IF($I99 >0, MIN(AJ99,$I99-SUM($L99:AJ99)), MAX(AJ99,$I99-SUM($L99:AJ99))) -> 0 | AL99: =IF($I99 >0, MIN(AK99,$I99-SUM($L99:AK99)), MAX(AK99,$I99-SUM($L99:AK99))) -> 0 | AM99: =IF($I99 >0, MIN(AL99,$I99-SUM($L99:AL99)), MAX(AL99,$I99-SUM($L99:AL99))) -> 0 | AN99: =IF($I99 >0, MIN(AM99,$I99-SUM($L99:AM99)), MAX(AM99,$I99-SUM($L99:AM99))) -> 0 | AO99: =IF($I99 >0, MIN(AN99,$I99-SUM($L99:AN99)), MAX(AN99,$I99-SUM($L99:AN99))) -> 0 | AP99: =IF($I99 >0, MIN(AO99,$I99-SUM($L99:AO99)), MAX(AO99,$I99-SUM($L99:AO99))) -> 0 | AQ99: =IF($I99 >0, MIN(AP99,$I99-SUM($L99:AP99)), MAX(AP99,$I99-SUM($L99:AP99))) -> 0 | AR99: =IF($I99 >0, MIN(AQ99,$I99-SUM($L99:AQ99)), MAX(AQ99,$I99-SUM($L99:AQ99))) -> 0 | AS99: =IF($I99 >0, MIN(AR99,$I99-SUM($L99:AR99)), MAX(AR99,$I99-SUM($L99:AR99))) -> 0 | AT99: =IF($I99 >0, MIN(AS99,$I99-SUM($L99:AS99)), MAX(AS99,$I99-SUM($L99:AS99))) -> 0 | AV99: =$E99 < $I$39 -> TRUE
E100: 1992-03-31 | G100: £m 18/19 prices | I100: =INDEX($K$16:$AT$16, MATCH($E100, $K$4:$AT$4, 0)) * ($E100 < $I$40) -> 0 | J100: > | M100: =$I100/L$92 -> 0 | N100: =IF($I100 >0, MIN(M100,$I100-SUM($L100:M100)), MAX(M100,$I100-SUM($L100:M100))) -> 0 | O100: =IF($I100 >0, MIN(N100,$I100-SUM($L100:N100)), MAX(N100,$I100-SUM($L100:N100))) -> 0 | P100: =IF($I100 >0, MIN(O100,$I100-SUM($L100:O100)), MAX(O100,$I100-SUM($L100:O100))) -> 0 | Q100: =IF($I100 >0, MIN(P100,$I100-SUM($L100:P100)), MAX(P100,$I100-SUM($L100:P100))) -> 0 | R100: =IF($I100 >0, MIN(Q100,$I100-SUM($L100:Q100)), MAX(Q100,$I100-SUM($L100:Q100))) -> 0 | S100: =IF($I100 >0, MIN(R100,$I100-SUM($L100:R100)), MAX(R100,$I100-SUM($L100:R100))) -> 0 | T100: =IF($I100 >0, MIN(S100,$I100-SUM($L100:S100)), MAX(S100,$I100-SUM($L100:S100))) -> 0 | U100: =IF($I100 >0, MIN(T100,$I100-SUM($L100:T100)), MAX(T100,$I100-SUM($L100:T100))) -> 0 | V100: =IF($I100 >0, MIN(U100,$I100-SUM($L100:U100)), MAX(U100,$I100-SUM($L100:U100))) -> 0 | W100: =IF($I100 >0, MIN(V100,$I100-SUM($L100:V100)), MAX(V100,$I100-SUM($L100:V100))) -> 0 | X100: =IF($I100 >0, MIN(W100,$I100-SUM($L100:W100)), MAX(W100,$I100-SUM($L100:W100))) -> 0 | Y100: =IF($I100 >0, MIN(X100,$I100-SUM($L100:X100)), MAX(X100,$I100-SUM($L100:X100))) -> 0 | Z100: =IF($I100 >0, MIN(Y100,$I100-SUM($L100:Y100)), MAX(Y100,$I100-SUM($L100:Y100))) -> 0 | AA100: =IF($I100 >0, MIN(Z100,$I100-SUM($L100:Z100)), MAX(Z100,$I100-SUM($L100:Z100))) -> 0 | AB100: =IF($I100 >0, MIN(AA100,$I100-SUM($L100:AA100)), MAX(AA100,$I100-SUM($L100:AA100))) -> 0 | AC100: =IF($I100 >0, MIN(AB100,$I100-SUM($L100:AB100)), MAX(AB100,$I100-SUM($L100:AB100))) -> 0 | AD100: =IF($I100 >0, MIN(AC100,$I100-SUM($L100:AC100)), MAX(AC100,$I100-SUM($L100:AC100))) -> 0 | AE100: =IF($I100 >0, MIN(AD100,$I100-SUM($L100:AD100)), MAX(AD100,$I100-SUM($L100:AD100))) -> 0 | AF100: =IF($I100 >0, MIN(AE100,$I100-SUM($L100:AE100)), MAX(AE100,$I100-SUM($L100:AE100))) -> 0 | AG100: =IF($I100 >0, MIN(AF100,$I100-SUM($L100:AF100)), MAX(AF100,$I100-SUM($L100:AF100))) -> 0 | AH100: =IF($I100 >0, MIN(AG100,$I100-SUM($L100:AG100)), MAX(AG100,$I100-SUM($L100:AG100))) -> 0 | AI100: =IF($I100 >0, MIN(AH100,$I100-SUM($L100:AH100)), MAX(AH100,$I100-SUM($L100:AH100))) -> 0 | AJ100: =IF($I100 >0, MIN(AI100,$I100-SUM($L100:AI100)), MAX(AI100,$I100-SUM($L100:AI100))) -> 0 | AK100: =IF($I100 >0, MIN(AJ100,$I100-SUM($L100:AJ100)), MAX(AJ100,$I100-SUM($L100:AJ100))) -> 0 | AL100: =IF($I100 >0, MIN(AK100,$I100-SUM($L100:AK100)), MAX(AK100,$I100-SUM($L100:AK100))) -> 0 | AM100: =IF($I100 >0, MIN(AL100,$I100-SUM($L100:AL100)), MAX(AL100,$I100-SUM($L100:AL100))) -> 0 | AN100: =IF($I100 >0, MIN(AM100,$I100-SUM($L100:AM100)), MAX(AM100,$I100-SUM($L100:AM100))) -> 0 | AO100: =IF($I100 >0, MIN(AN100,$I100-SUM($L100:AN100)), MAX(AN100,$I100-SUM($L100:AN100))) -> 0 | AP100: =IF($I100 >0, MIN(AO100,$I100-SUM($L100:AO100)), MAX(AO100,$I100-SUM($L100:AO100))) -> 0 | AQ100: =IF($I100 >0, MIN(AP100,$I100-SUM($L100:AP100)), MAX(AP100,$I100-SUM($L100:AP100))) -> 0 | AR100: =IF($I100 >0, MIN(AQ100,$I100-SUM($L100:AQ100)), MAX(AQ100,$I100-SUM($L100:AQ100))) -> 0 | AS100: =IF($I100 >0, MIN(AR100,$I100-SUM($L100:AR100)), MAX(AR100,$I100-SUM($L100:AR100))) -> 0 | AT100: =IF($I100 >0, MIN(AS100,$I100-SUM($L100:AS100)), MAX(AS100,$I100-SUM($L100:AS100))) -> 0 | AV100: =$E100 < $I$39 -> TRUE
E101: 1993-03-31 | G101: £m 18/19 prices | I101: 0 | J101: > | N101: =$I101/M$92 -> 0 | O101: =IF($I101 >0, MIN(N101,$I101-SUM($L101:N101)), MAX(N101,$I101-SUM($L101:N101))) -> 0 | P101: =IF($I101 >0, MIN(O101,$I101-SUM($L101:O101)), MAX(O101,$I101-SUM($L101:O101))) -> 0 | Q101: =IF($I101 >0, MIN(P101,$I101-SUM($L101:P101)), MAX(P101,$I101-SUM($L101:P101))) -> 0 | R101: =IF($I101 >0, MIN(Q101,$I101-SUM($L101:Q101)), MAX(Q101,$I101-SUM($L101:Q101))) -> 0 | S101: =IF($I101 >0, MIN(R101,$I101-SUM($L101:R101)), MAX(R101,$I101-SUM($L101:R101))) -> 0 | T101: =IF($I101 >0, MIN(S101,$I101-SUM($L101:S101)), MAX(S101,$I101-SUM($L101:S101))) -> 0 | U101: =IF($I101 >0, MIN(T101,$I101-SUM($L101:T101)), MAX(T101,$I101-SUM($L101:T101))) -> 0 | V101: =IF($I101 >0, MIN(U101,$I101-SUM($L101:U101)), MAX(U101,$I101-SUM($L101:U101))) -> 0 | W101: =IF($I101 >0, MIN(V101,$I101-SUM($L101:V101)), MAX(V101,$I101-SUM($L101:V101))) -> 0 | X101: =IF($I101 >0, MIN(W101,$I101-SUM($L101:W101)), MAX(W101,$I101-SUM($L101:W101))) -> 0 | Y101: =IF($I101 >0, MIN(X101,$I101-SUM($L101:X101)), MAX(X101,$I101-SUM($L101:X101))) -> 0 | Z101: =IF($I101 >0, MIN(Y101,$I101-SUM($L101:Y101)), MAX(Y101,$I101-SUM($L101:Y101))) -> 0 | AA101: =IF($I101 >0, MIN(Z101,$I101-SUM($L101:Z101)), MAX(Z101,$I101-SUM($L101:Z101))) -> 0 | AB101: =IF($I101 >0, MIN(AA101,$I101-SUM($L101:AA101)), MAX(AA101,$I101-SUM($L101:AA101))) -> 0 | AC101: =IF($I101 >0, MIN(AB101,$I101-SUM($L101:AB101)), MAX(AB101,$I101-SUM($L101:AB101))) -> 0 | AD101: =IF($I101 >0, MIN(AC101,$I101-SUM($L101:AC101)), MAX(AC101,$I101-SUM($L101:AC101))) -> 0 | AE101: =IF($I101 >0, MIN(AD101,$I101-SUM($L101:AD101)), MAX(AD101,$I101-SUM($L101:AD101))) -> 0 | AF101: =IF($I101 >0, MIN(AE101,$I101-SUM($L101:AE101)), MAX(AE101,$I101-SUM($L101:AE101))) -> 0 | AG101: =IF($I101 >0, MIN(AF101,$I101-SUM($L101:AF101)), MAX(AF101,$I101-SUM($L101:AF101))) -> 0 | AH101: =IF($I101 >0, MIN(AG101,$I101-SUM($L101:AG101)), MAX(AG101,$I101-SUM($L101:AG101))) -> 0 | AI101: =IF($I101 >0, MIN(AH101,$I101-SUM($L101:AH101)), MAX(AH101,$I101-SUM($L101:AH101))) -> 0 | AJ101: =IF($I101 >0, MIN(AI101,$I101-SUM($L101:AI101)), MAX(AI101,$I101-SUM($L101:AI101))) -> 0 | AK101: =IF($I101 >0, MIN(AJ101,$I101-SUM($L101:AJ101)), MAX(AJ101,$I101-SUM($L101:AJ101))) -> 0 | AL101: =IF($I101 >0, MIN(AK101,$I101-SUM($L101:AK101)), MAX(AK101,$I101-SUM($L101:AK101))) -> 0 | AM101: =IF($I101 >0, MIN(AL101,$I101-SUM($L101:AL101)), MAX(AL101,$I101-SUM($L101:AL101))) -> 0 | AN101: =IF($I101 >0, MIN(AM101,$I101-SUM($L101:AM101)), MAX(AM101,$I101-SUM($L101:AM101))) -> 0 | AO101: =IF($I101 >0, MIN(AN101,$I101-SUM($L101:AN101)), MAX(AN101,$I101-SUM($L101:AN101))) -> 0 | AP101: =IF($I101 >0, MIN(AO101,$I101-SUM($L101:AO101)), MAX(AO101,$I101-SUM($L101:AO101))) -> 0 | AQ101: =IF($I101 >0, MIN(AP101,$I101-SUM($L101:AP101)), MAX(AP101,$I101-SUM($L101:AP101))) -> 0 | AR101: =IF($I101 >0, MIN(AQ101,$I101-SUM($L101:AQ101)), MAX(AQ101,$I101-SUM($L101:AQ101))) -> 0 | AS101: =IF($I101 >0, MIN(AR101,$I101-SUM($L101:AR101)), MAX(AR101,$I101-SUM($L101:AR101))) -> 0 | AT101: =IF($I101 >0, MIN(AS101,$I101-SUM($L101:AS101)), MAX(AS101,$I101-SUM($L101:AS101))) -> 0 | AV101: TRUE
E102: 1994-03-31 | G102: £m 18/19 prices | I102: 0 | J102: > | O102: =$I102/N$92 -> 0 | P102: =IF($I102 >0, MIN(O102,$I102-SUM($L102:O102)), MAX(O102,$I102-SUM($L102:O102))) -> 0 | Q102: =IF($I102 >0, MIN(P102,$I102-SUM($L102:P102)), MAX(P102,$I102-SUM($L102:P102))) -> 0 | R102: =IF($I102 >0, MIN(Q102,$I102-SUM($L102:Q102)), MAX(Q102,$I102-SUM($L102:Q102))) -> 0 | S102: =IF($I102 >0, MIN(R102,$I102-SUM($L102:R102)), MAX(R102,$I102-SUM($L102:R102))) -> 0 | T102: =IF($I102 >0, MIN(S102,$I102-SUM($L102:S102)), MAX(S102,$I102-SUM($L102:S102))) -> 0 | U102: =IF($I102 >0, MIN(T102,$I102-SUM($L102:T102)), MAX(T102,$I102-SUM($L102:T102))) -> 0 | V102: =IF($I102 >0, MIN(U102,$I102-SUM($L102:U102)), MAX(U102,$I102-SUM($L102:U102))) -> 0 | W102: =IF($I102 >0, MIN(V102,$I102-SUM($L102:V102)), MAX(V102,$I102-SUM($L102:V102))) -> 0 | X102: =IF($I102 >0, MIN(W102,$I102-SUM($L102:W102)), MAX(W102,$I102-SUM($L102:W102))) -> 0 | Y102: =IF($I102 >0, MIN(X102,$I102-SUM($L102:X102)), MAX(X102,$I102-SUM($L102:X102))) -> 0 | Z102: =IF($I102 >0, MIN(Y102,$I102-SUM($L102:Y102)), MAX(Y102,$I102-SUM($L102:Y102))) -> 0 | AA102: =IF($I102 >0, MIN(Z102,$I102-SUM($L102:Z102)), MAX(Z102,$I102-SUM($L102:Z102))) -> 0 | AB102: =IF($I102 >0, MIN(AA102,$I102-SUM($L102:AA102)), MAX(AA102,$I102-SUM($L102:AA102))) -> 0 | AC102: =IF($I102 >0, MIN(AB102,$I102-SUM($L102:AB102)), MAX(AB102,$I102-SUM($L102:AB102))) -> 0 | AD102: =IF($I102 >0, MIN(AC102,$I102-SUM($L102:AC102)), MAX(AC102,$I102-SUM($L102:AC102))) -> 0 | AE102: =IF($I102 >0, MIN(AD102,$I102-SUM($L102:AD102)), MAX(AD102,$I102-SUM($L102:AD102))) -> 0 | AF102: =IF($I102 >0, MIN(AE102,$I102-SUM($L102:AE102)), MAX(AE102,$I102-SUM($L102:AE102))) -> 0 | AG102: =IF($I102 >0, MIN(AF102,$I102-SUM($L102:AF102)), MAX(AF102,$I102-SUM($L102:AF102))) -> 0 | AH102: =IF($I102 >0, MIN(AG102,$I102-SUM($L102:AG102)), MAX(AG102,$I102-SUM($L102:AG102))) -> 0 | AI102: =IF($I102 >0, MIN(AH102,$I102-SUM($L102:AH102)), MAX(AH102,$I102-SUM($L102:AH102))) -> 0 | AJ102: =IF($I102 >0, MIN(AI102,$I102-SUM($L102:AI102)), MAX(AI102,$I102-SUM($L102:AI102))) -> 0 | AK102: =IF($I102 >0, MIN(AJ102,$I102-SUM($L102:AJ102)), MAX(AJ102,$I102-SUM($L102:AJ102))) -> 0 | AL102: =IF($I102 >0, MIN(AK102,$I102-SUM($L102:AK102)), MAX(AK102,$I102-SUM($L102:AK102))) -> 0 | AM102: =IF($I102 >0, MIN(AL102,$I102-SUM($L102:AL102)), MAX(AL102,$I102-SUM($L102:AL102))) -> 0 | AN102: =IF($I102 >0, MIN(AM102,$I102-SUM($L102:AM102)), MAX(AM102,$I102-SUM($L102:AM102))) -> 0 | AO102: =IF($I102 >0, MIN(AN102,$I102-SUM($L102:AN102)), MAX(AN102,$I102-SUM($L102:AN102))) -> 0 | AP102: =IF($I102 >0, MIN(AO102,$I102-SUM($L102:AO102)), MAX(AO102,$I102-SUM($L102:AO102))) -> 0 | AQ102: =IF($I102 >0, MIN(AP102,$I102-SUM($L102:AP102)), MAX(AP102,$I102-SUM($L102:AP102))) -> 0 | AR102: =IF($I102 >0, MIN(AQ102,$I102-SUM($L102:AQ102)), MAX(AQ102,$I102-SUM($L102:AQ102))) -> 0 | AS102: =IF($I102 >0, MIN(AR102,$I102-SUM($L102:AR102)), MAX(AR102,$I102-SUM($L102:AR102))) -> 0 | AT102: =IF($I102 >0, MIN(AS102,$I102-SUM($L102:AS102)), MAX(AS102,$I102-SUM($L102:AS102))) -> 0 | AV102: TRUE
E103: 1995-03-31 | G103: £m 18/19 prices | I103: 0 | J103: > | P103: =$I103/O$92 -> 0 | Q103: =IF($I103 >0, MIN(P103,$I103-SUM($L103:P103)), MAX(P103,$I103-SUM($L103:P103))) -> 0 | R103: =IF($I103 >0, MIN(Q103,$I103-SUM($L103:Q103)), MAX(Q103,$I103-SUM($L103:Q103))) -> 0 | S103: =IF($I103 >0, MIN(R103,$I103-SUM($L103:R103)), MAX(R103,$I103-SUM($L103:R103))) -> 0 | T103: =IF($I103 >0, MIN(S103,$I103-SUM($L103:S103)), MAX(S103,$I103-SUM($L103:S103))) -> 0 | U103: =IF($I103 >0, MIN(T103,$I103-SUM($L103:T103)), MAX(T103,$I103-SUM($L103:T103))) -> 0 | V103: =IF($I103 >0, MIN(U103,$I103-SUM($L103:U103)), MAX(U103,$I103-SUM($L103:U103))) -> 0 | W103: =IF($I103 >0, MIN(V103,$I103-SUM($L103:V103)), MAX(V103,$I103-SUM($L103:V103))) -> 0 | X103: =IF($I103 >0, MIN(W103,$I103-SUM($L103:W103)), MAX(W103,$I103-SUM($L103:W103))) -> 0 | Y103: =IF($I103 >0, MIN(X103,$I103-SUM($L103:X103)), MAX(X103,$I103-SUM($L103:X103))) -> 0 | Z103: =IF($I103 >0, MIN(Y103,$I103-SUM($L103:Y103)), MAX(Y103,$I103-SUM($L103:Y103))) -> 0 | AA103: =IF($I103 >0, MIN(Z103,$I103-SUM($L103:Z103)), MAX(Z103,$I103-SUM($L103:Z103))) -> 0 | AB103: =IF($I103 >0, MIN(AA103,$I103-SUM($L103:AA103)), MAX(AA103,$I103-SUM($L103:AA103))) -> 0 | AC103: =IF($I103 >0, MIN(AB103,$I103-SUM($L103:AB103)), MAX(AB103,$I103-SUM($L103:AB103))) -> 0 | AD103: =IF($I103 >0, MIN(AC103,$I103-SUM($L103:AC103)), MAX(AC103,$I103-SUM($L103:AC103))) -> 0 | AE103: =IF($I103 >0, MIN(AD103,$I103-SUM($L103:AD103)), MAX(AD103,$I103-SUM($L103:AD103))) -> 0 | AF103: =IF($I103 >0, MIN(AE103,$I103-SUM($L103:AE103)), MAX(AE103,$I103-SUM($L103:AE103))) -> 0 | AG103: =IF($I103 >0, MIN(AF103,$I103-SUM($L103:AF103)), MAX(AF103,$I103-SUM($L103:AF103))) -> 0 | AH103: =IF($I103 >0, MIN(AG103,$I103-SUM($L103:AG103)), MAX(AG103,$I103-SUM($L103:AG103))) -> 0 | AI103: =IF($I103 >0, MIN(AH103,$I103-SUM($L103:AH103)), MAX(AH103,$I103-SUM($L103:AH103))) -> 0 | AJ103: =IF($I103 >0, MIN(AI103,$I103-SUM($L103:AI103)), MAX(AI103,$I103-SUM($L103:AI103))) -> 0 | AK103: =IF($I103 >0, MIN(AJ103,$I103-SUM($L103:AJ103)), MAX(AJ103,$I103-SUM($L103:AJ103))) -> 0 | AL103: =IF($I103 >0, MIN(AK103,$I103-SUM($L103:AK103)), MAX(AK103,$I103-SUM($L103:AK103))) -> 0 | AM103: =IF($I103 >0, MIN(AL103,$I103-SUM($L103:AL103)), MAX(AL103,$I103-SUM($L103:AL103))) -> 0 | AN103: =IF($I103 >0, MIN(AM103,$I103-SUM($L103:AM103)), MAX(AM103,$I103-SUM($L103:AM103))) -> 0 | AO103: =IF($I103 >0, MIN(AN103,$I103-SUM($L103:AN103)), MAX(AN103,$I103-SUM($L103:AN103))) -> 0 | AP103: =IF($I103 >0, MIN(AO103,$I103-SUM($L103:AO103)), MAX(AO103,$I103-SUM($L103:AO103))) -> 0 | AQ103: =IF($I103 >0, MIN(AP103,$I103-SUM($L103:AP103)), MAX(AP103,$I103-SUM($L103:AP103))) -> 0 | AR103: =IF($I103 >0, MIN(AQ103,$I103-SUM($L103:AQ103)), MAX(AQ103,$I103-SUM($L103:AQ103))) -> 0 | AS103: =IF($I103 >0, MIN(AR103,$I103-SUM($L103:AR103)), MAX(AR103,$I103-SUM($L103:AR103))) -> 0 | AT103: =IF($I103 >0, MIN(AS103,$I103-SUM($L103:AS103)), MAX(AS103,$I103-SUM($L103:AS103))) -> 0 | AV103: TRUE
E104: 1996-03-31 | G104: £m 18/19 prices | I104: 0 | J104: > | Q104: =$I104/P$92 -> 0 | R104: =IF($I104 >0, MIN(Q104,$I104-SUM($L104:Q104)), MAX(Q104,$I104-SUM($L104:Q104))) -> 0 | S104: =IF($I104 >0, MIN(R104,$I104-SUM($L104:R104)), MAX(R104,$I104-SUM($L104:R104))) -> 0 | T104: =IF($I104 >0, MIN(S104,$I104-SUM($L104:S104)), MAX(S104,$I104-SUM($L104:S104))) -> 0 | U104: =IF($I104 >0, MIN(T104,$I104-SUM($L104:T104)), MAX(T104,$I104-SUM($L104:T104))) -> 0 | V104: =IF($I104 >0, MIN(U104,$I104-SUM($L104:U104)), MAX(U104,$I104-SUM($L104:U104))) -> 0 | W104: =IF($I104 >0, MIN(V104,$I104-SUM($L104:V104)), MAX(V104,$I104-SUM($L104:V104))) -> 0 | X104: =IF($I104 >0, MIN(W104,$I104-SUM($L104:W104)), MAX(W104,$I104-SUM($L104:W104))) -> 0 | Y104: =IF($I104 >0, MIN(X104,$I104-SUM($L104:X104)), MAX(X104,$I104-SUM($L104:X104))) -> 0 | Z104: =IF($I104 >0, MIN(Y104,$I104-SUM($L104:Y104)), MAX(Y104,$I104-SUM($L104:Y104))) -> 0 | AA104: =IF($I104 >0, MIN(Z104,$I104-SUM($L104:Z104)), MAX(Z104,$I104-SUM($L104:Z104))) -> 0 | AB104: =IF($I104 >0, MIN(AA104,$I104-SUM($L104:AA104)), MAX(AA104,$I104-SUM($L104:AA104))) -> 0 | AC104: =IF($I104 >0, MIN(AB104,$I104-SUM($L104:AB104)), MAX(AB104,$I104-SUM($L104:AB104))) -> 0 | AD104: =IF($I104 >0, MIN(AC104,$I104-SUM($L104:AC104)), MAX(AC104,$I104-SUM($L104:AC104))) -> 0 | AE104: =IF($I104 >0, MIN(AD104,$I104-SUM($L104:AD104)), MAX(AD104,$I104-SUM($L104:AD104))) -> 0 | AF104: =IF($I104 >0, MIN(AE104,$I104-SUM($L104:AE104)), MAX(AE104,$I104-SUM($L104:AE104))) -> 0 | AG104: =IF($I104 >0, MIN(AF104,$I104-SUM($L104:AF104)), MAX(AF104,$I104-SUM($L104:AF104))) -> 0 | AH104: =IF($I104 >0, MIN(AG104,$I104-SUM($L104:AG104)), MAX(AG104,$I104-SUM($L104:AG104))) -> 0 | AI104: =IF($I104 >0, MIN(AH104,$I104-SUM($L104:AH104)), MAX(AH104,$I104-SUM($L104:AH104))) -> 0 | AJ104: =IF($I104 >0, MIN(AI104,$I104-SUM($L104:AI104)), MAX(AI104,$I104-SUM($L104:AI104))) -> 0 | AK104: =IF($I104 >0, MIN(AJ104,$I104-SUM($L104:AJ104)), MAX(AJ104,$I104-SUM($L104:AJ104))) -> 0 | AL104: =IF($I104 >0, MIN(AK104,$I104-SUM($L104:AK104)), MAX(AK104,$I104-SUM($L104:AK104))) -> 0 | AM104: =IF($I104 >0, MIN(AL104,$I104-SUM($L104:AL104)), MAX(AL104,$I104-SUM($L104:AL104))) -> 0 | AN104: =IF($I104 >0, MIN(AM104,$I104-SUM($L104:AM104)), MAX(AM104,$I104-SUM($L104:AM104))) -> 0 | AO104: =IF($I104 >0, MIN(AN104,$I104-SUM($L104:AN104)), MAX(AN104,$I104-SUM($L104:AN104))) -> 0 | AP104: =IF($I104 >0, MIN(AO104,$I104-SUM($L104:AO104)), MAX(AO104,$I104-SUM($L104:AO104))) -> 0 | AQ104: =IF($I104 >0, MIN(AP104,$I104-SUM($L104:AP104)), MAX(AP104,$I104-SUM($L104:AP104))) -> 0 | AR104: =IF($I104 >0, MIN(AQ104,$I104-SUM($L104:AQ104)), MAX(AQ104,$I104-SUM($L104:AQ104))) -> 0 | AS104: =IF($I104 >0, MIN(AR104,$I104-SUM($L104:AR104)), MAX(AR104,$I104-SUM($L104:AR104))) -> 0 | AT104: =IF($I104 >0, MIN(AS104,$I104-SUM($L104:AS104)), MAX(AS104,$I104-SUM($L104:AS104))) -> 0 | AV104: TRUE
E105: 1997-03-31 | G105: £m 18/19 prices | I105: 0 | J105: > | R105: =$I105/Q$92 -> 0 | S105: =IF($I105 >0, MIN(R105,$I105-SUM($L105:R105)), MAX(R105,$I105-SUM($L105:R105))) -> 0 | T105: =IF($I105 >0, MIN(S105,$I105-SUM($L105:S105)), MAX(S105,$I105-SUM($L105:S105))) -> 0 | U105: =IF($I105 >0, MIN(T105,$I105-SUM($L105:T105)), MAX(T105,$I105-SUM($L105:T105))) -> 0 | V105: =IF($I105 >0, MIN(U105,$I105-SUM($L105:U105)), MAX(U105,$I105-SUM($L105:U105))) -> 0 | W105: =IF($I105 >0, MIN(V105,$I105-SUM($L105:V105)), MAX(V105,$I105-SUM($L105:V105))) -> 0 | X105: =IF($I105 >0, MIN(W105,$I105-SUM($L105:W105)), MAX(W105,$I105-SUM($L105:W105))) -> 0 | Y105: =IF($I105 >0, MIN(X105,$I105-SUM($L105:X105)), MAX(X105,$I105-SUM($L105:X105))) -> 0 | Z105: =IF($I105 >0, MIN(Y105,$I105-SUM($L105:Y105)), MAX(Y105,$I105-SUM($L105:Y105))) -> 0 | AA105: =IF($I105 >0, MIN(Z105,$I105-SUM($L105:Z105)), MAX(Z105,$I105-SUM($L105:Z105))) -> 0 | AB105: =IF($I105 >0, MIN(AA105,$I105-SUM($L105:AA105)), MAX(AA105,$I105-SUM($L105:AA105))) -> 0 | AC105: =IF($I105 >0, MIN(AB105,$I105-SUM($L105:AB105)), MAX(AB105,$I105-SUM($L105:AB105))) -> 0 | AD105: =IF($I105 >0, MIN(AC105,$I105-SUM($L105:AC105)), MAX(AC105,$I105-SUM($L105:AC105))) -> 0 | AE105: =IF($I105 >0, MIN(AD105,$I105-SUM($L105:AD105)), MAX(AD105,$I105-SUM($L105:AD105))) -> 0 | AF105: =IF($I105 >0, MIN(AE105,$I105-SUM($L105:AE105)), MAX(AE105,$I105-SUM($L105:AE105))) -> 0 | AG105: =IF($I105 >0, MIN(AF105,$I105-SUM($L105:AF105)), MAX(AF105,$I105-SUM($L105:AF105))) -> 0 | AH105: =IF($I105 >0, MIN(AG105,$I105-SUM($L105:AG105)), MAX(AG105,$I105-SUM($L105:AG105))) -> 0 | AI105: =IF($I105 >0, MIN(AH105,$I105-SUM($L105:AH105)), MAX(AH105,$I105-SUM($L105:AH105))) -> 0 | AJ105: =IF($I105 >0, MIN(AI105,$I105-SUM($L105:AI105)), MAX(AI105,$I105-SUM($L105:AI105))) -> 0 | AK105: =IF($I105 >0, MIN(AJ105,$I105-SUM($L105:AJ105)), MAX(AJ105,$I105-SUM($L105:AJ105))) -> 0 | AL105: =IF($I105 >0, MIN(AK105,$I105-SUM($L105:AK105)), MAX(AK105,$I105-SUM($L105:AK105))) -> 0 | AM105: =IF($I105 >0, MIN(AL105,$I105-SUM($L105:AL105)), MAX(AL105,$I105-SUM($L105:AL105))) -> 0 | AN105: =IF($I105 >0, MIN(AM105,$I105-SUM($L105:AM105)), MAX(AM105,$I105-SUM($L105:AM105))) -> 0 | AO105: =IF($I105 >0, MIN(AN105,$I105-SUM($L105:AN105)), MAX(AN105,$I105-SUM($L105:AN105))) -> 0 | AP105: =IF($I105 >0, MIN(AO105,$I105-SUM($L105:AO105)), MAX(AO105,$I105-SUM($L105:AO105))) -> 0 | AQ105: =IF($I105 >0, MIN(AP105,$I105-SUM($L105:AP105)), MAX(AP105,$I105-SUM($L105:AP105))) -> 0 | AR105: =IF($I105 >0, MIN(AQ105,$I105-SUM($L105:AQ105)), MAX(AQ105,$I105-SUM($L105:AQ105))) -> 0 | AS105: =IF($I105 >0, MIN(AR105,$I105-SUM($L105:AR105)), MAX(AR105,$I105-SUM($L105:AR105))) -> 0 | AT105: =IF($I105 >0, MIN(AS105,$I105-SUM($L105:AS105)), MAX(AS105,$I105-SUM($L105:AS105))) -> 0 | AV105: TRUE
E106: 1998-03-31 | G106: £m 18/19 prices | I106: 0 | J106: > | S106: =$I106/R$92 -> 0 | T106: =IF($I106 >0, MIN(S106,$I106-SUM($L106:S106)), MAX(S106,$I106-SUM($L106:S106))) -> 0 | U106: =IF($I106 >0, MIN(T106,$I106-SUM($L106:T106)), MAX(T106,$I106-SUM($L106:T106))) -> 0 | V106: =IF($I106 >0, MIN(U106,$I106-SUM($L106:U106)), MAX(U106,$I106-SUM($L106:U106))) -> 0 | W106: =IF($I106 >0, MIN(V106,$I106-SUM($L106:V106)), MAX(V106,$I106-SUM($L106:V106))) -> 0 | X106: =IF($I106 >0, MIN(W106,$I106-SUM($L106:W106)), MAX(W106,$I106-SUM($L106:W106))) -> 0 | Y106: =IF($I106 >0, MIN(X106,$I106-SUM($L106:X106)), MAX(X106,$I106-SUM($L106:X106))) -> 0 | Z106: =IF($I106 >0, MIN(Y106,$I106-SUM($L106:Y106)), MAX(Y106,$I106-SUM($L106:Y106))) -> 0 | AA106: =IF($I106 >0, MIN(Z106,$I106-SUM($L106:Z106)), MAX(Z106,$I106-SUM($L106:Z106))) -> 0 | AB106: =IF($I106 >0, MIN(AA106,$I106-SUM($L106:AA106)), MAX(AA106,$I106-SUM($L106:AA106))) -> 0 | AC106: =IF($I106 >0, MIN(AB106,$I106-SUM($L106:AB106)), MAX(AB106,$I106-SUM($L106:AB106))) -> 0 | AD106: =IF($I106 >0, MIN(AC106,$I106-SUM($L106:AC106)), MAX(AC106,$I106-SUM($L106:AC106))) -> 0 | AE106: =IF($I106 >0, MIN(AD106,$I106-SUM($L106:AD106)), MAX(AD106,$I106-SUM($L106:AD106))) -> 0 | AF106: =IF($I106 >0, MIN(AE106,$I106-SUM($L106:AE106)), MAX(AE106,$I106-SUM($L106:AE106))) -> 0 | AG106: =IF($I106 >0, MIN(AF106,$I106-SUM($L106:AF106)), MAX(AF106,$I106-SUM($L106:AF106))) -> 0 | AH106: =IF($I106 >0, MIN(AG106,$I106-SUM($L106:AG106)), MAX(AG106,$I106-SUM($L106:AG106))) -> 0 | AI106: =IF($I106 >0, MIN(AH106,$I106-SUM($L106:AH106)), MAX(AH106,$I106-SUM($L106:AH106))) -> 0 | AJ106: =IF($I106 >0, MIN(AI106,$I106-SUM($L106:AI106)), MAX(AI106,$I106-SUM($L106:AI106))) -> 0 | AK106: =IF($I106 >0, MIN(AJ106,$I106-SUM($L106:AJ106)), MAX(AJ106,$I106-SUM($L106:AJ106))) -> 0 | AL106: =IF($I106 >0, MIN(AK106,$I106-SUM($L106:AK106)), MAX(AK106,$I106-SUM($L106:AK106))) -> 0 | AM106: =IF($I106 >0, MIN(AL106,$I106-SUM($L106:AL106)), MAX(AL106,$I106-SUM($L106:AL106))) -> 0 | AN106: =IF($I106 >0, MIN(AM106,$I106-SUM($L106:AM106)), MAX(AM106,$I106-SUM($L106:AM106))) -> 0 | AO106: =IF($I106 >0, MIN(AN106,$I106-SUM($L106:AN106)), MAX(AN106,$I106-SUM($L106:AN106))) -> 0 | AP106: =IF($I106 >0, MIN(AO106,$I106-SUM($L106:AO106)), MAX(AO106,$I106-SUM($L106:AO106))) -> 0 | AQ106: =IF($I106 >0, MIN(AP106,$I106-SUM($L106:AP106)), MAX(AP106,$I106-SUM($L106:AP106))) -> 0 | AR106: =IF($I106 >0, MIN(AQ106,$I106-SUM($L106:AQ106)), MAX(AQ106,$I106-SUM($L106:AQ106))) -> 0 | AS106: =IF($I106 >0, MIN(AR106,$I106-SUM($L106:AR106)), MAX(AR106,$I106-SUM($L106:AR106))) -> 0 | AT106: =IF($I106 >0, MIN(AS106,$I106-SUM($L106:AS106)), MAX(AS106,$I106-SUM($L106:AS106))) -> 0 | AV106: TRUE
E107: 1999-03-31 | G107: £m 18/19 prices | I107: 0 | J107: > | T107: =$I107/S$92 -> 0 | U107: =IF($I107 >0, MIN(T107,$I107-SUM($L107:T107)), MAX(T107,$I107-SUM($L107:T107))) -> 0 | V107: =IF($I107 >0, MIN(U107,$I107-SUM($L107:U107)), MAX(U107,$I107-SUM($L107:U107))) -> 0 | W107: =IF($I107 >0, MIN(V107,$I107-SUM($L107:V107)), MAX(V107,$I107-SUM($L107:V107))) -> 0 | X107: =IF($I107 >0, MIN(W107,$I107-SUM($L107:W107)), MAX(W107,$I107-SUM($L107:W107))) -> 0 | Y107: =IF($I107 >0, MIN(X107,$I107-SUM($L107:X107)), MAX(X107,$I107-SUM($L107:X107))) -> 0 | Z107: =IF($I107 >0, MIN(Y107,$I107-SUM($L107:Y107)), MAX(Y107,$I107-SUM($L107:Y107))) -> 0 | AA107: =IF($I107 >0, MIN(Z107,$I107-SUM($L107:Z107)), MAX(Z107,$I107-SUM($L107:Z107))) -> 0 | AB107: =IF($I107 >0, MIN(AA107,$I107-SUM($L107:AA107)), MAX(AA107,$I107-SUM($L107:AA107))) -> 0 | AC107: =IF($I107 >0, MIN(AB107,$I107-SUM($L107:AB107)), MAX(AB107,$I107-SUM($L107:AB107))) -> 0 | AD107: =IF($I107 >0, MIN(AC107,$I107-SUM($L107:AC107)), MAX(AC107,$I107-SUM($L107:AC107))) -> 0 | AE107: =IF($I107 >0, MIN(AD107,$I107-SUM($L107:AD107)), MAX(AD107,$I107-SUM($L107:AD107))) -> 0 | AF107: =IF($I107 >0, MIN(AE107,$I107-SUM($L107:AE107)), MAX(AE107,$I107-SUM($L107:AE107))) -> 0 | AG107: =IF($I107 >0, MIN(AF107,$I107-SUM($L107:AF107)), MAX(AF107,$I107-SUM($L107:AF107))) -> 0 | AH107: =IF($I107 >0, MIN(AG107,$I107-SUM($L107:AG107)), MAX(AG107,$I107-SUM($L107:AG107))) -> 0 | AI107: =IF($I107 >0, MIN(AH107,$I107-SUM($L107:AH107)), MAX(AH107,$I107-SUM($L107:AH107))) -> 0 | AJ107: =IF($I107 >0, MIN(AI107,$I107-SUM($L107:AI107)), MAX(AI107,$I107-SUM($L107:AI107))) -> 0 | AK107: =IF($I107 >0, MIN(AJ107,$I107-SUM($L107:AJ107)), MAX(AJ107,$I107-SUM($L107:AJ107))) -> 0 | AL107: =IF($I107 >0, MIN(AK107,$I107-SUM($L107:AK107)), MAX(AK107,$I107-SUM($L107:AK107))) -> 0 | AM107: =IF($I107 >0, MIN(AL107,$I107-SUM($L107:AL107)), MAX(AL107,$I107-SUM($L107:AL107))) -> 0 | AN107: =IF($I107 >0, MIN(AM107,$I107-SUM($L107:AM107)), MAX(AM107,$I107-SUM($L107:AM107))) -> 0 | AO107: =IF($I107 >0, MIN(AN107,$I107-SUM($L107:AN107)), MAX(AN107,$I107-SUM($L107:AN107))) -> 0 | AP107: =IF($I107 >0, MIN(AO107,$I107-SUM($L107:AO107)), MAX(AO107,$I107-SUM($L107:AO107))) -> 0 | AQ107: =IF($I107 >0, MIN(AP107,$I107-SUM($L107:AP107)), MAX(AP107,$I107-SUM($L107:AP107))) -> 0 | AR107: =IF($I107 >0, MIN(AQ107,$I107-SUM($L107:AQ107)), MAX(AQ107,$I107-SUM($L107:AQ107))) -> 0 | AS107: =IF($I107 >0, MIN(AR107,$I107-SUM($L107:AR107)), MAX(AR107,$I107-SUM($L107:AR107))) -> 0 | AT107: =IF($I107 >0, MIN(AS107,$I107-SUM($L107:AS107)), MAX(AS107,$I107-SUM($L107:AS107))) -> 0 | AV107: TRUE
E108: 2000-03-31 | G108: £m 18/19 prices | I108: 0 | J108: > | U108: =$I108/T$92 -> 0 | V108: =IF($I108 >0, MIN(U108,$I108-SUM($L108:U108)), MAX(U108,$I108-SUM($L108:U108))) -> 0 | W108: =IF($I108 >0, MIN(V108,$I108-SUM($L108:V108)), MAX(V108,$I108-SUM($L108:V108))) -> 0 | X108: =IF($I108 >0, MIN(W108,$I108-SUM($L108:W108)), MAX(W108,$I108-SUM($L108:W108))) -> 0 | Y108: =IF($I108 >0, MIN(X108,$I108-SUM($L108:X108)), MAX(X108,$I108-SUM($L108:X108))) -> 0 | Z108: =IF($I108 >0, MIN(Y108,$I108-SUM($L108:Y108)), MAX(Y108,$I108-SUM($L108:Y108))) -> 0 | AA108: =IF($I108 >0, MIN(Z108,$I108-SUM($L108:Z108)), MAX(Z108,$I108-SUM($L108:Z108))) -> 0 | AB108: =IF($I108 >0, MIN(AA108,$I108-SUM($L108:AA108)), MAX(AA108,$I108-SUM($L108:AA108))) -> 0 | AC108: =IF($I108 >0, MIN(AB108,$I108-SUM($L108:AB108)), MAX(AB108,$I108-SUM($L108:AB108))) -> 0 | AD108: =IF($I108 >0, MIN(AC108,$I108-SUM($L108:AC108)), MAX(AC108,$I108-SUM($L108:AC108))) -> 0 | AE108: =IF($I108 >0, MIN(AD108,$I108-SUM($L108:AD108)), MAX(AD108,$I108-SUM($L108:AD108))) -> 0 | AF108: =IF($I108 >0, MIN(AE108,$I108-SUM($L108:AE108)), MAX(AE108,$I108-SUM($L108:AE108))) -> 0 | AG108: =IF($I108 >0, MIN(AF108,$I108-SUM($L108:AF108)), MAX(AF108,$I108-SUM($L108:AF108))) -> 0 | AH108: =IF($I108 >0, MIN(AG108,$I108-SUM($L108:AG108)), MAX(AG108,$I108-SUM($L108:AG108))) -> 0 | AI108: =IF($I108 >0, MIN(AH108,$I108-SUM($L108:AH108)), MAX(AH108,$I108-SUM($L108:AH108))) -> 0 | AJ108: =IF($I108 >0, MIN(AI108,$I108-SUM($L108:AI108)), MAX(AI108,$I108-SUM($L108:AI108))) -> 0 | AK108: =IF($I108 >0, MIN(AJ108,$I108-SUM($L108:AJ108)), MAX(AJ108,$I108-SUM($L108:AJ108))) -> 0 | AL108: =IF($I108 >0, MIN(AK108,$I108-SUM($L108:AK108)), MAX(AK108,$I108-SUM($L108:AK108))) -> 0 | AM108: =IF($I108 >0, MIN(AL108,$I108-SUM($L108:AL108)), MAX(AL108,$I108-SUM($L108:AL108))) -> 0 | AN108: =IF($I108 >0, MIN(AM108,$I108-SUM($L108:AM108)), MAX(AM108,$I108-SUM($L108:AM108))) -> 0 | AO108: =IF($I108 >0, MIN(AN108,$I108-SUM($L108:AN108)), MAX(AN108,$I108-SUM($L108:AN108))) -> 0 | AP108: =IF($I108 >0, MIN(AO108,$I108-SUM($L108:AO108)), MAX(AO108,$I108-SUM($L108:AO108))) -> 0 | AQ108: =IF($I108 >0, MIN(AP108,$I108-SUM($L108:AP108)), MAX(AP108,$I108-SUM($L108:AP108))) -> 0 | AR108: =IF($I108 >0, MIN(AQ108,$I108-SUM($L108:AQ108)), MAX(AQ108,$I108-SUM($L108:AQ108))) -> 0 | AS108: =IF($I108 >0, MIN(AR108,$I108-SUM($L108:AR108)), MAX(AR108,$I108-SUM($L108:AR108))) -> 0 | AT108: =IF($I108 >0, MIN(AS108,$I108-SUM($L108:AS108)), MAX(AS108,$I108-SUM($L108:AS108))) -> 0 | AV108: TRUE
E109: 2001-03-31 | G109: £m 18/19 prices | I109: 0 | J109: > | V109: =$I109/U$92 -> 0 | W109: =IF($I109 >0, MIN(V109,$I109-SUM($L109:V109)), MAX(V109,$I109-SUM($L109:V109))) -> 0 | X109: =IF($I109 >0, MIN(W109,$I109-SUM($L109:W109)), MAX(W109,$I109-SUM($L109:W109))) -> 0 | Y109: =IF($I109 >0, MIN(X109,$I109-SUM($L109:X109)), MAX(X109,$I109-SUM($L109:X109))) -> 0 | Z109: =IF($I109 >0, MIN(Y109,$I109-SUM($L109:Y109)), MAX(Y109,$I109-SUM($L109:Y109))) -> 0 | AA109: =IF($I109 >0, MIN(Z109,$I109-SUM($L109:Z109)), MAX(Z109,$I109-SUM($L109:Z109))) -> 0 | AB109: =IF($I109 >0, MIN(AA109,$I109-SUM($L109:AA109)), MAX(AA109,$I109-SUM($L109:AA109))) -> 0 | AC109: =IF($I109 >0, MIN(AB109,$I109-SUM($L109:AB109)), MAX(AB109,$I109-SUM($L109:AB109))) -> 0 | AD109: =IF($I109 >0, MIN(AC109,$I109-SUM($L109:AC109)), MAX(AC109,$I109-SUM($L109:AC109))) -> 0 | AE109: =IF($I109 >0, MIN(AD109,$I109-SUM($L109:AD109)), MAX(AD109,$I109-SUM($L109:AD109))) -> 0 | AF109: =IF($I109 >0, MIN(AE109,$I109-SUM($L109:AE109)), MAX(AE109,$I109-SUM($L109:AE109))) -> 0 | AG109: =IF($I109 >0, MIN(AF109,$I109-SUM($L109:AF109)), MAX(AF109,$I109-SUM($L109:AF109))) -> 0 | AH109: =IF($I109 >0, MIN(AG109,$I109-SUM($L109:AG109)), MAX(AG109,$I109-SUM($L109:AG109))) -> 0 | AI109: =IF($I109 >0, MIN(AH109,$I109-SUM($L109:AH109)), MAX(AH109,$I109-SUM($L109:AH109))) -> 0 | AJ109: =IF($I109 >0, MIN(AI109,$I109-SUM($L109:AI109)), MAX(AI109,$I109-SUM($L109:AI109))) -> 0 | AK109: =IF($I109 >0, MIN(AJ109,$I109-SUM($L109:AJ109)), MAX(AJ109,$I109-SUM($L109:AJ109))) -> 0 | AL109: =IF($I109 >0, MIN(AK109,$I109-SUM($L109:AK109)), MAX(AK109,$I109-SUM($L109:AK109))) -> 0 | AM109: =IF($I109 >0, MIN(AL109,$I109-SUM($L109:AL109)), MAX(AL109,$I109-SUM($L109:AL109))) -> 0 | AN109: =IF($I109 >0, MIN(AM109,$I109-SUM($L109:AM109)), MAX(AM109,$I109-SUM($L109:AM109))) -> 0 | AO109: =IF($I109 >0, MIN(AN109,$I109-SUM($L109:AN109)), MAX(AN109,$I109-SUM($L109:AN109))) -> 0 | AP109: =IF($I109 >0, MIN(AO109,$I109-SUM($L109:AO109)), MAX(AO109,$I109-SUM($L109:AO109))) -> 0 | AQ109: =IF($I109 >0, MIN(AP109,$I109-SUM($L109:AP109)), MAX(AP109,$I109-SUM($L109:AP109))) -> 0 | AR109: =IF($I109 >0, MIN(AQ109,$I109-SUM($L109:AQ109)), MAX(AQ109,$I109-SUM($L109:AQ109))) -> 0 | AS109: =IF($I109 >0, MIN(AR109,$I109-SUM($L109:AR109)), MAX(AR109,$I109-SUM($L109:AR109))) -> 0 | AT109: =IF($I109 >0, MIN(AS109,$I109-SUM($L109:AS109)), MAX(AS109,$I109-SUM($L109:AS109))) -> 0 | AV109: TRUE
E110: 2002-03-31 | G110: £m 18/19 prices | I110: 0 | J110: > | W110: =$I110/V$92 -> 0 | X110: =IF($I110 >0, MIN(W110,$I110-SUM($L110:W110)), MAX(W110,$I110-SUM($L110:W110))) -> 0 | Y110: =IF($I110 >0, MIN(X110,$I110-SUM($L110:X110)), MAX(X110,$I110-SUM($L110:X110))) -> 0 | Z110: =IF($I110 >0, MIN(Y110,$I110-SUM($L110:Y110)), MAX(Y110,$I110-SUM($L110:Y110))) -> 0 | AA110: =IF($I110 >0, MIN(Z110,$I110-SUM($L110:Z110)), MAX(Z110,$I110-SUM($L110:Z110))) -> 0 | AB110: =IF($I110 >0, MIN(AA110,$I110-SUM($L110:AA110)), MAX(AA110,$I110-SUM($L110:AA110))) -> 0 | AC110: =IF($I110 >0, MIN(AB110,$I110-SUM($L110:AB110)), MAX(AB110,$I110-SUM($L110:AB110))) -> 0 | AD110: =IF($I110 >0, MIN(AC110,$I110-SUM($L110:AC110)), MAX(AC110,$I110-SUM($L110:AC110))) -> 0 | AE110: =IF($I110 >0, MIN(AD110,$I110-SUM($L110:AD110)), MAX(AD110,$I110-SUM($L110:AD110))) -> 0 | AF110: =IF($I110 >0, MIN(AE110,$I110-SUM($L110:AE110)), MAX(AE110,$I110-SUM($L110:AE110))) -> 0 | AG110: =IF($I110 >0, MIN(AF110,$I110-SUM($L110:AF110)), MAX(AF110,$I110-SUM($L110:AF110))) -> 0 | AH110: =IF($I110 >0, MIN(AG110,$I110-SUM($L110:AG110)), MAX(AG110,$I110-SUM($L110:AG110))) -> 0 | AI110: =IF($I110 >0, MIN(AH110,$I110-SUM($L110:AH110)), MAX(AH110,$I110-SUM($L110:AH110))) -> 0 | AJ110: =IF($I110 >0, MIN(AI110,$I110-SUM($L110:AI110)), MAX(AI110,$I110-SUM($L110:AI110))) -> 0 | AK110: =IF($I110 >0, MIN(AJ110,$I110-SUM($L110:AJ110)), MAX(AJ110,$I110-SUM($L110:AJ110))) -> 0 | AL110: =IF($I110 >0, MIN(AK110,$I110-SUM($L110:AK110)), MAX(AK110,$I110-SUM($L110:AK110))) -> 0 | AM110: =IF($I110 >0, MIN(AL110,$I110-SUM($L110:AL110)), MAX(AL110,$I110-SUM($L110:AL110))) -> 0 | AN110: =IF($I110 >0, MIN(AM110,$I110-SUM($L110:AM110)), MAX(AM110,$I110-SUM($L110:AM110))) -> 0 | AO110: =IF($I110 >0, MIN(AN110,$I110-SUM($L110:AN110)), MAX(AN110,$I110-SUM($L110:AN110))) -> 0 | AP110: =IF($I110 >0, MIN(AO110,$I110-SUM($L110:AO110)), MAX(AO110,$I110-SUM($L110:AO110))) -> 0 | AQ110: =IF($I110 >0, MIN(AP110,$I110-SUM($L110:AP110)), MAX(AP110,$I110-SUM($L110:AP110))) -> 0 | AR110: =IF($I110 >0, MIN(AQ110,$I110-SUM($L110:AQ110)), MAX(AQ110,$I110-SUM($L110:AQ110))) -> 0 | AS110: =IF($I110 >0, MIN(AR110,$I110-SUM($L110:AR110)), MAX(AR110,$I110-SUM($L110:AR110))) -> 0 | AT110: =IF($I110 >0, MIN(AS110,$I110-SUM($L110:AS110)), MAX(AS110,$I110-SUM($L110:AS110))) -> 0 | AV110: TRUE
E111: 2003-03-31 | G111: £m 18/19 prices | I111: 0 | J111: > | X111: =$I111/W$92 -> 0 | Y111: =IF($I111 >0, MIN(X111,$I111-SUM($L111:X111)), MAX(X111,$I111-SUM($L111:X111))) -> 0 | Z111: =IF($I111 >0, MIN(Y111,$I111-SUM($L111:Y111)), MAX(Y111,$I111-SUM($L111:Y111))) -> 0 | AA111: =IF($I111 >0, MIN(Z111,$I111-SUM($L111:Z111)), MAX(Z111,$I111-SUM($L111:Z111))) -> 0 | AB111: =IF($I111 >0, MIN(AA111,$I111-SUM($L111:AA111)), MAX(AA111,$I111-SUM($L111:AA111))) -> 0 | AC111: =IF($I111 >0, MIN(AB111,$I111-SUM($L111:AB111)), MAX(AB111,$I111-SUM($L111:AB111))) -> 0 | AD111: =IF($I111 >0, MIN(AC111,$I111-SUM($L111:AC111)), MAX(AC111,$I111-SUM($L111:AC111))) -> 0 | AE111: =IF($I111 >0, MIN(AD111,$I111-SUM($L111:AD111)), MAX(AD111,$I111-SUM($L111:AD111))) -> 0 | AF111: =IF($I111 >0, MIN(AE111,$I111-SUM($L111:AE111)), MAX(AE111,$I111-SUM($L111:AE111))) -> 0 | AG111: =IF($I111 >0, MIN(AF111,$I111-SUM($L111:AF111)), MAX(AF111,$I111-SUM($L111:AF111))) -> 0 | AH111: =IF($I111 >0, MIN(AG111,$I111-SUM($L111:AG111)), MAX(AG111,$I111-SUM($L111:AG111))) -> 0 | AI111: =IF($I111 >0, MIN(AH111,$I111-SUM($L111:AH111)), MAX(AH111,$I111-SUM($L111:AH111))) -> 0 | AJ111: =IF($I111 >0, MIN(AI111,$I111-SUM($L111:AI111)), MAX(AI111,$I111-SUM($L111:AI111))) -> 0 | AK111: =IF($I111 >0, MIN(AJ111,$I111-SUM($L111:AJ111)), MAX(AJ111,$I111-SUM($L111:AJ111))) -> 0 | AL111: =IF($I111 >0, MIN(AK111,$I111-SUM($L111:AK111)), MAX(AK111,$I111-SUM($L111:AK111))) -> 0 | AM111: =IF($I111 >0, MIN(AL111,$I111-SUM($L111:AL111)), MAX(AL111,$I111-SUM($L111:AL111))) -> 0 | AN111: =IF($I111 >0, MIN(AM111,$I111-SUM($L111:AM111)), MAX(AM111,$I111-SUM($L111:AM111))) -> 0 | AO111: =IF($I111 >0, MIN(AN111,$I111-SUM($L111:AN111)), MAX(AN111,$I111-SUM($L111:AN111))) -> 0 | AP111: =IF($I111 >0, MIN(AO111,$I111-SUM($L111:AO111)), MAX(AO111,$I111-SUM($L111:AO111))) -> 0 | AQ111: =IF($I111 >0, MIN(AP111,$I111-SUM($L111:AP111)), MAX(AP111,$I111-SUM($L111:AP111))) -> 0 | AR111: =IF($I111 >0, MIN(AQ111,$I111-SUM($L111:AQ111)), MAX(AQ111,$I111-SUM($L111:AQ111))) -> 0 | AS111: =IF($I111 >0, MIN(AR111,$I111-SUM($L111:AR111)), MAX(AR111,$I111-SUM($L111:AR111))) -> 0 | AT111: =IF($I111 >0, MIN(AS111,$I111-SUM($L111:AS111)), MAX(AS111,$I111-SUM($L111:AS111))) -> 0 | AV111: FALSE
E112: 2004-03-31 | G112: £m 18/19 prices | I112: 393.0474399 | J112: > | Y112: =$I112/X$92 -> 8.734387553 | Z112: =IF($I112 >0, MIN(Y112,$I112-SUM($L112:Y112)), MAX(Y112,$I112-SUM($L112:Y112))) -> 8.734387553 | AA112: =IF($I112 >0, MIN(Z112,$I112-SUM($L112:Z112)), MAX(Z112,$I112-SUM($L112:Z112))) -> 8.734387553 | AB112: =IF($I112 >0, MIN(AA112,$I112-SUM($L112:AA112)), MAX(AA112,$I112-SUM($L112:AA112))) -> 8.734387553 | AC112: =IF($I112 >0, MIN(AB112,$I112-SUM($L112:AB112)), MAX(AB112,$I112-SUM($L112:AB112))) -> 8.734387553 | AD112: =IF($I112 >0, MIN(AC112,$I112-SUM($L112:AC112)), MAX(AC112,$I112-SUM($L112:AC112))) -> 8.734387553 | AE112: =IF($I112 >0, MIN(AD112,$I112-SUM($L112:AD112)), MAX(AD112,$I112-SUM($L112:AD112))) -> 8.734387553 | AF112: =IF($I112 >0, MIN(AE112,$I112-SUM($L112:AE112)), MAX(AE112,$I112-SUM($L112:AE112))) -> 8.734387553 | AG112: =IF($I112 >0, MIN(AF112,$I112-SUM($L112:AF112)), MAX(AF112,$I112-SUM($L112:AF112))) -> 8.734387553 | AH112: =IF($I112 >0, MIN(AG112,$I112-SUM($L112:AG112)), MAX(AG112,$I112-SUM($L112:AG112))) -> 8.734387553 | AI112: =IF($I112 >0, MIN(AH112,$I112-SUM($L112:AH112)), MAX(AH112,$I112-SUM($L112:AH112))) -> 8.734387553 | AJ112: =IF($I112 >0, MIN(AI112,$I112-SUM($L112:AI112)), MAX(AI112,$I112-SUM($L112:AI112))) -> 8.734387553 | AK112: =IF($I112 >0, MIN(AJ112,$I112-SUM($L112:AJ112)), MAX(AJ112,$I112-SUM($L112:AJ112))) -> 8.734387553 | AL112: =IF($I112 >0, MIN(AK112,$I112-SUM($L112:AK112)), MAX(AK112,$I112-SUM($L112:AK112))) -> 8.734387553 | AM112: =IF($I112 >0, MIN(AL112,$I112-SUM($L112:AL112)), MAX(AL112,$I112-SUM($L112:AL112))) -> 8.734387553 | AN112: =IF($I112 >0, MIN(AM112,$I112-SUM($L112:AM112)), MAX(AM112,$I112-SUM($L112:AM112))) -> 8.734387553 | AO112: =IF($I112 >0, MIN(AN112,$I112-SUM($L112:AN112)), MAX(AN112,$I112-SUM($L112:AN112))) -> 8.734387553 | AP112: =IF($I112 >0, MIN(AO112,$I112-SUM($L112:AO112)), MAX(AO112,$I112-SUM($L112:AO112))) -> 8.734387553 | AQ112: =IF($I112 >0, MIN(AP112,$I112-SUM($L112:AP112)), MAX(AP112,$I112-SUM($L112:AP112))) -> 8.734387553 | AR112: =IF($I112 >0, MIN(AQ112,$I112-SUM($L112:AQ112)), MAX(AQ112,$I112-SUM($L112:AQ112))) -> 8.734387553 | AS112: =IF($I112 >0, MIN(AR112,$I112-SUM($L112:AR112)), MAX(AR112,$I112-SUM($L112:AR112))) -> 8.734387553 | AT112: =IF($I112 >0, MIN(AS112,$I112-SUM($L112:AS112)), MAX(AS112,$I112-SUM($L112:AS112))) -> 8.734387553 | AV112: FALSE
E113: 2005-03-31 | G113: £m 18/19 prices | I113: 126.551982 | J113: > | Z113: =$I113/Y$92 -> 2.812266267 | AA113: =IF($I113 >0, MIN(Z113,$I113-SUM($L113:Z113)), MAX(Z113,$I113-SUM($L113:Z113))) -> 2.812266267 | AB113: =IF($I113 >0, MIN(AA113,$I113-SUM($L113:AA113)), MAX(AA113,$I113-SUM($L113:AA113))) -> 2.812266267 | AC113: =IF($I113 >0, MIN(AB113,$I113-SUM($L113:AB113)), MAX(AB113,$I113-SUM($L113:AB113))) -> 2.812266267 | AD113: =IF($I113 >0, MIN(AC113,$I113-SUM($L113:AC113)), MAX(AC113,$I113-SUM($L113:AC113))) -> 2.812266267 | AE113: =IF($I113 >0, MIN(AD113,$I113-SUM($L113:AD113)), MAX(AD113,$I113-SUM($L113:AD113))) -> 2.812266267 | AF113: =IF($I113 >0, MIN(AE113,$I113-SUM($L113:AE113)), MAX(AE113,$I113-SUM($L113:AE113))) -> 2.812266267 | AG113: =IF($I113 >0, MIN(AF113,$I113-SUM($L113:AF113)), MAX(AF113,$I113-SUM($L113:AF113))) -> 2.812266267 | AH113: =IF($I113 >0, MIN(AG113,$I113-SUM($L113:AG113)), MAX(AG113,$I113-SUM($L113:AG113))) -> 2.812266267 | AI113: =IF($I113 >0, MIN(AH113,$I113-SUM($L113:AH113)), MAX(AH113,$I113-SUM($L113:AH113))) -> 2.812266267 | AJ113: =IF($I113 >0, MIN(AI113,$I113-SUM($L113:AI113)), MAX(AI113,$I113-SUM($L113:AI113))) -> 2.812266267 | AK113: =IF($I113 >0, MIN(AJ113,$I113-SUM($L113:AJ113)), MAX(AJ113,$I113-SUM($L113:AJ113))) -> 2.812266267 | AL113: =IF($I113 >0, MIN(AK113,$I113-SUM($L113:AK113)), MAX(AK113,$I113-SUM($L113:AK113))) -> 2.812266267 | AM113: =IF($I113 >0, MIN(AL113,$I113-SUM($L113:AL113)), MAX(AL113,$I113-SUM($L113:AL113))) -> 2.812266267 | AN113: =IF($I113 >0, MIN(AM113,$I113-SUM($L113:AM113)), MAX(AM113,$I113-SUM($L113:AM113))) -> 2.812266267 | AO113: =IF($I113 >0, MIN(AN113,$I113-SUM($L113:AN113)), MAX(AN113,$I113-SUM($L113:AN113))) -> 2.812266267 | AP113: =IF($I113 >0, MIN(AO113,$I113-SUM($L113:AO113)), MAX(AO113,$I113-SUM($L113:AO113))) -> 2.812266267 | AQ113: =IF($I113 >0, MIN(AP113,$I113-SUM($L113:AP113)), MAX(AP113,$I113-SUM($L113:AP113))) -> 2.812266267 | AR113: =IF($I113 >0, MIN(AQ113,$I113-SUM($L113:AQ113)), MAX(AQ113,$I113-SUM($L113:AQ113))) -> 2.812266267 | AS113: =IF($I113 >0, MIN(AR113,$I113-SUM($L113:AR113)), MAX(AR113,$I113-SUM($L113:AR113))) -> 2.812266267 | AT113: =IF($I113 >0, MIN(AS113,$I113-SUM($L113:AS113)), MAX(AS113,$I113-SUM($L113:AS113))) -> 2.812266267 | AV113: FALSE
E114: 2006-03-31 | G114: £m 18/19 prices | I114: 393.9201619 | J114: > | AA114: =$I114/Z$92 -> 8.753781376 | AB114: =IF($I114 >0, MIN(AA114,$I114-SUM($L114:AA114)), MAX(AA114,$I114-SUM($L114:AA114))) -> 8.753781376 | AC114: =IF($I114 >0, MIN(AB114,$I114-SUM($L114:AB114)), MAX(AB114,$I114-SUM($L114:AB114))) -> 8.753781376 | AD114: =IF($I114 >0, MIN(AC114,$I114-SUM($L114:AC114)), MAX(AC114,$I114-SUM($L114:AC114))) -> 8.753781376 | AE114: =IF($I114 >0, MIN(AD114,$I114-SUM($L114:AD114)), MAX(AD114,$I114-SUM($L114:AD114))) -> 8.753781376 | AF114: =IF($I114 >0, MIN(AE114,$I114-SUM($L114:AE114)), MAX(AE114,$I114-SUM($L114:AE114))) -> 8.753781376 | AG114: =IF($I114 >0, MIN(AF114,$I114-SUM($L114:AF114)), MAX(AF114,$I114-SUM($L114:AF114))) -> 8.753781376 | AH114: =IF($I114 >0, MIN(AG114,$I114-SUM($L114:AG114)), MAX(AG114,$I114-SUM($L114:AG114))) -> 8.753781376 | AI114: =IF($I114 >0, MIN(AH114,$I114-SUM($L114:AH114)), MAX(AH114,$I114-SUM($L114:AH114))) -> 8.753781376 | AJ114: =IF($I114 >0, MIN(AI114,$I114-SUM($L114:AI114)), MAX(AI114,$I114-SUM($L114:AI114))) -> 8.753781376 | AK114: =IF($I114 >0, MIN(AJ114,$I114-SUM($L114:AJ114)), MAX(AJ114,$I114-SUM($L114:AJ114))) -> 8.753781376 | AL114: =IF($I114 >0, MIN(AK114,$I114-SUM($L114:AK114)), MAX(AK114,$I114-SUM($L114:AK114))) -> 8.753781376 | AM114: =IF($I114 >0, MIN(AL114,$I114-SUM($L114:AL114)), MAX(AL114,$I114-SUM($L114:AL114))) -> 8.753781376 | AN114: =IF($I114 >0, MIN(AM114,$I114-SUM($L114:AM114)), MAX(AM114,$I114-SUM($L114:AM114))) -> 8.753781376 | AO114: =IF($I114 >0, MIN(AN114,$I114-SUM($L114:AN114)), MAX(AN114,$I114-SUM($L114:AN114))) -> 8.753781376 | AP114: =IF($I114 >0, MIN(AO114,$I114-SUM($L114:AO114)), MAX(AO114,$I114-SUM($L114:AO114))) -> 8.753781376 | AQ114: =IF($I114 >0, MIN(AP114,$I114-SUM($L114:AP114)), MAX(AP114,$I114-SUM($L114:AP114))) -> 8.753781376 | AR114: =IF($I114 >0, MIN(AQ114,$I114-SUM($L114:AQ114)), MAX(AQ114,$I114-SUM($L114:AQ114))) -> 8.753781376 | AS114: =IF($I114 >0, MIN(AR114,$I114-SUM($L114:AR114)), MAX(AR114,$I114-SUM($L114:AR114))) -> 8.753781376 | AT114: =IF($I114 >0, MIN(AS114,$I114-SUM($L114:AS114)), MAX(AS114,$I114-SUM($L114:AS114))) -> 8.753781376 | AV114: FALSE
E115: 2007-03-31 | G115: £m 18/19 prices | I115: 710.4949173 | J115: > | AB115: =$I115/AA$92 -> 15.78877594 | AC115: =IF($I115 >0, MIN(AB115,$I115-SUM($L115:AB115)), MAX(AB115,$I115-SUM($L115:AB115))) -> 15.78877594 | AD115: =IF($I115 >0, MIN(AC115,$I115-SUM($L115:AC115)), MAX(AC115,$I115-SUM($L115:AC115))) -> 15.78877594 | AE115: =IF($I115 >0, MIN(AD115,$I115-SUM($L115:AD115)), MAX(AD115,$I115-SUM($L115:AD115))) -> 15.78877594 | AF115: =IF($I115 >0, MIN(AE115,$I115-SUM($L115:AE115)), MAX(AE115,$I115-SUM($L115:AE115))) -> 15.78877594 | AG115: =IF($I115 >0, MIN(AF115,$I115-SUM($L115:AF115)), MAX(AF115,$I115-SUM($L115:AF115))) -> 15.78877594 | AH115: =IF($I115 >0, MIN(AG115,$I115-SUM($L115:AG115)), MAX(AG115,$I115-SUM($L115:AG115))) -> 15.78877594 | AI115: =IF($I115 >0, MIN(AH115,$I115-SUM($L115:AH115)), MAX(AH115,$I115-SUM($L115:AH115))) -> 15.78877594 | AJ115: =IF($I115 >0, MIN(AI115,$I115-SUM($L115:AI115)), MAX(AI115,$I115-SUM($L115:AI115))) -> 15.78877594 | AK115: =IF($I115 >0, MIN(AJ115,$I115-SUM($L115:AJ115)), MAX(AJ115,$I115-SUM($L115:AJ115))) -> 15.78877594 | AL115: =IF($I115 >0, MIN(AK115,$I115-SUM($L115:AK115)), MAX(AK115,$I115-SUM($L115:AK115))) -> 15.78877594 | AM115: =IF($I115 >0, MIN(AL115,$I115-SUM($L115:AL115)), MAX(AL115,$I115-SUM($L115:AL115))) -> 15.78877594 | AN115: =IF($I115 >0, MIN(AM115,$I115-SUM($L115:AM115)), MAX(AM115,$I115-SUM($L115:AM115))) -> 15.78877594 | AO115: =IF($I115 >0, MIN(AN115,$I115-SUM($L115:AN115)), MAX(AN115,$I115-SUM($L115:AN115))) -> 15.78877594 | AP115: =IF($I115 >0, MIN(AO115,$I115-SUM($L115:AO115)), MAX(AO115,$I115-SUM($L115:AO115))) -> 15.78877594 | AQ115: =IF($I115 >0, MIN(AP115,$I115-SUM($L115:AP115)), MAX(AP115,$I115-SUM($L115:AP115))) -> 15.78877594 | AR115: =IF($I115 >0, MIN(AQ115,$I115-SUM($L115:AQ115)), MAX(AQ115,$I115-SUM($L115:AQ115))) -> 15.78877594 | AS115: =IF($I115 >0, MIN(AR115,$I115-SUM($L115:AR115)), MAX(AR115,$I115-SUM($L115:AR115))) -> 15.78877594 | AT115: =IF($I115 >0, MIN(AS115,$I115-SUM($L115:AS115)), MAX(AS115,$I115-SUM($L115:AS115))) -> 15.78877594 | AV115: FALSE
E116: 2008-03-31 | G116: £m 18/19 prices | I116: 769.1575025 | J116: > | AC116: =$I116/AB$92 -> 17.09238895 | AD116: =IF($I116 >0, MIN(AC116,$I116-SUM($L116:AC116)), MAX(AC116,$I116-SUM($L116:AC116))) -> 17.09238895 | AE116: =IF($I116 >0, MIN(AD116,$I116-SUM($L116:AD116)), MAX(AD116,$I116-SUM($L116:AD116))) -> 17.09238895 | AF116: =IF($I116 >0, MIN(AE116,$I116-SUM($L116:AE116)), MAX(AE116,$I116-SUM($L116:AE116))) -> 17.09238895 | AG116: =IF($I116 >0, MIN(AF116,$I116-SUM($L116:AF116)), MAX(AF116,$I116-SUM($L116:AF116))) -> 17.09238895 | AH116: =IF($I116 >0, MIN(AG116,$I116-SUM($L116:AG116)), MAX(AG116,$I116-SUM($L116:AG116))) -> 17.09238895 | AI116: =IF($I116 >0, MIN(AH116,$I116-SUM($L116:AH116)), MAX(AH116,$I116-SUM($L116:AH116))) -> 17.09238895 | AJ116: =IF($I116 >0, MIN(AI116,$I116-SUM($L116:AI116)), MAX(AI116,$I116-SUM($L116:AI116))) -> 17.09238895 | AK116: =IF($I116 >0, MIN(AJ116,$I116-SUM($L116:AJ116)), MAX(AJ116,$I116-SUM($L116:AJ116))) -> 17.09238895 | AL116: =IF($I116 >0, MIN(AK116,$I116-SUM($L116:AK116)), MAX(AK116,$I116-SUM($L116:AK116))) -> 17.09238895 | AM116: =IF($I116 >0, MIN(AL116,$I116-SUM($L116:AL116)), MAX(AL116,$I116-SUM($L116:AL116))) -> 17.09238895 | AN116: =IF($I116 >0, MIN(AM116,$I116-SUM($L116:AM116)), MAX(AM116,$I116-SUM($L116:AM116))) -> 17.09238895 | AO116: =IF($I116 >0, MIN(AN116,$I116-SUM($L116:AN116)), MAX(AN116,$I116-SUM($L116:AN116))) -> 17.09238895 | AP116: =IF($I116 >0, MIN(AO116,$I116-SUM($L116:AO116)), MAX(AO116,$I116-SUM($L116:AO116))) -> 17.09238895 | AQ116: =IF($I116 >0, MIN(AP116,$I116-SUM($L116:AP116)), MAX(AP116,$I116-SUM($L116:AP116))) -> 17.09238895 | AR116: =IF($I116 >0, MIN(AQ116,$I116-SUM($L116:AQ116)), MAX(AQ116,$I116-SUM($L116:AQ116))) -> 17.09238895 | AS116: =IF($I116 >0, MIN(AR116,$I116-SUM($L116:AR116)), MAX(AR116,$I116-SUM($L116:AR116))) -> 17.09238895 | AT116: =IF($I116 >0, MIN(AS116,$I116-SUM($L116:AS116)), MAX(AS116,$I116-SUM($L116:AS116))) -> 17.09238895 | AV116: FALSE
E117: 2009-03-31 | G117: £m 18/19 prices | I117: 325.3339377 | J117: > | AD117: =$I117/AC$92 -> 7.229643059 | AE117: =IF($I117 >0, MIN(AD117,$I117-SUM($L117:AD117)), MAX(AD117,$I117-SUM($L117:AD117))) -> 7.229643059 | AF117: =IF($I117 >0, MIN(AE117,$I117-SUM($L117:AE117)), MAX(AE117,$I117-SUM($L117:AE117))) -> 7.229643059 | AG117: =IF($I117 >0, MIN(AF117,$I117-SUM($L117:AF117)), MAX(AF117,$I117-SUM($L117:AF117))) -> 7.229643059 | AH117: =IF($I117 >0, MIN(AG117,$I117-SUM($L117:AG117)), MAX(AG117,$I117-SUM($L117:AG117))) -> 7.229643059 | AI117: =IF($I117 >0, MIN(AH117,$I117-SUM($L117:AH117)), MAX(AH117,$I117-SUM($L117:AH117))) -> 7.229643059 | AJ117: =IF($I117 >0, MIN(AI117,$I117-SUM($L117:AI117)), MAX(AI117,$I117-SUM($L117:AI117))) -> 7.229643059 | AK117: =IF($I117 >0, MIN(AJ117,$I117-SUM($L117:AJ117)), MAX(AJ117,$I117-SUM($L117:AJ117))) -> 7.229643059 | AL117: =IF($I117 >0, MIN(AK117,$I117-SUM($L117:AK117)), MAX(AK117,$I117-SUM($L117:AK117))) -> 7.229643059 | AM117: =IF($I117 >0, MIN(AL117,$I117-SUM($L117:AL117)), MAX(AL117,$I117-SUM($L117:AL117))) -> 7.229643059 | AN117: =IF($I117 >0, MIN(AM117,$I117-SUM($L117:AM117)), MAX(AM117,$I117-SUM($L117:AM117))) -> 7.229643059 | AO117: =IF($I117 >0, MIN(AN117,$I117-SUM($L117:AN117)), MAX(AN117,$I117-SUM($L117:AN117))) -> 7.229643059 | AP117: =IF($I117 >0, MIN(AO117,$I117-SUM($L117:AO117)), MAX(AO117,$I117-SUM($L117:AO117))) -> 7.229643059 | AQ117: =IF($I117 >0, MIN(AP117,$I117-SUM($L117:AP117)), MAX(AP117,$I117-SUM($L117:AP117))) -> 7.229643059 | AR117: =IF($I117 >0, MIN(AQ117,$I117-SUM($L117:AQ117)), MAX(AQ117,$I117-SUM($L117:AQ117))) -> 7.229643059 | AS117: =IF($I117 >0, MIN(AR117,$I117-SUM($L117:AR117)), MAX(AR117,$I117-SUM($L117:AR117))) -> 7.229643059 | AT117: =IF($I117 >0, MIN(AS117,$I117-SUM($L117:AS117)), MAX(AS117,$I117-SUM($L117:AS117))) -> 7.229643059 | AV117: FALSE
E118: 2010-03-31 | G118: £m 18/19 prices | I118: 161.7587385 | J118: > | AE118: =$I118/AD$92 -> 3.594638633 | AF118: =IF($I118 >0, MIN(AE118,$I118-SUM($L118:AE118)), MAX(AE118,$I118-SUM($L118:AE118))) -> 3.594638633 | AG118: =IF($I118 >0, MIN(AF118,$I118-SUM($L118:AF118)), MAX(AF118,$I118-SUM($L118:AF118))) -> 3.594638633 | AH118: =IF($I118 >0, MIN(AG118,$I118-SUM($L118:AG118)), MAX(AG118,$I118-SUM($L118:AG118))) -> 3.594638633 | AI118: =IF($I118 >0, MIN(AH118,$I118-SUM($L118:AH118)), MAX(AH118,$I118-SUM($L118:AH118))) -> 3.594638633 | AJ118: =IF($I118 >0, MIN(AI118,$I118-SUM($L118:AI118)), MAX(AI118,$I118-SUM($L118:AI118))) -> 3.594638633 | AK118: =IF($I118 >0, MIN(AJ118,$I118-SUM($L118:AJ118)), MAX(AJ118,$I118-SUM($L118:AJ118))) -> 3.594638633 | AL118: =IF($I118 >0, MIN(AK118,$I118-SUM($L118:AK118)), MAX(AK118,$I118-SUM($L118:AK118))) -> 3.594638633 | AM118: =IF($I118 >0, MIN(AL118,$I118-SUM($L118:AL118)), MAX(AL118,$I118-SUM($L118:AL118))) -> 3.594638633 | AN118: =IF($I118 >0, MIN(AM118,$I118-SUM($L118:AM118)), MAX(AM118,$I118-SUM($L118:AM118))) -> 3.594638633 | AO118: =IF($I118 >0, MIN(AN118,$I118-SUM($L118:AN118)), MAX(AN118,$I118-SUM($L118:AN118))) -> 3.594638633 | AP118: =IF($I118 >0, MIN(AO118,$I118-SUM($L118:AO118)), MAX(AO118,$I118-SUM($L118:AO118))) -> 3.594638633 | AQ118: =IF($I118 >0, MIN(AP118,$I118-SUM($L118:AP118)), MAX(AP118,$I118-SUM($L118:AP118))) -> 3.594638633 | AR118: =IF($I118 >0, MIN(AQ118,$I118-SUM($L118:AQ118)), MAX(AQ118,$I118-SUM($L118:AQ118))) -> 3.594638633 | AS118: =IF($I118 >0, MIN(AR118,$I118-SUM($L118:AR118)), MAX(AR118,$I118-SUM($L118:AR118))) -> 3.594638633 | AT118: =IF($I118 >0, MIN(AS118,$I118-SUM($L118:AS118)), MAX(AS118,$I118-SUM($L118:AS118))) -> 3.594638633 | AV118: FALSE
E119: 2011-03-31 | G119: £m 18/19 prices | I119: 131.2813581 | J119: > | AF119: =$I119/AE$92 -> 2.917363514 | AG119: =IF($I119 >0, MIN(AF119,$I119-SUM($L119:AF119)), MAX(AF119,$I119-SUM($L119:AF119))) -> 2.917363514 | AH119: =IF($I119 >0, MIN(AG119,$I119-SUM($L119:AG119)), MAX(AG119,$I119-SUM($L119:AG119))) -> 2.917363514 | AI119: =IF($I119 >0, MIN(AH119,$I119-SUM($L119:AH119)), MAX(AH119,$I119-SUM($L119:AH119))) -> 2.917363514 | AJ119: =IF($I119 >0, MIN(AI119,$I119-SUM($L119:AI119)), MAX(AI119,$I119-SUM($L119:AI119))) -> 2.917363514 | AK119: =IF($I119 >0, MIN(AJ119,$I119-SUM($L119:AJ119)), MAX(AJ119,$I119-SUM($L119:AJ119))) -> 2.917363514 | AL119: =IF($I119 >0, MIN(AK119,$I119-SUM($L119:AK119)), MAX(AK119,$I119-SUM($L119:AK119))) -> 2.917363514 | AM119: =IF($I119 >0, MIN(AL119,$I119-SUM($L119:AL119)), MAX(AL119,$I119-SUM($L119:AL119))) -> 2.917363514 | AN119: =IF($I119 >0, MIN(AM119,$I119-SUM($L119:AM119)), MAX(AM119,$I119-SUM($L119:AM119))) -> 2.917363514 | AO119: =IF($I119 >0, MIN(AN119,$I119-SUM($L119:AN119)), MAX(AN119,$I119-SUM($L119:AN119))) -> 2.917363514 | AP119: =IF($I119 >0, MIN(AO119,$I119-SUM($L119:AO119)), MAX(AO119,$I119-SUM($L119:AO119))) -> 2.917363514 | AQ119: =IF($I119 >0, MIN(AP119,$I119-SUM($L119:AP119)), MAX(AP119,$I119-SUM($L119:AP119))) -> 2.917363514 | AR119: =IF($I119 >0, MIN(AQ119,$I119-SUM($L119:AQ119)), MAX(AQ119,$I119-SUM($L119:AQ119))) -> 2.917363514 | AS119: =IF($I119 >0, MIN(AR119,$I119-SUM($L119:AR119)), MAX(AR119,$I119-SUM($L119:AR119))) -> 2.917363514 | AT119: =IF($I119 >0, MIN(AS119,$I119-SUM($L119:AS119)), MAX(AS119,$I119-SUM($L119:AS119))) -> 2.917363514 | AV119: FALSE
E120: 2012-03-31 | G120: £m 18/19 prices | I120: 132.7730693 | J120: > | AG120: =$I120/AF$92 -> 2.950512652 | AH120: =IF($I120 >0, MIN(AG120,$I120-SUM($L120:AG120)), MAX(AG120,$I120-SUM($L120:AG120))) -> 2.950512652 | AI120: =IF($I120 >0, MIN(AH120,$I120-SUM($L120:AH120)), MAX(AH120,$I120-SUM($L120:AH120))) -> 2.950512652 | AJ120: =IF($I120 >0, MIN(AI120,$I120-SUM($L120:AI120)), MAX(AI120,$I120-SUM($L120:AI120))) -> 2.950512652 | AK120: =IF($I120 >0, MIN(AJ120,$I120-SUM($L120:AJ120)), MAX(AJ120,$I120-SUM($L120:AJ120))) -> 2.950512652 | AL120: =IF($I120 >0, MIN(AK120,$I120-SUM($L120:AK120)), MAX(AK120,$I120-SUM($L120:AK120))) -> 2.950512652 | AM120: =IF($I120 >0, MIN(AL120,$I120-SUM($L120:AL120)), MAX(AL120,$I120-SUM($L120:AL120))) -> 2.950512652 | AN120: =IF($I120 >0, MIN(AM120,$I120-SUM($L120:AM120)), MAX(AM120,$I120-SUM($L120:AM120))) -> 2.950512652 | AO120: =IF($I120 >0, MIN(AN120,$I120-SUM($L120:AN120)), MAX(AN120,$I120-SUM($L120:AN120))) -> 2.950512652 | AP120: =IF($I120 >0, MIN(AO120,$I120-SUM($L120:AO120)), MAX(AO120,$I120-SUM($L120:AO120))) -> 2.950512652 | AQ120: =IF($I120 >0, MIN(AP120,$I120-SUM($L120:AP120)), MAX(AP120,$I120-SUM($L120:AP120))) -> 2.950512652 | AR120: =IF($I120 >0, MIN(AQ120,$I120-SUM($L120:AQ120)), MAX(AQ120,$I120-SUM($L120:AQ120))) -> 2.950512652 | AS120: =IF($I120 >0, MIN(AR120,$I120-SUM($L120:AR120)), MAX(AR120,$I120-SUM($L120:AR120))) -> 2.950512652 | AT120: =IF($I120 >0, MIN(AS120,$I120-SUM($L120:AS120)), MAX(AS120,$I120-SUM($L120:AS120))) -> 2.950512652 | AV120: FALSE
E121: 2013-03-31 | G121: £m 18/19 prices | I121: -37.76579961 | AH121: =$I121/AG$92 -> -0.8392399913 | AI121: =IF($I121 >0, MIN(AH121,$I121-SUM($L121:AH121)), MAX(AH121,$I121-SUM($L121:AH121))) -> -0.8392399913 | AJ121: =IF($I121 >0, MIN(AI121,$I121-SUM($L121:AI121)), MAX(AI121,$I121-SUM($L121:AI121))) -> -0.8392399913 | AK121: =IF($I121 >0, MIN(AJ121,$I121-SUM($L121:AJ121)), MAX(AJ121,$I121-SUM($L121:AJ121))) -> -0.8392399913 | AL121: =IF($I121 >0, MIN(AK121,$I121-SUM($L121:AK121)), MAX(AK121,$I121-SUM($L121:AK121))) -> -0.8392399913 | AM121: =IF($I121 >0, MIN(AL121,$I121-SUM($L121:AL121)), MAX(AL121,$I121-SUM($L121:AL121))) -> -0.8392399913 | AN121: =IF($I121 >0, MIN(AM121,$I121-SUM($L121:AM121)), MAX(AM121,$I121-SUM($L121:AM121))) -> -0.8392399913 | AO121: =IF($I121 >0, MIN(AN121,$I121-SUM($L121:AN121)), MAX(AN121,$I121-SUM($L121:AN121))) -> -0.8392399913 | AP121: =IF($I121 >0, MIN(AO121,$I121-SUM($L121:AO121)), MAX(AO121,$I121-SUM($L121:AO121))) -> -0.8392399913 | AQ121: =IF($I121 >0, MIN(AP121,$I121-SUM($L121:AP121)), MAX(AP121,$I121-SUM($L121:AP121))) -> -0.8392399913 | AR121: =IF($I121 >0, MIN(AQ121,$I121-SUM($L121:AQ121)), MAX(AQ121,$I121-SUM($L121:AQ121))) -> -0.8392399913 | AS121: =IF($I121 >0, MIN(AR121,$I121-SUM($L121:AR121)), MAX(AR121,$I121-SUM($L121:AR121))) -> -0.8392399913 | AT121: =IF($I121 >0, MIN(AS121,$I121-SUM($L121:AS121)), MAX(AS121,$I121-SUM($L121:AS121))) -> -0.8392399913 | AV121: FALSE
E122: 2014-03-31 | G122: £m 18/19 prices | I122: 212.5523708 | AI122: =$I122/AH$92 -> 4.723386017 | AJ122: =IF($I122 >0, MIN(AI122,$I122-SUM($L122:AI122)), MAX(AI122,$I122-SUM($L122:AI122))) -> 4.723386017 | AK122: =IF($I122 >0, MIN(AJ122,$I122-SUM($L122:AJ122)), MAX(AJ122,$I122-SUM($L122:AJ122))) -> 4.723386017 | AL122: =IF($I122 >0, MIN(AK122,$I122-SUM($L122:AK122)), MAX(AK122,$I122-SUM($L122:AK122))) -> 4.723386017 | AM122: =IF($I122 >0, MIN(AL122,$I122-SUM($L122:AL122)), MAX(AL122,$I122-SUM($L122:AL122))) -> 4.723386017 | AN122: =IF($I122 >0, MIN(AM122,$I122-SUM($L122:AM122)), MAX(AM122,$I122-SUM($L122:AM122))) -> 4.723386017 | AO122: =IF($I122 >0, MIN(AN122,$I122-SUM($L122:AN122)), MAX(AN122,$I122-SUM($L122:AN122))) -> 4.723386017 | AP122: =IF($I122 >0, MIN(AO122,$I122-SUM($L122:AO122)), MAX(AO122,$I122-SUM($L122:AO122))) -> 4.723386017 | AQ122: =IF($I122 >0, MIN(AP122,$I122-SUM($L122:AP122)), MAX(AP122,$I122-SUM($L122:AP122))) -> 4.723386017 | AR122: =IF($I122 >0, MIN(AQ122,$I122-SUM($L122:AQ122)), MAX(AQ122,$I122-SUM($L122:AQ122))) -> 4.723386017 | AS122: =IF($I122 >0, MIN(AR122,$I122-SUM($L122:AR122)), MAX(AR122,$I122-SUM($L122:AR122))) -> 4.723386017 | AT122: =IF($I122 >0, MIN(AS122,$I122-SUM($L122:AS122)), MAX(AS122,$I122-SUM($L122:AS122))) -> 4.723386017 | AV122: FALSE
E123: 2015-03-31 | G123: £m 18/19 prices | I123: 170.2886636 | AJ123: =$I123/AI$92 -> 3.784192524 | AK123: =IF($I123 >0, MIN(AJ123,$I123-SUM($L123:AJ123)), MAX(AJ123,$I123-SUM($L123:AJ123))) -> 3.784192524 | AL123: =IF($I123 >0, MIN(AK123,$I123-SUM($L123:AK123)), MAX(AK123,$I123-SUM($L123:AK123))) -> 3.784192524 | AM123: =IF($I123 >0, MIN(AL123,$I123-SUM($L123:AL123)), MAX(AL123,$I123-SUM($L123:AL123))) -> 3.784192524 | AN123: =IF($I123 >0, MIN(AM123,$I123-SUM($L123:AM123)), MAX(AM123,$I123-SUM($L123:AM123))) -> 3.784192524 | AO123: =IF($I123 >0, MIN(AN123,$I123-SUM($L123:AN123)), MAX(AN123,$I123-SUM($L123:AN123))) -> 3.784192524 | AP123: =IF($I123 >0, MIN(AO123,$I123-SUM($L123:AO123)), MAX(AO123,$I123-SUM($L123:AO123))) -> 3.784192524 | AQ123: =IF($I123 >0, MIN(AP123,$I123-SUM($L123:AP123)), MAX(AP123,$I123-SUM($L123:AP123))) -> 3.784192524 | AR123: =IF($I123 >0, MIN(AQ123,$I123-SUM($L123:AQ123)), MAX(AQ123,$I123-SUM($L123:AQ123))) -> 3.784192524 | AS123: =IF($I123 >0, MIN(AR123,$I123-SUM($L123:AR123)), MAX(AR123,$I123-SUM($L123:AR123))) -> 3.784192524 | AT123: =IF($I123 >0, MIN(AS123,$I123-SUM($L123:AS123)), MAX(AS123,$I123-SUM($L123:AS123))) -> 3.784192524 | AV123: FALSE
E124: 2016-03-31 | G124: £m 18/19 prices | I124: 160.7682031 | AK124: =$I124/AJ$92 -> 3.572626735 | AL124: =IF($I124 >0, MIN(AK124,$I124-SUM($L124:AK124)), MAX(AK124,$I124-SUM($L124:AK124))) -> 3.572626735 | AM124: =IF($I124 >0, MIN(AL124,$I124-SUM($L124:AL124)), MAX(AL124,$I124-SUM($L124:AL124))) -> 3.572626735 | AN124: =IF($I124 >0, MIN(AM124,$I124-SUM($L124:AM124)), MAX(AM124,$I124-SUM($L124:AM124))) -> 3.572626735 | AO124: =IF($I124 >0, MIN(AN124,$I124-SUM($L124:AN124)), MAX(AN124,$I124-SUM($L124:AN124))) -> 3.572626735 | AP124: =IF($I124 >0, MIN(AO124,$I124-SUM($L124:AO124)), MAX(AO124,$I124-SUM($L124:AO124))) -> 3.572626735 | AQ124: =IF($I124 >0, MIN(AP124,$I124-SUM($L124:AP124)), MAX(AP124,$I124-SUM($L124:AP124))) -> 3.572626735 | AR124: =IF($I124 >0, MIN(AQ124,$I124-SUM($L124:AQ124)), MAX(AQ124,$I124-SUM($L124:AQ124))) -> 3.572626735 | AS124: =IF($I124 >0, MIN(AR124,$I124-SUM($L124:AR124)), MAX(AR124,$I124-SUM($L124:AR124))) -> 3.572626735 | AT124: =IF($I124 >0, MIN(AS124,$I124-SUM($L124:AS124)), MAX(AS124,$I124-SUM($L124:AS124))) -> 3.572626735 | AV124: FALSE
E125: 2017-03-31 | G125: £m 18/19 prices | I125: 181.5958774 | AL125: =$I125/AK$92 -> 4.035463942 | AM125: =IF($I125 >0, MIN(AL125,$I125-SUM($L125:AL125)), MAX(AL125,$I125-SUM($L125:AL125))) -> 4.035463942 | AN125: =IF($I125 >0, MIN(AM125,$I125-SUM($L125:AM125)), MAX(AM125,$I125-SUM($L125:AM125))) -> 4.035463942 | AO125: =IF($I125 >0, MIN(AN125,$I125-SUM($L125:AN125)), MAX(AN125,$I125-SUM($L125:AN125))) -> 4.035463942 | AP125: =IF($I125 >0, MIN(AO125,$I125-SUM($L125:AO125)), MAX(AO125,$I125-SUM($L125:AO125))) -> 4.035463942 | AQ125: =IF($I125 >0, MIN(AP125,$I125-SUM($L125:AP125)), MAX(AP125,$I125-SUM($L125:AP125))) -> 4.035463942 | AR125: =IF($I125 >0, MIN(AQ125,$I125-SUM($L125:AQ125)), MAX(AQ125,$I125-SUM($L125:AQ125))) -> 4.035463942 | AS125: =IF($I125 >0, MIN(AR125,$I125-SUM($L125:AR125)), MAX(AR125,$I125-SUM($L125:AR125))) -> 4.035463942 | AT125: =IF($I125 >0, MIN(AS125,$I125-SUM($L125:AS125)), MAX(AS125,$I125-SUM($L125:AS125))) -> 4.035463942 | AV125: FALSE
E126: 2018-03-31 | G126: £m 18/19 prices | I126: 245.9491647 | AM126: =$I126/AL$92 -> 5.465536994 | AN126: =IF($I126 >0, MIN(AM126,$I126-SUM($L126:AM126)), MAX(AM126,$I126-SUM($L126:AM126))) -> 5.465536994 | AO126: =IF($I126 >0, MIN(AN126,$I126-SUM($L126:AN126)), MAX(AN126,$I126-SUM($L126:AN126))) -> 5.465536994 | AP126: =IF($I126 >0, MIN(AO126,$I126-SUM($L126:AO126)), MAX(AO126,$I126-SUM($L126:AO126))) -> 5.465536994 | AQ126: =IF($I126 >0, MIN(AP126,$I126-SUM($L126:AP126)), MAX(AP126,$I126-SUM($L126:AP126))) -> 5.465536994 | AR126: =IF($I126 >0, MIN(AQ126,$I126-SUM($L126:AQ126)), MAX(AQ126,$I126-SUM($L126:AQ126))) -> 5.465536994 | AS126: =IF($I126 >0, MIN(AR126,$I126-SUM($L126:AR126)), MAX(AR126,$I126-SUM($L126:AR126))) -> 5.465536994 | AT126: =IF($I126 >0, MIN(AS126,$I126-SUM($L126:AS126)), MAX(AS126,$I126-SUM($L126:AS126))) -> 5.465536994 | AV126: FALSE
E127: 2019-03-31 | G127: £m 18/19 prices | I127: 229.3294584 | AN127: =$I127/AM$92 -> 5.096210187 | AO127: =IF($I127 >0, MIN(AN127,$I127-SUM($L127:AN127)), MAX(AN127,$I127-SUM($L127:AN127))) -> 5.096210187 | AP127: =IF($I127 >0, MIN(AO127,$I127-SUM($L127:AO127)), MAX(AO127,$I127-SUM($L127:AO127))) -> 5.096210187 | AQ127: =IF($I127 >0, MIN(AP127,$I127-SUM($L127:AP127)), MAX(AP127,$I127-SUM($L127:AP127))) -> 5.096210187 | AR127: =IF($I127 >0, MIN(AQ127,$I127-SUM($L127:AQ127)), MAX(AQ127,$I127-SUM($L127:AQ127))) -> 5.096210187 | AS127: =IF($I127 >0, MIN(AR127,$I127-SUM($L127:AR127)), MAX(AR127,$I127-SUM($L127:AR127))) -> 5.096210187 | AT127: =IF($I127 >0, MIN(AS127,$I127-SUM($L127:AS127)), MAX(AS127,$I127-SUM($L127:AS127))) -> 5.096210187 | AV127: FALSE
E128: 2020-03-31 | G128: £m 18/19 prices | I128: 174.2590356 | AO128: =$I128/AN$92 -> 3.872423014 | AP128: =IF($I128 >0, MIN(AO128,$I128-SUM($L128:AO128)), MAX(AO128,$I128-SUM($L128:AO128))) -> 3.872423014 | AQ128: =IF($I128 >0, MIN(AP128,$I128-SUM($L128:AP128)), MAX(AP128,$I128-SUM($L128:AP128))) -> 3.872423014 | AR128: =IF($I128 >0, MIN(AQ128,$I128-SUM($L128:AQ128)), MAX(AQ128,$I128-SUM($L128:AQ128))) -> 3.872423014 | AS128: =IF($I128 >0, MIN(AR128,$I128-SUM($L128:AR128)), MAX(AR128,$I128-SUM($L128:AR128))) -> 3.872423014 | AT128: =IF($I128 >0, MIN(AS128,$I128-SUM($L128:AS128)), MAX(AS128,$I128-SUM($L128:AS128))) -> 3.872423014 | AV128: FALSE
E129: 2021-03-31 | G129: £m 18/19 prices | I129: 149.3414095 | AP129: =$I129/AO$92 -> 3.318697989 | AQ129: =IF($I129 >0, MIN(AP129,$I129-SUM($L129:AP129)), MAX(AP129,$I129-SUM($L129:AP129))) -> 3.318697989 | AR129: =IF($I129 >0, MIN(AQ129,$I129-SUM($L129:AQ129)), MAX(AQ129,$I129-SUM($L129:AQ129))) -> 3.318697989 | AS129: =IF($I129 >0, MIN(AR129,$I129-SUM($L129:AR129)), MAX(AR129,$I129-SUM($L129:AR129))) -> 3.318697989 | AT129: =IF($I129 >0, MIN(AS129,$I129-SUM($L129:AS129)), MAX(AS129,$I129-SUM($L129:AS129))) -> 3.318697989 | AV129: FALSE
E130: 2022-03-31 | G130: £m 18/19 prices | I130: 0 | AQ130: =$I130/AP$92 -> 0 | AR130: =IF($I130 >0, MIN(AQ130,$I130-SUM($L130:AQ130)), MAX(AQ130,$I130-SUM($L130:AQ130))) -> 0 | AS130: =IF($I130 >0, MIN(AR130,$I130-SUM($L130:AR130)), MAX(AR130,$I130-SUM($L130:AR130))) -> 0 | AT130: =IF($I130 >0, MIN(AS130,$I130-SUM($L130:AS130)), MAX(AS130,$I130-SUM($L130:AS130))) -> 0 | AV130: FALSE
E131: 2023-03-31 | G131: £m 18/19 prices | I131: 0 | AR131: =$I131/AQ$92 -> 0 | AS131: =IF($I131 >0, MIN(AR131,$I131-SUM($L131:AR131)), MAX(AR131,$I131-SUM($L131:AR131))) -> 0 | AT131: =IF($I131 >0, MIN(AS131,$I131-SUM($L131:AS131)), MAX(AS131,$I131-SUM($L131:AS131))) -> 0 | AV131: FALSE
E132: 2024-03-31 | G132: £m 18/19 prices | I132: 0 | AS132: =$I132/AR$92 -> 0 | AT132: =IF($I132 >0, MIN(AS132,$I132-SUM($L132:AS132)), MAX(AS132,$I132-SUM($L132:AS132))) -> 0 | AV132: FALSE
E133: 2025-03-31 | G133: £m 18/19 prices | I133: 0 | AT133: =$I133/AS$92 -> 0 | AV133: FALSE
E134: 2026-03-31 | G134: £m 18/19 prices | I134: 0 | AV134: FALSE
E135: Total | G135: £m 18/19 prices | L135: =SUM(L99:L134) -> 0 | M135: 0 | N135: 0 | O135: 0 | P135: 0 | Q135: 0 | R135: 0 | S135: 0 | T135: 0 | U135: 0 | V135: 0 | W135: 0 | X135: 0 | Y135: 8.734387553 | Z135: 11.54665382 | AA135: 20.3004352 | AB135: 36.08921114 | AC135: 53.18160008 | AD135: 60.41124314 | AE135: 64.00588177 | AF135: 66.92324529 | AG135: 69.87375794 | AH135: 69.03451795 | AI135: 73.75790396 | AJ135: 77.54209649 | AK135: 81.11472322 | AL135: 85.15018717 | AM135: 90.61572416 | AN135: 95.71193435 | AO135: 99.58435736 | AP135: 102.9030553 | AQ135: 102.9030553 | AR135: 102.9030553 | AS135: 102.9030553 | AT135: =SUM(AT99:AT134) -> 102.9030553
C138: Post-vesting depreciation - differential
D140: Depreciation parameters
E142: Start of differential depreciation calculation | G142: year ending | I142: =I39 -> 2003-03-31
E143: Start of differential depreciation recovery period | G143: year ending | I143: =I40 -> 2022-03-31
E144: Existing assets depreciation recovery period | G144: years | I144: =I41 -> 20
E145: Last year depreciation recovery for existing assets | G145: year ending | I145: =I42 -> 2041-03-31
E147: Year in recovery period | G147: text | J147: > | L147: =AND(L$4 >= $I$143, L$4 <= $I$145) -> FALSE | M147: =AND(M$4 >= $I$143, M$4 <= $I$145) -> FALSE | N147: FALSE | O147: FALSE | P147: FALSE | Q147: FALSE | R147: FALSE | S147: FALSE | T147: FALSE | U147: FALSE | V147: FALSE | W147: FALSE | X147: FALSE | Y147: FALSE | Z147: FALSE | AA147: FALSE | AB147: FALSE | AC147: FALSE | AD147: FALSE | AE147: FALSE | AF147: FALSE | AG147: FALSE | AH147: FALSE | AI147: FALSE | AJ147: FALSE | AK147: FALSE | AL147: FALSE | AM147: FALSE | AN147: FALSE | AO147: FALSE | AP147: TRUE | AQ147: TRUE | AR147: TRUE | AS147: TRUE | AT147: TRUE
D149: Depreciation schedule
E151: Depreciation of differential depreciation from year ending | I151: Differential | AV151: Sum of digits depreciation applies (existing assets)
E152: 1991-03-31 | G152: £m 18/19 prices | I152: =(SUMPRODUCT(($L49:$AT49) * ($L$44:$AT$44 = FALSE)) - SUMPRODUCT(($L99:$AT99) * ($L$44:$AT$44 = FALSE))) * ($E152 >=$I$142) -> 0 | J152: > | L152: =($I152 / $I$144) * L$147 -> 0 | M152: =($I152 / $I$144) * M$147 -> 0 | N152: 0 | O152: 0 | P152: 0 | Q152: 0 | R152: 0 | S152: 0 | T152: 0 | U152: 0 | V152: 0 | W152: 0 | X152: 0 | Y152: 0 | Z152: 0 | AA152: 0 | AB152: 0 | AC152: =($I152 / $I$144) * AC$147 -> 0 | AD152: 0 | AE152: 0 | AF152: 0 | AG152: 0 | AH152: 0 | AI152: 0 | AJ152: 0 | AK152: 0 | AL152: 0 | AM152: 0 | AN152: 0 | AO152: 0 | AP152: 0 | AQ152: 0 | AR152: 0 | AS152: =($I152 / $I$144) * AS$147 -> 0 | AT152: 0 | AV152: =$E152 >= $I$142 -> FALSE
E153: 1992-03-31 | G153: £m 18/19 prices | I153: =(SUMPRODUCT(($L50:$AT50) * ($L$44:$AT$44 = FALSE)) - SUMPRODUCT(($L100:$AT100) * ($L$44:$AT$44 = FALSE))) * ($E153 >=$I$142) -> 0 | J153: > | L153: =($I153 / $I$144) * L$147 -> 0 | M153: 0 | N153: 0 | O153: 0 | P153: 0 | Q153: 0 | R153: 0 | S153: 0 | T153: 0 | U153: 0 | V153: 0 | W153: 0 | X153: 0 | Y153: 0 | Z153: 0 | AA153: 0 | AB153: 0 | AC153: 0 | AD153: 0 | AE153: 0 | AF153: 0 | AG153: 0 | AH153: 0 | AI153: 0 | AJ153: 0 | AK153: 0 | AL153: 0 | AM153: 0 | AN153: 0 | AO153: 0 | AP153: 0 | AQ153: 0 | AR153: 0 | AS153: 0 | AT153: 0 | AV153: =$E153 >= $I$142 -> FALSE
E154: 1993-03-31 | G154: £m 18/19 prices | I154: 0 | J154: > | L154: 0 | M154: 0 | N154: 0 | O154: 0 | P154: 0 | Q154: 0 | R154: 0 | S154: 0 | T154: 0 | U154: 0 | V154: 0 | W154: 0 | X154: 0 | Y154: 0 | Z154: 0 | AA154: 0 | AB154: 0 | AC154: 0 | AD154: 0 | AE154: 0 | AF154: 0 | AG154: 0 | AH154: 0 | AI154: 0 | AJ154: 0 | AK154: 0 | AL154: 0 | AM154: 0 | AN154: 0 | AO154: 0 | AP154: 0 | AQ154: 0 | AR154: 0 | AS154: 0 | AT154: 0 | AV154: FALSE
E155: 1994-03-31 | G155: £m 18/19 prices | I155: 0 | J155: > | L155: 0 | M155: 0 | N155: 0 | O155: 0 | P155: 0 | Q155: 0 | R155: 0 | S155: 0 | T155: 0 | U155: 0 | V155: 0 | W155: 0 | X155: 0 | Y155: 0 | Z155: 0 | AA155: 0 | AB155: 0 | AC155: 0 | AD155: 0 | AE155: 0 | AF155: 0 | AG155: 0 | AH155: 0 | AI155: 0 | AJ155: 0 | AK155: 0 | AL155: 0 | AM155: 0 | AN155: 0 | AO155: 0 | AP155: 0 | AQ155: 0 | AR155: 0 | AS155: 0 | AT155: 0 | AV155: FALSE
E156: 1995-03-31 | G156: £m 18/19 prices | I156: 0 | J156: > | L156: 0 | M156: 0 | N156: 0 | O156: 0 | P156: 0 | Q156: 0 | R156: 0 | S156: 0 | T156: 0 | U156: 0 | V156: 0 | W156: 0 | X156: 0 | Y156: 0 | Z156: 0 | AA156: 0 | AB156: 0 | AC156: 0 | AD156: 0 | AE156: 0 | AF156: 0 | AG156: 0 | AH156: 0 | AI156: 0 | AJ156: 0 | AK156: 0 | AL156: 0 | AM156: 0 | AN156: 0 | AO156: 0 | AP156: 0 | AQ156: 0 | AR156: 0 | AS156: 0 | AT156: 0 | AV156: FALSE
E157: 1996-03-31 | G157: £m 18/19 prices | I157: 0 | J157: > | L157: 0 | M157: 0 | N157: 0 | O157: 0 | P157: 0 | Q157: 0 | R157: 0 | S157: 0 | T157: 0 | U157: 0 | V157: 0 | W157: 0 | X157: 0 | Y157: 0 | Z157: 0 | AA157: 0 | AB157: 0 | AC157: 0 | AD157: 0 | AE157: 0 | AF157: 0 | AG157: 0 | AH157: 0 | AI157: 0 | AJ157: 0 | AK157: 0 | AL157: 0 | AM157: 0 | AN157: 0 | AO157: 0 | AP157: 0 | AQ157: 0 | AR157: 0 | AS157: 0 | AT157: 0 | AV157: FALSE
E158: 1997-03-31 | G158: £m 18/19 prices | I158: 0 | J158: > | L158: 0 | M158: 0 | N158: 0 | O158: 0 | P158: 0 | Q158: 0 | R158: 0 | S158: 0 | T158: 0 | U158: 0 | V158: 0 | W158: 0 | X158: 0 | Y158: 0 | Z158: 0 | AA158: 0 | AB158: 0 | AC158: 0 | AD158: 0 | AE158: 0 | AF158: 0 | AG158: 0 | AH158: 0 | AI158: 0 | AJ158: 0 | AK158: 0 | AL158: 0 | AM158: 0 | AN158: 0 | AO158: 0 | AP158: 0 | AQ158: 0 | AR158: 0 | AS158: 0 | AT158: 0 | AV158: FALSE
E159: 1998-03-31 | G159: £m 18/19 prices | I159: 0 | J159: > | L159: 0 | M159: 0 | N159: 0 | O159: 0 | P159: 0 | Q159: 0 | R159: 0 | S159: 0 | T159: 0 | U159: 0 | V159: 0 | W159: 0 | X159: 0 | Y159: 0 | Z159: 0 | AA159: 0 | AB159: 0 | AC159: 0 | AD159: 0 | AE159: 0 | AF159: 0 | AG159: 0 | AH159: 0 | AI159: 0 | AJ159: 0 | AK159: 0 | AL159: 0 | AM159: 0 | AN159: 0 | AO159: 0 | AP159: 0 | AQ159: 0 | AR159: 0 | AS159: 0 | AT159: 0 | AV159: FALSE
E160: 1999-03-31 | G160: £m 18/19 prices | I160: 0 | J160: > | L160: 0 | M160: 0 | N160: 0 | O160: 0 | P160: 0 | Q160: 0 | R160: 0 | S160: 0 | T160: 0 | U160: 0 | V160: 0 | W160: 0 | X160: 0 | Y160: 0 | Z160: 0 | AA160: 0 | AB160: 0 | AC160: 0 | AD160: 0 | AE160: 0 | AF160: 0 | AG160: 0 | AH160: 0 | AI160: 0 | AJ160: 0 | AK160: 0 | AL160: 0 | AM160: 0 | AN160: 0 | AO160: 0 | AP160: 0 | AQ160: 0 | AR160: 0 | AS160: 0 | AT160: 0 | AV160: FALSE
E161: 2000-03-31 | G161: £m 18/19 prices | I161: 0 | J161: > | L161: 0 | M161: 0 | N161: 0 | O161: 0 | P161: 0 | Q161: 0 | R161: 0 | S161: 0 | T161: 0 | U161: 0 | V161: 0 | W161: 0 | X161: 0 | Y161: 0 | Z161: 0 | AA161: 0 | AB161: 0 | AC161: 0 | AD161: 0 | AE161: 0 | AF161: 0 | AG161: 0 | AH161: 0 | AI161: 0 | AJ161: 0 | AK161: 0 | AL161: 0 | AM161: 0 | AN161: 0 | AO161: 0 | AP161: 0 | AQ161: 0 | AR161: 0 | AS161: 0 | AT161: 0 | AV161: FALSE
E162: 2001-03-31 | G162: £m 18/19 prices | I162: 0 | J162: > | L162: 0 | M162: 0 | N162: 0 | O162: 0 | P162: 0 | Q162: 0 | R162: 0 | S162: 0 | T162: 0 | U162: 0 | V162: 0 | W162: 0 | X162: 0 | Y162: 0 | Z162: 0 | AA162: 0 | AB162: 0 | AC162: 0 | AD162: 0 | AE162: 0 | AF162: 0 | AG162: 0 | AH162: 0 | AI162: 0 | AJ162: 0 | AK162: 0 | AL162: 0 | AM162: 0 | AN162: 0 | AO162: 0 | AP162: 0 | AQ162: 0 | AR162: 0 | AS162: 0 | AT162: 0 | AV162: FALSE
E163: 2002-03-31 | G163: £m 18/19 prices | I163: 0 | J163: > | L163: 0 | M163: 0 | N163: 0 | O163: 0 | P163: 0 | Q163: 0 | R163: 0 | S163: 0 | T163: 0 | U163: 0 | V163: 0 | W163: 0 | X163: 0 | Y163: 0 | Z163: 0 | AA163: 0 | AB163: 0 | AC163: 0 | AD163: 0 | AE163: 0 | AF163: 0 | AG163: 0 | AH163: 0 | AI163: 0 | AJ163: 0 | AK163: 0 | AL163: 0 | AM163: 0 | AN163: 0 | AO163: 0 | AP163: 0 | AQ163: 0 | AR163: 0 | AS163: 0 | AT163: 0 | AV163: FALSE
E164: 2003-03-31 | G164: £m 18/19 prices | I164: 0 | J164: > | L164: 0 | M164: 0 | N164: 0 | O164: 0 | P164: 0 | Q164: 0 | R164: 0 | S164: 0 | T164: 0 | U164: 0 | V164: 0 | W164: 0 | X164: 0 | Y164: 0 | Z164: 0 | AA164: 0 | AB164: 0 | AC164: 0 | AD164: 0 | AE164: 0 | AF164: 0 | AG164: 0 | AH164: 0 | AI164: 0 | AJ164: 0 | AK164: 0 | AL164: 0 | AM164: 0 | AN164: 0 | AO164: 0 | AP164: 0 | AQ164: 0 | AR164: 0 | AS164: 0 | AT164: 0 | AV164: TRUE
E165: 2004-03-31 | G165: £m 18/19 prices | I165: 90.38192338 | J165: > | L165: 0 | M165: 0 | N165: 0 | O165: 0 | P165: 0 | Q165: 0 | R165: 0 | S165: 0 | T165: 0 | U165: 0 | V165: 0 | W165: 0 | X165: 0 | Y165: 0 | Z165: 0 | AA165: 0 | AB165: 0 | AC165: 0 | AD165: 0 | AE165: 0 | AF165: 0 | AG165: 0 | AH165: 0 | AI165: 0 | AJ165: 0 | AK165: 0 | AL165: 0 | AM165: 0 | AN165: 0 | AO165: 0 | AP165: 4.519096169 | AQ165: 4.519096169 | AR165: 4.519096169 | AS165: 4.519096169 | AT165: 4.519096169 | AV165: TRUE
E166: 2005-03-31 | G166: £m 18/19 prices | I166: 28.36720757 | J166: > | L166: 0 | M166: 0 | N166: 0 | O166: 0 | P166: 0 | Q166: 0 | R166: 0 | S166: 0 | T166: 0 | U166: 0 | V166: 0 | W166: 0 | X166: 0 | Y166: 0 | Z166: 0 | AA166: 0 | AB166: 0 | AC166: 0 | AD166: 0 | AE166: 0 | AF166: 0 | AG166: 0 | AH166: 0 | AI166: 0 | AJ166: 0 | AK166: 0 | AL166: 0 | AM166: 0 | AN166: 0 | AO166: 0 | AP166: 1.418360378 | AQ166: 1.418360378 | AR166: 1.418360378 | AS166: 1.418360378 | AT166: 1.418360378 | AV166: TRUE
E167: 2006-03-31 | G167: £m 18/19 prices | I167: 85.63481781 | J167: > | L167: 0 | M167: 0 | N167: 0 | O167: 0 | P167: 0 | Q167: 0 | R167: 0 | S167: 0 | T167: 0 | U167: 0 | V167: 0 | W167: 0 | X167: 0 | Y167: 0 | Z167: 0 | AA167: 0 | AB167: =($I167 / $I$144) * AB$147 -> 0 | AC167: 0 | AD167: 0 | AE167: 0 | AF167: 0 | AG167: 0 | AH167: 0 | AI167: 0 | AJ167: 0 | AK167: 0 | AL167: 0 | AM167: 0 | AN167: 0 | AO167: 0 | AP167: 4.281740891 | AQ167: 4.281740891 | AR167: =($I167 / $I$144) * AR$147 -> 4.281740891 | AS167: 4.281740891 | AT167: 4.281740891 | AV167: TRUE
E168: 2007-03-31 | G168: £m 18/19 prices | I168: 148.9636686 | J168: > | L168: 0 | M168: 0 | N168: 0 | O168: 0 | P168: 0 | Q168: 0 | R168: 0 | S168: 0 | T168: 0 | U168: 0 | V168: 0 | W168: 0 | X168: 0 | Y168: 0 | Z168: 0 | AA168: 0 | AB168: 0 | AC168: 0 | AD168: 0 | AE168: 0 | AF168: 0 | AG168: 0 | AH168: 0 | AI168: 0 | AJ168: 0 | AK168: 0 | AL168: 0 | AM168: 0 | AN168: 0 | AO168: 0 | AP168: 7.448183432 | AQ168: 7.448183432 | AR168: 7.448183432 | AS168: 7.448183432 | AT168: 7.448183432 | AV168: TRUE
E169: 2008-03-31 | G169: £m 18/19 prices | I169: 154.5746479 | J169: > | L169: =($I169 / $I$144) * L$147 -> 0 | M169: 0 | N169: 0 | O169: 0 | P169: 0 | Q169: 0 | R169: 0 | S169: 0 | T169: 0 | U169: 0 | V169: 0 | W169: 0 | X169: 0 | Y169: 0 | Z169: 0 | AA169: 0 | AB169: 0 | AC169: 0 | AD169: 0 | AE169: 0 | AF169: 0 | AG169: 0 | AH169: 0 | AI169: 0 | AJ169: 0 | AK169: 0 | AL169: 0 | AM169: 0 | AN169: 0 | AO169: 0 | AP169: 7.728732393 | AQ169: 7.728732393 | AR169: 7.728732393 | AS169: 7.728732393 | AT169: 7.728732393 | AV169: TRUE
E170: 2009-03-31 | G170: £m 18/19 prices | I170: 62.23779677 | J170: > | L170: 0 | M170: 0 | N170: 0 | O170: 0 | P170: 0 | Q170: 0 | R170: 0 | S170: 0 | T170: 0 | U170: 0 | V170: 0 | W170: 0 | X170: 0 | Y170: 0 | Z170: 0 | AA170: 0 | AB170: 0 | AC170: 0 | AD170: 0 | AE170: 0 | AF170: 0 | AG170: 0 | AH170: 0 | AI170: 0 | AJ170: 0 | AK170: 0 | AL170: 0 | AM170: 0 | AN170: 0 | AO170: 0 | AP170: 3.111889838 | AQ170: 3.111889838 | AR170: 3.111889838 | AS170: 3.111889838 | AT170: 3.111889838 | AV170: TRUE
E171: 2010-03-31 | G171: £m 18/19 prices | I171: 29.22597497 | J171: > | L171: 0 | M171: 0 | N171: 0 | O171: 0 | P171: 0 | Q171: 0 | R171: 0 | S171: 0 | T171: 0 | U171: 0 | V171: 0 | W171: 0 | X171: 0 | Y171: 0 | Z171: 0 | AA171: 0 | AB171: 0 | AC171: 0 | AD171: 0 | AE171: 0 | AF171: 0 | AG171: 0 | AH171: 0 | AI171: 0 | AJ171: 0 | AK171: 0 | AL171: 0 | AM171: 0 | AN171: 0 | AO171: 0 | AP171: 1.461298749 | AQ171: 1.461298749 | AR171: 1.461298749 | AS171: 1.461298749 | AT171: 1.461298749 | AV171: TRUE
E172: 2011-03-31 | G172: £m 18/19 prices | I172: 22.19733109 | J172: > | L172: 0 | M172: 0 | N172: 0 | O172: 0 | P172: 0 | Q172: 0 | R172: 0 | S172: 0 | T172: 0 | U172: 0 | V172: 0 | W172: 0 | X172: 0 | Y172: 0 | Z172: 0 | AA172: 0 | AB172: 0 | AC172: 0 | AD172: 0 | AE172: 0 | AF172: 0 | AG172: 0 | AH172: 0 | AI172: 0 | AJ172: 0 | AK172: 0 | AL172: 0 | AM172: 0 | AN172: 0 | AO172: 0 | AP172: 1.109866554 | AQ172: 1.109866554 | AR172: 1.109866554 | AS172: 1.109866554 | AT172: 1.109866554 | AV172: TRUE
E173: 2012-03-31 | G173: £m 18/19 prices | I173: 20.78187172 | J173: > | L173: 0 | M173: 0 | N173: 0 | O173: 0 | P173: 0 | Q173: 0 | R173: 0 | S173: 0 | T173: 0 | U173: 0 | V173: 0 | W173: 0 | X173: 0 | Y173: 0 | Z173: 0 | AA173: 0 | AB173: 0 | AC173: 0 | AD173: 0 | AE173: 0 | AF173: 0 | AG173: 0 | AH173: 0 | AI173: 0 | AJ173: 0 | AK173: 0 | AL173: 0 | AM173: 0 | AN173: 0 | AO173: 0 | AP173: 1.039093586 | AQ173: 1.039093586 | AR173: 1.039093586 | AS173: 1.039093586 | AT173: 1.039093586 | AV173: TRUE
E174: 2013-03-31 | G174: £m 18/19 prices | I174: -5.400326901 | J174: > | L174: 0 | M174: 0 | N174: 0 | O174: 0 | P174: 0 | Q174: 0 | R174: 0 | S174: 0 | T174: 0 | U174: 0 | V174: 0 | W174: 0 | X174: 0 | Y174: 0 | Z174: 0 | AA174: 0 | AB174: 0 | AC174: 0 | AD174: 0 | AE174: 0 | AF174: 0 | AG174: 0 | AH174: 0 | AI174: 0 | AJ174: 0 | AK174: 0 | AL174: 0 | AM174: 0 | AN174: 0 | AO174: 0 | AP174: -0.270016345 | AQ174: -0.270016345 | AR174: -0.270016345 | AS174: -0.270016345 | AT174: -0.270016345 | AV174: TRUE
E175: 2014-03-31 | G175: £m 18/19 prices | I175: 27.31349305 | J175: > | L175: 0 | M175: 0 | N175: 0 | O175: 0 | P175: 0 | Q175: 0 | R175: 0 | S175: 0 | T175: 0 | U175: 0 | V175: 0 | W175: 0 | X175: 0 | Y175: 0 | Z175: 0 | AA175: 0 | AB175: 0 | AC175: 0 | AD175: 0 | AE175: 0 | AF175: 0 | AG175: 0 | AH175: 0 | AI175: 0 | AJ175: 0 | AK175: 0 | AL175: 0 | AM175: 0 | AN175: 0 | AO175: 0 | AP175: 1.365674653 | AQ175: 1.365674653 | AR175: 1.365674653 | AS175: 1.365674653 | AT175: 1.365674653 | AV175: TRUE
E176: 2015-03-31 | G176: £m 18/19 prices | I176: 19.25002284 | J176: > | L176: 0 | M176: 0 | N176: 0 | O176: 0 | P176: 0 | Q176: 0 | R176: 0 | S176: 0 | T176: 0 | U176: 0 | V176: 0 | W176: 0 | X176: 0 | Y176: 0 | Z176: 0 | AA176: 0 | AB176: 0 | AC176: 0 | AD176: 0 | AE176: 0 | AF176: 0 | AG176: 0 | AH176: 0 | AI176: 0 | AJ176: 0 | AK176: 0 | AL176: 0 | AM176: 0 | AN176: 0 | AO176: 0 | AP176: 0.9625011421 | AQ176: 0.9625011421 | AR176: 0.9625011421 | AS176: 0.9625011421 | AT176: 0.9625011421 | AV176: TRUE
E177: 2016-03-31 | G177: £m 18/19 prices | I177: 15.53315972 | J177: > | L177: 0 | M177: 0 | N177: 0 | O177: 0 | P177: 0 | Q177: 0 | R177: 0 | S177: 0 | T177: 0 | U177: 0 | V177: 0 | W177: 0 | X177: 0 | Y177: 0 | Z177: 0 | AA177: 0 | AB177: 0 | AC177: 0 | AD177: 0 | AE177: 0 | AF177: 0 | AG177: 0 | AH177: 0 | AI177: 0 | AJ177: 0 | AK177: 0 | AL177: 0 | AM177: 0 | AN177: 0 | AO177: 0 | AP177: 0.7766579858 | AQ177: 0.7766579858 | AR177: 0.7766579858 | AS177: 0.7766579858 | AT177: 0.7766579858 | AV177: TRUE
E178: 2017-03-31 | G178: £m 18/19 prices | I178: 14.38730623 | J178: > | L178: 0 | M178: 0 | N178: 0 | O178: 0 | P178: 0 | Q178: 0 | R178: 0 | S178: 0 | T178: 0 | U178: 0 | V178: 0 | W178: 0 | X178: 0 | Y178: 0 | Z178: 0 | AA178: 0 | AB178: 0 | AC178: 0 | AD178: 0 | AE178: 0 | AF178: 0 | AG178: 0 | AH178: 0 | AI178: 0 | AJ178: 0 | AK178: 0 | AL178: 0 | AM178: 0 | AN178: 0 | AO178: 0 | AP178: 0.7193653113 | AQ178: 0.7193653113 | AR178: 0.7193653113 | AS178: 0.7193653113 | AT178: 0.7193653113 | AV178: TRUE
E179: 2018-03-31 | G179: £m 18/19 prices | I179: 14.97081872 | J179: > | L179: 0 | M179: 0 | N179: 0 | O179: 0 | P179: 0 | Q179: 0 | R179: 0 | S179: 0 | T179: 0 | U179: 0 | V179: 0 | W179: 0 | X179: 0 | Y179: 0 | Z179: 0 | AA179: 0 | AB179: 0 | AC179: 0 | AD179: 0 | AE179: 0 | AF179: 0 | AG179: 0 | AH179: 0 | AI179: 0 | AJ179: 0 | AK179: 0 | AL179: 0 | AM179: 0 | AN179: 0 | AO179: 0 | AP179: 0.7485409362 | AQ179: 0.7485409362 | AR179: 0.7485409362 | AS179: 0.7485409362 | AT179: 0.7485409362 | AV179: TRUE
E180: 2019-03-31 | G180: £m 18/19 prices | I180: 9.527697305 | J180: > | L180: 0 | M180: 0 | N180: 0 | O180: 0 | P180: 0 | Q180: 0 | R180: 0 | S180: 0 | T180: 0 | U180: 0 | V180: 0 | W180: 0 | X180: 0 | Y180: 0 | Z180: 0 | AA180: 0 | AB180: 0 | AC180: 0 | AD180: 0 | AE180: 0 | AF180: 0 | AG180: 0 | AH180: 0 | AI180: 0 | AJ180: 0 | AK180: 0 | AL180: 0 | AM180: 0 | AN180: 0 | AO180: 0 | AP180: 0.4763848653 | AQ180: 0.4763848653 | AR180: 0.4763848653 | AS180: 0.4763848653 | AT180: 0.4763848653 | AV180: TRUE
E181: 2020-03-31 | G181: £m 18/19 prices | I181: 3.704056796 | J181: > | L181: 0 | M181: 0 | N181: 0 | O181: 0 | P181: 0 | Q181: 0 | R181: 0 | S181: 0 | T181: 0 | U181: 0 | V181: 0 | W181: 0 | X181: 0 | Y181: 0 | Z181: 0 | AA181: 0 | AB181: 0 | AC181: 0 | AD181: 0 | AE181: 0 | AF181: 0 | AG181: 0 | AH181: 0 | AI181: 0 | AJ181: 0 | AK181: 0 | AL181: 0 | AM181: 0 | AN181: 0 | AO181: 0 | AP181: 0.1852028398 | AQ181: 0.1852028398 | AR181: 0.1852028398 | AS181: 0.1852028398 | AT181: 0.1852028398 | AV181: TRUE
E182: 2021-03-31 | G182: £m 18/19 prices | I182: 0 | J182: > | L182: 0 | M182: 0 | N182: 0 | O182: 0 | P182: 0 | Q182: 0 | R182: 0 | S182: 0 | T182: 0 | U182: 0 | V182: 0 | W182: 0 | X182: 0 | Y182: 0 | Z182: 0 | AA182: 0 | AB182: 0 | AC182: 0 | AD182: 0 | AE182: 0 | AF182: 0 | AG182: 0 | AH182: 0 | AI182: 0 | AJ182: 0 | AK182: 0 | AL182: 0 | AM182: 0 | AN182: 0 | AO182: 0 | AP182: 0 | AQ182: 0 | AR182: 0 | AS182: 0 | AT182: 0 | AV182: TRUE
E183: 2022-03-31 | G183: £m 18/19 prices | I183: 0 | J183: > | L183: 0 | M183: 0 | N183: 0 | O183: 0 | P183: 0 | Q183: 0 | R183: 0 | S183: 0 | T183: 0 | U183: 0 | V183: 0 | W183: 0 | X183: 0 | Y183: 0 | Z183: 0 | AA183: 0 | AB183: =($I183 / $I$144) * AB$147 -> 0 | AC183: 0 | AD183: 0 | AE183: 0 | AF183: 0 | AG183: 0 | AH183: 0 | AI183: 0 | AJ183: 0 | AK183: 0 | AL183: 0 | AM183: 0 | AN183: 0 | AO183: 0 | AP183: 0 | AQ183: 0 | AR183: 0 | AS183: 0 | AT183: 0 | AV183: TRUE
E184: 2023-03-31 | G184: £m 18/19 prices | I184: 0 | J184: > | L184: 0 | M184: 0 | N184: 0 | O184: 0 | P184: 0 | Q184: 0 | R184: 0 | S184: 0 | T184: 0 | U184: 0 | V184: 0 | W184: 0 | X184: 0 | Y184: 0 | Z184: 0 | AA184: =($I184 / $I$144) * AA$147 -> 0 | AB184: 0 | AC184: 0 | AD184: 0 | AE184: 0 | AF184: 0 | AG184: 0 | AH184: 0 | AI184: 0 | AJ184: 0 | AK184: 0 | AL184: 0 | AM184: 0 | AN184: 0 | AO184: 0 | AP184: 0 | AQ184: 0 | AR184: 0 | AS184: 0 | AT184: 0 | AV184: TRUE
E185: 2024-03-31 | G185: £m 18/19 prices | I185: 0 | J185: > | L185: =($I185 / $I$144) * L$147 -> 0 | M185: 0 | N185: 0 | O185: 0 | P185: 0 | Q185: 0 | R185: 0 | S185: 0 | T185: 0 | U185: 0 | V185: 0 | W185: 0 | X185: 0 | Y185: 0 | Z185: 0 | AA185: 0 | AB185: 0 | AC185: 0 | AD185: 0 | AE185: 0 | AF185: 0 | AG185: 0 | AH185: 0 | AI185: 0 | AJ185: 0 | AK185: 0 | AL185: 0 | AM185: 0 | AN185: 0 | AO185: 0 | AP185: 0 | AQ185: 0 | AR185: 0 | AS185: 0 | AT185: 0 | AV185: TRUE
E186: 2025-03-31 | G186: £m 18/19 prices | I186: 0 | J186: > | L186: 0 | M186: 0 | N186: 0 | O186: 0 | P186: 0 | Q186: 0 | R186: 0 | S186: 0 | T186: 0 | U186: 0 | V186: 0 | W186: 0 | X186: 0 | Y186: 0 | Z186: 0 | AA186: 0 | AB186: 0 | AC186: 0 | AD186: 0 | AE186: 0 | AF186: 0 | AG186: 0 | AH186: 0 | AI186: 0 | AJ186: 0 | AK186: 0 | AL186: 0 | AM186: 0 | AN186: 0 | AO186: 0 | AP186: 0 | AQ186: 0 | AR186: 0 | AS186: 0 | AT186: 0 | AV186: TRUE
E187: 2026-03-31 | G187: £m 18/19 prices | I187: 0
E188: Total | G188: £m 18/19 prices | L188: =SUM(L152:L187) -> 0 | M188: 0 | N188: 0 | O188: 0 | P188: 0 | Q188: 0 | R188: 0 | S188: 0 | T188: 0 | U188: 0 | V188: 0 | W188: 0 | X188: 0 | Y188: 0 | Z188: 0 | AA188: 0 | AB188: 0 | AC188: 0 | AD188: 0 | AE188: 0 | AF188: 0 | AG188: 0 | AH188: 0 | AI188: 0 | AJ188: 0 | AK188: 0 | AL188: 0 | AM188: 0 | AN188: 0 | AO188: 0 | AP188: 37.08257338 | AQ188: 37.08257338 | AR188: 37.08257338 | AS188: 37.08257338 | AT188: =SUM(AT152:AT187) -> 37.08257338
C191: Depreciation values applied
E193: 1991-03-31 | G193: £m 18/19 prices | J193: > | L193: =(L49 * L$44 * $AV49) + (L99 * OR(L$94, $AV99)) + L152 -> 0 | M193: =(M49 * M$44 * $AV49) + (M99 * OR(M$94, $AV99)) + M152 -> 0 | N193: 0 | O193: 0 | P193: 0 | Q193: 0 | R193: 0 | S193: 0 | T193: 0 | U193: 0 | V193: 0 | W193: 0 | X193: 0 | Y193: 0 | Z193: 0 | AA193: 0 | AB193: 0 | AC193: 0 | AD193: 0 | AE193: 0 | AF193: 0 | AG193: 0 | AH193: 0 | AI193: 0 | AJ193: 0 | AK193: 0 | AL193: 0 | AM193: 0 | AN193: 0 | AO193: 0 | AP193: 0 | AQ193: 0 | AR193: 0 | AS193: 0 | AT193: 0
E194: 1992-03-31 | G194: £m 18/19 prices | J194: > | L194: =(L50 * L$44 * $AV50) + (L100 * OR(L$94, $AV100)) + L153 -> 0 | M194: 0 | N194: 0 | O194: 0 | P194: 0 | Q194: 0 | R194: 0 | S194: 0 | T194: 0 | U194: 0 | V194: 0 | W194: 0 | X194: 0 | Y194: 0 | Z194: 0 | AA194: 0 | AB194: 0 | AC194: 0 | AD194: 0 | AE194: 0 | AF194: 0 | AG194: 0 | AH194: 0 | AI194: 0 | AJ194: 0 | AK194: 0 | AL194: 0 | AM194: 0 | AN194: 0 | AO194: 0 | AP194: 0 | AQ194: 0 | AR194: 0 | AS194: 0 | AT194: 0
E195: 1993-03-31 | G195: £m 18/19 prices | J195: > | L195: =(L51 * L$44 * $AV51) + (L101 * OR(L$94, $AV101)) + L154 -> 0 | M195: 0 | N195: 0 | O195: 0 | P195: 0 | Q195: 0 | R195: 0 | S195: 0 | T195: 0 | U195: 0 | V195: 0 | W195: 0 | X195: 0 | Y195: 0 | Z195: 0 | AA195: 0 | AB195: 0 | AC195: 0 | AD195: 0 | AE195: 0 | AF195: 0 | AG195: 0 | AH195: 0 | AI195: 0 | AJ195: 0 | AK195: 0 | AL195: 0 | AM195: 0 | AN195: 0 | AO195: 0 | AP195: 0 | AQ195: 0 | AR195: 0 | AS195: 0 | AT195: 0
E196: 1994-03-31 | G196: £m 18/19 prices | J196: > | L196: =(L52 * L$44 * $AV52) + (L102 * OR(L$94, $AV102)) + L155 -> 0 | M196: 0 | N196: 0 | O196: 0 | P196: 0 | Q196: 0 | R196: 0 | S196: 0 | T196: 0 | U196: 0 | V196: 0 | W196: 0 | X196: 0 | Y196: 0 | Z196: 0 | AA196: 0 | AB196: 0 | AC196: 0 | AD196: 0 | AE196: 0 | AF196: 0 | AG196: 0 | AH196: 0 | AI196: 0 | AJ196: 0 | AK196: 0 | AL196: 0 | AM196: 0 | AN196: 0 | AO196: 0 | AP196: 0 | AQ196: 0 | AR196: 0 | AS196: 0 | AT196: 0
E197: 1995-03-31 | G197: £m 18/19 prices | J197: > | L197: =(L53 * L$44 * $AV53) + (L103 * OR(L$94, $AV103)) + L156 -> 0 | M197: 0 | N197: 0 | O197: 0 | P197: 0 | Q197: 0 | R197: 0 | S197: 0 | T197: 0 | U197: 0 | V197: 0 | W197: 0 | X197: 0 | Y197: 0 | Z197: 0 | AA197: 0 | AB197: 0 | AC197: 0 | AD197: 0 | AE197: 0 | AF197: 0 | AG197: 0 | AH197: 0 | AI197: 0 | AJ197: 0 | AK197: 0 | AL197: 0 | AM197: 0 | AN197: 0 | AO197: 0 | AP197: 0 | AQ197: 0 | AR197: 0 | AS197: 0 | AT197: 0
E198: 1996-03-31 | G198: £m 18/19 prices | J198: > | L198: =(L54 * L$44 * $AV54) + (L104 * OR(L$94, $AV104)) + L157 -> 0 | M198: 0 | N198: 0 | O198: 0 | P198: 0 | Q198: 0 | R198: 0 | S198: 0 | T198: 0 | U198: 0 | V198: 0 | W198: 0 | X198: 0 | Y198: 0 | Z198: 0 | AA198: 0 | AB198: 0 | AC198: 0 | AD198: 0 | AE198: 0 | AF198: 0 | AG198: 0 | AH198: 0 | AI198: 0 | AJ198: 0 | AK198: 0 | AL198: 0 | AM198: 0 | AN198: 0 | AO198: 0 | AP198: 0 | AQ198: 0 | AR198: 0 | AS198: 0 | AT198: 0
E199: 1997-03-31 | G199: £m 18/19 prices | J199: > | L199: =(L55 * L$44 * $AV55) + (L105 * OR(L$94, $AV105)) + L158 -> 0 | M199: 0 | N199: 0 | O199: 0 | P199: 0 | Q199: 0 | R199: 0 | S199: 0 | T199: 0 | U199: 0 | V199: 0 | W199: 0 | X199: 0 | Y199: 0 | Z199: 0 | AA199: 0 | AB199: 0 | AC199: 0 | AD199: 0 | AE199: 0 | AF199: 0 | AG199: 0 | AH199: 0 | AI199: 0 | AJ199: 0 | AK199: 0 | AL199: 0 | AM199: 0 | AN199: 0 | AO199: 0 | AP199: 0 | AQ199: 0 | AR199: 0 | AS199: 0 | AT199: 0
E200: 1998-03-31 | G200: £m 18/19 prices | J200: > | L200: =(L56 * L$44 * $AV56) + (L106 * OR(L$94, $AV106)) + L159 -> 0 | M200: 0 | N200: 0 | O200: 0 | P200: 0 | Q200: 0 | R200: 0 | S200: 0 | T200: 0 | U200: 0 | V200: 0 | W200: 0 | X200: 0 | Y200: 0 | Z200: 0 | AA200: 0 | AB200: 0 | AC200: 0 | AD200: 0 | AE200: 0 | AF200: 0 | AG200: 0 | AH200: 0 | AI200: 0 | AJ200: 0 | AK200: 0 | AL200: 0 | AM200: 0 | AN200: 0 | AO200: 0 | AP200: 0 | AQ200: 0 | AR200: 0 | AS200: 0 | AT200: 0
E201: 1999-03-31 | G201: £m 18/19 prices | J201: > | L201: =(L57 * L$44 * $AV57) + (L107 * OR(L$94, $AV107)) + L160 -> 0 | M201: 0 | N201: 0 | O201: 0 | P201: 0 | Q201: 0 | R201: 0 | S201: 0 | T201: 0 | U201: 0 | V201: 0 | W201: 0 | X201: 0 | Y201: 0 | Z201: 0 | AA201: 0 | AB201: 0 | AC201: 0 | AD201: 0 | AE201: 0 | AF201: 0 | AG201: 0 | AH201: 0 | AI201: 0 | AJ201: 0 | AK201: 0 | AL201: 0 | AM201: 0 | AN201: 0 | AO201: 0 | AP201: 0 | AQ201: 0 | AR201: 0 | AS201: 0 | AT201: 0
E202: 2000-03-31 | G202: £m 18/19 prices | J202: > | L202: =(L58 * L$44 * $AV58) + (L108 * OR(L$94, $AV108)) + L161 -> 0 | M202: 0 | N202: 0 | O202: 0 | P202: 0 | Q202: 0 | R202: 0 | S202: 0 | T202: 0 | U202: 0 | V202: 0 | W202: 0 | X202: 0 | Y202: 0 | Z202: 0 | AA202: 0 | AB202: 0 | AC202: 0 | AD202: 0 | AE202: 0 | AF202: 0 | AG202: 0 | AH202: 0 | AI202: 0 | AJ202: 0 | AK202: 0 | AL202: 0 | AM202: 0 | AN202: 0 | AO202: 0 | AP202: 0 | AQ202: 0 | AR202: 0 | AS202: 0 | AT202: 0
E203: 2001-03-31 | G203: £m 18/19 prices | J203: > | L203: =(L59 * L$44 * $AV59) + (L109 * OR(L$94, $AV109)) + L162 -> 0 | M203: 0 | N203: 0 | O203: 0 | P203: 0 | Q203: 0 | R203: 0 | S203: 0 | T203: 0 | U203: 0 | V203: 0 | W203: 0 | X203: 0 | Y203: 0 | Z203: 0 | AA203: 0 | AB203: 0 | AC203: 0 | AD203: 0 | AE203: 0 | AF203: 0 | AG203: 0 | AH203: 0 | AI203: 0 | AJ203: 0 | AK203: 0 | AL203: 0 | AM203: 0 | AN203: 0 | AO203: 0 | AP203: 0 | AQ203: 0 | AR203: 0 | AS203: 0 | AT203: 0
E204: 2002-03-31 | G204: £m 18/19 prices | J204: > | L204: =(L60 * L$44 * $AV60) + (L110 * OR(L$94, $AV110)) + L163 -> 0 | M204: 0 | N204: 0 | O204: 0 | P204: 0 | Q204: 0 | R204: 0 | S204: 0 | T204: 0 | U204: 0 | V204: 0 | W204: 0 | X204: 0 | Y204: 0 | Z204: 0 | AA204: 0 | AB204: 0 | AC204: 0 | AD204: 0 | AE204: 0 | AF204: 0 | AG204: 0 | AH204: 0 | AI204: 0 | AJ204: 0 | AK204: 0 | AL204: 0 | AM204: 0 | AN204: 0 | AO204: 0 | AP204: 0 | AQ204: 0 | AR204: 0 | AS204: 0 | AT204: 0
E205: 2003-03-31 | G205: £m 18/19 prices | J205: > | L205: =(L61 * L$44 * $AV61) + (L111 * OR(L$94, $AV111)) + L164 -> 0 | M205: 0 | N205: 0 | O205: 0 | P205: 0 | Q205: 0 | R205: 0 | S205: 0 | T205: 0 | U205: 0 | V205: 0 | W205: 0 | X205: 0 | Y205: 0 | Z205: 0 | AA205: 0 | AB205: 0 | AC205: 0 | AD205: 0 | AE205: 0 | AF205: 0 | AG205: 0 | AH205: 0 | AI205: 0 | AJ205: 0 | AK205: 0 | AL205: 0 | AM205: 0 | AN205: 0 | AO205: 0 | AP205: 0 | AQ205: 0 | AR205: 0 | AS205: 0 | AT205: 0
E206: 2004-03-31 | G206: £m 18/19 prices | J206: > | L206: =(L62 * L$44 * $AV62) + (L112 * OR(L$94, $AV112)) + L165 -> 0 | M206: 0 | N206: 0 | O206: 0 | P206: 0 | Q206: 0 | R206: 0 | S206: 0 | T206: 0 | U206: 0 | V206: 0 | W206: 0 | X206: 0 | Y206: 8.734387553 | Z206: 8.734387553 | AA206: 8.734387553 | AB206: 8.734387553 | AC206: 8.734387553 | AD206: 8.734387553 | AE206: 8.734387553 | AF206: 8.734387553 | AG206: 8.734387553 | AH206: 8.734387553 | AI206: 8.734387553 | AJ206: 8.734387553 | AK206: 8.734387553 | AL206: 8.734387553 | AM206: 8.734387553 | AN206: 8.734387553 | AO206: 8.734387553 | AP206: 15.15226362 | AQ206: 14.77250764 | AR206: 14.39275166 | AS206: 14.01299568 | AT206: 13.6332397
E207: 2005-03-31 | G207: £m 18/19 prices | J207: > | L207: =(L63 * L$44 * $AV63) + (L113 * OR(L$94, $AV113)) + L166 -> 0 | M207: 0 | N207: 0 | O207: 0 | P207: 0 | Q207: 0 | R207: 0 | S207: 0 | T207: 0 | U207: 0 | V207: 0 | W207: 0 | X207: 0 | Y207: 0 | Z207: 2.812266267 | AA207: 2.812266267 | AB207: 2.812266267 | AC207: 2.812266267 | AD207: 2.812266267 | AE207: 2.812266267 | AF207: 2.812266267 | AG207: 2.812266267 | AH207: 2.812266267 | AI207: 2.812266267 | AJ207: 2.812266267 | AK207: 2.812266267 | AL207: 2.812266267 | AM207: 2.812266267 | AN207: 2.812266267 | AO207: 2.812266267 | AP207: 4.964261324 | AQ207: 4.841988878 | AR207: 4.719716431 | AS207: 4.597443985 | AT207: 4.475171538
E208: 2006-03-31 | G208: £m 18/19 prices | J208: > | L208: =(L64 * L$44 * $AV64) + (L114 * OR(L$94, $AV114)) + L167 -> 0 | M208: 0 | N208: 0 | O208: 0 | P208: 0 | Q208: 0 | R208: 0 | S208: 0 | T208: 0 | U208: 0 | V208: 0 | W208: 0 | X208: 0 | Y208: 0 | Z208: 0 | AA208: 8.753781376 | AB208: 8.753781376 | AC208: 8.753781376 | AD208: 8.753781376 | AE208: 8.753781376 | AF208: 8.753781376 | AG208: 8.753781376 | AH208: 8.753781376 | AI208: 8.753781376 | AJ208: 8.753781376 | AK208: 8.753781376 | AL208: 8.753781376 | AM208: 8.753781376 | AN208: 8.753781376 | AO208: 8.753781376 | AP208: 15.6997166 | AQ208: 15.31911741 | AR208: 14.93851822 | AS208: 14.55791903 | AT208: 14.17731984
E209: 2007-03-31 | G209: £m 18/19 prices | J209: > | L209: =(L65 * L$44 * $AV65) + (L115 * OR(L$94, $AV115)) + L168 -> 0 | M209: 0 | N209: 0 | O209: 0 | P209: 0 | Q209: 0 | R209: 0 | S209: 0 | T209: 0 | U209: 0 | V209: 0 | W209: 0 | X209: 0 | Y209: 0 | Z209: 0 | AA209: 0 | AB209: 15.78877594 | AC209: 15.78877594 | AD209: 15.78877594 | AE209: 15.78877594 | AF209: 15.78877594 | AG209: 15.78877594 | AH209: 15.78877594 | AI209: 15.78877594 | AJ209: 15.78877594 | AK209: 15.78877594 | AL209: 15.78877594 | AM209: 15.78877594 | AN209: 15.78877594 | AO209: 15.78877594 | AP209: 28.72870752 | AQ209: 28.042239 | AR209: 27.35577049 | AS209: 26.66930197 | AT209: 25.98283345
E210: 2008-03-31 | G210: £m 18/19 prices | J210: > | L210: =(L66 * L$44 * $AV66) + (L116 * OR(L$94, $AV116)) + L169 -> 0 | M210: 0 | N210: 0 | O210: 0 | P210: 0 | Q210: 0 | R210: 0 | S210: 0 | T210: 0 | U210: 0 | V210: 0 | W210: 0 | X210: 0 | Y210: 0 | Z210: 0 | AA210: 0 | AB210: 0 | AC210: 17.09238895 | AD210: 17.09238895 | AE210: 17.09238895 | AF210: 17.09238895 | AG210: 17.09238895 | AH210: 17.09238895 | AI210: 17.09238895 | AJ210: 17.09238895 | AK210: 17.09238895 | AL210: 17.09238895 | AM210: 17.09238895 | AN210: 17.09238895 | AO210: 17.09238895 | AP210: 31.50944745 | AQ210: 30.7663001 | AR210: 30.02315276 | AS210: 29.28000541 | AT210: 28.53685807
E211: 2009-03-31 | G211: £m 18/19 prices | J211: > | L211: =(L67 * L$44 * $AV67) + (L117 * OR(L$94, $AV117)) + L170 -> 0 | M211: 0 | N211: 0 | O211: 0 | P211: 0 | Q211: 0 | R211: 0 | S211: 0 | T211: 0 | U211: 0 | V211: 0 | W211: 0 | X211: 0 | Y211: 0 | Z211: 0 | AA211: 0 | AB211: 0 | AC211: 0 | AD211: 7.229643059 | AE211: 7.229643059 | AF211: 7.229643059 | AG211: 7.229643059 | AH211: 7.229643059 | AI211: 7.229643059 | AJ211: 7.229643059 | AK211: 7.229643059 | AL211: 7.229643059 | AM211: 7.229643059 | AN211: 7.229643059 | AO211: 7.229643059 | AP211: 13.48485597 | AQ211: 13.17052366 | AR211: 12.85619135 | AS211: 12.54185905 | AT211: 12.22752674
E212: 2010-03-31 | G212: £m 18/19 prices | J212: > | L212: =(L68 * L$44 * $AV68) + (L118 * OR(L$94, $AV118)) + L171 -> 0 | M212: 0 | N212: 0 | O212: 0 | P212: 0 | Q212: 0 | R212: 0 | S212: 0 | T212: 0 | U212: 0 | V212: 0 | W212: 0 | X212: 0 | Y212: 0 | Z212: 0 | AA212: 0 | AB212: 0 | AC212: 0 | AD212: 0 | AE212: 3.594638633 | AF212: 3.594638633 | AG212: 3.594638633 | AH212: 3.594638633 | AI212: 3.594638633 | AJ212: 3.594638633 | AK212: 3.594638633 | AL212: 3.594638633 | AM212: 3.594638633 | AN212: 3.594638633 | AO212: 3.594638633 | AP212: 6.77511238 | AQ212: 6.618823744 | AR212: 6.462535107 | AS212: 6.306246471 | AT212: 6.149957835
E213: 2011-03-31 | G213: £m 18/19 prices | J213: > | L213: =(L69 * L$44 * $AV69) + (L119 * OR(L$94, $AV119)) + L172 -> 0 | M213: 0 | N213: 0 | O213: 0 | P213: 0 | Q213: 0 | R213: 0 | S213: 0 | T213: 0 | U213: 0 | V213: 0 | W213: 0 | X213: 0 | Y213: 0 | Z213: 0 | AA213: 0 | AB213: 0 | AC213: 0 | AD213: 0 | AE213: 0 | AF213: 2.917363514 | AG213: 2.917363514 | AH213: 2.917363514 | AI213: 2.917363514 | AJ213: 2.917363514 | AK213: 2.917363514 | AL213: 2.917363514 | AM213: 2.917363514 | AN213: 2.917363514 | AO213: 2.917363514 | AP213: 5.549332771 | AQ213: 5.422490879 | AR213: 5.295648988 | AS213: 5.168807096 | AT213: 5.041965204
E214: 2012-03-31 | G214: £m 18/19 prices | J214: > | L214: =(L70 * L$44 * $AV70) + (L120 * OR(L$94, $AV120)) + L173 -> 0 | M214: 0 | N214: 0 | O214: 0 | P214: 0 | Q214: 0 | R214: 0 | S214: 0 | T214: 0 | U214: 0 | V214: 0 | W214: 0 | X214: 0 | Y214: 0 | Z214: 0 | AA214: 0 | AB214: 0 | AC214: 0 | AD214: 0 | AE214: 0 | AF214: 0 | AG214: 2.950512652 | AH214: 2.950512652 | AI214: 2.950512652 | AJ214: 2.950512652 | AK214: 2.950512652 | AL214: 2.950512652 | AM214: 2.950512652 | AN214: 2.950512652 | AO214: 2.950512652 | AP214: 5.657287302 | AQ214: 5.529004143 | AR214: 5.400720984 | AS214: 5.272437825 | AT214: 5.144154667
E215: 2013-03-31 | G215: £m 18/19 prices | J215: > | L215: =(L71 * L$44 * $AV71) + (L121 * OR(L$94, $AV121)) + L174 -> 0 | M215: 0 | N215: 0 | O215: 0 | P215: 0 | Q215: 0 | R215: 0 | S215: 0 | T215: 0 | U215: 0 | V215: 0 | W215: 0 | X215: 0 | Y215: 0 | Z215: 0 | AA215: 0 | AB215: 0 | AC215: 0 | AD215: 0 | AE215: 0 | AF215: 0 | AG215: 0 | AH215: -0.8392399913 | AI215: -0.8392399913 | AJ215: -0.8392399913 | AK215: -0.8392399913 | AL215: -0.8392399913 | AM215: -0.8392399913 | AN215: -0.8392399913 | AO215: -0.8392399913 | AP215: -1.62009807 | AQ215: -1.583609375 | AR215: -1.54712068 | AS215: -1.510631984 | AT215: -1.474143289
E216: 2014-03-31 | G216: £m 18/19 prices | J216: > | L216: =(L72 * L$44 * $AV72) + (L122 * OR(L$94, $AV122)) + L175 -> 0 | M216: 0 | N216: 0 | O216: 0 | P216: 0 | Q216: 0 | R216: 0 | S216: 0 | T216: 0 | U216: 0 | V216: 0 | W216: 0 | X216: 0 | Y216: 0 | Z216: 0 | AA216: 0 | AB216: 0 | AC216: 0 | AD216: 0 | AE216: 0 | AF216: 0 | AG216: 0 | AH216: 0 | AI216: 4.723386017 | AJ216: 4.723386017 | AK216: 4.723386017 | AL216: 4.723386017 | AM216: 4.723386017 | AN216: 4.723386017 | AO216: 4.723386017 | AP216: 9.169529811 | AQ216: 8.964165201 | AR216: 8.758800592 | AS216: 8.553435982 | AT216: 8.348071373
E217: 2015-03-31 | G217: £m 18/19 prices | J217: > | L217: =(L73 * L$44 * $AV73) + (L123 * OR(L$94, $AV123)) + L176 -> 0 | M217: 0 | N217: 0 | O217: 0 | P217: 0 | Q217: 0 | R217: 0 | S217: 0 | T217: 0 | U217: 0 | V217: 0 | W217: 0 | X217: 0 | Y217: 0 | Z217: 0 | AA217: 0 | AB217: 0 | AC217: 0 | AD217: 0 | AE217: 0 | AF217: 0 | AG217: 0 | AH217: 0 | AI217: 0 | AJ217: 3.784192524 | AK217: 3.784192524 | AL217: 3.784192524 | AM217: 3.784192524 | AN217: 3.784192524 | AO217: 3.784192524 | AP217: 7.379175423 | AQ217: 7.214645313 | AR217: 7.050115203 | AS217: 6.885585093 | AT217: 6.721054984
E218: 2016-03-31 | G218: £m 18/19 prices | J218: > | L218: =(L74 * L$44 * $AV74) + (L124 * OR(L$94, $AV124)) + L177 -> 0 | M218: 0 | N218: 0 | O218: 0 | P218: 0 | Q218: 0 | R218: 0 | S218: 0 | T218: 0 | U218: 0 | V218: 0 | W218: 0 | X218: 0 | Y218: 0 | Z218: 0 | AA218: 0 | AB218: 0 | AC218: 0 | AD218: 0 | AE218: 0 | AF218: 0 | AG218: 0 | AH218: 0 | AI218: 0 | AJ218: 0 | AK218: 3.572626735 | AL218: 3.572626735 | AM218: 3.572626735 | AN218: 3.572626735 | AO218: 3.572626735 | AP218: 6.989921872 | AQ218: 6.834590275 | AR218: 6.679258678 | AS218: 6.523927081 | AT218: 6.368595484
E219: 2017-03-31 | G219: £m 18/19 prices | J219: > | L219: =(L75 * L$44 * $AV75) + (L125 * OR(L$94, $AV125)) + L178 -> 0 | M219: 0 | N219: 0 | O219: 0 | P219: 0 | Q219: 0 | R219: 0 | S219: 0 | T219: 0 | U219: 0 | V219: 0 | W219: 0 | X219: 0 | Y219: 0 | Z219: 0 | AA219: 0 | AB219: 0 | AC219: 0 | AD219: 0 | AE219: 0 | AF219: 0 | AG219: 0 | AH219: 0 | AI219: 0 | AJ219: 0 | AK219: 0 | AL219: 4.035463942 | AM219: 4.035463942 | AN219: 4.035463942 | AO219: 4.035463942 | AP219: 7.913018425 | AQ219: 7.737563471 | AR219: 7.562108517 | AS219: 7.386653563 | AT219: 7.211198609
E220: 2018-03-31 | G220: £m 18/19 prices | J220: > | L220: =(L76 * L$44 * $AV76) + (L126 * OR(L$94, $AV126)) + L179 -> 0 | M220: 0 | N220: 0 | O220: 0 | P220: 0 | Q220: 0 | R220: 0 | S220: 0 | T220: 0 | U220: 0 | V220: 0 | W220: 0 | X220: 0 | Y220: 0 | Z220: 0 | AA220: 0 | AB220: 0 | AC220: 0 | AD220: 0 | AE220: 0 | AF220: 0 | AG220: 0 | AH220: 0 | AI220: 0 | AJ220: 0 | AK220: 0 | AL220: 0 | AM220: 5.465536994 | AN220: 5.465536994 | AO220: 5.465536994 | AP220: 10.72908675 | AQ220: 10.49145471 | AR220: 10.25382267 | AS220: 10.01619062 | AT220: 9.778558579
E221: 2019-03-31 | G221: £m 18/19 prices | J221: > | L221: =(L77 * L$44 * $AV77) + (L127 * OR(L$94, $AV127)) + L180 -> 0 | M221: 0 | N221: 0 | O221: 0 | P221: 0 | Q221: 0 | R221: 0 | S221: 0 | T221: 0 | U221: 0 | V221: 0 | W221: 0 | X221: 0 | Y221: 0 | Z221: 0 | AA221: 0 | AB221: 0 | AC221: 0 | AD221: 0 | AE221: 0 | AF221: 0 | AG221: 0 | AH221: 0 | AI221: 0 | AJ221: 0 | AK221: 0 | AL221: 0 | AM221: 0 | AN221: 5.096210187 | AO221: 5.096210187 | AP221: 10.00408217 | AQ221: 9.782507815 | AR221: 9.560933459 | AS221: 9.339359103 | AT221: 9.117784747
E222: 2020-03-31 | G222: £m 18/19 prices | J222: > | L222: =(L78 * L$44 * $AV78) + (L128 * OR(L$94, $AV128)) + L181 -> 0 | M222: 0 | N222: 0 | O222: 0 | P222: 0 | Q222: 0 | R222: 0 | S222: 0 | T222: 0 | U222: 0 | V222: 0 | W222: 0 | X222: 0 | Y222: 0 | Z222: 0 | AA222: 0 | AB222: 0 | AC222: 0 | AD222: 0 | AE222: 0 | AF222: 0 | AG222: 0 | AH222: 0 | AI222: 0 | AJ222: 0 | AK222: 0 | AL222: 0 | AM222: 0 | AN222: 0 | AO222: 3.872423014 | AP222: 7.593316431 | AQ222: 7.424950213 | AR222: 7.256583995 | AS222: 7.088217777 | AT222: 6.919851559
E223: 2021-03-31 | G223: £m 18/19 prices | J223: > | L223: =(L79 * L$44 * $AV79) + (L129 * OR(L$94, $AV129)) + L182 -> 0 | M223: 0 | N223: 0 | O223: 0 | P223: 0 | Q223: 0 | R223: 0 | S223: 0 | T223: 0 | U223: 0 | V223: 0 | W223: 0 | X223: 0 | Y223: 0 | Z223: 0 | AA223: 0 | AB223: 0 | AC223: 0 | AD223: 0 | AE223: 0 | AF223: 0 | AG223: 0 | AH223: 0 | AI223: 0 | AJ223: 0 | AK223: 0 | AL223: 0 | AM223: 0 | AN223: 0 | AO223: 0 | AP223: 6.493104761 | AQ223: 6.348813544 | AR223: 6.204522327 | AS223: 6.060231111 | AT223: 5.915939894
E224: 2022-03-31 | G224: £m 18/19 prices | J224: > | L224: =(L80 * L$44 * $AV80) + (L130 * OR(L$94, $AV130)) + L183 -> 0 | M224: 0 | N224: 0 | O224: 0 | P224: 0 | Q224: 0 | R224: 0 | S224: 0 | T224: 0 | U224: 0 | V224: 0 | W224: 0 | X224: 0 | Y224: 0 | Z224: 0 | AA224: 0 | AB224: 0 | AC224: 0 | AD224: 0 | AE224: 0 | AF224: 0 | AG224: 0 | AH224: 0 | AI224: 0 | AJ224: 0 | AK224: 0 | AL224: 0 | AM224: 0 | AN224: 0 | AO224: 0 | AP224: 0 | AQ224: 8.538205722 | AR224: 8.348467817 | AS224: 8.158729912 | AT224: 7.968992007
E225: 2023-03-31 | G225: £m 18/19 prices | J225: > | L225: =(L81 * L$44 * $AV81) + (L131 * OR(L$94, $AV131)) + L184 -> 0 | M225: 0 | N225: 0 | O225: 0 | P225: 0 | Q225: 0 | R225: 0 | S225: 0 | T225: 0 | U225: 0 | V225: 0 | W225: 0 | X225: 0 | Y225: 0 | Z225: 0 | AA225: 0 | AB225: 0 | AC225: 0 | AD225: 0 | AE225: 0 | AF225: 0 | AG225: 0 | AH225: 0 | AI225: 0 | AJ225: 0 | AK225: 0 | AL225: 0 | AM225: 0 | AN225: 0 | AO225: 0 | AP225: 0 | AQ225: 0 | AR225: 11.79214717 | AS225: 11.53009946 | AT225: 11.26805174
E226: 2024-03-31 | G226: £m 18/19 prices | J226: > | L226: =(L82 * L$44 * $AV82) + (L132 * OR(L$94, $AV132)) + L185 -> 0 | M226: 0 | N226: 0 | O226: 0 | P226: 0 | Q226: 0 | R226: 0 | S226: 0 | T226: 0 | U226: 0 | V226: 0 | W226: 0 | X226: 0 | Y226: 0 | Z226: 0 | AA226: 0 | AB226: 0 | AC226: 0 | AD226: 0 | AE226: 0 | AF226: 0 | AG226: 0 | AH226: 0 | AI226: 0 | AJ226: 0 | AK226: 0 | AL226: 0 | AM226: 0 | AN226: 0 | AO226: 0 | AP226: 0 | AQ226: 0 | AR226: 0 | AS226: 12.06773803 | AT226: 11.79956608
E227: 2025-03-31 | G227: £m 18/19 prices | J227: > | L227: =(L83 * L$44 * $AV83) + (L133 * OR(L$94, $AV133)) + L186 -> 0 | M227: 0 | N227: 0 | O227: 0 | P227: 0 | Q227: 0 | R227: 0 | S227: 0 | T227: 0 | U227: 0 | V227: 0 | W227: 0 | X227: 0 | Y227: 0 | Z227: 0 | AA227: 0 | AB227: 0 | AC227: 0 | AD227: 0 | AE227: 0 | AF227: 0 | AG227: 0 | AH227: 0 | AI227: 0 | AJ227: 0 | AK227: 0 | AL227: 0 | AM227: 0 | AN227: 0 | AO227: 0 | AP227: 0 | AQ227: 0 | AR227: 0 | AS227: 0 | AT227: 6.78531667
E228: 2026-03-31 | G228: £m 18/19 prices
E229: Total | G229: £m 18/19 prices | L229: =SUM(L193:L228) -> 0 | M229: 0 | N229: 0 | O229: 0 | P229: 0 | Q229: 0 | R229: 0 | S229: 0 | T229: 0 | U229: 0 | V229: 0 | W229: 0 | X229: 0 | Y229: 8.734387553 | Z229: 11.54665382 | AA229: 20.3004352 | AB229: 36.08921114 | AC229: 53.18160008 | AD229: 60.41124314 | AE229: 64.00588177 | AF229: 66.92324529 | AG229: 69.87375794 | AH229: 69.03451795 | AI229: 73.75790396 | AJ229: 77.54209649 | AK229: 81.11472322 | AL229: 85.15018717 | AM229: 90.61572416 | AN229: 95.71193435 | AO229: 99.58435736 | AP229: 192.1721225 | AQ229: 196.2362824 | AR229: 203.3646457 | AS229: 210.5065523 | AT229: =SUM(AT193:AT228) -> 212.0978655
E231: Straight line depreciation check | G231: £m 18/19 prices | L231: =(L229 - L135) * L$94 -> 0 | M231: =(M229 - M135) * M$94 -> 0 | N231: 0 | O231: 0 | P231: 0 | Q231: 0 | R231: 0 | S231: 0 | T231: 0 | U231: 0 | V231: 0 | W231: 0 | X231: 0 | Y231: 0 | Z231: 0 | AA231: 0 | AB231: 0 | AC231: 0 | AD231: 0 | AE231: 0 | AF231: 0 | AG231: 0 | AH231: 0 | AI231: 0 | AJ231: 0 | AK231: 0 | AL231: 0 | AM231: 0 | AN231: 0 | AO231: 0 | AP231: 0 | AQ231: 0 | AR231: 0 | AS231: 0 | AT231: 0
E232: Sum of digits depreciation check | G232: £m 18/19 prices | L232: =(L229 - L85) * L$44 -> 0 | M232: 0 | N232: 0 | O232: 0 | P232: 0 | Q232: 0 | R232: 0 | S232: 0 | T232: 0 | U232: 0 | V232: 0 | W232: 0 | X232: 0 | Y232: 0 | Z232: 0 | AA232: 0 | AB232: 0 | AC232: 0 | AD232: 0 | AE232: 0 | AF232: 0 | AG232: 0 | AH232: 0 | AI232: 0 | AJ232: 0 | AK232: 0 | AL232: 0 | AM232: 0 | AN232: 0 | AO232: 0 | AP232: 37.08257338 | AQ232: 37.08257338 | AR232: 37.08257338 | AS232: 37.08257338 | AT232: 37.08257338
E233: Differential depreciation recovery | G233: £m 18/19 prices | L233: =- L188 -> 0 | M233: =- M188 -> 0 | N233: 0 | O233: 0 | P233: 0 | Q233: 0 | R233: 0 | S233: 0 | T233: 0 | U233: 0 | V233: 0 | W233: 0 | X233: 0 | Y233: 0 | Z233: 0 | AA233: 0 | AB233: 0 | AC233: 0 | AD233: 0 | AE233: 0 | AF233: 0 | AG233: 0 | AH233: 0 | AI233: 0 | AJ233: 0 | AK233: 0 | AL233: 0 | AM233: 0 | AN233: 0 | AO233: 0 | AP233: -37.08257338 | AQ233: -37.08257338 | AR233: -37.08257338 | AS233: -37.08257338 | AT233: -37.08257338
... 49 more rows

Sheet SystemOperator
A1: SystemOperator
B2: =UserInterface!G17 -> NGGT TO
E3: Parameter | F3: Licence condition | G3: Units | H3: Term | I3: Constant | AP3: Annual values | BC3: TIM/ Non-TIM | BD3: RPE Incl. or Excl. | BE3: Baseline/UM | BF3: Capitalisation method: Fast/slow split or 100% fast money award
E4: PCFM year ending | F4: =Cover!C4 -> Model Version | I4: =UserInterface!$G$10 -> 2022-03-31 | K4: 1991-03-31 | L4: 1992-03-31 | M4: 1993-03-31 | N4: 1994-03-31 | O4: 1995-03-31 | P4: 1996-03-31 | Q4: 1997-03-31 | R4: 1998-03-31 | S4: 1999-03-31 | T4: 2000-03-31 | U4: 2001-03-31 | V4: 2002-03-31 | W4: 2003-03-31 | X4: 2004-03-31 | Y4: 2005-03-31 | Z4: 2006-03-31 | AA4: 2007-03-31 | AB4: 2008-03-31 | AC4: 2009-03-31 | AD4: 2010-03-31 | AE4: 2011-03-31 | AF4: 2012-03-31 | AG4: 2013-03-31 | AH4: 2014-03-31 | AI4: 2015-03-31 | AJ4: 2016-03-31 | AK4: 2017-03-31 | AL4: 2018-03-31 | AM4: 2019-03-31 | AN4: 2020-03-31 | AO4: 2021-03-31 | AP4: 2022-03-31 | AQ4: 2023-03-31 | AR4: 2024-03-31 | AS4: 2025-03-31 | AT4: 2026-03-31
B6: Totex allowance
C8: Non-variant allowances
E10: Non-variant allowed non-operational capex | G10: £m 18/19 prices | AP10: ='NGGT SO'!AP10 -> 23.70941203 | AQ10: ='NGGT SO'!AQ10 -> 25.05542334 | AR10: ='NGGT SO'!AR10 -> 34.23950391 | AS10: ='NGGT SO'!AS10 -> 26.7243581 | AT10: ='NGGT SO'!AT10 -> 15.74056153
E11: Non-variant allowed controllable opex | G11: £m 18/19 prices | AP11: ='NGGT SO'!AP11 -> 60.03330202 | AQ11: ='NGGT SO'!AQ11 -> 59.90164167 | AR11: ='NGGT SO'!AR11 -> 59.1080299 | AS11: ='NGGT SO'!AS11 -> 59.78356972 | AT11: ='NGGT SO'!AT11 -> 58.86578915
E12: Total | G12: £m 18/19 prices | AP12: =SUM(AP10:AP11) -> 83.74271405 | AQ12: =SUM(AQ10:AQ11) -> 84.95706501 | AR12: 93.34753381 | AS12: 86.50792782 | AT12: 74.60635068
C14: Variant allowances (including Real Price Effects)
C15: Note: In the table below RPEs are aggregated in three groups: RPE non-variant allowances, PCDs and UMs.
E17: ='NGGT SO'!E16 -> Funded incremental obligated capacity Price Control Deliverable | G17: £m 18/19 prices | H17: ='NGGT SO'!H16 -> FIOCt | I17: ='NGGT SO'!I16 -> PCD | AP17: ='NGGT SO'!AP16 -> 0 | AQ17: ='NGGT SO'!AQ16 -> 0 | AR17: ='NGGT SO'!AR16 -> 0 | AS17: ='NGGT SO'!AS16 -> 0 | AT17: ='NGGT SO'!AT16 -> 0 | BC17: ='NGGT SO'!AY16 -> TIM | BD17: ='NGGT SO'!AZ16 -> RPEs Apply | BF17: ='NGGT SO'!BB16 -> Fast/Slow Split
E18: ='NGGT SO'!E17 -> Cyber Resilience OT Price Control Deliverable and use it or lose it allowance | G18: £m 18/19 prices | H18: ='NGGT SO'!H17 -> CROTt | I18: ='NGGT SO'!I17 -> PCD | AP18: ='NGGT SO'!AP17 -> 0 | AQ18: ='NGGT SO'!AQ17 -> 0 | AR18: ='NGGT SO'!AR17 -> 0 | AS18: ='NGGT SO'!AS17 -> 0 | AT18: ='NGGT SO'!AT17 -> 0 | BC18: ='NGGT SO'!AY17 -> Non-Tim | BD18: ='NGGT SO'!AZ17 -> RPEs Don’t Apply | BF18: ='NGGT SO'!BB17 -> Fast/Slow Split
E19: ='NGGT SO'!E18 -> Cyber Resilience IT Price Control Deliverable | G19: £m 18/19 prices | H19: ='NGGT SO'!H18 -> CRITt | I19: ='NGGT SO'!I18 -> PCD | AP19: ='NGGT SO'!AP18 -> 7.618179587 | AQ19: ='NGGT SO'!AQ18 -> 2.521049377 | AR19: ='NGGT SO'!AR18 -> 2.231013657 | AS19: ='NGGT SO'!AS18 -> 0 | AT19: ='NGGT SO'!AT18 -> 0 | BC19: ='NGGT SO'!AY18 -> TIM | BD19: ='NGGT SO'!AZ18 -> RPEs Apply | BF19: ='NGGT SO'!BB18 -> Fast/Slow Split
E20: ='NGGT SO'!E19 -> Spare PCD 1 | G20: £m 18/19 prices | H20: ='NGGT SO'!H19 -> 0 | I20: ='NGGT SO'!I19 -> PCD | AP20: ='NGGT SO'!AP19 -> 0 | AQ20: ='NGGT SO'!AQ19 -> 0 | AR20: ='NGGT SO'!AR19 -> 0 | AS20: ='NGGT SO'!AS19 -> 0 | AT20: ='NGGT SO'!AT19 -> 0 | BC20: ='NGGT SO'!AY19 -> 0 | BD20: ='NGGT SO'!AZ19 -> 0 | BF20: ='NGGT SO'!BB19 -> 0
E21: ='NGGT SO'!E20 -> Spare PCD 2 | G21: £m 18/19 prices | H21: ='NGGT SO'!H20 -> 0 | I21: ='NGGT SO'!I20 -> PCD | AP21: ='NGGT SO'!AP20 -> 0 | AQ21: ='NGGT SO'!AQ20 -> 0 | AR21: ='NGGT SO'!AR20 -> 0 | AS21: ='NGGT SO'!AS20 -> 0 | AT21: ='NGGT SO'!AT20 -> 0 | BC21: ='NGGT SO'!AY20 -> 0 | BD21: ='NGGT SO'!AZ20 -> 0 | BF21: ='NGGT SO'!BB20 -> 0
E22: ='NGGT SO'!E21 -> Spare PCD 3 | G22: £m 18/19 prices | H22: ='NGGT SO'!H21 -> 0 | I22: ='NGGT SO'!I21 -> PCD | AP22: ='NGGT SO'!AP21 -> 0 | AQ22: ='NGGT SO'!AQ21 -> 0 | AR22: ='NGGT SO'!AR21 -> 0 | AS22: ='NGGT SO'!AS21 -> 0 | AT22: ='NGGT SO'!AT21 -> 0 | BC22: ='NGGT SO'!AY21 -> 0 | BD22: ='NGGT SO'!AZ21 -> 0 | BF22: ='NGGT SO'!BB21 -> 0
E23: ='NGGT SO'!E22 -> Non-operational IT Capex Re-opener | G23: £m 18/19 prices | H23: ='NGGT SO'!H22 -> NOITt | I23: ='NGGT SO'!I22 -> UM | AP23: ='NGGT SO'!AP22 -> 0 | AQ23: ='NGGT SO'!AQ22 -> 0 | AR23: ='NGGT SO'!AR22 -> 0 | AS23: ='NGGT SO'!AS22 -> 0 | AT23: ='NGGT SO'!AT22 -> 0 | BC23: ='NGGT SO'!AY22 -> TIM | BD23: ='NGGT SO'!AZ22 -> RPEs Don’t Apply | BF23: ='NGGT SO'!BB22 -> Fast/Slow Split
E24: ='NGGT SO'!E23 -> Net zero Re-opener | G24: £m 18/19 prices | H24: ='NGGT SO'!H23 -> NZt | I24: ='NGGT SO'!I23 -> UM | AP24: ='NGGT SO'!AP23 -> 0 | AQ24: ='NGGT SO'!AQ23 -> 0 | AR24: ='NGGT SO'!AR23 -> 0 | AS24: ='NGGT SO'!AS23 -> 0 | AT24: ='NGGT SO'!AT23 -> 0 | BC24: ='NGGT SO'!AY23 -> TIM | BD24: ='NGGT SO'!AZ23 -> RPEs Don’t Apply | BF24: ='NGGT SO'!BB23 -> Fast/Slow Split
E25: ='NGGT SO'!E24 -> Cyber Resilience OT Re-Opener | G25: £m 18/19 prices | H25: ='NGGT SO'!H24 -> CROTREt | I25: ='NGGT SO'!I24 -> UM | AP25: ='NGGT SO'!AP24 -> 0 | AQ25: ='NGGT SO'!AQ24 -> 0 | AR25: ='NGGT SO'!AR24 -> 0 | AS25: ='NGGT SO'!AS24 -> 0 | AT25: ='NGGT SO'!AT24 -> 0 | BC25: ='NGGT SO'!AY24 -> TIM | BD25: ='NGGT SO'!AZ24 -> RPEs Don’t Apply | BF25: ='NGGT SO'!BB24 -> Fast/Slow Split
E26: ='NGGT SO'!E25 -> Cyber Resilience IT Re-Opener | G26: £m 18/19 prices | H26: ='NGGT SO'!H25 -> CRITREt | I26: ='NGGT SO'!I25 -> UM | AP26: ='NGGT SO'!AP25 -> 0 | AQ26: ='NGGT SO'!AQ25 -> 0 | AR26: ='NGGT SO'!AR25 -> 0 | AS26: ='NGGT SO'!AS25 -> 0 | AT26: ='NGGT SO'!AT25 -> 0 | BC26: ='NGGT SO'!AY25 -> Non-Tim | BD26: ='NGGT SO'!AZ25 -> RPEs Don’t Apply | BF26: ='NGGT SO'!BB25 -> Fast/Slow Split
E27: ='NGGT SO'!E26 -> Funded incremental obligated capacity Re-Opener | G27: £m 18/19 prices | H27: ='NGGT SO'!H26 -> FIOCREt | I27: ='NGGT SO'!I26 -> UM | AP27: ='NGGT SO'!AP26 -> 0 | AQ27: ='NGGT SO'!AQ26 -> 0 | AR27: ='NGGT SO'!AR26 -> 0 | AS27: ='NGGT SO'!AS26 -> 0 | AT27: ='NGGT SO'!AT26 -> 0 | BC27: ='NGGT SO'!AY26 -> TIM | BD27: ='NGGT SO'!AZ26 -> RPEs Don’t Apply | BF27: ='NGGT SO'!BB26 -> Fast/Slow Split
E28: ='NGGT SO'!E27 -> Opex Escalator | G28: £m 18/19 prices | H28: ='NGGT SO'!H27 -> OEt | I28: ='NGGT SO'!I27 -> UM | AP28: ='NGGT SO'!AP27 -> 0 | AQ28: ='NGGT SO'!AQ27 -> 0 | AR28: ='NGGT SO'!AR27 -> 0 | AS28: ='NGGT SO'!AS27 -> 0 | AT28: ='NGGT SO'!AT27 -> 0 | BC28: ='NGGT SO'!AY27 -> TIM | BD28: ='NGGT SO'!AZ27 -> RPEs Don’t Apply | BF28: ='NGGT SO'!BB27 -> Fast/Slow Split
E29: ='NGGT SO'!E28 -> Spare UM 1 | G29: £m 18/19 prices | H29: ='NGGT SO'!H28 -> 0 | I29: ='NGGT SO'!I28 -> UM | AP29: ='NGGT SO'!AP28 -> 0 | AQ29: ='NGGT SO'!AQ28 -> 0 | AR29: ='NGGT SO'!AR28 -> 0 | AS29: ='NGGT SO'!AS28 -> 0 | AT29: ='NGGT SO'!AT28 -> 0 | BC29: ='NGGT SO'!AY28 -> 0 | BD29: ='NGGT SO'!AZ28 -> 0 | BF29: ='NGGT SO'!BB28 -> 0
E30: ='NGGT SO'!E29 -> Spare UM 2 | G30: £m 18/19 prices | H30: ='NGGT SO'!H29 -> 0 | I30: ='NGGT SO'!I29 -> UM | AP30: ='NGGT SO'!AP29 -> 0 | AQ30: ='NGGT SO'!AQ29 -> 0 | AR30: ='NGGT SO'!AR29 -> 0 | AS30: ='NGGT SO'!AS29 -> 0 | AT30: ='NGGT SO'!AT29 -> 0 | BC30: ='NGGT SO'!AY29 -> 0 | BD30: ='NGGT SO'!AZ29 -> 0 | BF30: ='NGGT SO'!BB29 -> 0
E31: ='NGGT SO'!E30 -> Spare UM 3 | G31: £m 18/19 prices | H31: ='NGGT SO'!H30 -> 0 | I31: ='NGGT SO'!I30 -> UM | AP31: ='NGGT SO'!AP30 -> 0 | AQ31: ='NGGT SO'!AQ30 -> 0 | AR31: ='NGGT SO'!AR30 -> 0 | AS31: ='NGGT SO'!AS30 -> 0 | AT31: ='NGGT SO'!AT30 -> 0 | BC31: ='NGGT SO'!AY30 -> 0 | BD31: ='NGGT SO'!AZ30 -> 0 | BF31: ='NGGT SO'!BB30 -> 0
E32: RPE non-variant allowances | G32: £m 18/19 prices | H32: ='NGGT SO'!H31 -> RPEAt (non-variant) | I32: ='NGGT SO'!I31 -> UM | AP32: =SUMPRODUCT((AP$243:AP$248) * ($E$243:$E$248 = $E32)) -> 0.6889561488 | AQ32: =SUMPRODUCT((AQ$243:AQ$248) * ($E$243:$E$248 = $E32)) -> 1.489567255 | AR32: =SUMPRODUCT((AR$243:AR$248) * ($E$243:$E$248 = $E32)) -> 2.696399283 | AS32: =SUMPRODUCT((AS$243:AS$248) * ($E$243:$E$248 = $E32)) -> 3.576326784 | AT32: =SUMPRODUCT((AT$243:AT$248) * ($E$243:$E$248 = $E32)) -> 3.993537628 | BC32: ='NGGT SO'!AY31 -> TIM | BD32: ='NGGT SO'!AZ31 -> 0 | BF32: ='NGGT SO'!BB31 -> Fast/Slow Split
E33: RPE PCDs | G33: £m 18/19 prices | H33: ='NGGT SO'!H32 -> RPEAt (PCD) | I33: ='NGGT SO'!I32 -> UM | AP33: =SUMPRODUCT((AP$243:AP$248) * ($E$243:$E$248 = $E33)) -> 0.06267520379 | AQ33: =SUMPRODUCT((AQ$243:AQ$248) * ($E$243:$E$248 = $E33)) -> 0.04420200486 | AR33: =SUMPRODUCT((AR$243:AR$248) * ($E$243:$E$248 = $E33)) -> 0.06444416236 | AS33: =SUMPRODUCT((AS$243:AS$248) * ($E$243:$E$248 = $E33)) -> 0 | AT33: =SUMPRODUCT((AT$243:AT$248) * ($E$243:$E$248 = $E33)) -> 0 | BC33: ='NGGT SO'!AY32 -> TIM | BD33: ='NGGT SO'!AZ32 -> 0 | BF33: ='NGGT SO'!BB32 -> Fast/Slow Split
E34: RPE UMs | G34: £m 18/19 prices | H34: ='NGGT SO'!H33 -> RPEAt (UM) | I34: ='NGGT SO'!I33 -> UM | AP34: =SUMPRODUCT((AP$243:AP$248) * ($E$243:$E$248 = $E34)) -> 0 | AQ34: =SUMPRODUCT((AQ$243:AQ$248) * ($E$243:$E$248 = $E34)) -> 0 | AR34: =SUMPRODUCT((AR$243:AR$248) * ($E$243:$E$248 = $E34)) -> 0 | AS34: =SUMPRODUCT((AS$243:AS$248) * ($E$243:$E$248 = $E34)) -> 0 | AT34: =SUMPRODUCT((AT$243:AT$248) * ($E$243:$E$248 = $E34)) -> 0 | BC34: ='NGGT SO'!AY33 -> TIM | BD34: ='NGGT SO'!AZ33 -> 0 | BF34: ='NGGT SO'!BB33 -> Fast/Slow Split
E35: Total | G35: £m 18/19 prices | AP35: =SUM(AP17:AP34) -> 8.369810939 | AQ35: =SUM(AQ17:AQ34) -> 4.054818637 | AR35: =SUM(AR17:AR34) -> 4.991857102 | AS35: =SUM(AS17:AS34) -> 3.576326784 | AT35: =SUM(AT17:AT34) -> 3.993537628
B37: Actual totex
E39: Actual non-operational capex | G39: £m 18/19 prices | H39: ='NGGT SO'!H37 -> SOANC | J39: > | AH39: ='NGGT SO'!AH37 -> 23.25979109 | AI39: ='NGGT SO'!AI37 -> 35.83073775 | AJ39: ='NGGT SO'!AJ37 -> 46.96102538 | AK39: ='NGGT SO'!AK37 -> 35.21823597 | AL39: ='NGGT SO'!AL37 -> 27.25678642 | AM39: ='NGGT SO'!AM37 -> 32.7027055 | AN39: ='NGGT SO'!AN37 -> 36.63263473 | AO39: ='NGGT SO'!AO37 -> 27.09251652 | AP39: ='NGGT SO'!AP37 -> 28.5129836 | AQ39: ='NGGT SO'!AQ37 -> 27.03387534 | AR39: ='NGGT SO'!AR37 -> 36.60580713 | AS39: ='NGGT SO'!AS37 -> 27.82917058 | AT39: ='NGGT SO'!AT37 -> 16.58312418
E40: Actual controllable opex | G40: £m 18/19 prices | H40: ='NGGT SO'!H38 -> SOACO | J40: > | AH40: ='NGGT SO'!AH38 -> 54.75917619 | AI40: ='NGGT SO'!AI38 -> 61.08685195 | AJ40: ='NGGT SO'!AJ38 -> 62.55900663 | AK40: ='NGGT SO'!AK38 -> 63.03785464 | AL40: ='NGGT SO'!AL38 -> 61.83012175 | AM40: ='NGGT SO'!AM38 -> 61.61687391 | AN40: ='NGGT SO'!AN38 -> 62.37641989 | AO40: ='NGGT SO'!AO38 -> 67.17318876 | AP40: ='NGGT SO'!AP38 -> 63.59954139 | AQ40: ='NGGT SO'!AQ38 -> 61.97800831 | AR40: ='NGGT SO'!AR38 -> 61.73358379 | AS40: ='NGGT SO'!AS38 -> 62.25508403 | AT40: ='NGGT SO'!AT38 -> 62.01676413
E41: Total | G41: £m 18/19 prices | J41: > | AH41: =SUM(AH39:AH40) -> 78.01896728 | AI41: =SUM(AI39:AI40) -> 96.9175897 | AJ41: 109.520032 | AK41: 98.25609061 | AL41: 89.08690817 | AM41: 94.31957941 | AN41: 99.00905461 | AO41: 94.26570527 | AP41: 92.11252499 | AQ41: 89.01188365 | AR41: 98.33939091 | AS41: 90.0842546 | AT41: 78.59988831
B43: Pass-through costs
E45: ='NGGT SO'!E42 -> CDSP Costs | G45: £m 18/19 prices | H45: ='NGGT SO'!H42 -> CDSPt | AP45: ='NGGT SO'!AP42 -> 2.463080981 | AQ45: ='NGGT SO'!AQ42 -> 2.439006956 | AR45: ='NGGT SO'!AR42 -> 2.439165078 | AS45: ='NGGT SO'!AS42 -> 2.4393232 | AT45: ='NGGT SO'!AT42 -> 2.239639443
E46: ='NGGT SO'!E43 -> Bad Debt | G46: £m 18/19 prices | H46: ='NGGT SO'!H43 -> SOBDt | AP46: ='NGGT SO'!AP43 -> 2 | AQ46: ='NGGT SO'!AQ43 -> 0 | AR46: ='NGGT SO'!AR43 -> 0 | AS46: ='NGGT SO'!AS43 -> 0 | AT46: ='NGGT SO'!AT43 -> 0
E47: ='NGGT SO'!E44 -> Pension Scheme Established Deficit | G47: £m 18/19 prices | H47: ='NGGT SO'!H44 -> SOEDEt | AP47: ='NGGT SO'!AP44 -> 0.6565147536 | AQ47: ='NGGT SO'!AQ44 -> 0.6565147536 | AR47: ='NGGT SO'!AR44 -> 0.5252118029 | AS47: ='NGGT SO'!AS44 -> 0 | AT47: ='NGGT SO'!AT44 -> 0
E48: Pass-through expenditure | G48: £m 18/19 prices | H48: SOPTt | AP48: =SUM(AP45:AP47) -> 5.119595735 | AQ48: =SUM(AQ45:AQ47) -> 3.09552171 | AR48: =SUM(AR45:AR47) -> 2.964376881 | AS48: =SUM(AS45:AS47) -> 2.4393232 | AT48: =SUM(AT45:AT47) -> 2.239639443
B50: Other revenue allowances
C52: Other revenue allowances calculation
C53: Note: CMt and SOIRCt components are sourced from the Variable Values table in nominal prices and converted in real 2018/19 prices below.
E55: ='NGGT SO'!E48 -> Constraint management incentive revenue | G55: £m 18/19 prices | H55: ='NGGT SO'!H48 -> CMIRt | AP55: ='NGGT SO'!AP48 /SOpf -> 0 | AQ55: ='NGGT SO'!AQ48 /SOpf -> 0 | AR55: ='NGGT SO'!AR48 /SOpf -> 0 | AS55: ='NGGT SO'!AS48 /SOpf -> 0 | AT55: ='NGGT SO'!AT48 /SOpf -> 0
E56: ='NGGT SO'!E49 -> Revenue from accelerated release of incr. obl. entry capacity | G56: £m 18/19 prices | H56: ='NGGT SO'!H49 -> RAREnCAt | AP56: ='NGGT SO'!AP49 /SOpf -> 0 | AQ56: ='NGGT SO'!AQ49 /SOpf -> 0 | AR56: ='NGGT SO'!AR49 /SOpf -> 0 | AS56: ='NGGT SO'!AS49 /SOpf -> 0 | AT56: ='NGGT SO'!AT49 /SOpf -> 0
E57: ='NGGT SO'!E50 -> Exit capacity buyback cost which users are liable to reimbourse | G57: £m 18/19 prices | H57: ='NGGT SO'!H50 -> ExBBCNLRAt | AP57: ='NGGT SO'!AP50 /SOpf -> 0 | AQ57: ='NGGT SO'!AQ50 /SOpf -> 0 | AR57: ='NGGT SO'!AR50 /SOpf -> 0 | AS57: ='NGGT SO'!AS50 /SOpf -> 0 | AT57: ='NGGT SO'!AT50 /SOpf -> 0
E58: Entry capacity and exit capacity constraint management | G58: £m 18/19 prices | H58: CMt | AP58: =SUM(AP55:AP57) -> 0 | AQ58: =SUM(AQ55:AQ57) -> 0 | AR58: =SUM(AR55:AR57) -> 0 | AS58: =SUM(AS55:AS57) -> 0 | AT58: =SUM(AT55:AT57) -> 0
E60: ='NGGT SO'!E52 -> Revenue for net residual balancing costs | G60: £m 18/19 prices | H60: ='NGGT SO'!H52 -> RBCt | AP60: ='NGGT SO'!AP52 /SOpf -> 7.71699402 | AQ60: ='NGGT SO'!AQ52 /SOpf -> 7.595632382 | AR60: ='NGGT SO'!AR52 /SOpf -> 7.46272999 | AS60: ='NGGT SO'!AS52 /SOpf -> 7.3212025 | AT60: ='NGGT SO'!AT52 /SOpf -> 7.177892618
E61: ='NGGT SO'!E53 -> Total costs for procurement of operating margin services | G61: £m 18/19 prices | H61: ='NGGT SO'!H53 -> OMCt | AP61: ='NGGT SO'!AP53 /SOpf -> 9.595179072 | AQ61: ='NGGT SO'!AQ53 /SOpf -> 9.444280076 | AR61: ='NGGT SO'!AR53 /SOpf -> 9.279031503 | AS61: ='NGGT SO'!AS53 /SOpf -> 9.10305863 | AT61: ='NGGT SO'!AT53 /SOpf -> 8.924869561
E62: ='NGGT SO'!E54 -> System costs | G62: £m 18/19 prices | H62: ='NGGT SO'!H54 -> SCt | AP62: ='NGGT SO'!AP54 /SOpf -> 70.20631024 | AQ62: ='NGGT SO'!AQ54 /SOpf -> 64.42682151 | AR62: ='NGGT SO'!AR54 /SOpf -> 63.29953174 | AS62: ='NGGT SO'!AS54 /SOpf -> 62.09908313 | AT62: ='NGGT SO'!AT54 /SOpf -> 60.88351612
E63: ='NGGT SO'!E55 -> Residual balancing incentive | G63: £m 18/19 prices | H63: ='NGGT SO'!H55 -> RBIRt | AP63: ='NGGT SO'!AP55 /SOpf -> 0 | AQ63: ='NGGT SO'!AQ55 /SOpf -> 0 | AR63: ='NGGT SO'!AR55 /SOpf -> 0 | AS63: ='NGGT SO'!AS55 /SOpf -> 0 | AT63: ='NGGT SO'!AT55 /SOpf -> 0
E64: ='NGGT SO'!E56 -> Quality of demand forecasting incentive | G64: £m 18/19 prices | H64: ='NGGT SO'!H56 -> QDAIRt | AP64: ='NGGT SO'!AP56 /SOpf -> 0 | AQ64: ='NGGT SO'!AQ56 /SOpf -> 0 | AR64: ='NGGT SO'!AR56 /SOpf -> 0 | AS64: ='NGGT SO'!AS56 /SOpf -> 0 | AT64: ='NGGT SO'!AT56 /SOpf -> 0
E65: ='NGGT SO'!E57 -> Greenhouse gas emissions incentive | G65: £m 18/19 prices | H65: ='NGGT SO'!H57 -> GHGIRt | AP65: ='NGGT SO'!AP57 /SOpf -> 0 | AQ65: ='NGGT SO'!AQ57 /SOpf -> 0 | AR65: ='NGGT SO'!AR57 /SOpf -> 0 | AS65: ='NGGT SO'!AS57 /SOpf -> 0 | AT65: ='NGGT SO'!AT57 /SOpf -> 0
E66: ='NGGT SO'!E58 -> Maintenance incentive | G66: £m 18/19 prices | H66: ='NGGT SO'!H58 -> MIRt | AP66: ='NGGT SO'!AP58 /SOpf -> 0 | AQ66: ='NGGT SO'!AQ58 /SOpf -> 0 | AR66: ='NGGT SO'!AR58 /SOpf -> 0 | AS66: ='NGGT SO'!AS58 /SOpf -> 0 | AT66: ='NGGT SO'!AT58 /SOpf -> 0
E67: SO external incentives, revenues and costs | G67: £m 18/19 prices | H67: SOIRCt | AP67: =SUM(AP60:AP66) -> 87.51848334 | AQ67: =SUM(AQ60:AQ66) -> 81.46673397 | AR67: =SUM(AR60:AR66) -> 80.04129323 | AS67: =SUM(AS60:AS66) -> 78.52334426 | AT67: =SUM(AT60:AT66) -> 76.9862783
E69: ='NGGT SO'!E60 -> Pre-RIIO-1 pension true-up | G69: £m 18/19 prices | H69: SOPRPNt | I69: ='NGGT SO'!I60 -> -1.248631689 | AP69: =($I$69/9)*(1+$AH$122)*(1+$AI$122)*(1+$AJ$122)*(1+$AK$122)*(1+$AL$122)*(1+$AM$122)*(1+$AN$122)*(1+$AO$122)*(1+$AP$122) * (AP$4 = $I$127) -> -0.1940453556 | AQ69: =($I$69/9)*(1+$AH$122)*(1+$AI$122)*(1+$AJ$122)*(1+$AK$122)*(1+$AL$122)*(1+$AM$122)*(1+$AN$122)*(1+$AO$122)*(1+$AP$122) * (AQ$4 = $I$127) -> 0 | AR69: =($I$69/9)*(1+$AH$122)*(1+$AI$122)*(1+$AJ$122)*(1+$AK$122)*(1+$AL$122)*(1+$AM$122)*(1+$AN$122)*(1+$AO$122)*(1+$AP$122) * (AR$4 = $I$127) -> 0 | AS69: =($I$69/9)*(1+$AH$122)*(1+$AI$122)*(1+$AJ$122)*(1+$AK$122)*(1+$AL$122)*(1+$AM$122)*(1+$AN$122)*(1+$AO$122)*(1+$AP$122) * (AS$4 = $I$127) -> 0 | AT69: =($I$69/9)*(1+$AH$122)*(1+$AI$122)*(1+$AJ$122)*(1+$AK$122)*(1+$AL$122)*(1+$AM$122)*(1+$AN$122)*(1+$AO$122)*(1+$AP$122) * (AT$4 = $I$127) -> 0
C71: Other revenue allowances summary
I72: Assumed cost multipliers:
E73: =E58 -> Entry capacity and exit capacity constraint management | G73: £m 18/19 prices | H73: =H58 -> CMt | I73: ='NGGT SO'!I177 -> 1 | AP73: =AP58 -> 0 | AQ73: =AQ58 -> 0 | AR73: =AR58 -> 0 | AS73: =AS58 -> 0 | AT73: =AT58 -> 0
E74: =E67 -> SO external incentives, revenues and costs | G74: £m 18/19 prices | H74: =H67 -> SOIRCt | I74: ='NGGT SO'!I178 -> 1 | AP74: =AP67 -> 87.51848334 | AQ74: =AQ67 -> 81.46673397 | AR74: =AR67 -> 80.04129323 | AS74: =AS67 -> 78.52334426 | AT74: =AT67 -> 76.9862783
E75: =E69 -> Pre-RIIO-1 pension true-up | G75: £m 18/19 prices | H75: =H69 -> SOPRPNt | I75: ='NGGT SO'!I179 -> 0 | AP75: =AP69 -> -0.1940453556 | AQ75: =AQ69 -> 0 | AR75: =AR69 -> 0 | AS75: =AS69 -> 0 | AT75: =AT69 -> 0
E76: Total other revenue | G76: £m 18/19 prices | H76: SOORAt | AP76: =SUM(AP73:AP75) -> 87.32443798 | AQ76: =SUM(AQ73:AQ75) -> 81.46673397 | AR76: =SUM(AR73:AR75) -> 80.04129323 | AS76: =SUM(AS73:AS75) -> 78.52334426 | AT76: =SUM(AT73:AT75) -> 76.9862783
E78: Costs associated with "Other revenue" | G78: £m 18/19 prices | AP78: =SUMPRODUCT((AP73:AP75) * ($I73:$I75)) -> 87.51848334 | AQ78: =SUMPRODUCT((AQ73:AQ75) * ($I73:$I75)) -> 81.46673397 | AR78: =SUMPRODUCT((AR73:AR75) * ($I73:$I75)) -> 80.04129323 | AS78: =SUMPRODUCT((AS73:AS75) * ($I73:$I75)) -> 78.52334426 | AT78: =SUMPRODUCT((AT73:AT75) * ($I73:$I75)) -> 76.9862783
B80: Legacy adjustments
E82: ='NGGT SO'!E64 -> System Operator legacy MOD | G82: £m nominal | H82: ='NGGT SO'!H64 -> SOLMODt | AP82: ='NGGT SO'!AP64 -> -3.75316675 | AQ82: ='NGGT SO'!AQ64 -> -3.580445093 | AR82: ='NGGT SO'!AR64 -> 0 | AS82: ='NGGT SO'!AS64 -> 0 | AT82: ='NGGT SO'!AT64 -> 0
E83: ='NGGT SO'!E65 -> System Operator legacy K correction | G83: £m nominal | H83: ='NGGT SO'!H65 -> SOLKt | AP83: ='NGGT SO'!AP65 -> 21.23851321 | AQ83: ='NGGT SO'!AQ65 -> 0 | AR83: ='NGGT SO'!AR65 -> 0 | AS83: ='NGGT SO'!AS65 -> 0 | AT83: ='NGGT SO'!AT65 -> 0
E84: ='NGGT SO'!E66 -> System Operator legacy TRU term | G84: £m nominal | H84: ='NGGT SO'!H66 -> SOLTRUt | AP84: ='NGGT SO'!AP66 -> -1.349707919 | AQ84: ='NGGT SO'!AQ66 -> -0.1888359818 | AR84: ='NGGT SO'!AR66 -> 0 | AS84: ='NGGT SO'!AS66 -> 0 | AT84: ='NGGT SO'!AT66 -> 0
E85: ='NGGT SO'!E67 -> Close out of the RIIO-GT1 entry and exit capacity constraint management incentive | G85: £m nominal | H85: ='NGGT SO'!H67 -> LCMIRt | AP85: ='NGGT SO'!AP67 -> 16.4804979 | AQ85: ='NGGT SO'!AQ67 -> 14.72215699 | AR85: ='NGGT SO'!AR67 -> 0 | AS85: ='NGGT SO'!AS67 -> 0 | AT85: ='NGGT SO'!AT67 -> 0
E86: ='NGGT SO'!E68 -> Close out of the RIIO-GT1 constraint management cost adjustment | G86: £m nominal | H86: ='NGGT SO'!H68 -> LCMCAt | AP86: ='NGGT SO'!AP68 -> -38.36360268 | AQ86: ='NGGT SO'!AQ68 -> -39.22207575 | AR86: ='NGGT SO'!AR68 -> 0 | AS86: ='NGGT SO'!AS68 -> 0 | AT86: ='NGGT SO'!AT68 -> 0
E87: ='NGGT SO'!E69 -> Close out of the RIIO-GT1 transportation support services adjustment | G87: £m nominal | H87: ='NGGT SO'!H69 -> LTSSt | AP87: ='NGGT SO'!AP69 -> 0 | AQ87: ='NGGT SO'!AQ69 -> 0 | AR87: ='NGGT SO'!AR69 -> 0 | AS87: ='NGGT SO'!AS69 -> 0 | AT87: ='NGGT SO'!AT69 -> 0
E88: Legacy adjustments | G88: £m nominal | H88: SOLARt | AP88: =SUM(AP82:AP87) -> -5.747466247 | AQ88: =SUM(AQ82:AQ87) -> -28.26919984 | AR88: 0 | AS88: 0 | AT88: 0
B90: Finance inputs
C92: Allowed return on debt
E94: ='NGGT SO'!E74 -> iBoxx trailing average | G94: annual real % | H94: ='NGGT SO'!H74 -> iBTAt | AP94: ='NGGT SO'!AP74 -> 0.0205 | AQ94: ='NGGT SO'!AQ74 -> 0.019 | AR94: ='NGGT SO'!AR74 -> 0.018 | AS94: ='NGGT SO'!AS74 -> 0.0171 | AT94: ='NGGT SO'!AT74 -> 0.0165
E95: ='NGGT SO'!E119 -> Uplift on iBoxx trailing average | G95: annual real % | H95: ='NGGT SO'!H119 -> CDEUt | AP95: ='NGGT SO'!AP119 -> 0 | AQ95: ='NGGT SO'!AQ119 -> 0 | AR95: ='NGGT SO'!AR119 -> 0 | AS95: ='NGGT SO'!AS119 -> 0 | AT95: ='NGGT SO'!AT119 -> 0
E96: Allowed return on debt | G96: annual real % | H96: SOCDEt | AP96: =SUM(AP94:AP95) -> 0.0205 | AQ96: =SUM(AQ94:AQ95) -> 0.019 | AR96: 0.018 | AS96: 0.0171 | AT96: 0.0165
C98: Allowed return on equity
E100: ='NGGT SO'!E75 -> Risk-free rate | G100: annual real % | H100: ='NGGT SO'!H75 -> SORFRt | AP100: ='NGGT SO'!AP75 -> -0.0171 | AQ100: ='NGGT SO'!AQ75 -> -0.0166 | AR100: ='NGGT SO'!AR75 -> -0.0158 | AS100: ='NGGT SO'!AS75 -> -0.0151 | AT100: ='NGGT SO'!AT75 -> -0.0143
E101: Equity Beta | G101: scalar | AP101: ='NGGT SO'!AP121 -> 0.75861 | AQ101: ='NGGT SO'!AQ121 -> 0.75861 | AR101: ='NGGT SO'!AR121 -> 0.75861 | AS101: ='NGGT SO'!AS121 -> 0.75861 | AT101: ='NGGT SO'!AT121 -> 0.75861
E102: Total Market Return | G102: % | AP102: ='NGGT SO'!AP122 -> 0.065 | AQ102: ='NGGT SO'!AQ122 -> 0.065 | AR102: ='NGGT SO'!AR122 -> 0.065 | AS102: ='NGGT SO'!AS122 -> 0.065 | AT102: ='NGGT SO'!AT122 -> 0.065
E104: Cost of equity at 60% gearing | G104: annual real % | AP104: =AP100 + AP101 * (AP102 - AP100) -> 0.045181881 | AQ104: =AQ100 + AQ101 * (AQ102 - AQ100) -> 0.045302576 | AR104: 0.045495688 | AS104: 0.045664661 | AT104: 0.045857773
E105: Expected outperformance at 60% gearing | G105: % | AP105: ='NGGT SO'!AP127 -> 0.0025 | AQ105: ='NGGT SO'!AQ127 -> 0.0025 | AR105: ='NGGT SO'!AR127 -> 0.0025 | AS105: ='NGGT SO'!AS127 -> 0.0025 | AT105: ='NGGT SO'!AT127 -> 0.0025
E106: Allowed return on equity at 60% gearing | G106: annual real % | AP106: =AP104 - AP105 -> 0.042681881 | AQ106: =AQ104 - AQ105 -> 0.042802576 | AR106: 0.042995688 | AS106: 0.043164661 | AT106: 0.043357773
E107: Benchmark gearing (60%) | G107: % | AP107: ='NGGT SO'!AP123 -> 0.6 | AQ107: ='NGGT SO'!AQ123 -> 0.6 | AR107: ='NGGT SO'!AR123 -> 0.6 | AS107: ='NGGT SO'!AS123 -> 0.6 | AT107: ='NGGT SO'!AT123 -> 0.6
E108: Vanilla WACC at 60% gearing | G108: annual real % | AP108: =(AP96 * AP107) + (AP104 * (1 - AP107)) -> 0.0303727524 | AQ108: =(AQ96 * AQ107) + (AQ104 * (1 - AQ107)) -> 0.0295210304 | AR108: 0.0289982752 | AS108: 0.0285258644 | AT108: 0.0282431092
E109: Allowed return on capital at 60% gearing | G109: annual real % | AP109: =(AP96* AP107) + (AP106 * (1 - AP107)) -> 0.0293727524 | AQ109: =(AQ96* AQ107) + (AQ106 * (1 - AQ107)) -> 0.0285210304 | AR109: 0.0279982752 | AS109: 0.0275258644 | AT109: 0.0272431092
E111: Notional gearing | G111: % | AP111: ='NGGT SO'!AP125 -> 0.6 | AQ111: ='NGGT SO'!AQ125 -> 0.6 | AR111: ='NGGT SO'!AR125 -> 0.6 | AS111: ='NGGT SO'!AS125 -> 0.6 | AT111: ='NGGT SO'!AT125 -> 0.6
E112: Cost of equity at notional gearing | G112: annual real % | AP112: =(AP108 - (AP111 * AP96)) / (1 - AP111) -> 0.045181881 | AQ112: =(AQ108 - (AQ111 * AQ96)) / (1 - AQ111) -> 0.045302576 | AR112: 0.045495688 | AS112: 0.045664661 | AT112: 0.045857773
E113: Allowed return on equity | G113: annual real % | AP113: =(AP109 - (AP96 * AP111)) / (1 - AP111) -> 0.042681881 | AQ113: =(AQ109 - (AQ96 * AQ111)) / (1 - AQ111) -> 0.042802576 | AR113: 0.042995688 | AS113: 0.043164661 | AT113: 0.043357773
E114: Expected outperformance at notional gearing | G114: % | AP114: =AP112 - AP113 -> 0.0025 | AQ114: =AQ112 - AQ113 -> 0.0025 | AR114: 0.0025 | AS114: 0.0025 | AT114: 0.0025
C116: Vanilla allowed return on capital
E118: Allowed return on debt | G118: annual real % | J118: > | AP118: =AP96 -> 0.0205 | AQ118: =AQ96 -> 0.019 | AR118: 0.018 | AS118: 0.0171 | AT118: 0.0165
E119: Allowed return on equity | G119: annual real % | J119: > | AP119: =AP106 -> 0.042681881 | AQ119: =AQ106 -> 0.042802576 | AR119: 0.042995688 | AS119: 0.043164661 | AT119: 0.043357773
E120: Notional gearing | G120: % | J120: > | AP120: =AP111 -> 0.6 | AQ120: =AQ111 -> 0.6 | AR120: =AR111 -> 0.6 | AS120: =AS111 -> 0.6 | AT120: =AT111 -> 0.6
E122: Vanilla allowed return on capital | G122: annual real % | J122: > | AH122: ='NGGT SO'!AH129 -> 0.04375 | AI122: ='NGGT SO'!AI129 -> 0.0425 | AJ122: ='NGGT SO'!AJ129 -> 0.0414375 | AK122: ='NGGT SO'!AK129 -> 0.040375 | AL122: ='NGGT SO'!AL129 -> 0.039375 | AM122: ='NGGT SO'!AM129 -> 0.0374375 | AN122: ='NGGT SO'!AN129 -> 0.035375 | AO122: ='NGGT SO'!AO129 -> 0.0323125 | AP122: =(AP118 * AP120) + (AP119 * (1 - AP120)) -> 0.0293727524 | AQ122: =(AQ118 * AQ120) + (AQ119 * (1 - AQ120)) -> 0.0285210304 | AR122: 0.0279982752 | AS122: 0.0275258644 | AT122: 0.0272431092
E123: Vanilla Weighted Average Cost of Capital | G123: annual real % | J123: > | AH123: =AH122 -> 0.04375 | AI123: =AI122 -> 0.0425 | AJ123: 0.0414375 | AK123: 0.040375 | AL123: 0.039375 | AM123: 0.0374375 | AN123: 0.035375 | AO123: =AO122 -> 0.0323125 | AP123: =(AP118 * AP120) + (AP112 * (1 - AP120)) -> 0.0303727524 | AQ123: =(AQ118 * AQ120) + (AQ112 * (1 - AQ120)) -> 0.0295210304 | AR123: 0.0289982752 | AS123: 0.0285258644 | AT123: 0.0282431092
C125: Inflation and price conversion
E127: Start of RIIO-2 | G127: year ending | I127: ='Annual Inflation'!I15 -> 2022-03-31
D129: Price indices and inflation rates
E131: Retail Prices Index (financial year average) | F131: Spc2.1 | G131: index value | H131: RPIt | J131: > | V131: ='Annual Inflation'!V23 -> 173.875 | W131: ='Annual Inflation'!W23 -> 177.5166667 | X131: ='Annual Inflation'!X23 -> 182.475 | Y131: ='Annual Inflation'!Y23 -> 188.15 | Z131: ='Annual Inflation'!Z23 -> 193.1083333 | AA131: ='Annual Inflation'!AA23 -> 200.3166667 | AB131: ='Annual Inflation'!AB23 -> 208.5916667 | AC131: ='Annual Inflation'!AC23 -> 214.7833333 | AD131: ='Annual Inflation'!AD23 -> 215.7666667 | AE131: ='Annual Inflation'!AE23 -> 226.475 | AF131: ='Annual Inflation'!AF23 -> 237.3416667 | AG131: ='Annual Inflation'!AG23 -> 244.675 | AH131: ='Annual Inflation'!AH23 -> 251.7333333 | AI131: ='Annual Inflation'!AI23 -> 256.6666667 | AJ131: ='Annual Inflation'!AJ23 -> 259.4333333 | AK131: ='Annual Inflation'!AK23 -> 264.9916667 | AL131: ='Annual Inflation'!AL23 -> 274.9083333 | AM131: ='Annual Inflation'!AM23 -> 283.3083333 | AN131: ='Annual Inflation'!AN23 -> 290.6416667 | AO131: ='Annual Inflation'!AO23 -> 294.1750927 | AP131: ='Annual Inflation'!AP23 -> 298.3199341 | AQ131: ='Annual Inflation'!AQ23 -> 303.87813 | AR131: ='Annual Inflation'!AR23 -> 312.0253475 | AS131: ='Annual Inflation'!AS23 -> 321.3305237 | AT131: ='Annual Inflation'!AT23 -> 330.9544276
E132: RPI inflation (financial year average) | G132: annual % | J132: > | W132: ='Annual Inflation'!W24 -> 0.02094416487 | X132: ='Annual Inflation'!X24 -> 0.02793164961 | Y132: ='Annual Inflation'!Y24 -> 0.03110015071 | Z132: ='Annual Inflation'!Z24 -> 0.02635308708 | AA132: ='Annual Inflation'!AA24 -> 0.03732792474 | AB132: ='Annual Inflation'!AB24 -> 0.04130959314 | AC132: ='Annual Inflation'!AC24 -> 0.02968319284 | AD132: ='Annual Inflation'!AD24 -> 0.004578257158 | AE132: ='Annual Inflation'!AE24 -> 0.04962922911 | AF132: ='Annual Inflation'!AF24 -> 0.04798174927 | AG132: ='Annual Inflation'!AG24 -> 0.03089779151 | AH132: ='Annual Inflation'!AH24 -> 0.02884779129 | AI132: ='Annual Inflation'!AI24 -> 0.01959745763 | AJ132: ='Annual Inflation'!AJ24 -> 0.01077922078 | AK132: ='Annual Inflation'!AK24 -> 0.02142490042 | AL132: ='Annual Inflation'!AL24 -> 0.03742256046 | AM132: ='Annual Inflation'!AM24 -> 0.03055563976 | AN132: ='Annual Inflation'!AN24 -> 0.02588463688 | AO132: ='Annual Inflation'!AO24 -> 0.01215732784 | AP132: ='Annual Inflation'!AP24 -> 0.01408970889 | AQ132: ='Annual Inflation'!AQ24 -> 0.01863166092 | AR132: ='Annual Inflation'!AR24 -> 0.02681080595 | AS132: ='Annual Inflation'!AS24 -> 0.0298218598 | AT132: ='Annual Inflation'!AT24 -> 0.02995017029
E134: Consumer Prices Index incl. housing costs (financial year average) | F134: Spc2.1 | G134: index value | H134: CPIHt | J134: > | V134: ='Annual Inflation'!V26 -> 74.86666667 | W134: ='Annual Inflation'!W26 -> 75.95833333 | X134: ='Annual Inflation'!X26 -> 76.975 | Y134: ='Annual Inflation'!Y26 -> 78.125 | Z134: ='Annual Inflation'!Z26 -> 79.825 | AA134: ='Annual Inflation'!AA26 -> 81.91666667 | AB134: ='Annual Inflation'!AB26 -> 83.825 | AC134: ='Annual Inflation'!AC26 -> 86.85833333 | AD134: ='Annual Inflation'!AD26 -> 88.43333333 | AE134: ='Annual Inflation'!AE26 -> 90.90833333 | AF134: ='Annual Inflation'!AF26 -> 94.30833333 | AG134: ='Annual Inflation'!AG26 -> 96.58333333 | AH134: ='Annual Inflation'!AH26 -> 98.6 | AI134: ='Annual Inflation'!AI26 -> 99.725 | AJ134: ='Annual Inflation'!AJ26 -> 100.1666667 | AK134: ='Annual Inflation'!AK26 -> 101.5416667 | AL134: ='Annual Inflation'!AL26 -> 104.2166667 | AM134: ='Annual Inflation'!AM26 -> 106.4333333 | AN134: ='Annual Inflation'!AN26 -> 108.2416667 | AO134: ='Annual Inflation'!AO26 -> 109.1656328 | AP134: ='Annual Inflation'!AP26 -> 110.5530178 | AQ134: ='Annual Inflation'!AQ26 -> 112.3194139 | AR134: ='Annual Inflation'!AR26 -> 114.3196898 | AS134: ='Annual Inflation'!AS26 -> 116.5296244 | AT134: ='Annual Inflation'!AT26 -> 118.8561912
E135: CPIH inflation (financial year average) | G135: annual % | J135: > | W135: ='Annual Inflation'!W27 -> 0.01458147818 | X135: ='Annual Inflation'!X27 -> 0.01338453099 | Y135: ='Annual Inflation'!Y27 -> 0.01493991556 | Z135: ='Annual Inflation'!Z27 -> 0.02176 | AA135: ='Annual Inflation'!AA27 -> 0.02620315273 | AB135: ='Annual Inflation'!AB27 -> 0.02329603255 | AC135: ='Annual Inflation'!AC27 -> 0.03618649965 | AD135: ='Annual Inflation'!AD27 -> 0.01813297515 | AE135: ='Annual Inflation'!AE27 -> 0.02798718432 | AF135: ='Annual Inflation'!AF27 -> 0.03740031167 | AG135: ='Annual Inflation'!AG27 -> 0.0241230008 | AH135: ='Annual Inflation'!AH27 -> 0.02088006903 | AI135: ='Annual Inflation'!AI27 -> 0.01140973631 | AJ135: ='Annual Inflation'!AJ27 -> 0.004428845993 | AK135: ='Annual Inflation'!AK27 -> 0.01372712146 | AL135: ='Annual Inflation'!AL27 -> 0.02634386541 | AM135: ='Annual Inflation'!AM27 -> 0.0212697905 | AN135: ='Annual Inflation'!AN27 -> 0.01699029126 | AO135: ='Annual Inflation'!AO27 -> 0.008536141004 | AP135: ='Annual Inflation'!AP27 -> 0.0127089905 | AQ135: ='Annual Inflation'!AQ27 -> 0.01597781889 | AR135: ='Annual Inflation'!AR27 -> 0.01780881685 | AS135: ='Annual Inflation'!AS27 -> 0.0193311809 | AT135: ='Annual Inflation'!AT27 -> 0.01996545358
E137: Combined RPI-CPIH price index (financial year average) | G137: index value | H137: PIt | J137: > | V137: ='Annual Inflation'!V29 -> 173.875 | W137: ='Annual Inflation'!W29 -> 177.5166667 | X137: ='Annual Inflation'!X29 -> 182.475 | Y137: ='Annual Inflation'!Y29 -> 188.15 | Z137: ='Annual Inflation'!Z29 -> 193.1083333 | AA137: ='Annual Inflation'!AA29 -> 200.3166667 | AB137: ='Annual Inflation'!AB29 -> 208.5916667 | AC137: ='Annual Inflation'!AC29 -> 214.7833333 | AD137: ='Annual Inflation'!AD29 -> 215.7666667 | AE137: ='Annual Inflation'!AE29 -> 226.475 | AF137: ='Annual Inflation'!AF29 -> 237.3416667 | AG137: ='Annual Inflation'!AG29 -> 244.675 | AH137: ='Annual Inflation'!AH29 -> 251.7333333 | AI137: ='Annual Inflation'!AI29 -> 256.6666667 | AJ137: ='Annual Inflation'!AJ29 -> 259.4333333 | AK137: ='Annual Inflation'!AK29 -> 264.9916667 | AL137: ='Annual Inflation'!AL29 -> 274.9083333 | AM137: ='Annual Inflation'!AM29 -> 283.3083333 | AN137: ='Annual Inflation'!AN29 -> 290.6416667 | AO137: ='Annual Inflation'!AO29 -> 294.1750927 | AP137: ='Annual Inflation'!AP29 -> 298.2137327 | AQ137: ='Annual Inflation'!AQ29 -> 302.9785377 | AR137: ='Annual Inflation'!AR29 -> 308.3742269 | AS137: ='Annual Inflation'!AS29 -> 314.3354649 | AT137: ='Annual Inflation'!AT29 -> 320.611315
E138: Combined RPI-CPIH inflation (financial year average) | G138: annual % | J138: > | W138: ='Annual Inflation'!W30 -> 0.02094416487 | X138: ='Annual Inflation'!X30 -> 0.02793164961 | Y138: ='Annual Inflation'!Y30 -> 0.03110015071 | Z138: ='Annual Inflation'!Z30 -> 0.02635308708 | AA138: ='Annual Inflation'!AA30 -> 0.03732792474 | AB138: ='Annual Inflation'!AB30 -> 0.04130959314 | AC138: ='Annual Inflation'!AC30 -> 0.02968319284 | AD138: ='Annual Inflation'!AD30 -> 0.004578257158 | AE138: ='Annual Inflation'!AE30 -> 0.04962922911 | AF138: ='Annual Inflation'!AF30 -> 0.04798174927 | AG138: ='Annual Inflation'!AG30 -> 0.03089779151 | AH138: ='Annual Inflation'!AH30 -> 0.02884779129 | AI138: ='Annual Inflation'!AI30 -> 0.01959745763 | AJ138: ='Annual Inflation'!AJ30 -> 0.01077922078 | AK138: ='Annual Inflation'!AK30 -> 0.02142490042 | AL138: ='Annual Inflation'!AL30 -> 0.03742256046 | AM138: ='Annual Inflation'!AM30 -> 0.03055563976 | AN138: ='Annual Inflation'!AN30 -> 0.02588463688 | AO138: ='Annual Inflation'!AO30 -> 0.01215732784 | AP138: ='Annual Inflation'!AP30 -> 0.01372869444 | AQ138: ='Annual Inflation'!AQ30 -> 0.01597781889 | AR138: ='Annual Inflation'!AR30 -> 0.01780881685 | AS138: ='Annual Inflation'!AS30 -> 0.0193311809 | AT138: ='Annual Inflation'!AT30 -> 0.01996545358
D140: Price conversion factors
E142: Real to nominal prices conversion factor (financial year average) | G142: scalar | J142: > | V142: ='Annual Inflation'!V32 -> 0.6137306233 | W142: ='Annual Inflation'!W32 -> 0.6265846986 | X142: ='Annual Inflation'!X32 -> 0.6440862429 | Y142: ='Annual Inflation'!Y32 -> 0.6641174221 | Z142: ='Annual Inflation'!Z32 -> 0.6816189664 | AA142: ='Annual Inflation'!AA32 -> 0.7070623879 | AB142: ='Annual Inflation'!AB32 -> 0.7362708474 | AC142: ='Annual Inflation'!AC32 -> 0.758125717 | AD142: ='Annual Inflation'!AD32 -> 0.7615966115 | AE142: ='Annual Inflation'!AE32 -> 0.7993940642 | AF142: ='Annual Inflation'!AF32 -> 0.8377503897 | AG142: ='Annual Inflation'!AG32 -> 0.8636350266 | AH142: ='Annual Inflation'!AH32 -> 0.8885489896 | AI142: ='Annual Inflation'!AI32 -> 0.9059622908 | AJ142: ='Annual Inflation'!AJ32 -> 0.9157278583 | AK142: ='Annual Inflation'!AK32 -> 0.9353472365 | AL142: ='Annual Inflation'!AL32 -> 0.970350325 | AM142: ='Annual Inflation'!AM32 -> 1 | AN142: ='Annual Inflation'!AN32 -> 1.025884637 | AO142: ='Annual Inflation'!AO32 -> 1.038356653 | AP142: ='Annual Inflation'!AP32 -> 1.052611934 | AQ142: ='Annual Inflation'!AQ32 -> 1.069430377 | AR142: ='Annual Inflation'!AR32 -> 1.088475666 | AS142: ='Annual Inflation'!AS32 -> 1.109517187 | AT142: ='Annual Inflation'!AT32 -> 1.1316692
AP143: Adjacent named range: SOpf
E144: Real to nominal prices conversion factor (financial year end) | G144: scalar | J144: > | V144: ='Annual Inflation'!V45 -> 0.6180545342 | W144: ='Annual Inflation'!W45 -> 0.6372915257 | X144: ='Annual Inflation'!X45 -> 0.6535282525 | Y144: ='Annual Inflation'!Y45 -> 0.6743536194 | Z144: ='Annual Inflation'!Z45 -> 0.6909433185 | AA144: ='Annual Inflation'!AA45 -> 0.7232402859 | AB144: ='Annual Inflation'!AB45 -> 0.7520075301 | AC144: ='Annual Inflation'!AC45 -> 0.7461834868 | AD144: ='Annual Inflation'!AD45 -> 0.782716122 | AE144: ='Annual Inflation'!AE45 -> 0.8240138836 | AF144: ='Annual Inflation'!AF45 -> 0.8529576139 | AG144: ='Annual Inflation'!AG45 -> 0.8792540518 | AH144: ='Annual Inflation'!AH45 -> 0.9009618496 | AI144: ='Annual Inflation'!AI45 -> 0.909080213 | AJ144: ='Annual Inflation'!AJ45 -> 0.9221401888 | AK144: ='Annual Inflation'!AK45 -> 0.9528487808 | AL144: ='Annual Inflation'!AL45 -> 0.9847927758 | AM144: ='Annual Inflation'!AM45 -> 1.011795158 | AN144: ='Annual Inflation'!AN45 -> 1.032797012 | AO144: ='Annual Inflation'!AO45 -> 1.045234399 | AP144: ='Annual Inflation'!AP45 -> 1.060645457 | AQ144: ='Annual Inflation'!AQ45 -> 1.078577078 | AR144: ='Annual Inflation'!AR45 -> 1.098760113 | AS144: ='Annual Inflation'!AS45 -> 1.12050656 | AT144: ='Annual Inflation'!AT45 -> 1.141968137
C146: Real Price Effects indexation
E148: RPE index | G148: index value | H148: RPEIt | J148: > | AN148: =PRODUCT(1 + $AN149:AN149) -> 1.000368359 | AO148: =PRODUCT(1 + $AN149:AO149) -> 0.9904495135 | AP148: =PRODUCT(1 + $AN149:AP149) -> 1.008227058 | AQ148: =PRODUCT(1 + $AN149:AQ149) -> 1.017533177 | AR148: =PRODUCT(1 + $AN149:AR149) -> 1.028885597 | AS148: =PRODUCT(1 + $AN149:AS149) -> 1.041341029 | AT148: =PRODUCT(1 + $AN149:AT149) -> 1.053528119
E149: ='NGGT SO'!E78 -> RPE annual growth | G149: annual % | H149: ='NGGT SO'!H78 -> RPEt | J149: > | AN149: ='NGGT SO'!AN78 -> 0.0003683592286 | AO149: ='NGGT SO'!AO78 -> -0.009915193395 | AP149: ='NGGT SO'!AP78 -> 0.01794896567 | AQ149: ='NGGT SO'!AQ78 -> 0.009230181923 | AR149: ='NGGT SO'!AR78 -> 0.01115680621 | AS149: ='NGGT SO'!AS78 -> 0.01210575011 | AT149: ='NGGT SO'!AT78 -> 0.01170326476
C151: Tax allowance
E153: ='NGGT SO'!E80 -> Adjusted net debt | G153: £m nominal | H153: ='NGGT SO'!H80 -> ANDt | AP153: ='NGGT SO'!AP80 -> 0 | AQ153: ='NGGT SO'!AQ80 -> 0 | AR153: ='NGGT SO'!AR80 -> 0 | AS153: ='NGGT SO'!AS80 -> 0 | AT153: ='NGGT SO'!AT80 -> 0
E154: ='NGGT SO'!E81 -> Tax deductible net interest cost | G154: £m nominal | H154: ='NGGT SO'!H81 -> TDNIt | AP154: ='NGGT SO'!AP81 -> 0 | AQ154: ='NGGT SO'!AQ81 -> 0 | AR154: ='NGGT SO'!AR81 -> 0 | AS154: ='NGGT SO'!AS81 -> 0 | AT154: ='NGGT SO'!AT81 -> 0
E155: ='NGGT SO'!E82 -> Tax allowance adjustment | G155: £m nominal | H155: ='NGGT SO'!H82 -> SOTAXAt | AP155: ='NGGT SO'!AP82 -> 0 | AQ155: ='NGGT SO'!AQ82 -> 0 | AR155: ='NGGT SO'!AR82 -> 0 | AS155: ='NGGT SO'!AS82 -> 0 | AT155: ='NGGT SO'!AT82 -> 0
E156: ='NGGT SO'!E83 -> Tax liability - tax trigger events | G156: £m 18/19 prices | H156: ='NGGT SO'!H83 -> SOTTEt | AP156: ='NGGT SO'!AP83 -> 0 | AQ156: ='NGGT SO'!AQ83 -> 0 | AR156: ='NGGT SO'!AR83 -> 0 | AS156: ='NGGT SO'!AS83 -> 0 | AT156: ='NGGT SO'!AT83 -> 0
E158: Notional gearing for "Tax clawback gearing level test" | G158: % | AP158: ='NGGT SO'!AP85 -> 0.625 | AQ158: ='NGGT SO'!AQ85 -> 0.6188 | AR158: ='NGGT SO'!AR85 -> 0.6125 | AS158: ='NGGT SO'!AS85 -> 0.6063 | AT158: ='NGGT SO'!AT85 -> 0.6
E159: Tax trigger deadband | G159: £m 18/19 prices | AP159: ='NGGT SO'!AP86 -> 0.355352699 | AQ159: ='NGGT SO'!AQ86 -> 0.3381152121 | AR159: ='NGGT SO'!AR86 -> 0.3528745022 | AS159: ='NGGT SO'!AS86 -> 0.3306061857 | AT159: ='NGGT SO'!AT86 -> 0.3022818722
E161: ='NGGT SO'!E88 -> General pool capital allowance opening balance brought forward | G161: £m nominal | H161: ='NGGT SO'!H88 -> SOOGPt | AP161: ='NGGT SO'!AP88 -> 132.428739
E162: ='NGGT SO'!E89 -> Special Rate capital allowance opening balance brought forward | G162: £m nominal | H162: ='NGGT SO'!H89 -> SOOSRPt | AP162: ='NGGT SO'!AP89 -> 0
E163: ='NGGT SO'!E90 -> Structures and buildings capital allowance opening balance brought forward | G163: £m nominal | H163: ='NGGT SO'!H90 -> SOOSBPt | AP163: ='NGGT SO'!AP90 -> 0
E164: ='NGGT SO'!E91 -> Deferred revenue expenditure opening balance brought forward | G164: £m nominal | H164: ='NGGT SO'!H91 -> SOODRPt | AP164: ='NGGT SO'!AP91 -> 0
E165: ='NGGT SO'!E92 -> Deferred revenue pool additions (RIIO1) plus opening balance at start of RIIO1 | G165: £m nominal | H165: ='NGGT SO'!H92 -> SOLODRPt | J165: > | AO165: ='NGGT SO'!AO92 -> 0
E166: ='NGGT SO'!E93 -> Tax loss brought forward | G166: £m nominal | H166: ='NGGT SO'!H93 -> SOOTLt | AP166: ='NGGT SO'!AP93 -> 0
E168: ='NGGT SO'!E95 -> Totex allocation to "General" tax pool | G168: % | H168: ='NGGT SO'!H95 -> SOARGPt | AP168: ='NGGT SO'!AP95 -> 0.3095451309 | AQ168: ='NGGT SO'!AQ95 -> 0.3037108556 | AR168: ='NGGT SO'!AR95 -> 0.3722395145 | AS168: ='NGGT SO'!AS95 -> 0.3089238036 | AT168: ='NGGT SO'!AT95 -> 0.2109815235
E169: ='NGGT SO'!E96 -> Totex allocation to "Special Rate" tax pool | G169: % | H169: ='NGGT SO'!H96 -> SOARSRt | AP169: ='NGGT SO'!AP96 -> 0 | AQ169: ='NGGT SO'!AQ96 -> 0 | AR169: ='NGGT SO'!AR96 -> 0 | AS169: ='NGGT SO'!AS96 -> 0 | AT169: ='NGGT SO'!AT96 -> 0
E170: ='NGGT SO'!E97 -> Totex allocation to "Revenue" tax pool | G170: % | H170: ='NGGT SO'!H97 -> SOARRt | AP170: ='NGGT SO'!AP97 -> 0.6904548691 | AQ170: ='NGGT SO'!AQ97 -> 0.6962891444 | AR170: ='NGGT SO'!AR97 -> 0.6277604855 | AS170: ='NGGT SO'!AS97 -> 0.6910761964 | AT170: ='NGGT SO'!AT97 -> 0.7890184765
E171: ='NGGT SO'!E98 -> Totex allocation to "Structures and Buildings" tax pool | G171: % | H171: ='NGGT SO'!H98 -> SOARSBt | AP171: ='NGGT SO'!AP98 -> 0 | AQ171: ='NGGT SO'!AQ98 -> 0 | AR171: ='NGGT SO'!AR98 -> 0 | AS171: ='NGGT SO'!AS98 -> 0 | AT171: ='NGGT SO'!AT98 -> 0
E172: ='NGGT SO'!E99 -> Totex allocation to "Deferred revenue" tax pool | G172: % | H172: ='NGGT SO'!H99 -> SOARDRt | AP172: ='NGGT SO'!AP99 -> 0 | AQ172: ='NGGT SO'!AQ99 -> 0 | AR172: ='NGGT SO'!AR99 -> 0 | AS172: ='NGGT SO'!AS99 -> 0 | AT172: ='NGGT SO'!AT99 -> 0
E173: ='NGGT SO'!E100 -> Totex allocation to "Non Qualifying" tax pool | G173: % | H173: ='NGGT SO'!H100 -> SOARNQt | AP173: ='NGGT SO'!AP100 -> 0 | AQ173: ='NGGT SO'!AQ100 -> 0 | AR173: ='NGGT SO'!AR100 -> 0 | AS173: ='NGGT SO'!AS100 -> 0 | AT173: ='NGGT SO'!AT100 -> 0
E174: Totex allocation check | G174: % | AP174: =SUM(AP168:AP173) -> 1 | AQ174: =SUM(AQ168:AQ173) -> 1 | AR174: =SUM(AR168:AR173) -> 1 | AS174: =SUM(AS168:AS173) -> 1 | AT174: =SUM(AT168:AT173) -> 1
E176: ='NGGT SO'!E103 -> Corporation tax rate | G176: % | H176: ='NGGT SO'!H103 -> SOCTt | AP176: ='NGGT SO'!AP103 -> 0.19 | AQ176: ='NGGT SO'!AQ103 -> 0.19 | AR176: ='NGGT SO'!AR103 -> 0.25 | AS176: ='NGGT SO'!AS103 -> 0.25 | AT176: ='NGGT SO'!AT103 -> 0.25
E177: ='NGGT SO'!E104 -> General pool allowance rate | G177: % | H177: ='NGGT SO'!H104 -> SOGCAt | AP177: ='NGGT SO'!AP104 -> 0.18 | AQ177: ='NGGT SO'!AQ104 -> 0.18 | AR177: ='NGGT SO'!AR104 -> 0.18 | AS177: ='NGGT SO'!AS104 -> 0.18 | AT177: ='NGGT SO'!AT104 -> 0.18
E178: ='NGGT SO'!E105 -> Special Rate allowance rate | G178: % | H178: ='NGGT SO'!H105 -> SOSRCAt | AP178: ='NGGT SO'!AP105 -> 0.06 | AQ178: ='NGGT SO'!AQ105 -> 0.06 | AR178: ='NGGT SO'!AR105 -> 0.06 | AS178: ='NGGT SO'!AS105 -> 0.06 | AT178: ='NGGT SO'!AT105 -> 0.06
E179: ='NGGT SO'!E106 -> Structures and buildings allowance rate | G179: % | H179: ='NGGT SO'!H106 -> SOSBCAt | AP179: ='NGGT SO'!AP106 -> 0.03 | AQ179: ='NGGT SO'!AQ106 -> 0.03 | AR179: ='NGGT SO'!AR106 -> 0.03 | AS179: ='NGGT SO'!AS106 -> 0.03 | AT179: ='NGGT SO'!AT106 -> 0.03
E180: ='NGGT SO'!E107 -> Deferred revenue expenditure allowance rate | G180: % | H180: ='NGGT SO'!H107 -> SODRCAt | AP180: ='NGGT SO'!AP107 -> 0.0222 | AQ180: ='NGGT SO'!AQ107 -> 0.0222 | AR180: ='NGGT SO'!AR107 -> 0.0222 | AS180: ='NGGT SO'!AS107 -> 0.0222 | AT180: ='NGGT SO'!AT107 -> 0.0222
C182: Inputs for true ups to allowed revenue
E184: ='NGGT SO'!E76 -> Sterling Overnight Index Average (SONIA) | G184: annual nominal % | H184: ='NGGT SO'!H76 -> It | J184: > | AO184: ='NGGT SO'!AO76 -> 0.0006042485418 | AP184: ='NGGT SO'!AP76 -> 0.0004597370251 | AQ184: ='NGGT SO'!AQ76 -> 0.0008648026937 | AR184: ='NGGT SO'!AR76 -> 0.001414154276 | AS184: ='NGGT SO'!AS76 -> 0.002070233521 | AT184: ='NGGT SO'!AT76 -> 0.00260000085
E186: ='NGGT SO'!E109 -> RIIO-1 allowed revenue | G186: £m nominal | H186: ='NGGT SO'!H109 -> RIIO-1 SOARt | J186: > | AO186: ='NGGT SO'!AO109 -> 208.18
E187: ='NGGT SO'!E110 -> Recovered revenue | G187: £m nominal | H187: ='NGGT SO'!H110 -> SORRt | J187: > | AO187: ='NGGT SO'!AO110 -> 267 | AP187: ='NGGT SO'!AP110 -> 0 | AQ187: ='NGGT SO'!AQ110 -> 0 | AR187: ='NGGT SO'!AR110 -> 0 | AS187: ='NGGT SO'!AS110 -> 0 | AT187: ='NGGT SO'!AT110 -> 0
E188: ='NGGT SO'!E111 -> K rate margin | G188: annual nominal % | J188: > | AO188: ='NGGT SO'!AO111 -> 0.0115 | AP188: ='NGGT SO'!AP111 -> 0.0115 | AQ188: ='NGGT SO'!AQ111 -> 0.0115 | AR188: ='NGGT SO'!AR111 -> 0.0115 | AS188: ='NGGT SO'!AS111 -> 0.0115 | AT188: ='NGGT SO'!AT111 -> 0.0115
E189: ='NGGT SO'!E112 -> Over/undercollection percentage for penal rate adjustment | G189: % | I189: ='NGGT SO'!I112 -> 0.06
E190: ='NGGT SO'!E113 -> Penal rate proportion | G190: scalar | H190: ='NGGT SO'!H113 -> SOPRPt | J190: > | AO190: ='NGGT SO'!AO113 -> 1 | AP190: ='NGGT SO'!AP113 -> 1 | AQ190: ='NGGT SO'!AQ113 -> 1 | AR190: ='NGGT SO'!AR113 -> 1 | AS190: ='NGGT SO'!AS113 -> 1 | AT190: ='NGGT SO'!AT113 -> 1
C192: TIM and capitalisation
E194: Years from t until normal reporting of actual costs | G194: years | I194: ='NGGT SO'!I133 -> 2
E196: Capitalisation rate | G196: % | AP196: ='NGGT SO'!AP135 -> 0.34 | AQ196: ='NGGT SO'!AQ135 -> 0.34 | AR196: ='NGGT SO'!AR135 -> 0.34 | AS196: ='NGGT SO'!AS135 -> 0.34 | AT196: ='NGGT SO'!AT135 -> 0.34
E198: RIIO-2 Funding Adjustment Rate ('sharing factor') | G198: % | I198: ='NGGT SO'!I137 -> 0.61
B200: Variant allowances detailed calculation
C202: Variant allowances summary
E204: Variant allowed non-operational capex | G204: £m 18/19 prices | H204: Non-operational capex | AP204: =SUMPRODUCT((AP$213:AP$248) * ($H$213:$H$248 = $H204)) -> 4.803571577 | AQ204: 1.978452001 | AR204: 2.366303218 | AS204: 1.104812473 | AT204: 0.8425626529
E205: Variant allowed controllable opex | G205: £m 18/19 prices | H205: Controllable opex | AP205: 3.566239362 | AQ205: 2.076366637 | AR205: 2.625553884 | AS205: 2.471514311 | AT205: 3.150974975
E206: Total | G206: £m 18/19 prices | AP206: =SUM(AP204:AP205) -> 8.369810939 | AQ206: =SUM(AQ204:AQ205) -> 4.054818637 | AR206: 4.991857102 | AS206: 3.576326784 | AT206: 3.993537628
AP207: =SUM(AP204:AP205) - SUM(AP213:AP248) -> 0 | AQ207: =SUM(AQ204:AQ205) - SUM(AQ213:AQ248) -> 0 | AR207: =SUM(AR204:AR205) - SUM(AR213:AR248) -> 0 | AS207: =SUM(AS204:AS205) - SUM(AS213:AS248) -> 0 | AT207: =SUM(AT204:AT205) - SUM(AT213:AT248) -> 0
AP208: =SUM(AP204:AP205) - AP35 -> 0 | AQ208: =SUM(AQ204:AQ205) - AQ35 -> 0 | AR208: =SUM(AR204:AR205) - AR35 -> 0 | AS208: =SUM(AS204:AS205) - AS35 -> 0 | AT208: =SUM(AT204:AT205) - AT35 -> 0
C210: Variant allowances allocation to totex categories
AV211: Totex allocation percentages:
AV212: 2022-03-31 | AW212: 2023-03-31 | AX212: 2024-03-31 | AY212: 2025-03-31 | AZ212: 2026-03-31
E213: ='NGGT SO'!E141 -> Funded incremental obligated capacity Price Control Deliverable | G213: £m 18/19 prices | H213: Non-operational capex | I213: =INDEX($I$17:$I$34, MATCH($E213, $E$17:$E$34, 0)) -> PCD | AP213: =INDEX(AP$17:AP$34, MATCH($E213, $E$17:$E$34, 0)) * AV213 -> 0 | AQ213: =INDEX(AQ$17:AQ$34, MATCH($E213, $E$17:$E$34, 0)) * AW213 -> 0 | AR213: =INDEX(AR$17:AR$34, MATCH($E213, $E$17:$E$34, 0)) * AX213 -> 0 | AS213: =INDEX(AS$17:AS$34, MATCH($E213, $E$17:$E$34, 0)) * AY213 -> 0 | AT213: =INDEX(AT$17:AT$34, MATCH($E213, $E$17:$E$34, 0)) * AZ213 -> 0 | AV213: ='NGGT SO'!AP141 -> 0 | AW213: ='NGGT SO'!AQ141 -> 0 | AX213: ='NGGT SO'!AR141 -> 0 | AY213: ='NGGT SO'!AS141 -> 0 | AZ213: ='NGGT SO'!AT141 -> 0 | BC213: =INDEX(BC$17:BC$34, MATCH($E213, $E$17:$E$34, 0)) -> TIM | BD213: RPEs Apply | BE213: 0 | BF213: Fast/Slow Split
E214: ='NGGT SO'!E142 -> Funded incremental obligated capacity Price Control Deliverable | G214: £m 18/19 prices | H214: Controllable opex | I214: PCD | AP214: 0 | AQ214: 0 | AR214: 0 | AS214: 0 | AT214: 0 | AV214: ='NGGT SO'!AP142 -> 0 | AW214: ='NGGT SO'!AQ142 -> 0 | AX214: ='NGGT SO'!AR142 -> 0 | AY214: ='NGGT SO'!AS142 -> 0 | AZ214: ='NGGT SO'!AT142 -> 0 | BC214: TIM | BD214: RPEs Apply | BE214: 0 | BF214: Fast/Slow Split
E215: ='NGGT SO'!E143 -> Cyber Resilience OT Price Control Deliverable and use it or lose it allowance | G215: £m 18/19 prices | H215: Non-operational capex | I215: PCD | AP215: 0 | AQ215: 0 | AR215: 0 | AS215: 0 | AT215: 0 | AV215: ='NGGT SO'!AP143 -> 0 | AW215: ='NGGT SO'!AQ143 -> 0 | AX215: ='NGGT SO'!AR143 -> 0 | AY215: ='NGGT SO'!AS143 -> 0 | AZ215: ='NGGT SO'!AT143 -> 0 | BC215: Non-Tim | BD215: RPEs Don’t Apply | BE215: 0 | BF215: Fast/Slow Split
E216: ='NGGT SO'!E144 -> Cyber Resilience OT Price Control Deliverable and use it or lose it allowance | G216: £m 18/19 prices | H216: Controllable opex | I216: PCD | AP216: 0 | AQ216: 0 | AR216: 0 | AS216: 0 | AT216: 0 | AV216: ='NGGT SO'!AP144 -> 0 | AW216: ='NGGT SO'!AQ144 -> 0 | AX216: ='NGGT SO'!AR144 -> 0 | AY216: ='NGGT SO'!AS144 -> 0 | AZ216: ='NGGT SO'!AT144 -> 0 | BC216: Non-Tim | BD216: RPEs Don’t Apply | BE216: 0 | BF216: Fast/Slow Split
E217: ='NGGT SO'!E145 -> Cyber Resilience IT Price Control Deliverable | G217: £m 18/19 prices | H217: Non-operational capex | I217: PCD | AP217: 4.570907752 | AQ217: 1.512629626 | AR217: 1.338608194 | AS217: 0 | AT217: 0 | AV217: ='NGGT SO'!AP145 -> 0.6 | AW217: ='NGGT SO'!AQ145 -> 0.6 | AX217: ='NGGT SO'!AR145 -> 0.6 | AY217: ='NGGT SO'!AS145 -> 0.6 | AZ217: ='NGGT SO'!AT145 -> 0.6 | BC217: TIM | BD217: RPEs Apply | BE217: 0 | BF217: Fast/Slow Split
E218: ='NGGT SO'!E146 -> Cyber Resilience IT Price Control Deliverable | G218: £m 18/19 prices | H218: Controllable opex | I218: PCD | AP218: 3.047271835 | AQ218: 1.008419751 | AR218: 0.8924054629 | AS218: 0 | AT218: 0 | AV218: ='NGGT SO'!AP146 -> 0.4 | AW218: ='NGGT SO'!AQ146 -> 0.4 | AX218: ='NGGT SO'!AR146 -> 0.4 | AY218: ='NGGT SO'!AS146 -> 0.4 | AZ218: ='NGGT SO'!AT146 -> 0.4 | BC218: TIM | BD218: RPEs Apply | BE218: 0 | BF218: Fast/Slow Split
E219: ='NGGT SO'!E147 -> Spare PCD 1 | G219: £m 18/19 prices | H219: Non-operational capex | I219: PCD | AP219: 0 | AQ219: 0 | AR219: 0 | AS219: 0 | AT219: 0 | AV219: ='NGGT SO'!AP147 -> 0 | AW219: ='NGGT SO'!AQ147 -> 0 | AX219: ='NGGT SO'!AR147 -> 0 | AY219: ='NGGT SO'!AS147 -> 0 | AZ219: ='NGGT SO'!AT147 -> 0 | BC219: 0 | BD219: 0 | BE219: 0 | BF219: 0
E220: ='NGGT SO'!E148 -> Spare PCD 1 | G220: £m 18/19 prices | H220: Controllable opex | I220: PCD | AP220: 0 | AQ220: 0 | AR220: 0 | AS220: 0 | AT220: 0 | AV220: ='NGGT SO'!AP148 -> 0 | AW220: ='NGGT SO'!AQ148 -> 0 | AX220: ='NGGT SO'!AR148 -> 0 | AY220: ='NGGT SO'!AS148 -> 0 | AZ220: ='NGGT SO'!AT148 -> 0 | BC220: 0 | BD220: 0 | BE220: 0 | BF220: 0
E221: ='NGGT SO'!E149 -> Spare PCD 2 | G221: £m 18/19 prices | H221: Non-operational capex | I221: PCD | AP221: 0 | AQ221: 0 | AR221: 0 | AS221: 0 | AT221: 0 | AV221: ='NGGT SO'!AP149 -> 0 | AW221: ='NGGT SO'!AQ149 -> 0 | AX221: ='NGGT SO'!AR149 -> 0 | AY221: ='NGGT SO'!AS149 -> 0 | AZ221: ='NGGT SO'!AT149 -> 0 | BC221: 0 | BD221: 0 | BE221: 0 | BF221: 0
E222: ='NGGT SO'!E150 -> Spare PCD 2 | G222: £m 18/19 prices | H222: Controllable opex | I222: PCD | AP222: 0 | AQ222: 0 | AR222: 0 | AS222: 0 | AT222: 0 | AV222: ='NGGT SO'!AP150 -> 0 | AW222: ='NGGT SO'!AQ150 -> 0 | AX222: ='NGGT SO'!AR150 -> 0 | AY222: ='NGGT SO'!AS150 -> 0 | AZ222: ='NGGT SO'!AT150 -> 0 | BC222: 0 | BD222: 0 | BE222: 0 | BF222: 0
E223: ='NGGT SO'!E151 -> Spare PCD 3 | G223: £m 18/19 prices | H223: Non-operational capex | I223: PCD | AP223: 0 | AQ223: 0 | AR223: 0 | AS223: 0 | AT223: 0 | AV223: ='NGGT SO'!AP151 -> 0 | AW223: ='NGGT SO'!AQ151 -> 0 | AX223: ='NGGT SO'!AR151 -> 0 | AY223: ='NGGT SO'!AS151 -> 0 | AZ223: ='NGGT SO'!AT151 -> 0 | BC223: 0 | BD223: 0 | BE223: 0 | BF223: 0
E224: ='NGGT SO'!E152 -> Spare PCD 3 | G224: £m 18/19 prices | H224: Controllable opex | I224: PCD | AP224: 0 | AQ224: 0 | AR224: 0 | AS224: 0 | AT224: 0 | AV224: ='NGGT SO'!AP152 -> 0 | AW224: ='NGGT SO'!AQ152 -> 0 | AX224: ='NGGT SO'!AR152 -> 0 | AY224: ='NGGT SO'!AS152 -> 0 | AZ224: ='NGGT SO'!AT152 -> 0 | BC224: 0 | BD224: 0 | BE224: 0 | BF224: 0
E225: ='NGGT SO'!E153 -> Non-operational IT Capex Re-opener | G225: £m 18/19 prices | H225: Non-operational capex | I225: UM | AP225: 0 | AQ225: 0 | AR225: 0 | AS225: 0 | AT225: 0 | AV225: ='NGGT SO'!AP153 -> 0 | AW225: ='NGGT SO'!AQ153 -> 0 | AX225: ='NGGT SO'!AR153 -> 0 | AY225: ='NGGT SO'!AS153 -> 0 | AZ225: ='NGGT SO'!AT153 -> 0 | BC225: TIM | BD225: RPEs Don’t Apply | BE225: 0 | BF225: Fast/Slow Split
E226: ='NGGT SO'!E154 -> Non-operational IT Capex Re-opener | G226: £m 18/19 prices | H226: Controllable opex | I226: UM | AP226: 0 | AQ226: 0 | AR226: 0 | AS226: 0 | AT226: 0 | AV226: ='NGGT SO'!AP154 -> 0 | AW226: ='NGGT SO'!AQ154 -> 0 | AX226: ='NGGT SO'!AR154 -> 0 | AY226: ='NGGT SO'!AS154 -> 0 | AZ226: ='NGGT SO'!AT154 -> 0 | BC226: TIM | BD226: RPEs Don’t Apply | BE226: 0 | BF226: Fast/Slow Split
E227: ='NGGT SO'!E155 -> Net zero Re-opener | G227: £m 18/19 prices | H227: Non-operational capex | I227: UM | AP227: 0 | AQ227: 0 | AR227: 0 | AS227: 0 | AT227: 0 | AV227: ='NGGT SO'!AP155 -> 0 | AW227: ='NGGT SO'!AQ155 -> 0 | AX227: ='NGGT SO'!AR155 -> 0 | AY227: ='NGGT SO'!AS155 -> 0 | AZ227: ='NGGT SO'!AT155 -> 0 | BC227: TIM | BD227: RPEs Don’t Apply | BE227: 0 | BF227: Fast/Slow Split
E228: ='NGGT SO'!E156 -> Net zero Re-opener | G228: £m 18/19 prices | H228: Controllable opex | I228: UM | AP228: 0 | AQ228: 0 | AR228: 0 | AS228: 0 | AT228: 0 | AV228: ='NGGT SO'!AP156 -> 0 | AW228: ='NGGT SO'!AQ156 -> 0 | AX228: ='NGGT SO'!AR156 -> 0 | AY228: ='NGGT SO'!AS156 -> 0 | AZ228: ='NGGT SO'!AT156 -> 0 | BC228: TIM | BD228: RPEs Don’t Apply | BE228: 0 | BF228: Fast/Slow Split
E229: ='NGGT SO'!E157 -> Cyber Resilience OT Re-Opener | G229: £m 18/19 prices | H229: Non-operational capex | I229: UM | AP229: 0 | AQ229: 0 | AR229: 0 | AS229: 0 | AT229: 0 | AV229: ='NGGT SO'!AP157 -> 0 | AW229: ='NGGT SO'!AQ157 -> 0 | AX229: ='NGGT SO'!AR157 -> 0 | AY229: ='NGGT SO'!AS157 -> 0 | AZ229: ='NGGT SO'!AT157 -> 0 | BC229: TIM | BD229: RPEs Don’t Apply | BE229: 0 | BF229: Fast/Slow Split
E230: ='NGGT SO'!E158 -> Cyber Resilience OT Re-Opener | G230: £m 18/19 prices | H230: Controllable opex | I230: UM | AP230: 0 | AQ230: 0 | AR230: 0 | AS230: 0 | AT230: 0 | AV230: ='NGGT SO'!AP158 -> 0 | AW230: ='NGGT SO'!AQ158 -> 0 | AX230: ='NGGT SO'!AR158 -> 0 | AY230: ='NGGT SO'!AS158 -> 0 | AZ230: ='NGGT SO'!AT158 -> 0 | BC230: TIM | BD230: RPEs Don’t Apply | BE230: 0 | BF230: Fast/Slow Split
E231: ='NGGT SO'!E159 -> Cyber Resilience IT Re-Opener | G231: £m 18/19 prices | H231: Non-operational capex | I231: UM | AP231: 0 | AQ231: 0 | AR231: 0 | AS231: 0 | AT231: 0 | AV231: ='NGGT SO'!AP159 -> 0 | AW231: ='NGGT SO'!AQ159 -> 0 | AX231: ='NGGT SO'!AR159 -> 0 | AY231: ='NGGT SO'!AS159 -> 0 | AZ231: ='NGGT SO'!AT159 -> 0 | BC231: Non-Tim | BD231: RPEs Don’t Apply | BE231: 0 | BF231: Fast/Slow Split
E232: ='NGGT SO'!E160 -> Cyber Resilience IT Re-Opener | G232: £m 18/19 prices | H232: Controllable opex | I232: UM | AP232: 0 | AQ232: 0 | AR232: 0 | AS232: 0 | AT232: 0 | AV232: ='NGGT SO'!AP160 -> 0 | AW232: ='NGGT SO'!AQ160 -> 0 | AX232: ='NGGT SO'!AR160 -> 0 | AY232: ='NGGT SO'!AS160 -> 0 | AZ232: ='NGGT SO'!AT160 -> 0 | BC232: Non-Tim | BD232: RPEs Don’t Apply | BE232: 0 | BF232: Fast/Slow Split
E233: ='NGGT SO'!E161 -> Funded incremental obligated capacity Re-Opener | G233: £m 18/19 prices | H233: Non-operational capex | I233: UM | AP233: 0 | AQ233: 0 | AR233: 0 | AS233: 0 | AT233: 0 | AV233: ='NGGT SO'!AP161 -> 0.6 | AW233: ='NGGT SO'!AQ161 -> 0.6 | AX233: ='NGGT SO'!AR161 -> 0.6 | AY233: ='NGGT SO'!AS161 -> 0.6 | AZ233: ='NGGT SO'!AT161 -> 0.6 | BC233: =INDEX(BC$17:BC$34, MATCH($E233, $E$17:$E$34, 0)) -> TIM | BD233: RPEs Don’t Apply | BE233: 0 | BF233: Fast/Slow Split
E234: ='NGGT SO'!E162 -> Funded incremental obligated capacity Re-Opener | G234: £m 18/19 prices | H234: Controllable opex | I234: UM | AP234: 0 | AQ234: 0 | AR234: 0 | AS234: 0 | AT234: 0 | AV234: ='NGGT SO'!AP162 -> 0.4 | AW234: ='NGGT SO'!AQ162 -> 0.4 | AX234: ='NGGT SO'!AR162 -> 0.4 | AY234: ='NGGT SO'!AS162 -> 0.4 | AZ234: ='NGGT SO'!AT162 -> 0.4 | BC234: TIM | BD234: RPEs Don’t Apply | BE234: 0 | BF234: Fast/Slow Split
E235: ='NGGT SO'!E163 -> Opex Escalator | G235: £m 18/19 prices | H235: Non-operational capex | I235: UM | AP235: 0 | AQ235: 0 | AR235: 0 | AS235: 0 | AT235: 0 | AV235: ='NGGT SO'!AP163 -> 0 | AW235: ='NGGT SO'!AQ163 -> 0 | AX235: ='NGGT SO'!AR163 -> 0 | AY235: ='NGGT SO'!AS163 -> 0 | AZ235: ='NGGT SO'!AT163 -> 0 | BC235: TIM | BD235: RPEs Don’t Apply | BE235: 0 | BF235: Fast/Slow Split
E236: ='NGGT SO'!E164 -> Opex Escalator | G236: £m 18/19 prices | H236: Controllable opex | I236: UM | AP236: 0 | AQ236: 0 | AR236: 0 | AS236: 0 | AT236: 0 | AV236: ='NGGT SO'!AP164 -> 0 | AW236: ='NGGT SO'!AQ164 -> 0 | AX236: ='NGGT SO'!AR164 -> 0 | AY236: ='NGGT SO'!AS164 -> 0 | AZ236: ='NGGT SO'!AT164 -> 0 | BC236: TIM | BD236: RPEs Don’t Apply | BE236: 0 | BF236: Fast/Slow Split
E237: ='NGGT SO'!E165 -> Spare UM 1 | G237: £m 18/19 prices | H237: Non-operational capex | I237: UM | AP237: 0 | AQ237: 0 | AR237: 0 | AS237: 0 | AT237: 0 | AV237: ='NGGT SO'!AP165 -> 0 | AW237: ='NGGT SO'!AQ165 -> 0 | AX237: ='NGGT SO'!AR165 -> 0 | AY237: ='NGGT SO'!AS165 -> 0 | AZ237: ='NGGT SO'!AT165 -> 0 | BC237: 0 | BD237: 0 | BE237: 0 | BF237: 0
E238: ='NGGT SO'!E166 -> Spare UM 1 | G238: £m 18/19 prices | H238: Controllable opex | I238: UM | AP238: 0 | AQ238: 0 | AR238: 0 | AS238: 0 | AT238: 0 | AV238: ='NGGT SO'!AP166 -> 0 | AW238: ='NGGT SO'!AQ166 -> 0 | AX238: ='NGGT SO'!AR166 -> 0 | AY238: ='NGGT SO'!AS166 -> 0 | AZ238: ='NGGT SO'!AT166 -> 0 | BC238: 0 | BD238: 0 | BE238: 0 | BF238: 0
E239: ='NGGT SO'!E167 -> Spare UM 2 | G239: £m 18/19 prices | H239: Non-operational capex | I239: UM | AP239: 0 | AQ239: 0 | AR239: 0 | AS239: 0 | AT239: 0 | AV239: ='NGGT SO'!AP167 -> 0 | AW239: ='NGGT SO'!AQ167 -> 0 | AX239: ='NGGT SO'!AR167 -> 0 | AY239: ='NGGT SO'!AS167 -> 0 | AZ239: ='NGGT SO'!AT167 -> 0 | BC239: 0 | BD239: 0 | BE239: 0 | BF239: 0
E240: ='NGGT SO'!E168 -> Spare UM 2 | G240: £m 18/19 prices | H240: Controllable opex | I240: UM | AP240: 0 | AQ240: 0 | AR240: 0 | AS240: 0 | AT240: 0 | AV240: ='NGGT SO'!AP168 -> 0 | AW240: ='NGGT SO'!AQ168 -> 0 | AX240: ='NGGT SO'!AR168 -> 0 | AY240: ='NGGT SO'!AS168 -> 0 | AZ240: ='NGGT SO'!AT168 -> 0 | BC240: 0 | BD240: 0 | BE240: 0 | BF240: 0
E241: ='NGGT SO'!E169 -> Spare UM 3 | G241: £m 18/19 prices | H241: Non-operational capex | I241: UM | AP241: 0 | AQ241: 0 | AR241: 0 | AS241: 0 | AT241: 0 | AV241: ='NGGT SO'!AP169 -> 0 | AW241: ='NGGT SO'!AQ169 -> 0 | AX241: ='NGGT SO'!AR169 -> 0 | AY241: ='NGGT SO'!AS169 -> 0 | AZ241: ='NGGT SO'!AT169 -> 0 | BC241: 0 | BD241: 0 | BE241: 0 | BF241: 0
E242: ='NGGT SO'!E170 -> Spare UM 3 | G242: £m 18/19 prices | H242: Controllable opex | I242: UM | AP242: 0 | AQ242: 0 | AR242: 0 | AS242: 0 | AT242: 0 | AV242: ='NGGT SO'!AP170 -> 0 | AW242: ='NGGT SO'!AQ170 -> 0 | AX242: ='NGGT SO'!AR170 -> 0 | AY242: ='NGGT SO'!AS170 -> 0 | AZ242: ='NGGT SO'!AT170 -> 0 | BC242: 0 | BD242: 0 | BE242: 0 | BF242: 0
E243: RPE non-variant allowances | G243: £m 18/19 prices | H243: Non-operational capex | I243: UM | AP243: =AP10 * (AP$148 - 1) -> 0.1950587031 | AQ243: 0.4393011713 | AR243: 0.989028526 | AS243: 1.104812473 | AT243: 0.8425626529 | AV243: =IF(SUMPRODUCT((AP$243:AP$248) * ($E$243:$E$248 = $E243)) = 0, 0, AP243 / SUMPRODUCT((AP$243:AP$248) * ($E$243:$E$248 = $E243))) -> 0.2831220876 | AW243: =IF(SUMPRODUCT((AQ$243:AQ$248) * ($E$243:$E$248 = $E243)) = 0, 0, AQ243 / SUMPRODUCT((AQ$243:AQ$248) * ($E$243:$E$248 = $E243))) -> 0.2949186549 | AX243: =IF(SUMPRODUCT((AR$243:AR$248) * ($E$243:$E$248 = $E243)) = 0, 0, AR243 / SUMPRODUCT((AR$243:AR$248) * ($E$243:$E$248 = $E243))) -> 0.3667960203 | AY243: =IF(SUMPRODUCT((AS$243:AS$248) * ($E$243:$E$248 = $E243)) = 0, 0, AS243 / SUMPRODUCT((AS$243:AS$248) * ($E$243:$E$248 = $E243))) -> 0.3089238036 | AZ243: =IF(SUMPRODUCT((AT$243:AT$248) * ($E$243:$E$248 = $E243)) = 0, 0, AT243 / SUMPRODUCT((AT$243:AT$248) * ($E$243:$E$248 = $E243))) -> 0.2109815235 | BC243: TIM | BD243: 0 | BE243: 0 | BF243: Fast/Slow Split
E244: RPE non-variant allowances | G244: £m 18/19 prices | H244: Controllable opex | I244: UM | AP244: 0.4938974457 | AQ244: 1.050266084 | AR244: 1.707370757 | AS244: 2.471514311 | AT244: 3.150974975 | AV244: =IF(SUMPRODUCT((AP$243:AP$248) * ($E$243:$E$248 = $E244)) = 0, 0, AP244 / SUMPRODUCT((AP$243:AP$248) * ($E$243:$E$248 = $E244))) -> 0.7168779124 | AW244: =IF(SUMPRODUCT((AQ$243:AQ$248) * ($E$243:$E$248 = $E244)) = 0, 0, AQ244 / SUMPRODUCT((AQ$243:AQ$248) * ($E$243:$E$248 = $E244))) -> 0.7050813451 | AX244: =IF(SUMPRODUCT((AR$243:AR$248) * ($E$243:$E$248 = $E244)) = 0, 0, AR244 / SUMPRODUCT((AR$243:AR$248) * ($E$243:$E$248 = $E244))) -> 0.6332039797 | AY244: =IF(SUMPRODUCT((AS$243:AS$248) * ($E$243:$E$248 = $E244)) = 0, 0, AS244 / SUMPRODUCT((AS$243:AS$248) * ($E$243:$E$248 = $E244))) -> 0.6910761964 | AZ244: =IF(SUMPRODUCT((AT$243:AT$248) * ($E$243:$E$248 = $E244)) = 0, 0, AT244 / SUMPRODUCT((AT$243:AT$248) * ($E$243:$E$248 = $E244))) -> 0.7890184765 | BC244: TIM | BD244: 0 | BE244: 0 | BF244: Fast/Slow Split
E245: RPE PCDs | G245: £m 18/19 prices | H245: Non-operational capex | I245: UM | AP245: =SUMPRODUCT((AP$213:AP$242) * ($H$213:$H$242 = $H245) * ($BD$213:$BD$242 = "RPEs Apply") * ($I$213:$I$242 = "PCD")) * (AP$148 - 1) -> 0.03760512227 | AQ245: =SUMPRODUCT((AQ$213:AQ$242) * ($H$213:$H$242 = $H245) * ($BD$213:$BD$242 = "RPEs Apply") * ($I$213:$I$242 = "PCD")) * (AQ$148 - 1) -> 0.02652120292 | AR245: =SUMPRODUCT((AR$213:AR$242) * ($H$213:$H$242 = $H245) * ($BD$213:$BD$242 = "RPEs Apply") * ($I$213:$I$242 = "PCD")) * (AR$148 - 1) -> 0.03866649742 | AS245: =SUMPRODUCT((AS$213:AS$242) * ($H$213:$H$242 = $H245) * ($BD$213:$BD$242 = "RPEs Apply") * ($I$213:$I$242 = "PCD")) * (AS$148 - 1) -> 0 | AT245: =SUMPRODUCT((AT$213:AT$242) * ($H$213:$H$242 = $H245) * ($BD$213:$BD$242 = "RPEs Apply") * ($I$213:$I$242 = "PCD")) * (AT$148 - 1) -> 0 | AV245: =IF(SUMPRODUCT((AP$243:AP$248) * ($E$243:$E$248 = $E245)) = 0, 0, AP245 / SUMPRODUCT((AP$243:AP$248) * ($E$243:$E$248 = $E245))) -> 0.6 | AW245: =IF(SUMPRODUCT((AQ$243:AQ$248) * ($E$243:$E$248 = $E245)) = 0, 0, AQ245 / SUMPRODUCT((AQ$243:AQ$248) * ($E$243:$E$248 = $E245))) -> 0.6 | AX245: =IF(SUMPRODUCT((AR$243:AR$248) * ($E$243:$E$248 = $E245)) = 0, 0, AR245 / SUMPRODUCT((AR$243:AR$248) * ($E$243:$E$248 = $E245))) -> 0.6 | AY245: =IF(SUMPRODUCT((AS$243:AS$248) * ($E$243:$E$248 = $E245)) = 0, 0, AS245 / SUMPRODUCT((AS$243:AS$248) * ($E$243:$E$248 = $E245))) -> 0 | AZ245: =IF(SUMPRODUCT((AT$243:AT$248) * ($E$243:$E$248 = $E245)) = 0, 0, AT245 / SUMPRODUCT((AT$243:AT$248) * ($E$243:$E$248 = $E245))) -> 0 | BC245: TIM | BD245: 0 | BE245: 0 | BF245: Fast/Slow Split
E246: RPE PCDs | G246: £m 18/19 prices | H246: Controllable opex | I246: UM | AP246: =SUMPRODUCT((AP$213:AP$242) * ($H$213:$H$242 = $H246) * ($BD$213:$BD$242 = "RPEs Apply") * ($I$213:$I$242 = "PCD")) * (AP$148 - 1) -> 0.02507008152 | AQ246: =SUMPRODUCT((AQ$213:AQ$242) * ($H$213:$H$242 = $H246) * ($BD$213:$BD$242 = "RPEs Apply") * ($I$213:$I$242 = "PCD")) * (AQ$148 - 1) -> 0.01768080194 | AR246: =SUMPRODUCT((AR$213:AR$242) * ($H$213:$H$242 = $H246) * ($BD$213:$BD$242 = "RPEs Apply") * ($I$213:$I$242 = "PCD")) * (AR$148 - 1) -> 0.02577766495 | AS246: =SUMPRODUCT((AS$213:AS$242) * ($H$213:$H$242 = $H246) * ($BD$213:$BD$242 = "RPEs Apply") * ($I$213:$I$242 = "PCD")) * (AS$148 - 1) -> 0 | AT246: =SUMPRODUCT((AT$213:AT$242) * ($H$213:$H$242 = $H246) * ($BD$213:$BD$242 = "RPEs Apply") * ($I$213:$I$242 = "PCD")) * (AT$148 - 1) -> 0 | AV246: =IF(SUMPRODUCT((AP$243:AP$248) * ($E$243:$E$248 = $E246)) = 0, 0, AP246 / SUMPRODUCT((AP$243:AP$248) * ($E$243:$E$248 = $E246))) -> 0.4 | AW246: =IF(SUMPRODUCT((AQ$243:AQ$248) * ($E$243:$E$248 = $E246)) = 0, 0, AQ246 / SUMPRODUCT((AQ$243:AQ$248) * ($E$243:$E$248 = $E246))) -> 0.4 | AX246: =IF(SUMPRODUCT((AR$243:AR$248) * ($E$243:$E$248 = $E246)) = 0, 0, AR246 / SUMPRODUCT((AR$243:AR$248) * ($E$243:$E$248 = $E246))) -> 0.4 | AY246: =IF(SUMPRODUCT((AS$243:AS$248) * ($E$243:$E$248 = $E246)) = 0, 0, AS246 / SUMPRODUCT((AS$243:AS$248) * ($E$243:$E$248 = $E246))) -> 0 | AZ246: =IF(SUMPRODUCT((AT$243:AT$248) * ($E$243:$E$248 = $E246)) = 0, 0, AT246 / SUMPRODUCT((AT$243:AT$248) * ($E$243:$E$248 = $E246))) -> 0 | BC246: TIM | BD246: 0 | BE246: 0 | BF246: Fast/Slow Split
E247: RPE UMs | G247: £m 18/19 prices | H247: Non-operational capex | I247: UM | AP247: =SUMPRODUCT((AP$213:AP$242) * ($H$213:$H$242 = $H247) * ($BD$213:$BD$242 = "RPEs Apply") * ($I$213:$I$242 = "UM")) * (AP$148 - 1) -> 0 | AQ247: =SUMPRODUCT((AQ$213:AQ$242) * ($H$213:$H$242 = $H247) * ($BD$213:$BD$242 = "RPEs Apply") * ($I$213:$I$242 = "UM")) * (AQ$148 - 1) -> 0 | AR247: =SUMPRODUCT((AR$213:AR$242) * ($H$213:$H$242 = $H247) * ($BD$213:$BD$242 = "RPEs Apply") * ($I$213:$I$242 = "UM")) * (AR$148 - 1) -> 0 | AS247: =SUMPRODUCT((AS$213:AS$242) * ($H$213:$H$242 = $H247) * ($BD$213:$BD$242 = "RPEs Apply") * ($I$213:$I$242 = "UM")) * (AS$148 - 1) -> 0 | AT247: =SUMPRODUCT((AT$213:AT$242) * ($H$213:$H$242 = $H247) * ($BD$213:$BD$242 = "RPEs Apply") * ($I$213:$I$242 = "UM")) * (AT$148 - 1) -> 0 | AV247: =IF(SUMPRODUCT((AP$243:AP$248) * ($E$243:$E$248 = $E247)) = 0, 0, AP247 / SUMPRODUCT((AP$243:AP$248) * ($E$243:$E$248 = $E247))) -> 0 | AW247: =IF(SUMPRODUCT((AQ$243:AQ$248) * ($E$243:$E$248 = $E247)) = 0, 0, AQ247 / SUMPRODUCT((AQ$243:AQ$248) * ($E$243:$E$248 = $E247))) -> 0 | AX247: =IF(SUMPRODUCT((AR$243:AR$248) * ($E$243:$E$248 = $E247)) = 0, 0, AR247 / SUMPRODUCT((AR$243:AR$248) * ($E$243:$E$248 = $E247))) -> 0 | AY247: =IF(SUMPRODUCT((AS$243:AS$248) * ($E$243:$E$248 = $E247)) = 0, 0, AS247 / SUMPRODUCT((AS$243:AS$248) * ($E$243:$E$248 = $E247))) -> 0 | AZ247: =IF(SUMPRODUCT((AT$243:AT$248) * ($E$243:$E$248 = $E247)) = 0, 0, AT247 / SUMPRODUCT((AT$243:AT$248) * ($E$243:$E$248 = $E247))) -> 0 | BC247: TIM | BD247: 0 | BE247: 0 | BF247: Fast/Slow Split
E248: RPE UMs | G248: £m 18/19 prices | H248: Controllable opex | I248: UM | AP248: =SUMPRODUCT((AP$213:AP$242) * ($H$213:$H$242 = $H248) * ($BD$213:$BD$242 = "RPEs Apply") * ($I$213:$I$242 = "UM")) * (AP$148 - 1) -> 0 | AQ248: =SUMPRODUCT((AQ$213:AQ$242) * ($H$213:$H$242 = $H248) * ($BD$213:$BD$242 = "RPEs Apply") * ($I$213:$I$242 = "UM")) * (AQ$148 - 1) -> 0 | AR248: =SUMPRODUCT((AR$213:AR$242) * ($H$213:$H$242 = $H248) * ($BD$213:$BD$242 = "RPEs Apply") * ($I$213:$I$242 = "UM")) * (AR$148 - 1) -> 0 | AS248: =SUMPRODUCT((AS$213:AS$242) * ($H$213:$H$242 = $H248) * ($BD$213:$BD$242 = "RPEs Apply") * ($I$213:$I$242 = "UM")) * (AS$148 - 1) -> 0 | AT248: =SUMPRODUCT((AT$213:AT$242) * ($H$213:$H$242 = $H248) * ($BD$213:$BD$242 = "RPEs Apply") * ($I$213:$I$242 = "UM")) * (AT$148 - 1) -> 0 | AV248: =IF(SUMPRODUCT((AP$243:AP$248) * ($E$243:$E$248 = $E248)) = 0, 0, AP248 / SUMPRODUCT((AP$243:AP$248) * ($E$243:$E$248 = $E248))) -> 0 | AW248: =IF(SUMPRODUCT((AQ$243:AQ$248) * ($E$243:$E$248 = $E248)) = 0, 0, AQ248 / SUMPRODUCT((AQ$243:AQ$248) * ($E$243:$E$248 = $E248))) -> 0 | AX248: =IF(SUMPRODUCT((AR$243:AR$248) * ($E$243:$E$248 = $E248)) = 0, 0, AR248 / SUMPRODUCT((AR$243:AR$248) * ($E$243:$E$248 = $E248))) -> 0 | AY248: =IF(SUMPRODUCT((AS$243:AS$248) * ($E$243:$E$248 = $E248)) = 0, 0, AS248 / SUMPRODUCT((AS$243:AS$248) * ($E$243:$E$248 = $E248))) -> 0 | AZ248: =IF(SUMPRODUCT((AT$243:AT$248) * ($E$243:$E$248 = $E248)) = 0, 0, AT248 / SUMPRODUCT((AT$243:AT$248) * ($E$243:$E$248 = $E248))) -> 0 | BC248: TIM | BD248: 0 | BE248: 0 | BF248: Fast/Slow Split
B250: RAV and assets
E252: Post-vesting asset life | G252: years | I252: ='NGGT SO'!I183 -> 7
E253: Pre-RIIO net additions to RAV | G253: £m 18/19 prices | J253: > | W253: ='NGGT SO'!W184 -> 0 | X253: ='NGGT SO'!X184 -> 0 | Y253: ='NGGT SO'!Y184 -> 0 | Z253: ='NGGT SO'!Z184 -> 0 | AA253: ='NGGT SO'!AA184 -> 0 | AB253: ='NGGT SO'!AB184 -> 14.41994601 | AC253: ='NGGT SO'!AC184 -> 9.987776106 | AD253: ='NGGT SO'!AD184 -> 13.29836079 | AE253: ='NGGT SO'!AE184 -> 12.08538606 | AF253: ='NGGT SO'!AF184 -> 15.19536402 | AG253: ='NGGT SO'!AG184 -> 31.93474213
E254: ='NGGT SO'!E70 -> System Operator legacy net RAV additions | G254: £m 18/19 prices | H254: ='NGGT SO'!H70 -> SOLRAVt | J254: > | AH254: ='NGGT SO'!AH70 -> 33.61351646 | AI254: ='NGGT SO'!AI70 -> 37.29789628 | AJ254: ='NGGT SO'!AJ70 -> 39.82558657 | AK254: ='NGGT SO'!AK70 -> 37.85929468 | AL254: ='NGGT SO'!AL70 -> 34.93120613 | AM254: ='NGGT SO'!AM70 -> 37.57129253 | AN254: ='NGGT SO'!AN70 -> 38.75261365 | AO254: ='NGGT SO'!AO70 -> 36.47909712
B256: Totex
C258: Actual totex
D260: Source of actuals
... 246 more rows

Sheet Return&RAV
A1: Return & RAV
B2: =UserInterface!G17 -> NGGT TO
E3: Parameter | G3: Units | I3: Constant | AP3: Annual values
E4: PCFM year ending | F4: =Cover!C4 -> Model Version | I4: =UserInterface!$G$10 -> 2022-03-31 | K4: 1991-03-31 | L4: 1992-03-31 | M4: 1993-03-31 | N4: 1994-03-31 | O4: 1995-03-31 | P4: 1996-03-31 | Q4: 1997-03-31 | R4: 1998-03-31 | S4: 1999-03-31 | T4: 2000-03-31 | U4: 2001-03-31 | V4: 2002-03-31 | W4: 2003-03-31 | X4: 2004-03-31 | Y4: 2005-03-31 | Z4: 2006-03-31 | AA4: 2007-03-31 | AB4: 2008-03-31 | AC4: 2009-03-31 | AD4: 2010-03-31 | AE4: 2011-03-31 | AF4: 2012-03-31 | AG4: 2013-03-31 | AH4: 2014-03-31 | AI4: 2015-03-31 | AJ4: 2016-03-31 | AK4: 2017-03-31 | AL4: 2018-03-31 | AM4: 2019-03-31 | AN4: 2020-03-31 | AO4: 2021-03-31 | AP4: 2022-03-31 | AQ4: 2023-03-31 | AR4: 2024-03-31 | AS4: 2025-03-31 | AT4: 2026-03-31
B6: Return
C8: Return base
C9: Note: The "Return base" is calculated such that the net present value of the stream of depreciation and return flowing from a RAV addition is equal to the present value of the addition itself.
D11: Present value of closing RAV
E13: Vanilla WACC | G13: annual real % | AP13: =Input!AP169 -> 0.0293727524 | AQ13: =Input!AQ169 -> 0.0285210304 | AR13: =Input!AR169 -> 0.0279982752 | AS13: =Input!AS169 -> 0.0275258644 | AT13: =Input!AT169 -> 0.0272431092
E14: Single year discount factor | G14: scalar | AP14: =1 / (1 + AP13) -> 0.9714653877 | AQ14: 0.9722698617 | AR14: 0.972764278 | AS14: 0.9732115119 | AT14: 0.9734793946
E16: Closing RAV | G16: £m 18/19 prices | AP16: =AP44 -> 5857.52604 | AQ16: 5828.412338 | AR16: 5800.705212 | AS16: 5646.55684 | AT16: 5484.12553
E18: Discounted closing RAV | G18: £m 18/19 prices | AP18: =AP16 * AP14 -> 5690.383805 | AQ18: 5666.789657 | AR18: 5642.718818 | AS18: 5495.29412 | AT18: 5338.683201
D20: NPV-neutral RAV return base
E22: Opening RAV (after transfers) | G22: £m 18/19 prices | AP22: =AP41 -> 5959.612587 | AQ22: 5857.52604 | AR22: 5828.412338 | AS22: 5800.705212 | AT22: 5646.55684
E23: Discounted closing RAV | G23: £m 18/19 prices | AP23: =AP18 -> 5690.383805 | AQ23: 5666.789657 | AR23: 5642.718818 | AS23: 5495.29412 | AT23: 5338.683201
E25: NPV-neutral RAV return base | G25: £m 18/19 prices | AP25: =AVERAGE(AP22:AP23) -> 5824.998196 | AQ25: 5762.157849 | AR25: 5735.565578 | AS25: 5647.999666 | AT25: 5492.620021
C27: Return on RAV
E29: NPV-neutral RAV return base | G29: £m 18/19 prices | AP29: =AP25 -> 5824.998196 | AQ29: 5762.157849 | AR29: 5735.565578 | AS29: 5647.999666 | AT29: 5492.620021
E30: Vanilla WACC | G30: annual real % | AP30: =AP13 -> 0.0293727524 | AQ30: 0.0285210304 | AR30: 0.0279982752 | AS30: 0.0275258644 | AT30: 0.0272431092
E32: Return | G32: £m 18/19 prices | AP32: =AP29 * AP30 -> 171.0962297 | AQ32: 164.3426792 | AR32: 160.5859435 | AS32: 155.4660729 | AT32: 149.636047
B34: RAV
B35: Note: The RAV is presented separate pre-vesting and post-vesting balances brought together to form a combined "Running total."
C37: Running total
E39: Opening RAV (before transfers) | G39: £m 18/19 prices | AH39: =(AH51 - AH60) + (AH77 - AH86) -> 5271.022933 | AI39: =AH44 -> 5615.048818 | AJ39: 5602.630109 | AK39: 5579.503772 | AL39: 5592.058341 | AM39: 5980.447412 | AN39: 6025.135115 | AO39: 6017.28067 | AP39: =AO44 -> 5959.612587 | AQ39: =AP44 -> 5857.52604 | AR39: =AQ44 -> 5828.412338 | AS39: =AR44 -> 5800.705212 | AT39: =AS44 -> 5646.55684
E40: Transfers | G40: £m 18/19 prices | AH40: =(AH52 - AH61) + (AH78 - AH87) -> 313.6938455 | AI40: =(AI52 - AI61) + (AI78 - AI87) -> 2.086357557 | AJ40: 2.543555257 | AK40: 19.24205165 | AL40: 341.6993541 | AM40: 18.29339908 | AN40: 24.260659 | AO40: 1.064371298 | AP40: =(AP52 - AP61) + (AP78 - AP87) -> 0 | AQ40: 0 | AR40: 0 | AS40: 0 | AT40: 0
E41: Opening RAV (after transfers) | G41: £m 18/19 prices | AH41: =SUM(AH39:AH40) -> 5584.716779 | AI41: 5617.135176 | AJ41: 5605.173664 | AK41: 5598.745824 | AL41: 5933.757695 | AM41: 5998.740811 | AN41: 6049.395774 | AO41: 6018.345041 | AP41: =SUM(AP39:AP40) -> 5959.612587 | AQ41: 5857.52604 | AR41: 5828.412338 | AS41: 5800.705212 | AT41: 5646.55684
E42: Net additions (after disposals) | G42: £m 18/19 prices | AH42: =AH54 + AH80 -> 212.5523708 | AI42: =AI54 + AI80 -> 170.2886636 | AJ42: 160.7682031 | AK42: 181.5958774 | AL42: 245.9491647 | AM42: 229.3294584 | AN42: 174.2590356 | AO42: 149.3414095 | AP42: =AP54 + AP80 -> 196.3787316 | AQ42: 271.219385 | AR42: 277.5579747 | AS42: 156.0622834 | AT42: 147.1743075
E43: Depreciation | G43: £m 18/19 prices | AH43: =-(AH63 + AH89) -> -182.2203316 | AI43: =-(AI63 + AI89) -> -184.7937302 | AJ43: -186.4380953 | AK43: -188.28336 | AL43: -199.2594483 | AM43: -202.9351544 | AN43: -206.3741394 | AO43: -208.0738642 | AP43: =-(AP63 + AP89) -> -298.4652784 | AQ43: -300.3330873 | AR43: -305.2650998 | AS43: -310.2106554 | AT43: -309.6056177
E44: Closing RAV | G44: £m 18/19 prices | AH44: =SUM(AH41:AH43) -> 5615.048818 | AI44: =SUM(AI41:AI43) -> 5602.630109 | AJ44: 5579.503772 | AK44: 5592.058341 | AL44: 5980.447412 | AM44: 6025.135115 | AN44: 6017.28067 | AO44: 5959.612587 | AP44: =SUM(AP41:AP43) -> 5857.52604 | AQ44: 5828.412338 | AR44: 5800.705212 | AS44: 5646.55684 | AT44: 5484.12553
C46: Pre-vesting balance
C47: Note: Pre-vesting RAV opening balances are inputs to the model. The continued depreciation of these assets uses annual depreciation rates calculated on the "Depn" sheet.
D49: Cost
E51: Opening balance brought forward (before transfers) | G51: £m 18/19 prices | AH51: =Input!AH505 -> 3505.376058 | AI51: =AH56 -> 3505.376058 | AJ51: =AI56 -> 3505.376058 | AK51: 3505.376058 | AL51: 3505.376058 | AM51: 3505.376058 | AN51: 3505.376058 | AO51: 3505.376058 | AP51: =AO56 -> 3505.376058 | AQ51: =AP56 -> 3505.376058 | AR51: =AQ56 -> 3505.376058 | AS51: =AR56 -> 3505.376058 | AT51: =AS56 -> 3505.376058
E52: Transfers | G52: £m 18/19 prices
E53: Opening balance brought forward (after transfers) | G53: £m 18/19 prices | AH53: =SUM(AH51:AH52) -> 3505.376058 | AI53: =SUM(AI51:AI52) -> 3505.376058 | AJ53: 3505.376058 | AK53: 3505.376058 | AL53: 3505.376058 | AM53: 3505.376058 | AN53: 3505.376058 | AO53: 3505.376058 | AP53: =SUM(AP51:AP52) -> 3505.376058 | AQ53: 3505.376058 | AR53: 3505.376058 | AS53: 3505.376058 | AT53: 3505.376058
E54: Net additions (after disposals) | G54: £m 18/19 prices | AH54: =-Input!AH509 -> 0 | AI54: =-Input!AI509 -> 0 | AJ54: =-Input!AJ509 -> 0 | AK54: =-Input!AK509 -> 0 | AL54: =-Input!AL509 -> 0 | AM54: =-Input!AM509 -> 0 | AN54: =-Input!AN509 -> 0 | AO54: =-Input!AO509 -> 0 | AP54: =-Input!AP509 -> 0 | AQ54: =-Input!AQ509 -> 0 | AR54: =-Input!AR509 -> 0 | AS54: =-Input!AS509 -> 0 | AT54: =-Input!AT509 -> 0
E55: Removals | G55: £m 18/19 prices
